{"text_format":"1","workbook":"xlsx","n_sheets":7,"sheets":["CAISSE","BANQUE","Données","Fichier clients","Fournisseurs","Prestations","EDITIONS"],"not_rendered":{"charts":0,"images":6,"macros":1,"external_links":0,"defined_names":90,"comments":2,"pivot_tables":0},"unopened":[],"bounds":{"document_bytes":16777216,"sheet_cells":100000,"rows_first":2000,"rows_last":500,"rows_between":2000,"halvings":0,"cell_chars":16384,"cell_head_chars":4096},"cells_cut":0,"cells_raw":0,"read":"whole","date_system":"1900"}

{"sheet":"CAISSE","index":0,"n_rows":616,"n_cols":61,"rows_kept":616,"cut":false,"hidden":false,"merged":[[0,19,1,24],[5,13,6,13],[5,14,6,14],[5,15,6,15],[9,22,10,22],[9,23,10,23],[9,19,10,19],[9,20,10,20],[9,21,10,21],[12,19,13,19],[12,20,13,20],[12,21,13,21],[12,22,13,22],[12,23,13,23],[19,22,20,22],[19,23,20,23],[22,19,23,19],[22,20,23,20],[22,21,23,21],[22,22,23,22],[22,23,23,23],[14,17,14,18],[15,17,15,18],[19,19,20,19],[19,20,20,20],[19,21,20,21],[29,22,30,22],[29,23,30,23],[32,19,33,19],[32,20,33,20],[32,21,33,21],[32,22,33,22],[32,23,33,23],[24,17,24,18],[25,17,25,18],[29,19,30,19],[29,20,30,20],[29,21,30,21],[39,22,40,22],[39,23,40,23],[42,19,43,19],[42,20,43,20],[42,21,43,21],[42,22,43,22],[42,23,43,23],[34,17,34,18],[35,17,35,18],[39,19,40,19],[39,20,40,20],[39,21,40,21],[49,22,50,22],[49,23,50,23],[52,19,53,19],[52,20,53,20],[52,21,53,21],[52,22,53,22],[52,23,53,23],[44,17,44,18],[45,17,45,18],[49,19,50,19],[49,20,50,20],[49,21,50,21],[59,22,60,22],[59,23,60,23],[62,19,63,19],[62,20,63,20],[62,21,63,21],[62,22,63,22],[62,23,63,23],[54,17,54,18],[55,17,55,18],[59,19,60,19],[59,20,60,20],[59,21,60,21],[69,22,70,22],[69,23,70,23],[72,19,73,19],[72,20,73,20],[72,21,73,21],[72,22,73,22],[72,23,73,23],[64,17,64,18],[65,17,65,18],[69,19,70,19],[69,20,70,20],[69,21,70,21],[79,22,80,22],[79,23,80,23],[82,19,83,19],[82,20,83,20],[82,21,83,21],[82,22,83,22],[82,23,83,23],[74,17,74,18],[75,17,75,18],[79,19,80,19],[79,20,80,20],[79,21,80,21],[89,22,90,22],[89,23,90,23],[92,19,93,19],[92,20,93,20],[92,21,93,21],[92,22,93,22],[92,23,93,23],[84,17,84,18],[85,17,85,18],[89,19,90,19],[89,20,90,20],[89,21,90,21],[99,22,100,22],[99,23,100,23],[102,19,103,19],[102,20,103,20],[102,21,103,21],[102,22,103,22],[102,23,103,23],[94,17,94,18],[95,17,95,18],[99,19,100,19],[99,20,100,20],[99,21,100,21],[109,22,110,22],[109,23,110,23],[112,19,113,19],[112,20,113,20],[112,21,113,21],[112,22,113,22],[112,23,113,23],[104,17,104,18],[105,17,105,18],[109,19,110,19],[109,20,110,20],[109,21,110,21],[119,22,120,22],[119,23,120,23],[122,19,123,19],[122,20,123,20],[122,21,123,21],[122,22,123,22],[122,23,123,23],[114,17,114,18],[115,17,115,18],[119,19,120,19],[119,20,120,20],[119,21,120,21],[129,22,130,22],[129,23,130,23],[132,19,133,19],[132,20,133,20],[132,21,133,21],[132,22,133,22],[132,23,133,23],[124,17,124,18],[125,17,125,18],[129,19,130,19],[129,20,130,20],[129,21,130,21],[139,22,140,22],[139,23,140,23],[142,19,143,19],[142,20,143,20],[142,21,143,21],[142,22,143,22],[142,23,143,23],[134,17,134,18],[135,17,135,18],[139,19,140,19],[139,20,140,20],[139,21,140,21],[149,22,150,22],[149,23,150,23],[152,19,153,19],[152,20,153,20],[152,21,153,21],[152,22,153,22],[152,23,153,23],[144,17,144,18],[145,17,145,18],[149,19,150,19],[149,20,150,20],[149,21,150,21],[159,22,160,22],[159,23,160,23],[162,19,163,19],[162,20,163,20],[162,21,163,21],[162,22,163,22],[162,23,163,23],[154,17,154,18],[155,17,155,18],[159,19,160,19],[159,20,160,20],[159,21,160,21],[169,22,170,22],[169,23,170,23],[172,19,173,19],[172,20,173,20],[172,21,173,21],[172,22,173,22],[172,23,173,23],[164,17,164,18],[165,17,165,18],[169,19,170,19],[169,20,170,20],[169,21,170,21],[179,22,180,22],[179,23,180,23],[182,19,183,19],[182,20,183,20],[182,21,183,21],[182,22,183,22],[182,23,183,23],[174,17,174,18],[175,17,175,18],[179,19,180,19],[179,20,180,20],[179,21,180,21],[189,22,190,22],[189,23,190,23],[192,19,193,19],[192,20,193,20],[192,21,193,21],[192,22,193,22],[192,23,193,23],[184,17,184,18],[185,17,185,18],[189,19,190,19],[189,20,190,20],[189,21,190,21],[199,22,200,22],[199,23,200,23],[202,19,203,19],[202,20,203,20],[202,21,203,21],[202,22,203,22],[202,23,203,23],[194,17,194,18],[195,17,195,18],[199,19,200,19],[199,20,200,20],[199,21,200,21],[209,22,210,22],[209,23,210,23],[212,19,213,19],[212,20,213,20],[212,21,213,21],[212,22,213,22],[212,23,213,23],[204,17,204,18],[205,17,205,18],[209,19,210,19],[209,20,210,20],[209,21,210,21],[219,22,220,22],[219,23,220,23],[222,19,223,19],[222,20,223,20],[222,21,223,21],[222,22,223,22],[222,23,223,23],[214,17,214,18],[215,17,215,18],[219,19,220,19],[219,20,220,20],[219,21,220,21],[229,22,230,22],[229,23,230,23],[232,19,233,19],[232,20,233,20],[232,21,233,21],[232,22,233,22],[232,23,233,23],[224,17,224,18],[225,17,225,18],[229,19,230,19],[229,20,230,20],[229,21,230,21],[239,22,240,22],[239,23,240,23],[242,19,243,19],[242,20,243,20],[242,21,243,21],[242,22,243,22],[242,23,243,23],[234,17,234,18],[235,17,235,18],[239,19,240,19],[239,20,240,20],[239,21,240,21],[249,22,250,22],[249,23,250,23],[252,19,253,19],[252,20,253,20],[252,21,253,21],[252,22,253,22],[252,23,253,23],[244,17,244,18],[245,17,245,18],[249,19,250,19],[249,20,250,20],[249,21,250,21],[259,22,260,22],[259,23,260,23],[262,19,263,19],[262,20,263,20],[262,21,263,21],[262,22,263,22],[262,23,263,23],[254,17,254,18],[255,17,255,18],[259,19,260,19],[259,20,260,20],[259,21,260,21],[269,22,270,22],[269,23,270,23],[272,19,273,19],[272,20,273,20],[272,21,273,21],[272,22,273,22],[272,23,273,23],[264,17,264,18],[265,17,265,18],[269,19,270,19],[269,20,270,20],[269,21,270,21],[279,22,280,22],[279,23,280,23],[282,19,283,19],[282,20,283,20],[282,21,283,21],[282,22,283,22],[282,23,283,23],[274,17,274,18],[275,17,275,18],[279,19,280,19],[279,20,280,20],[279,21,280,21],[289,22,290,22],[289,23,290,23],[292,19,293,19],[292,20,293,20],[292,21,293,21],[292,22,293,22],[292,23,293,23],[284,17,284,18],[285,17,285,18],[289,19,290,19],[289,20,290,20],[289,21,290,21],[299,22,300,22],[299,23,300,23],[302,19,303,19],[302,20,303,20],[302,21,303,21],[302,22,303,22],[302,23,303,23],[294,17,294,18],[295,17,295,18],[299,19,300,19],[299,20,300,20],[299,21,300,21],[309,22,310,22],[309,23,310,23],[312,19,313,19],[312,20,313,20],[312,21,313,21],[312,22,313,22],[312,23,313,23],[304,17,304,18],[305,17,305,18],[309,19,310,19],[309,20,310,20],[309,21,310,21],[319,22,320,22],[319,23,320,23],[322,19,323,19],[322,20,323,20],[322,21,323,21],[322,22,323,22],[322,23,323,23],[314,17,314,18],[315,17,315,18],[319,19,320,19],[319,20,320,20],[319,21,320,21],[329,22,330,22],[329,23,330,23],[332,19,333,19],[332,20,333,20],[332,21,333,21],[332,22,333,22],[332,23,333,23],[324,17,324,18],[325,17,325,18],[329,19,330,19],[329,20,330,20],[329,21,330,21],[339,22,340,22],[339,23,340,23],[342,19,343,19],[342,20,343,20],[342,21,343,21],[342,22,343,22],[342,23,343,23],[334,17,334,18],[335,17,335,18],[339,19,340,19],[339,20,340,20],[339,21,340,21],[349,22,350,22],[349,23,350,23],[352,19,353,19],[352,20,353,20],[352,21,353,21],[352,22,353,22],[352,23,353,23],[344,17,344,18],[345,17,345,18],[349,19,350,19],[349,20,350,20],[349,21,350,21],[359,22,360,22],[359,23,360,23],[362,19,363,19],[362,20,363,20],[362,21,363,21],[362,22,363,22],[362,23,363,23],[354,17,354,18],[355,17,355,18],[359,19,360,19],[359,20,360,20],[359,21,360,21],[369,22,370,22],[369,23,370,23],[372,19,373,19],[372,20,373,20],[372,21,373,21],[372,22,373,22],[372,23,373,23],[364,17,364,18],[365,17,365,18],[369,19,370,19],[369,20,370,20],[369,21,370,21],[379,22,380,22],[379,23,380,23],[382,19,383,19],[382,20,383,20],[382,21,383,21],[382,22,383,22],[382,23,383,23],[374,17,374,18],[375,17,375,18],[379,19,380,19],[379,20,380,20],[379,21,380,21],[389,22,390,22],[389,23,390,23],[392,19,393,19],[392,20,393,20],[392,21,393,21],[392,22,393,22],[392,23,393,23],[384,17,384,18],[385,17,385,18],[389,19,390,19],[389,20,390,20],[389,21,390,21],[399,22,400,22],[399,23,400,23],[402,19,403,19],[402,20,403,20],[402,21,403,21],[402,22,403,22],[402,23,403,23],[394,17,394,18],[395,17,395,18],[399,19,400,19],[399,20,400,20],[399,21,400,21],[409,22,410,22],[409,23,410,23],[412,19,413,19],[412,20,413,20],[412,21,413,21],[412,22,413,22],[412,23,413,23],[404,17,404,18],[405,17,405,18],[409,19,410,19],[409,20,410,20],[409,21,410,21],[419,22,420,22],[419,23,420,23],[422,19,423,19],[422,20,423,20],[422,21,423,21],[422,22,423,22],[422,23,423,23],[414,17,414,18],[415,17,415,18],[419,19,420,19],[419,20,420,20],[419,21,420,21],[429,22,430,22],[429,23,430,23],[432,19,433,19],[432,20,433,20],[432,21,433,21],[432,22,433,22],[432,23,433,23],[424,17,424,18],[425,17,425,18],[429,19,430,19],[429,20,430,20],[429,21,430,21],[439,22,440,22],[439,23,440,23],[442,19,443,19],[442,20,443,20],[442,21,443,21],[442,22,443,22],[442,23,443,23],[434,17,434,18],[435,17,435,18],[439,19,440,19],[439,20,440,20],[439,21,440,21],[449,22,450,22],[449,23,450,23],[452,19,453,19],[452,20,453,20],[452,21,453,21],[452,22,453,22],[452,23,453,23],[444,17,444,18],[445,17,445,18],[449,19,450,19],[449,20,450,20],[449,21,450,21],[459,22,460,22],[459,23,460,23],[462,19,463,19],[462,20,463,20],[462,21,463,21],[462,22,463,22],[462,23,463,23],[454,17,454,18],[455,17,455,18],[459,19,460,19],[459,20,460,20],[459,21,460,21],[469,22,470,22],[469,23,470,23],[472,19,473,19],[472,20,473,20],[472,21,473,21],[472,22,473,22],[472,23,473,23],[464,17,464,18],[465,17,465,18],[469,19,470,19],[469,20,470,20],[469,21,470,21],[479,22,480,22],[479,23,480,23],[482,19,483,19],[482,20,483,20],[482,21,483,21],[482,22,483,22],[482,23,483,23],[474,17,474,18],[475,17,475,18],[479,19,480,19],[479,20,480,20],[479,21,480,21],[489,22,490,22],[489,23,490,23],[492,19,493,19],[492,20,493,20],[492,21,493,21],[492,22,493,22],[492,23,493,23],[484,17,484,18],[485,17,485,18],[489,19,490,19],[489,20,490,20],[489,21,490,21],[499,22,500,22],[499,23,500,23],[502,19,503,19],[502,20,503,20],[502,21,503,21],[502,22,503,22],[502,23,503,23],[494,17,494,18],[495,17,495,18],[499,19,500,19],[499,20,500,20],[499,21,500,21],[512,20,513,20],[512,21,513,21],[512,22,513,22],[512,23,513,23],[504,17,504,18],[505,17,505,18],[509,19,510,19],[509,20,510,20],[509,21,510,21],[10,30,11,30],[10,29,11,29],[12,29,13,29],[10,31,11,31],[10,32,11,32],[10,33,11,33],[10,34,11,34],[524,17,524,18],[525,17,525,18],[519,22,520,22],[519,23,520,23],[522,19,523,19],[522,20,523,20],[522,21,523,21],[522,22,523,22],[522,23,523,23],[514,17,514,18],[515,17,515,18],[519,19,520,19],[519,20,520,20],[519,21,520,21],[509,22,510,22],[509,23,510,23],[512,19,513,19],[12,30,13,30],[12,31,13,31],[12,32,13,32],[12,33,13,33],[12,34,13,34],[12,35,13,35],[12,36,13,36],[12,37,13,37],[12,38,13,38],[14,40,15,40],[14,41,15,41],[10,35,11,35],[10,36,11,36],[10,37,11,37],[10,38,11,38],[10,39,11,39],[10,40,11,40],[10,41,11,41],[12,39,13,39],[12,40,13,40],[12,41,13,41],[5,1,6,1],[5,3,6,3],[5,8,6,8],[5,7,6,7],[5,10,6,10],[5,12,6,12],[5,2,6,2],[5,4,6,4],[5,11,6,11],[5,6,6,6],[5,9,6,9],[5,5,6,5],[529,19,530,19],[529,20,530,20],[529,21,530,21],[529,22,530,22],[529,23,530,23],[532,19,533,19],[532,20,533,20],[532,21,533,21],[532,22,533,22],[532,23,533,23],[534,17,534,18],[535,17,535,18],[539,19,540,19],[539,20,540,20],[539,21,540,21],[539,22,540,22],[539,23,540,23],[542,19,543,19],[542,20,543,20],[542,21,543,21],[542,22,543,22],[542,23,543,23],[544,17,544,18],[545,17,545,18],[549,19,550,19],[549,20,550,20],[549,21,550,21],[549,22,550,22],[549,23,550,23],[552,19,553,19],[552,20,553,20],[552,21,553,21],[552,22,553,22],[552,23,553,23],[554,17,554,18],[555,17,555,18],[559,19,560,19],[559,20,560,20],[559,21,560,21],[559,22,560,22],[559,23,560,23],[562,19,563,19],[562,20,563,20],[562,21,563,21],[562,22,563,22],[562,23,563,23],[564,17,564,18],[565,17,565,18],[569,19,570,19],[569,20,570,20],[569,21,570,21],[569,22,570,22],[569,23,570,23],[572,19,573,19],[572,20,573,20],[572,21,573,21],[572,22,573,22],[572,23,573,23],[574,17,574,18],[575,17,575,18],[579,19,580,19],[579,20,580,20],[579,21,580,21],[579,22,580,22],[579,23,580,23],[582,19,583,19],[582,20,583,20],[582,21,583,21],[582,22,583,22],[582,23,583,23],[584,17,584,18],[585,17,585,18],[589,19,590,19],[589,20,590,20],[589,21,590,21],[589,22,590,22],[589,23,590,23],[592,19,593,19],[592,20,593,20],[592,21,593,21],[592,22,593,22],[592,23,593,23],[594,17,594,18],[595,17,595,18],[599,19,600,19],[599,20,600,20],[599,21,600,21],[599,22,600,22],[599,23,600,23],[602,19,603,19],[602,20,603,20],[602,21,603,21],[602,22,603,22],[602,23,603,23],[614,17,614,18],[615,17,615,18],[604,17,604,18],[605,17,605,18],[609,19,610,19],[609,20,610,20],[609,21,610,21],[609,22,610,22],[609,23,610,23],[612,19,613,19],[612,20,613,20],[612,21,613,21],[612,22,613,22],[612,23,613,23],[5,55,6,55],[5,56,6,56],[5,57,6,57],[5,58,6,58],[5,59,6,59],[0,50,1,55],[0,32,1,37],[5,48,6,48],[5,49,6,49],[5,50,6,50],[5,51,6,51],[5,52,6,52],[5,53,6,53],[5,54,6,54],[8,38,9,38],[8,39,9,39],[8,40,9,40],[8,41,9,41],[14,29,15,29],[14,30,15,30],[14,31,15,31],[14,32,15,32],[14,33,15,33],[14,34,15,34],[8,29,9,29],[8,30,9,30],[8,31,9,31],[8,32,9,32],[8,33,9,33],[8,34,9,34],[8,35,9,35],[8,36,9,36],[8,37,9,37],[14,35,15,35],[14,36,15,36],[14,37,15,37],[14,38,15,38],[14,39,15,39]]}
[null,null,null,null,null,null,"C A I S S E",null,null,null,null,null,null,null,null,null,null,null,null,"VENTILATION CA SEMAINE",null,null,null,null,null,null,null,null,null,null,null,null,"CHIFFRE D'AFFAIRE TTC ANNUEL",null,null,null,null,null,null,null,null,null,null,null,null,null,null,null,null,null,"TOTAL DEPENSES"]
[]
[null,null,null,null,null,null,null,null,null,null,null,null,null,null,null,null,null,"Notice"]
[]
[]
[null,"DATE","JOUR","SEMAINE","MOIS","CATEGORIE","OBJET","CODES  CLIENT","N° de Document","DESIGNATION","Type de PAIEMENT","NB Réglmt","CREDIT","DEBIT","RECETTE\nJOUR","DEPENSES\nJOUR",null,null,null,null,null,null,null,null,null,null,null,null,null,null,null,null,null,null,null,null,null,null,null,null,null,null,null,null,null,null,null,null,"JANVIER","FÉVRIER","MARS","AVRIL","MAI","JUIN","JUILLET","AOÛT","SEPTEMBRE","OCTOBRE","NOVEMBRE","DÉCEMBRE"]
[null,null,null,null,null,null,null,null,null,null,null,null,null,null,null,null,null,null,null,null,null,null,null,null,null,null,null,null,null,null,"JANVIER","FÉVRIER","MARS","AVRIL","MAI","JUIN","JUILLET","AOÛT","SEPTEMBRE","OCTOBRE","NOVEMBRE","DÉCEMBRE"]
[null,"2013-01-01"]
[null,"2013-09-27",{"$f":"DATE(YEAR(B9),MONTH(B9),DAY(B9))","v":41544},{"$f":"INT(MOD(INT((B9-2)/7)+0.6,52+5/28))+1","v":39},{"$f":"IF(CaJour=0,\"\",UPPER(TEXT(C9,\"mmmm\")))","v":"SEPTEMBRE"},"Taxi",null,null,null,null,"Espèce",null,70,null,{"$f":"IF(AND((CaJour=B9),(CACatégorie=\"Résultat\")),IF(B8=B9,M8,0)+IF(B6=B9,M6,0),0)","v":0},{"$f":"IF(AND((CaJour=B9),(CACatégorie=\"Résultat\")),IF(B8=B9,N8,0)+IF(B6=B9,N6,0),0)","v":0},null,"Semaine N°",null,"TOTAL","Taxi","Location","Publicité",null,null,null,null,null,null,"Espèce",{"$f":"SUMPRODUCT((CaMois=AE7)*(CaMode=$AD$9)*CaCrédit)","v":{"$error":"#VALUE!"}},{"$error":"#VALUE!"},{"$error":"#VALUE!"},{"$error":"#VALUE!"},{"$error":"#VALUE!"},{"$error":"#VALUE!"},{"$error":"#VALUE!"},{"$error":"#VALUE!"},{"$error":"#VALUE!"},{"$error":"#VALUE!"},{"$error":"#VALUE!"},{"$error":"#VALUE!"},null,null,null,null,null,"DEPENSES",{"$f":"SUMPRODUCT((CaMois=AW6)*(CACatégorie=\"Dépense\")*CaDébit)","v":{"$error":"#VALUE!"}},{"$error":"#VALUE!"},{"$error":"#VALUE!"},{"$error":"#VALUE!"},{"$error":"#VALUE!"},{"$error":"#VALUE!"},{"$error":"#VALUE!"},{"$error":"#VALUE!"},{"$error":"#VALUE!"},{"$error":"#VALUE!"},{"$error":"#VALUE!"},{"$error":"#VALUE!"},{"$f":"SUM(AW9:BH9)","v":{"$error":"#VALUE!"}}]
[null,"2013-09-27",{"$f":"DATE(YEAR(B10),MONTH(B10),DAY(B10))","v":41544},39,"SEPTEMBRE","Résultat",null,null,null,null,null,null,null,null,{"$f":"IF(AND((CaJour=B10),(CACatégorie=\"Résultat\")),IF(B9=B10,M9,0)+IF(B8=B10,M8,0),0)","v":70},{"$f":"IF(AND((CaJour=B10),(CACatégorie=\"Résultat\")),IF(B9=B10,N9,0)+IF(B8=B10,N8,0),0)","v":0},null,null,null,{"$f":"SUMPRODUCT((CaSem=S9)*CaCrédit)","v":{"$error":"#VALUE!"}},{"$f":"SUMPRODUCT((CaSem=S9)*(CACatégorie=U9)*CaCrédit)","v":{"$error":"#VALUE!"}},{"$f":"SUMPRODUCT((CaSem=S9)*(CACatégorie=V9)*CaCrédit)","v":{"$error":"#VALUE!"}},{"$f":"SUMPRODUCT((CaSem=S9)*(CACatégorie=W9)*CaCrédit)","v":{"$error":"#VALUE!"}}]
[null,"2013-09-30",41547,40,"SEPTEMBRE","Publicité","Factures","PUCYC0001","F2013421",null,"Virement","R1",1300,null,{"$f":"IF(AND((CaJour=B11),(CACatégorie=\"Résultat\")),IF(B10=B11,M10,0)+IF(B9=B11,M9,0)+IF(B8=B11,M8,0),0)","v":0},{"$f":"IF(AND((CaJour=B11),(CACatégorie=\"Résultat\")),IF(B10=B11,N10,0)+IF(B9=B11,N9,0)+IF(B8=B11,N8,0),0)","v":0},null,null,null,null,null,null,null,null,null,null,null,null,null,"Chèque",{"$f":"SUMPRODUCT((CaMois=AE7)*(CaMode=$AD$11)*CaCrédit)","v":{"$error":"#VALUE!"}},{"$error":"#VALUE!"},{"$error":"#VALUE!"},{"$error":"#VALUE!"},{"$error":"#VALUE!"},{"$error":"#VALUE!"},{"$error":"#VALUE!"},{"$error":"#VALUE!"},{"$error":"#VALUE!"},{"$error":"#VALUE!"},{"$error":"#VALUE!"},{"$error":"#VALUE!"}]
[null,"2013-09-30",41547,40,"SEPTEMBRE","Banque","Remise",null,null,null,"Virement",null,null,1400,{"$f":"IF(AND((CaJour=B12),(CACatégorie=\"Résultat\")),IF(B11=B12,M11,0)+IF(B10=B12,M10,0)+IF(B9=B12,M9,0)+IF(B8=B12,M8,0),0)","v":0},{"$f":"IF(AND((CaJour=B12),(CACatégorie=\"Résultat\")),IF(B11=B12,N11,0)+IF(B10=B12,N10,0)+IF(B9=B12,N9,0)+IF(B8=B12,N8,0),0)","v":0},null,null,null,"Espèce","Chèque","CB","Virement","Tickets","vérif"]
[null,"2013-09-30",41547,40,"SEPTEMBRE","Résultat",null,null,null,null,null,null,null,null,{"$f":"IF(AND((CaJour=B13),(CACatégorie=\"Résultat\")),IF(B12=B13,M12,0)+IF(B11=B13,M11,0)+IF(B10=B13,M10,0)+IF(B9=B13,M9,0),0)","v":1300},{"$f":"IF(AND((CaJour=B13),(CACatégorie=\"Résultat\")),IF(B12=B13,N12,0)+IF(B11=B13,N11,0)+IF(B10=B13,N10,0)+IF(B9=B13,N9,0),0)","v":1400},null,null,null,{"$f":"SUMPRODUCT((CaSem=S9)*(CaMode=\"Espèce\")*CaCrédit)","v":{"$error":"#VALUE!"}},{"$f":"SUMPRODUCT((CaSem=S9)*(CaMode=U12)*CaCrédit)","v":{"$error":"#VALUE!"}},{"$f":"SUMPRODUCT((CaSem=S9)*(CaMode=V12)*CaCrédit)","v":{"$error":"#VALUE!"}},{"$f":"SUMPRODUCT((CaSem=S9)*(CaMode=W12)*CaCrédit)","v":{"$error":"#VALUE!"}},{"$f":"SUMPRODUCT((CaSem=S9)*(CaMode=X12)*CaCrédit)","v":{"$error":"#VALUE!"}},{"$f":"SUM(T13:X14)","v":{"$error":"#VALUE!"}},null,null,null,null,"CB",{"$f":"SUMPRODUCT((CaMois=AE7)*(CaMode=$AD$13)*CaCrédit)","v":{"$error":"#VALUE!"}},{"$error":"#VALUE!"},{"$error":"#VALUE!"},{"$error":"#VALUE!"},{"$error":"#VALUE!"},{"$error":"#VALUE!"},{"$error":"#VALUE!"},{"$error":"#VALUE!"},{"$error":"#VALUE!"},{"$error":"#VALUE!"},{"$error":"#VALUE!"},{"$error":"#VALUE!"}]
[null,"2013-10-02",41549,40,"OCTOBRE","Location","Factures",null,null,"Vélo1","Chèque",null,90,null,{"$f":"IF(AND((CaJour=B14),(CACatégorie=\"Résultat\")),IF(B13=B14,M13,0)+IF(B12=B14,M12,0)+IF(B11=B14,M11,0)+IF(B10=B14,M10,0)+IF(B9=B14,M9,0),0)","v":0},{"$f":"IF(AND((CaJour=B14),(CACatégorie=\"Résultat\")),IF(B13=B14,N13,0)+IF(B12=B14,N12,0)+IF(B11=B14,N11,0)+IF(B10=B14,N10,0)+IF(B9=B14,N9,0),0)","v":0},null,null,null,null,null,null,null,null,{"$f":"SUMPRODUCT((CaSem=S9)*CaRecJour)","v":0}]
[null,"2013-10-02",41549,40,"OCTOBRE","Résultat",null,null,null,null,null,null,null,null,{"$f":"IF(AND((CaJour=B15),(CACatégorie=\"Résultat\")),IF(B14=B15,M14,0)+IF(B13=B15,M13,0)+IF(B12=B15,M12,0)+IF(B11=B15,M11,0)+IF(B10=B15,M10,0)+IF(B9=B15,M9,0),0)","v":90},{"$f":"IF(AND((CaJour=B15),(CACatégorie=\"Résultat\")),IF(B14=B15,N14,0)+IF(B13=B15,N13,0)+IF(B12=B15,N12,0)+IF(B11=B15,N11,0)+IF(B10=B15,N10,0)+IF(B9=B15,N9,0),0)","v":0},null,"FdC",null,"Remise esp","Remise chq","Remise CB","Rem Virmt","Tickets","TOTAL","Report",null,null,null,"Virement",{"$f":"SUMPRODUCT((CaMois=AE7)*(CaMode=$AD$15)*CaCrédit)","v":{"$error":"#VALUE!"}},{"$error":"#VALUE!"},{"$error":"#VALUE!"},{"$error":"#VALUE!"},{"$error":"#VALUE!"},{"$error":"#VALUE!"},{"$error":"#VALUE!"},{"$error":"#VALUE!"},{"$error":"#VALUE!"},{"$error":"#VALUE!"},{"$error":"#VALUE!"},{"$error":"#VALUE!"}]
[null,"2013-10-03",41550,40,"OCTOBRE","Taxi",null,null,null,null,"Espèce",null,50,null,{"$f":"IF(AND((CaJour=B16),(CACatégorie=\"Résultat\")),IF(B15=B16,M15,0)+IF(B14=B16,M14,0)+IF(B13=B16,M13,0)+IF(B12=B16,M12,0)+IF(B11=B16,M11,0)+IF(B10=B16,M10,0)+IF(B9=B16,M9,0),0)","v":0},{"$f":"IF(AND((CaJour=B16),(CACatégorie=\"Résultat\")),IF(B15=B16,N15,0)+IF(B14=B16,N14,0)+IF(B13=B16,N13,0)+IF(B12=B16,N12,0)+IF(B11=B16,N11,0)+IF(B10=B16,N10,0)+IF(B9=B16,N9,0),0)","v":0},null,null,null,{"$f":"SUMPRODUCT((CaSem=S9)*(CACatégorie=\"Banque\")*(CaMode=T12)*CaDébit)","v":{"$error":"#VALUE!"}},{"$f":"SUMPRODUCT((CaSem=S9)*(CACatégorie=\"Banque\")*(CaMode=U12)*CaDébit)","v":{"$error":"#VALUE!"}},{"$f":"SUMPRODUCT((CaSem=S9)*(CaMode=V12)*CaDébit)","v":{"$error":"#VALUE!"}},{"$f":"SUMPRODUCT((CaSem=S9)*(CaMode=W12)*CaDébit)","v":{"$error":"#VALUE!"}},{"$f":"SUMPRODUCT((CaSem=S9)*(CaMode=X12)*CaDébit)","v":{"$error":"#VALUE!"}},{"$f":"SUM(T16:X16)","v":{"$error":"#VALUE!"}},{"$f":"(T10+R16)-Y16","v":{"$error":"#VALUE!"}}]
[null,"2013-10-03",41550,40,"OCTOBRE","Taxi",null,null,null,null,"Tickets",null,10,null,{"$f":"IF(AND((CaJour=B17),(CACatégorie=\"Résultat\")),IF(B16=B17,M16,0)+IF(B15=B17,M15,0)+IF(B14=B17,M14,0)+IF(B13=B17,M13,0)+IF(B12=B17,M12,0)+IF(B11=B17,M11,0)+IF(B10=B17,M10,0)+IF(B9=B17,M9,0),0)","v":0},{"$f":"IF(AND((CaJour=B17),(CACatégorie=\"Résultat\")),IF(B16=B17,N16,0)+IF(B15=B17,N15,0)+IF(B14=B17,N14,0)+IF(B13=B17,N13,0)+IF(B12=B17,N12,0)+IF(B11=B17,N11,0)+IF(B10=B17,N10,0)+IF(B9=B17,N9,0),0)","v":0}]
[null,"2013-10-03",41550,40,"OCTOBRE","Taxi",null,null,null,null,"Chèque",null,46,null,{"$f":"IF(AND((CaJour=B18),(CACatégorie=\"Résultat\")),IF(B17=B18,M17,0)+IF(B16=B18,M16,0)+IF(B15=B18,M15,0)+IF(B14=B18,M14,0)+IF(B13=B18,M13,0)+IF(B12=B18,M12,0)+IF(B11=B18,M11,0)+IF(B10=B18,M10,0)+IF(B9=B18,M9,0),0)","v":0},{"$f":"IF(AND((CaJour=B18),(CACatégorie=\"Résultat\")),IF(B17=B18,N17,0)+IF(B16=B18,N16,0)+IF(B15=B18,N15,0)+IF(B14=B18,N14,0)+IF(B13=B18,N13,0)+IF(B12=B18,N12,0)+IF(B11=B18,N11,0)+IF(B10=B18,N10,0)+IF(B9=B18,N9,0),0)","v":0},null,null,null,null,null,null,null,null,null,null,null,null,null,"TOTAL",{"$f":"AE9+AE11+AE13+AE15","v":{"$error":"#VALUE!"}},{"$f":"AF9+AF11+AF13+AF15","v":{"$error":"#VALUE!"}},{"$f":"AG9+AG11+AG13+AG15","v":{"$error":"#VALUE!"}},{"$error":"#VALUE!"},{"$error":"#VALUE!"},{"$error":"#VALUE!"},{"$error":"#VALUE!"},{"$error":"#VALUE!"},{"$error":"#VALUE!"},{"$error":"#VALUE!"},{"$error":"#VALUE!"},{"$error":"#VALUE!"}]
[null,"2013-10-03",41550,40,"OCTOBRE","Publicité","Factures","PUCYC0001","F2013421",null,"Chèque","R2",2300,null,{"$f":"IF(AND((CaJour=B19),(CACatégorie=\"Résultat\")),IF(B18=B19,M18,0)+IF(B17=B19,M17,0)+IF(B16=B19,M16,0)+IF(B15=B19,M15,0)+IF(B14=B19,M14,0)+IF(B13=B19,M13,0)+IF(B12=B19,M12,0)+IF(B11=B19,M11,0)+IF(B10=B19,M10,0)+IF(B9=B19,M9,0),0)","v":0},{"$f":"IF(AND((CaJour=B19),(CACatégorie=\"Résultat\")),IF(B18=B19,N18,0)+IF(B17=B19,N17,0)+IF(B16=B19,N16,0)+IF(B15=B19,N15,0)+IF(B14=B19,N14,0)+IF(B13=B19,N13,0)+IF(B12=B19,N12,0)+IF(B11=B19,N11,0)+IF(B10=B19,N10,0)+IF(B9=B19,N9,0)+IF(B9=B20,N9,0),0)","v":0},null,"Semaine N°",null,"TOTAL","Taxi","Location","Publicité"]
[null,"2013-10-03",41550,40,"OCTOBRE","Divers",null,null,null,null,"Tickets",null,null,10,{"$f":"IF(AND((CaJour=B20),(CACatégorie=\"Résultat\")),IF(B19=B20,M19,0)+IF(B18=B20,M18,0)+IF(B17=B20,M17,0)+IF(B16=B20,M16,0)+IF(B15=B20,M15,0)+IF(B14=B20,M14,0)+IF(B13=B20,M13,0)+IF(B12=B20,M12,0)+IF(B11=B20,M11,0)+IF(B10=B20,M10,0)+IF(B9=B20,M9,0),0)","v":0},{"$f":"IF(AND((CaJour=B20),(CACatégorie=\"Résultat\")),IF(B19=B20,N19,0)+IF(B18=B20,N18,0)+IF(B17=B20,N17,0)+IF(B16=B20,N16,0)+IF(B15=B20,N15,0)+IF(B14=B20,N14,0)+IF(B13=B20,N13,0)+IF(B12=B20,N12,0)+IF(B11=B20,N11,0)+IF(B10=B20,N10,0)+IF(B9=B21,N9,0),0)","v":0},null,null,null,{"$f":"SUMPRODUCT((CaSem=S19)*(CaSem>0)*CaCrédit)","v":{"$error":"#VALUE!"}},{"$f":"SUMPRODUCT((CaSem=S19)*(CACatégorie=U19)*CaCrédit)","v":{"$error":"#VALUE!"}},{"$f":"SUMPRODUCT((CaSem=S19)*(CACatégorie=V19)*CaCrédit)","v":{"$error":"#VALUE!"}},{"$f":"SUMPRODUCT((CaSem=S19)*(CACatégorie=W19)*CaCrédit)","v":{"$error":"#VALUE!"}},null,null,null,null,null,"Clic ici > > >","Location",{"$f":"SUMPRODUCT((CaMois=AE7)*(CACatégorie=$AD$20)*CaCrédit)","v":{"$error":"#VALUE!"}},{"$error":"#VALUE!"},{"$error":"#VALUE!"},{"$error":"#VALUE!"},{"$error":"#VALUE!"},{"$error":"#VALUE!"},{"$error":"#VALUE!"},{"$error":"#VALUE!"},{"$error":"#VALUE!"},{"$error":"#VALUE!"},{"$error":"#VALUE!"},{"$error":"#VALUE!"}]
[null,"2013-10-03",41550,40,"OCTOBRE","Résultat",null,null,null,null,null,null,null,null,{"$f":"IF(AND((CaJour=B21),(CACatégorie=\"Résultat\")),IF(B20=B21,M20,0)+IF(B19=B21,M19,0)+IF(B18=B21,M18,0)+IF(B17=B21,M17,0)+IF(B16=B21,M16,0)+IF(B15=B21,M15,0)+IF(B14=B21,M14,0)+IF(B13=B21,M13,0)+IF(B12=B21,M12,0)+IF(B11=B21,M11,0)+IF(B10=B21,M10,0)+IF(B9=B21,M9,0),0)","v":2406},{"$f":"IF(AND((CaJour=B21),(CACatégorie=\"Résultat\")),IF(B20=B21,N20,0)+IF(B19=B21,N19,0)+IF(B18=B21,N18,0)+IF(B17=B21,N17,0)+IF(B16=B21,N16,0)+IF(B15=B21,N15,0)+IF(B14=B21,N14,0)+IF(B13=B21,N13,0)+IF(B12=B21,N12,0)+IF(B11=B21,N11,0)+IF(B10=B21,N10,0)+IF(B9=B21,N9,0),0)","v":10}]
[null,"2013-10-04",41551,40,"OCTOBRE","Taxi",null,null,null,null,"Espèce",null,20,null,{"$f":"IF(AND((CaJour=B22),(CACatégorie=\"Résultat\")),IF(B21=B22,M21,0)+IF(B20=B22,M20,0)+IF(B19=B22,M19,0)+IF(B18=B22,M18,0)+IF(B17=B22,M17,0)+IF(B16=B22,M16,0)+IF(B15=B22,M15,0)+IF(B14=B22,M14,0)+IF(B13=B22,M13,0)+IF(B12=B22,M12,0)+IF(B11=B22,M11,0)+IF(B10=B22,M10,0)+IF(B9=B22,M9,0),0)","v":0},{"$f":"IF(AND((CaJour=B22),(CACatégorie=\"Résultat\")),IF(B21=B22,N21,0)+IF(B20=B22,N20,0)+IF(B19=B22,N19,0)+IF(B18=B22,N18,0)+IF(B17=B22,N17,0)+IF(B16=B22,N16,0)+IF(B15=B22,N15,0)+IF(B14=B22,N14,0)+IF(B13=B22,N13,0)+IF(B12=B22,N12,0)+IF(B11=B22,N11,0)+IF(B10=B22,N10,0)+IF(B9=B22,N9,0),0)","v":0},null,null,null,"Espèce","Chèque","CB","Virement","Tickets","vérif"]
[null,"2013-10-04",41551,40,"OCTOBRE","Taxi",null,null,null,null,"Chèque",null,78,null,{"$f":"IF(AND((CaJour=B23),(CACatégorie=\"Résultat\")),IF(B22=B23,M22,0)+IF(B21=B23,M21,0)+IF(B20=B23,M20,0)+IF(B19=B23,M19,0)+IF(B18=B23,M18,0)+IF(B17=B23,M17,0)+IF(B16=B23,M16,0)+IF(B15=B23,M15,0)+IF(B14=B23,M14,0)+IF(B13=B23,M13,0)+IF(B12=B23,M12,0)+IF(B11=B23,M11,0)+IF(B10=B23,M10,0)+IF(B9=B23,M9,0),0)","v":0},{"$f":"IF(AND((CaJour=B23),(CACatégorie=\"Résultat\")),IF(B22=B23,N22,0)+IF(B21=B23,N21,0)+IF(B20=B23,N20,0)+IF(B19=B23,N19,0)+IF(B18=B23,N18,0)+IF(B17=B23,N17,0)+IF(B16=B23,N16,0)+IF(B15=B23,N15,0)+IF(B14=B23,N14,0)+IF(B13=B23,N13,0)+IF(B12=B23,N12,0)+IF(B11=B23,N11,0)+IF(B10=B23,N10,0)+IF(B9=B23,N9,0),0)","v":0},null,null,null,{"$f":"SUMPRODUCT((CaSem=S19)*(CaMode=\"Espèce\")*CaCrédit)","v":{"$error":"#VALUE!"}},{"$f":"SUMPRODUCT((CaSem=S19)*(CaMode=U22)*CaCrédit)","v":{"$error":"#VALUE!"}},{"$f":"SUMPRODUCT((CaSem=S19)*(CaMode=V22)*CaCrédit)","v":{"$error":"#VALUE!"}},{"$f":"SUMPRODUCT((CaSem=S19)*(CaMode=W22)*CaCrédit)","v":{"$error":"#VALUE!"}},{"$f":"SUMPRODUCT((CaSem=S19)*(CaMode=X22)*CaCrédit)","v":{"$error":"#VALUE!"}},{"$f":"SUM(T23:X24)","v":{"$error":"#VALUE!"}}]
[null,"2013-10-04",41551,40,"OCTOBRE","Résultat",null,null,null,null,null,null,null,null,{"$f":"IF(AND((CaJour=B24),(CACatégorie=\"Résultat\")),IF(B23=B24,M23,0)+IF(B22=B24,M22,0)+IF(B21=B24,M21,0)+IF(B20=B24,M20,0)+IF(B19=B24,M19,0)+IF(B18=B24,M18,0)+IF(B17=B24,M17,0)+IF(B16=B24,M16,0)+IF(B15=B24,M15,0)+IF(B14=B24,M14,0)+IF(B13=B24,M13,0)+IF(B12=B24,M12,0)+IF(B11=B24,M11,0)+IF(B10=B24,M10,0)+IF(B9=B24,M9,0),0)","v":98},{"$f":"IF(AND((CaJour=B24),(CACatégorie=\"Résultat\")),IF(B23=B24,N23,0)+IF(B22=B24,N22,0)+IF(B21=B24,N21,0)+IF(B20=B24,N20,0)+IF(B19=B24,N19,0)+IF(B18=B24,N18,0)+IF(B17=B24,N17,0)+IF(B16=B24,N16,0)+IF(B15=B24,N15,0)+IF(B14=B24,N14,0)+IF(B13=B24,N13,0)+IF(B12=B24,N12,0)+IF(B11=B24,N11,0)+IF(B10=B24,N10,0)+IF(B9=B24,N9,0),0)","v":0},null,null,null,null,null,null,null,null,{"$f":"SUMPRODUCT((CaSem=S19)*CaRecJour)","v":0}]
[null,"2013-10-05",41552,40,"OCTOBRE","Taxi",null,null,null,null,"Espèce",null,65,null,{"$f":"IF(AND((CaJour=B25),(CACatégorie=\"Résultat\")),IF(B24=B25,M24,0)+IF(B23=B25,M23,0)+IF(B22=B25,M22,0)+IF(B21=B25,M21,0)+IF(B20=B25,M20,0)+IF(B19=B25,M19,0)+IF(B18=B25,M18,0)+IF(B17=B25,M17,0)+IF(B16=B25,M16,0)+IF(B15=B25,M15,0)+IF(B14=B25,M14,0)+IF(B13=B25,M13,0)+IF(B12=B25,M12,0)+IF(B11=B25,M11,0)+IF(B10=B25,M10,0)+IF(B9=B25,M9,0),0)","v":0},{"$f":"IF(AND((CaJour=B25),(CACatégorie=\"Résultat\")),IF(B24=B25,N24,0)+IF(B23=B25,N23,0)+IF(B22=B25,N22,0)+IF(B21=B25,N21,0)+IF(B20=B25,N20,0)+IF(B19=B25,N19,0)+IF(B18=B25,N18,0)+IF(B17=B25,N17,0)+IF(B16=B25,N16,0)+IF(B15=B25,N15,0)+IF(B14=B25,N14,0)+IF(B13=B25,N13,0)+IF(B12=B25,N12,0)+IF(B11=B25,N11,0)+IF(B10=B25,N10,0)+IF(B9=B25,N9,0),0)","v":0},null,"FdC",null,"Remise esp","Remise chq","Remise CB","Rem Virmt","Tickets","TOTAL","Report"]
[null,"2013-10-05",41552,40,"OCTOBRE","Résultat",null,null,null,null,null,null,null,null,{"$f":"IF(AND((CaJour=B26),(CACatégorie=\"Résultat\")),IF(B25=B26,M25,0)+IF(B24=B26,M24,0)+IF(B23=B26,M23,0)+IF(B22=B26,M22,0)+IF(B21=B26,M21,0)+IF(B20=B26,M20,0)+IF(B19=B26,M19,0)+IF(B18=B26,M18,0)+IF(B17=B26,M17,0)+IF(B16=B26,M16,0)+IF(B15=B26,M15,0)+IF(B14=B26,M14,0)+IF(B13=B26,M13,0)+IF(B12=B26,M12,0)+IF(B11=B26,M11,0)+IF(B10=B26,M10,0)+IF(B9=B26,M9,0),0)","v":65},{"$f":"IF(AND((CaJour=B26),(CACatégorie=\"Résultat\")),IF(B25=B26,N25,0)+IF(B24=B26,N24,0)+IF(B23=B26,N23,0)+IF(B22=B26,N22,0)+IF(B21=B26,N21,0)+IF(B20=B26,N20,0)+IF(B19=B26,N19,0)+IF(B18=B26,N18,0)+IF(B17=B26,N17,0)+IF(B16=B26,N16,0)+IF(B15=B26,N15,0)+IF(B14=B26,N14,0)+IF(B13=B26,N13,0)+IF(B12=B26,N12,0)+IF(B11=B26,N11,0)+IF(B10=B26,N10,0)+IF(B9=B26,N9,0),0)","v":0},null,{"$f":"Z16","v":{"$error":"#VALUE!"}},null,{"$f":"SUMPRODUCT((CaSem=S19)*(CACatégorie=\"Banque\")*(CaMode=T22)*CaDébit)","v":{"$error":"#VALUE!"}},{"$f":"SUMPRODUCT((CaSem=S19)*(CACatégorie=\"Banque\")*(CaMode=U22)*CaDébit)","v":{"$error":"#VALUE!"}},{"$f":"SUMPRODUCT((CaSem=S19)*(CaMode=V22)*CaDébit)","v":{"$error":"#VALUE!"}},{"$f":"SUMPRODUCT((CaSem=S19)*(CaMode=W22)*CaDébit)","v":{"$error":"#VALUE!"}},{"$f":"SUMPRODUCT((CaSem=S19)*(CaMode=X22)*CaDébit)","v":{"$error":"#VALUE!"}},{"$f":"SUM(T26:X26)","v":{"$error":"#VALUE!"}},{"$f":"(T20+R26)-Y26","v":{"$error":"#VALUE!"}}]
[null,"2013-10-06",41553,40,"OCTOBRE","Taxi",null,null,null,null,"CB",null,108,null,{"$f":"IF(AND((CaJour=B27),(CACatégorie=\"Résultat\")),IF(B26=B27,M26,0)+IF(B25=B27,M25,0)+IF(B24=B27,M24,0)+IF(B23=B27,M23,0)+IF(B22=B27,M22,0)+IF(B21=B27,M21,0)+IF(B20=B27,M20,0)+IF(B19=B27,M19,0)+IF(B18=B27,M18,0)+IF(B17=B27,M17,0)+IF(B16=B27,M16,0)+IF(B15=B27,M15,0)+IF(B14=B27,M14,0)+IF(B13=B27,M13,0)+IF(B12=B27,M12,0)+IF(B11=B27,M11,0)+IF(B10=B27,M10,0)+IF(B9=B27,M9,0),0)","v":0},{"$f":"IF(AND((CaJour=B27),(CACatégorie=\"Résultat\")),IF(B26=B27,N26,0)+IF(B25=B27,N25,0)+IF(B24=B27,N24,0)+IF(B23=B27,N23,0)+IF(B22=B27,N22,0)+IF(B21=B27,N21,0)+IF(B20=B27,N20,0)+IF(B19=B27,N19,0)+IF(B18=B27,N18,0)+IF(B17=B27,N17,0)+IF(B16=B27,N16,0)+IF(B15=B27,N15,0)+IF(B14=B27,N14,0)+IF(B13=B27,N13,0)+IF(B12=B27,N12,0)+IF(B11=B27,N11,0)+IF(B10=B27,N10,0)+IF(B9=B27,N9,0),0)","v":0}]
[null,"2013-10-06",41553,40,"OCTOBRE","Banque","Remise","CL002",null,null,"CB",null,null,108,{"$f":"IF(AND((CaJour=B28),(CACatégorie=\"Résultat\")),IF(B27=B28,M27,0)+IF(B26=B28,M26,0)+IF(B25=B28,M25,0)+IF(B24=B28,M24,0)+IF(B23=B28,M23,0)+IF(B22=B28,M22,0)+IF(B21=B28,M21,0)+IF(B20=B28,M20,0)+IF(B19=B28,M19,0)+IF(B18=B28,M18,0)+IF(B17=B28,M17,0)+IF(B16=B28,M16,0)+IF(B15=B28,M15,0)+IF(B14=B28,M14,0)+IF(B13=B28,M13,0)+IF(B12=B28,M12,0)+IF(B11=B28,M11,0)+IF(B10=B28,M10,0)+IF(B9=B28,M9,0),0)","v":0},{"$f":"IF(AND((CaJour=B28),(CACatégorie=\"Résultat\")),IF(B27=B28,N27,0)+IF(B26=B28,N26,0)+IF(B25=B28,N25,0)+IF(B24=B28,N24,0)+IF(B23=B28,N23,0)+IF(B22=B28,N22,0)+IF(B21=B28,N21,0)+IF(B20=B28,N20,0)+IF(B19=B28,N19,0)+IF(B18=B28,N18,0)+IF(B17=B28,N17,0)+IF(B16=B28,N16,0)+IF(B15=B28,N15,0)+IF(B14=B28,N14,0)+IF(B13=B28,N13,0)+IF(B12=B28,N12,0)+IF(B11=B28,N11,0)+IF(B10=B28,N10,0)+IF(B9=B28,N9,0),0)","v":0}]
[null,"2013-10-06",41553,40,"OCTOBRE","Résultat",null,null,null,null,null,null,null,null,{"$f":"IF(AND((CaJour=B29),(CACatégorie=\"Résultat\")),IF(B28=B29,M28,0)+IF(B27=B29,M27,0)+IF(B26=B29,M26,0)+IF(B25=B29,M25,0)+IF(B24=B29,M24,0)+IF(B23=B29,M23,0)+IF(B22=B29,M22,0)+IF(B21=B29,M21,0)+IF(B20=B29,M20,0)+IF(B19=B29,M19,0)+IF(B18=B29,M18,0)+IF(B17=B29,M17,0)+IF(B16=B29,M16,0)+IF(B15=B29,M15,0)+IF(B14=B29,M14,0)+IF(B13=B29,M13,0)+IF(B12=B29,M12,0)+IF(B11=B29,M11,0)+IF(B10=B29,M10,0)+IF(B9=B29,M9,0),0)","v":108},{"$f":"IF(AND((CaJour=B29),(CACatégorie=\"Résultat\")),IF(B28=B29,N28,0)+IF(B27=B29,N27,0)+IF(B26=B29,N26,0)+IF(B25=B29,N25,0)+IF(B24=B29,N24,0)+IF(B23=B29,N23,0)+IF(B22=B29,N22,0)+IF(B21=B29,N21,0)+IF(B20=B29,N20,0)+IF(B19=B29,N19,0)+IF(B18=B29,N18,0)+IF(B17=B29,N17,0)+IF(B16=B29,N16,0)+IF(B15=B29,N15,0)+IF(B14=B29,N14,0)+IF(B13=B29,N13,0)+IF(B12=B29,N12,0)+IF(B11=B29,N11,0)+IF(B10=B29,N10,0)+IF(B9=B29,N9,0),0)","v":108},null,"Semaine N°",null,"TOTAL","Taxi","Location","Publicité"]
[null,"2013-10-07",41554,41,"OCTOBRE","Banque","Remise",null,null,null,"Espèce",null,null,150,0,0,null,null,null,{"$f":"SUMPRODUCT((CaSem=S29)*(CaSem>0)*CaCrédit)","v":{"$error":"#VALUE!"}},{"$f":"SUMPRODUCT((CaSem=S29)*(CACatégorie=U29)*CaCrédit)","v":{"$error":"#VALUE!"}},{"$f":"SUMPRODUCT((CaSem=S29)*(CACatégorie=V29)*CaCrédit)","v":{"$error":"#VALUE!"}},{"$f":"SUMPRODUCT((CaSem=S29)*(CACatégorie=W29)*CaCrédit)","v":{"$error":"#VALUE!"}}]
[null,"2013-10-07",41554,41,"OCTOBRE","Banque","Remise",null,null,null,"Chèque",null,null,734,0,0]
[null,"2013-10-07",41554,41,"OCTOBRE","Taxi",null,null,null,null,"Espèce",null,85,null,0,0,null,null,null,"Espèce","Chèque","CB","Virement","Tickets","vérif"]
[null,"2013-10-07",{"$f":"DATE(YEAR(B33),MONTH(B33),DAY(B33))","v":41554},{"$f":"INT(MOD(INT((B33-2)/7)+0.6,52+5/28))+1","v":41},"OCTOBRE","Résultat",null,null,null,null,null,null,null,null,85,884,null,null,null,{"$f":"SUMPRODUCT((CaSem=S29)*(CaMode=\"Espèce\")*CaCrédit)","v":{"$error":"#VALUE!"}},{"$f":"SUMPRODUCT((CaSem=S29)*(CaMode=U32)*CaCrédit)","v":{"$error":"#VALUE!"}},{"$f":"SUMPRODUCT((CaSem=S29)*(CaMode=V32)*CaCrédit)","v":{"$error":"#VALUE!"}},{"$f":"SUMPRODUCT((CaSem=S29)*(CaMode=W32)*CaCrédit)","v":{"$error":"#VALUE!"}},{"$f":"SUMPRODUCT((CaSem=S29)*(CaMode=X32)*CaCrédit)","v":{"$error":"#VALUE!"}},{"$f":"SUM(T33:X34)","v":{"$error":"#VALUE!"}}]
[null,"2013-10-06",41553,40,"OCTOBRE","Publicité","Factures",null,null,null,"Espèce",null,1850,null,0,0,null,null,null,null,null,null,null,null,{"$f":"SUMPRODUCT((CaSem=S29)*CaRecJour)","v":0}]
[null,"2013-10-10",41557,41,"OCTOBRE","Résultat",null,null,null,null,null,null,null,null,0,0,null,"FdC",null,"Remise esp","Remise chq","Remise CB","Rem Virmt","Tickets","TOTAL","Report"]
[null,"2013-10-11",41558,41,"OCTOBRE","Taxi",null,null,null,null,"Chèque",null,500,null,0,0,null,{"$f":"Z26","v":{"$error":"#VALUE!"}},null,{"$f":"SUMPRODUCT((CaSem=S29)*(CACatégorie=\"Banque\")*(CaMode=T32)*CaDébit)","v":{"$error":"#VALUE!"}},{"$f":"SUMPRODUCT((CaSem=S29)*(CACatégorie=\"Banque\")*(CaMode=U32)*CaDébit)","v":{"$error":"#VALUE!"}},{"$f":"SUMPRODUCT((CaSem=S29)*(CaMode=V32)*CaDébit)","v":{"$error":"#VALUE!"}},{"$f":"SUMPRODUCT((CaSem=S29)*(CaMode=W32)*CaDébit)","v":{"$error":"#VALUE!"}},{"$f":"SUMPRODUCT((CaSem=S29)*(CaMode=X32)*CaDébit)","v":{"$error":"#VALUE!"}},{"$f":"SUM(T36:X36)","v":{"$error":"#VALUE!"}},{"$f":"(T30+R36)-Y36","v":{"$error":"#VALUE!"}}]
[null,"2013-10-11",41558,41,"OCTOBRE","Résultat",null,null,null,null,null,null,null,null,500,0]
[null,"2013-10-12",41559,41,"OCTOBRE","Publicité","Factures","PUCYC0001","f2013421",null,"CB",null,700,null,0,0,null,null,null,null,null,null,null,null,null,null,null,null,null,"Objectifs"]
[null,"2013-10-12",41559,41,"OCTOBRE","Banque","Remise",null,null,null,"CB",null,null,500,0,0,null,"Semaine N°",null,"TOTAL","Taxi","Location","Publicité",null,null,null,null,null,null,"taxi",780,390,780,1560,1560,{"$f":"390+1560","v":1950},{"$f":"390+1560","v":1950},1560,1560,780,390,780]
[null,"2013-10-12",41559,41,"OCTOBRE","Banque","Remise",null,null,null,"Espèce",null,null,1500,0,0,null,null,null,{"$f":"SUMPRODUCT((CaSem=S39)*(CaSem>0)*CaCrédit)","v":{"$error":"#VALUE!"}},{"$f":"SUMPRODUCT((CaSem=S39)*(CACatégorie=U39)*CaCrédit)","v":{"$error":"#VALUE!"}},{"$f":"SUMPRODUCT((CaSem=S39)*(CACatégorie=V39)*CaCrédit)","v":{"$error":"#VALUE!"}},{"$f":"SUMPRODUCT((CaSem=S39)*(CACatégorie=W39)*CaCrédit)","v":{"$error":"#VALUE!"}},null,null,null,null,null,null,"pub 1+2",{"$f":"1040+520","v":1560},{"$f":"1040+1040","v":2080},{"$f":"1040+1040","v":2080},{"$f":"2080+1040","v":3120},{"$f":"2080+1040","v":3120},{"$f":"2080+1040","v":3120},{"$f":"2080+1040","v":3120},{"$f":"2080+1040","v":3120},{"$f":"2080+520","v":2600},{"$f":"2080","v":2080},0,{"$f":"520+520","v":1040}]
[null,"2013-10-12",41559,41,"OCTOBRE","Banque","Remise",null,null,null,"Chèque",null,null,200,0,0,null,null,null,null,null,null,null,null,null,null,null,null,null,"cyclopolitain",null,0,3000,null,null,null,null,null,null,0]
[null,"2013-10-12",41559,41,"OCTOBRE","Résultat",null,null,null,null,null,null,null,null,700,2200,null,null,null,"Espèce","Chèque","CB","Virement","Tickets","vérif",null,null,null,null,"loc2",180,180,360,420,480,480,480,420,360,180,0,180]
[null,"2013-10-17",41564,42,"OCTOBRE","Dépense","Factures","PU0020",null,null,"Espèce",null,null,300,0,0,null,null,null,{"$f":"SUMPRODUCT((CaSem=S39)*(CaMode=\"Espèce\")*CaCrédit)","v":{"$error":"#VALUE!"}},{"$f":"SUMPRODUCT((CaSem=S39)*(CaMode=U42)*CaCrédit)","v":{"$error":"#VALUE!"}},{"$f":"SUMPRODUCT((CaSem=S39)*(CaMode=V42)*CaCrédit)","v":{"$error":"#VALUE!"}},{"$f":"SUMPRODUCT((CaSem=S39)*(CaMode=W42)*CaCrédit)","v":{"$error":"#VALUE!"}},{"$f":"SUMPRODUCT((CaSem=S39)*(CaMode=X42)*CaCrédit)","v":{"$error":"#VALUE!"}},{"$f":"SUM(T43:X44)","v":{"$error":"#VALUE!"}}]
[null,"2013-10-17",41564,42,"OCTOBRE","Dépense","Factures","CL005",null,null,"Espèce",null,null,250,0,0,null,null,null,null,null,null,null,null,{"$f":"SUMPRODUCT((CaSem=S39)*CaRecJour)","v":0},null,null,null,null,null,{"$f":"AE39+AE40+AE41+AE42","v":2520},{"$f":"AF39+AF40+AF41+AF42","v":2650},6220,5100,5160,5550,5550,5100,4520,3040,390,2000]
[null,"2013-10-17",41564,42,"OCTOBRE","Résultat",null,null,null,null,null,null,null,null,0,550,null,"FdC",null,"Remise esp","Remise chq","Remise CB","Rem Virmt","Tickets","TOTAL","Report"]
[null,"2013-10-19",41566,42,"OCTOBRE","Publicité",null,null,null,null,null,null,null,null,0,0,null,{"$f":"Z36","v":{"$error":"#VALUE!"}},null,{"$f":"SUMPRODUCT((CaSem=S39)*(CACatégorie=\"Banque\")*(CaMode=T42)*CaDébit)","v":{"$error":"#VALUE!"}},{"$f":"SUMPRODUCT((CaSem=S39)*(CACatégorie=\"Banque\")*(CaMode=U42)*CaDébit)","v":{"$error":"#VALUE!"}},{"$f":"SUMPRODUCT((CaSem=S39)*(CaMode=V42)*CaDébit)","v":{"$error":"#VALUE!"}},{"$f":"SUMPRODUCT((CaSem=S39)*(CaMode=W42)*CaDébit)","v":{"$error":"#VALUE!"}},{"$f":"SUMPRODUCT((CaSem=S39)*(CaMode=X42)*CaDébit)","v":{"$error":"#VALUE!"}},{"$f":"SUM(T46:X46)","v":{"$error":"#VALUE!"}},{"$f":"(T40+R46)-Y46","v":{"$error":"#VALUE!"}}]
[null,"2013-10-19",41566,42,"OCTOBRE","Location",null,null,null,"Vélo1",null,null,100,null,0,0]
[null,"2014-01-31",41670,5,"JANVIER","Taxi",null,null,null,null,"Espèce",null,100,null,0,0]
[null,"2014-01-31",41670,5,"JANVIER","Résultat",null,null,null,null,"Résultat",null,null,null,100,0,null,"Semaine N°",null,"TOTAL","Taxi","Location","Publicité"]
[null,"2014-02-01",41671,5,"FÉVRIER","Taxi",null,null,null,null,"Chèque",null,200,null,0,0,null,null,null,{"$f":"SUMPRODUCT((CaSem=S49)*(CaSem>0)*CaCrédit)","v":{"$error":"#VALUE!"}},{"$f":"SUMPRODUCT((CaSem=S49)*(CACatégorie=U49)*CaCrédit)","v":{"$error":"#VALUE!"}},{"$f":"SUMPRODUCT((CaSem=S49)*(CACatégorie=V49)*CaCrédit)","v":{"$error":"#VALUE!"}},{"$f":"SUMPRODUCT((CaSem=S49)*(CACatégorie=W49)*CaCrédit)","v":{"$error":"#VALUE!"}}]
[null,"2013-02-01",41306,5,"FÉVRIER","Taxi",null,null,null,null,"CB",null,150,null,0,0]
[null,"2013-01-04",41278,1,"JANVIER","Location",null,null,null,"Vélo2",null,null,240,null,0,0,null,null,null,"Espèce","Chèque","CB","Virement","Tickets","vérif"]
[null,"2013-10-01",41548,40,"OCTOBRE","Publicité","Factures","PUAPF002","F2013682",null,"Chèque","R1",520,null,0,0,null,null,null,{"$f":"SUMPRODUCT((CaSem=S49)*(CaMode=\"Espèce\")*CaCrédit)","v":{"$error":"#VALUE!"}},{"$f":"SUMPRODUCT((CaSem=S49)*(CaMode=U52)*CaCrédit)","v":{"$error":"#VALUE!"}},{"$f":"SUMPRODUCT((CaSem=S49)*(CaMode=V52)*CaCrédit)","v":{"$error":"#VALUE!"}},{"$f":"SUMPRODUCT((CaSem=S49)*(CaMode=W52)*CaCrédit)","v":{"$error":"#VALUE!"}},{"$f":"SUMPRODUCT((CaSem=S49)*(CaMode=X52)*CaCrédit)","v":{"$error":"#VALUE!"}},{"$f":"SUM(T53:X54)","v":{"$error":"#VALUE!"}}]
[null,"2013-10-20",41567,42,"OCTOBRE","Publicité","Factures","PUAPF002","F2013682",null,"CB","R2",1100,null,0,0,null,null,null,null,null,null,null,null,{"$f":"SUMPRODUCT((CaSem=S49)*CaRecJour)","v":0}]
[null,"2013-11-05",41583,45,"NOVEMBRE","Publicité","Factures","PUCYC0001",130005,null,"Chèque","R1",1000,null,0,0,null,"FdC",null,"Remise esp","Remise chq","Remise CB","Rem Virmt","Tickets","TOTAL","Report"]
[null,"2013-11-05",41583,45,"NOVEMBRE","Résultat",null,null,null,null,null,null,null,null,1000,0,null,{"$f":"Z46","v":{"$error":"#VALUE!"}},null,{"$f":"SUMPRODUCT((CaSem=S49)*(CACatégorie=\"Banque\")*(CaMode=T52)*CaDébit)","v":{"$error":"#VALUE!"}},{"$f":"SUMPRODUCT((CaSem=S49)*(CACatégorie=\"Banque\")*(CaMode=U52)*CaDébit)","v":{"$error":"#VALUE!"}},{"$f":"SUMPRODUCT((CaSem=S49)*(CaMode=V52)*CaDébit)","v":{"$error":"#VALUE!"}},{"$f":"SUMPRODUCT((CaSem=S49)*(CaMode=W52)*CaDébit)","v":{"$error":"#VALUE!"}},{"$f":"SUMPRODUCT((CaSem=S49)*(CaMode=X52)*CaDébit)","v":{"$error":"#VALUE!"}},{"$f":"SUM(T56:X56)","v":{"$error":"#VALUE!"}},{"$f":"(T50+R56)-Y56","v":{"$error":"#VALUE!"}}]
[null,"2013-11-10",41588,45,"NOVEMBRE","Publicité","Factures","PUCYC0001",130005,null,"Chèque","R2",1550,null,0,0]
[null,"2013-11-10",41588,45,"NOVEMBRE","Résultat",null,null,null,null,null,null,null,null,1550,0]
[null,"2013-10-10",41557,41,"OCTOBRE","Publicité","Factures","PUCYC0001",130010,null,"Chèque","R1",1000,null,0,0,null,"Semaine N°",null,"TOTAL","Taxi","Location","Publicité"]
[null,"2013-11-06",41584,45,"NOVEMBRE","Publicité",null,"PUCYC0001",130010,null,"Chèque","R2",800,null,0,0,null,null,null,{"$f":"SUMPRODUCT((CaSem=S59)*(CaSem>0)*CaCrédit)","v":{"$error":"#VALUE!"}},{"$f":"SUMPRODUCT((CaSem=S59)*(CACatégorie=U59)*CaCrédit)","v":{"$error":"#VALUE!"}},{"$f":"SUMPRODUCT((CaSem=S59)*(CACatégorie=V59)*CaCrédit)","v":{"$error":"#VALUE!"}},{"$f":"SUMPRODUCT((CaSem=S59)*(CACatégorie=W59)*CaCrédit)","v":{"$error":"#VALUE!"}}]
[null,"2013-12-12",41620,50,"DÉCEMBRE","Publicité",null,"PUCYC0001",130010,null,"Chèque","R3",800,null,0,0]
[null,"2014-01-03",41642,1,"JANVIER","Publicité",null,"PUCYC0001",130010,null,"Chèque","R4",850,null,0,0,null,null,null,"Espèce","Chèque","CB","Virement","Tickets","vérif"]
[null,"2014-02-13",41683,7,"FÉVRIER",null,null,null,null,null,null,null,null,null,0,0,null,null,null,{"$f":"SUMPRODUCT((CaSem=S59)*(CaMode=\"Espèce\")*CaCrédit)","v":{"$error":"#VALUE!"}},{"$f":"SUMPRODUCT((CaSem=S59)*(CaMode=U62)*CaCrédit)","v":{"$error":"#VALUE!"}},{"$f":"SUMPRODUCT((CaSem=S59)*(CaMode=V62)*CaCrédit)","v":{"$error":"#VALUE!"}},{"$f":"SUMPRODUCT((CaSem=S59)*(CaMode=W62)*CaCrédit)","v":{"$error":"#VALUE!"}},{"$f":"SUMPRODUCT((CaSem=S59)*(CaMode=X62)*CaCrédit)","v":{"$error":"#VALUE!"}},{"$f":"SUM(T63:X64)","v":{"$error":"#VALUE!"}}]
[null,"2014-02-20",41690,8,"FÉVRIER","Location","Frais généraux","5698","256431","duchemole",null,null,"500","",0,0,null,null,null,null,null,null,null,null,{"$f":"SUMPRODUCT((CaSem=S59)*CaRecJour)","v":0}]
[null,"2014-02-25",41695,9,"FÉVRIER","Dépense","Impots","5698","256431","txpro",null,null,"","2000",0,0,null,"FdC",null,"Remise esp","Remise chq","Remise CB","Rem Virmt","Tickets","TOTAL","Report"]
[null,"2014-02-27",41697,9,"FÉVRIER","Publicité","Factures","6532478","65214789","rocher",null,null,"1500","",0,0,null,{"$f":"Z56","v":{"$error":"#VALUE!"}},null,{"$f":"SUMPRODUCT((CaSem=S59)*(CACatégorie=\"Banque\")*(CaMode=T62)*CaDébit)","v":{"$error":"#VALUE!"}},{"$f":"SUMPRODUCT((CaSem=S59)*(CACatégorie=\"Banque\")*(CaMode=U62)*CaDébit)","v":{"$error":"#VALUE!"}},{"$f":"SUMPRODUCT((CaSem=S59)*(CaMode=V62)*CaDébit)","v":{"$error":"#VALUE!"}},{"$f":"SUMPRODUCT((CaSem=S59)*(CaMode=W62)*CaDébit)","v":{"$error":"#VALUE!"}},{"$f":"SUMPRODUCT((CaSem=S59)*(CaMode=X62)*CaDébit)","v":{"$error":"#VALUE!"}},{"$f":"SUM(T66:X66)","v":{"$error":"#VALUE!"}},{"$f":"(T60+R66)-Y66","v":{"$error":"#VALUE!"}}]
[null,"2013-12-12",41620,50,"DÉCEMBRE","","","","","",null,null,11.1,11.2,0,0]
[null,"2013-12-15",41623,50,"DÉCEMBRE","","","","","",null,null,100.25,200.25,0,0]
[null,null,0,52,"",null,null,null,null,null,null,null,null,null,0,0,null,"Semaine N°",null,"TOTAL","Taxi","Location","Publicité"]
[null,null,0,52,"",null,null,null,null,null,null,null,null,null,0,0,null,null,null,{"$f":"SUMPRODUCT((CaSem=S69)*(CaSem>0)*CaCrédit)","v":{"$error":"#VALUE!"}},{"$f":"SUMPRODUCT((CaSem=S69)*(CACatégorie=U69)*CaCrédit)","v":{"$error":"#VALUE!"}},{"$f":"SUMPRODUCT((CaSem=S69)*(CACatégorie=V69)*CaCrédit)","v":{"$error":"#VALUE!"}},{"$f":"SUMPRODUCT((CaSem=S69)*(CACatégorie=W69)*CaCrédit)","v":{"$error":"#VALUE!"}}]
[null,null,0,52,"",null,null,null,null,null,null,null,null,null,0,0]
[null,null,0,52,"",null,null,null,null,null,null,null,null,null,0,0,null,null,null,"Espèce","Chèque","CB","Virement","Tickets","vérif"]
[null,null,0,52,{"$f":"IF(CaJour=0,\"\",UPPER(TEXT(C73,\"mmmm\")))","v":""},null,null,null,null,null,null,null,null,null,0,0,null,null,null,{"$f":"SUMPRODUCT((CaSem=S69)*(CaMode=\"Espèce\")*CaCrédit)","v":{"$error":"#VALUE!"}},{"$f":"SUMPRODUCT((CaSem=S69)*(CaMode=U72)*CaCrédit)","v":{"$error":"#VALUE!"}},{"$f":"SUMPRODUCT((CaSem=S69)*(CaMode=V72)*CaCrédit)","v":{"$error":"#VALUE!"}},{"$f":"SUMPRODUCT((CaSem=S69)*(CaMode=W72)*CaCrédit)","v":{"$error":"#VALUE!"}},{"$f":"SUMPRODUCT((CaSem=S69)*(CaMode=X72)*CaCrédit)","v":{"$error":"#VALUE!"}},{"$f":"SUM(T73:X74)","v":{"$error":"#VALUE!"}}]
[null,null,{"$f":"DATE(YEAR(B74),MONTH(B74),DAY(B74))","v":0},{"$f":"INT(MOD(INT((B74-2)/7)+0.6,52+5/28))+1","v":52},"",null,null,null,null,null,null,null,null,null,0,0,null,null,null,null,null,null,null,null,{"$f":"SUMPRODUCT((CaSem=S69)*CaRecJour)","v":0}]
[null,null,0,52,"",null,null,null,null,null,null,null,null,null,0,0,null,"FdC",null,"Remise esp","Remise chq","Remise CB","Rem Virmt","Tickets","TOTAL","Report"]
[null,null,0,52,"",null,null,null,null,null,null,null,null,null,0,0,null,{"$f":"Z66","v":{"$error":"#VALUE!"}},null,{"$f":"SUMPRODUCT((CaSem=S69)*(CACatégorie=\"Banque\")*(CaMode=T72)*CaDébit)","v":{"$error":"#VALUE!"}},{"$f":"SUMPRODUCT((CaSem=S69)*(CACatégorie=\"Banque\")*(CaMode=U72)*CaDébit)","v":{"$error":"#VALUE!"}},{"$f":"SUMPRODUCT((CaSem=S69)*(CaMode=V72)*CaDébit)","v":{"$error":"#VALUE!"}},{"$f":"SUMPRODUCT((CaSem=S69)*(CaMode=W72)*CaDébit)","v":{"$error":"#VALUE!"}},{"$f":"SUMPRODUCT((CaSem=S69)*(CaMode=X72)*CaDébit)","v":{"$error":"#VALUE!"}},{"$f":"SUM(T76:X76)","v":{"$error":"#VALUE!"}},{"$f":"(T70+R76)-Y76","v":{"$error":"#VALUE!"}}]
[null,null,0,52,"",null,null,null,null,null,null,null,null,null,0,0]
[null,null,0,52,"",null,null,null,null,null,null,null,null,null,0,0]
[null,null,0,52,"",null,null,null,null,null,null,null,null,null,0,0,null,"Semaine N°",null,"TOTAL","Taxi","Location","Publicité"]
[null,null,0,52,"",null,null,null,null,null,null,null,null,null,0,0,null,null,null,{"$f":"SUMPRODUCT((CaSem=S79)*(CaSem>0)*CaCrédit)","v":{"$error":"#VALUE!"}},{"$f":"SUMPRODUCT((CaSem=S79)*(CACatégorie=U79)*CaCrédit)","v":{"$error":"#VALUE!"}},{"$f":"SUMPRODUCT((CaSem=S79)*(CACatégorie=V79)*CaCrédit)","v":{"$error":"#VALUE!"}},{"$f":"SUMPRODUCT((CaSem=S79)*(CACatégorie=W79)*CaCrédit)","v":{"$error":"#VALUE!"}}]
[null,null,0,52,"",null,null,null,null,null,null,null,null,null,0,0]
[null,null,0,52,"",null,null,null,null,null,null,null,null,null,0,0,null,null,null,"Espèce","Chèque","CB","Virement","Tickets","vérif"]
[null,null,0,52,"",null,null,null,null,null,null,null,null,null,0,0,null,null,null,{"$f":"SUMPRODUCT((CaSem=S79)*(CaMode=\"Espèce\")*CaCrédit)","v":{"$error":"#VALUE!"}},{"$f":"SUMPRODUCT((CaSem=S79)*(CaMode=U82)*CaCrédit)","v":{"$error":"#VALUE!"}},{"$f":"SUMPRODUCT((CaSem=S79)*(CaMode=V82)*CaCrédit)","v":{"$error":"#VALUE!"}},{"$f":"SUMPRODUCT((CaSem=S79)*(CaMode=W82)*CaCrédit)","v":{"$error":"#VALUE!"}},{"$f":"SUMPRODUCT((CaSem=S79)*(CaMode=X82)*CaCrédit)","v":{"$error":"#VALUE!"}},{"$f":"SUM(T83:X84)","v":{"$error":"#VALUE!"}}]
[null,null,0,52,"",null,null,null,null,null,null,null,null,null,0,0,null,null,null,null,null,null,null,null,{"$f":"SUMPRODUCT((CaSem=S79)*CaRecJour)","v":0}]
[null,null,0,52,"",null,null,null,null,null,null,null,null,null,0,0,null,"FdC",null,"Remise esp","Remise chq","Remise CB","Rem Virmt","Tickets","TOTAL","Report"]
[null,null,0,52,"",null,null,null,null,null,null,null,null,null,0,0,null,{"$f":"Z76","v":{"$error":"#VALUE!"}},null,{"$f":"SUMPRODUCT((CaSem=S79)*(CACatégorie=\"Banque\")*(CaMode=T82)*CaDébit)","v":{"$error":"#VALUE!"}},{"$f":"SUMPRODUCT((CaSem=S79)*(CACatégorie=\"Banque\")*(CaMode=U82)*CaDébit)","v":{"$error":"#VALUE!"}},{"$f":"SUMPRODUCT((CaSem=S79)*(CaMode=V82)*CaDébit)","v":{"$error":"#VALUE!"}},{"$f":"SUMPRODUCT((CaSem=S79)*(CaMode=W82)*CaDébit)","v":{"$error":"#VALUE!"}},{"$f":"SUMPRODUCT((CaSem=S79)*(CaMode=X82)*CaDébit)","v":{"$error":"#VALUE!"}},{"$f":"SUM(T86:X86)","v":{"$error":"#VALUE!"}},{"$f":"(T80+R86)-Y86","v":{"$error":"#VALUE!"}}]
[null,null,0,52,"",null,null,null,null,null,null,null,null,null,0,0]
[null,null,0,52,"",null,null,null,null,null,null,null,null,null,0,0]
[null,null,0,52,"",null,null,null,null,null,null,null,null,null,0,0,null,"Semaine N°",null,"TOTAL","Taxi","Location","Publicité"]
[null,null,0,52,"",null,null,null,null,null,null,null,null,null,0,0,null,null,null,{"$f":"SUMPRODUCT((CaSem=S89)*(CaSem>0)*CaCrédit)","v":{"$error":"#VALUE!"}},{"$f":"SUMPRODUCT((CaSem=S89)*(CACatégorie=U89)*CaCrédit)","v":{"$error":"#VALUE!"}},{"$f":"SUMPRODUCT((CaSem=S89)*(CACatégorie=V89)*CaCrédit)","v":{"$error":"#VALUE!"}},{"$f":"SUMPRODUCT((CaSem=S89)*(CACatégorie=W89)*CaCrédit)","v":{"$error":"#VALUE!"}}]
[null,null,0,52,"",null,null,null,null,null,null,null,null,null,0,0]
[null,null,0,52,"",null,null,null,null,null,null,null,null,null,0,0,null,null,null,"Espèce","Chèque","CB","Virement","Tickets","vérif"]
[null,null,0,52,"",null,null,null,null,null,null,null,null,null,{"$f":"IF(AND((CaJour=B93),(CACatégorie=\"Résultat\")),IF(B92=B93,M92,0)+IF(B91=B93,M91,0)+IF(B90=B93,M90,0)+IF(B89=B93,M89,0)+IF(B88=B93,M88,0)+IF(B87=B93,M87,0)+IF(B86=B93,M86,0)+IF(B85=B93,M85,0)+IF(B84=B93,M84,0)+IF(B83=B93,M83,0)+IF(B82=B93,M82,0)+IF(B81=B93,M81,0)+IF(B80=B93,M80,0)+IF(B79=B93,M79,0)+IF(B78=B93,M78,0)+IF(B77=B93,M77,0)+IF(B76=B93,M76,0)+IF(B75=B93,M75,0)+IF(B74=B93,M74,0)+IF(B73=B93,M73,0),0)","v":0},{"$f":"IF(AND((CaJour=B93),(CACatégorie=\"Résultat\")),IF(B92=B93,N92,0)+IF(B91=B93,N91,0)+IF(B90=B93,N90,0)+IF(B89=B93,N89,0)+IF(B88=B93,N88,0)+IF(B87=B93,N87,0)+IF(B86=B93,N86,0)+IF(B85=B93,N85,0)+IF(B84=B93,N84,0)+IF(B83=B93,N83,0)+IF(B82=B93,N82,0)+IF(B81=B93,N81,0)+IF(B80=B93,N80,0)+IF(B79=B93,N79,0)+IF(B78=B93,N78,0)+IF(B77=B93,N77,0)+IF(B76=B93,N76,0)+IF(B75=B93,N75,0)+IF(B74=B93,N74,0)+IF(B73=B93,N73,0),0)","v":0},null,null,null,{"$f":"SUMPRODUCT((CaSem=S89)*(CaMode=\"Espèce\")*CaCrédit)","v":{"$error":"#VALUE!"}},{"$f":"SUMPRODUCT((CaSem=S89)*(CaMode=U92)*CaCrédit)","v":{"$error":"#VALUE!"}},{"$f":"SUMPRODUCT((CaSem=S89)*(CaMode=V92)*CaCrédit)","v":{"$error":"#VALUE!"}},{"$f":"SUMPRODUCT((CaSem=S89)*(CaMode=W92)*CaCrédit)","v":{"$error":"#VALUE!"}},{"$f":"SUMPRODUCT((CaSem=S89)*(CaMode=X92)*CaCrédit)","v":{"$error":"#VALUE!"}},{"$f":"SUM(T93:X94)","v":{"$error":"#VALUE!"}}]
[null,null,0,52,"",null,null,null,null,null,null,null,null,null,0,0,null,null,null,null,null,null,null,null,{"$f":"SUMPRODUCT((CaSem=S89)*CaRecJour)","v":0}]
[null,null,0,52,"",null,null,null,null,null,null,null,null,null,0,0,null,"FdC",null,"Remise esp","Remise chq","Remise CB","Rem Virmt","Tickets","TOTAL","Report"]
[null,null,0,52,"",null,null,null,null,null,null,null,null,null,0,0,null,{"$f":"Z86","v":{"$error":"#VALUE!"}},null,{"$f":"SUMPRODUCT((CaSem=S89)*(CACatégorie=\"Banque\")*(CaMode=T92)*CaDébit)","v":{"$error":"#VALUE!"}},{"$f":"SUMPRODUCT((CaSem=S89)*(CACatégorie=\"Banque\")*(CaMode=U92)*CaDébit)","v":{"$error":"#VALUE!"}},{"$f":"SUMPRODUCT((CaSem=S89)*(CaMode=V92)*CaDébit)","v":{"$error":"#VALUE!"}},{"$f":"SUMPRODUCT((CaSem=S89)*(CaMode=W92)*CaDébit)","v":{"$error":"#VALUE!"}},{"$f":"SUMPRODUCT((CaSem=S89)*(CaMode=X92)*CaDébit)","v":{"$error":"#VALUE!"}},{"$f":"SUM(T96:X96)","v":{"$error":"#VALUE!"}},{"$f":"(T90+R96)-Y96","v":{"$error":"#VALUE!"}}]
[null,null,0,52,"",null,null,null,null,null,null,null,null,null,0,0]
[null,null,0,52,"",null,null,null,null,null,null,null,null,null,0,0]
[null,null,0,52,"",null,null,null,null,null,null,null,null,null,0,0,null,"Semaine N°",null,"TOTAL","Taxi","Location","Publicité"]
[null,null,0,52,"",null,null,null,null,null,null,null,null,null,0,0,null,null,null,{"$f":"SUMPRODUCT((CaSem=S99)*(CaSem>0)*CaCrédit)","v":{"$error":"#VALUE!"}},{"$f":"SUMPRODUCT((CaSem=S99)*(CACatégorie=U99)*CaCrédit)","v":{"$error":"#VALUE!"}},{"$f":"SUMPRODUCT((CaSem=S99)*(CACatégorie=V99)*CaCrédit)","v":{"$error":"#VALUE!"}},{"$f":"SUMPRODUCT((CaSem=S99)*(CACatégorie=W99)*CaCrédit)","v":{"$error":"#VALUE!"}}]
[null,null,0,52,"",null,null,null,null,null,null,null,null,null,0,0]
[null,null,0,52,"",null,null,null,null,null,null,null,null,null,0,0,null,null,null,"Espèce","Chèque","CB","Virement","Tickets","vérif"]
[null,null,0,52,"",null,null,null,null,null,null,null,null,null,0,0,null,null,null,{"$f":"SUMPRODUCT((CaSem=S99)*(CaMode=\"Espèce\")*CaCrédit)","v":{"$error":"#VALUE!"}},{"$f":"SUMPRODUCT((CaSem=S99)*(CaMode=U102)*CaCrédit)","v":{"$error":"#VALUE!"}},{"$f":"SUMPRODUCT((CaSem=S99)*(CaMode=V102)*CaCrédit)","v":{"$error":"#VALUE!"}},{"$f":"SUMPRODUCT((CaSem=S99)*(CaMode=W102)*CaCrédit)","v":{"$error":"#VALUE!"}},{"$f":"SUMPRODUCT((CaSem=S99)*(CaMode=X102)*CaCrédit)","v":{"$error":"#VALUE!"}},{"$f":"SUM(T103:X104)","v":{"$error":"#VALUE!"}}]
[null,null,0,52,"",null,null,null,null,null,null,null,null,null,0,0,null,null,null,null,null,null,null,null,{"$f":"SUMPRODUCT((CaSem=S99)*CaRecJour)","v":0}]
[null,null,0,52,"",null,null,null,null,null,null,null,null,null,0,0,null,"FdC",null,"Remise esp","Remise chq","Remise CB","Rem Virmt","Tickets","TOTAL","Report"]
[null,null,0,52,"",null,null,null,null,null,null,null,null,null,0,0,null,{"$f":"Z96","v":{"$error":"#VALUE!"}},null,{"$f":"SUMPRODUCT((CaSem=S99)*(CACatégorie=\"Banque\")*(CaMode=T102)*CaDébit)","v":{"$error":"#VALUE!"}},{"$f":"SUMPRODUCT((CaSem=S99)*(CACatégorie=\"Banque\")*(CaMode=U102)*CaDébit)","v":{"$error":"#VALUE!"}},{"$f":"SUMPRODUCT((CaSem=S99)*(CaMode=V102)*CaDébit)","v":{"$error":"#VALUE!"}},{"$f":"SUMPRODUCT((CaSem=S99)*(CaMode=W102)*CaDébit)","v":{"$error":"#VALUE!"}},{"$f":"SUMPRODUCT((CaSem=S99)*(CaMode=X102)*CaDébit)","v":{"$error":"#VALUE!"}},{"$f":"SUM(T106:X106)","v":{"$error":"#VALUE!"}},{"$f":"(T100+R106)-Y106","v":{"$error":"#VALUE!"}}]
[null,null,0,52,"",null,null,null,null,null,null,null,null,null,0,0]
[null,null,0,52,"",null,null,null,null,null,null,null,null,null,0,0]
[null,null,0,52,"",null,null,null,null,null,null,null,null,null,0,0,null,"Semaine N°",null,"TOTAL","Taxi","Location","Publicité"]
[null,null,0,52,"",null,null,null,null,null,null,null,null,null,0,0,null,null,null,{"$f":"SUMPRODUCT((CaSem=S109)*(CaSem>0)*CaCrédit)","v":{"$error":"#VALUE!"}},{"$f":"SUMPRODUCT((CaSem=S109)*(CACatégorie=U109)*CaCrédit)","v":{"$error":"#VALUE!"}},{"$f":"SUMPRODUCT((CaSem=S109)*(CACatégorie=V109)*CaCrédit)","v":{"$error":"#VALUE!"}},{"$f":"SUMPRODUCT((CaSem=S109)*(CACatégorie=W109)*CaCrédit)","v":{"$error":"#VALUE!"}}]
[null,null,0,52,"",null,null,null,null,null,null,null,null,null,0,0]
[null,null,0,52,"",null,null,null,null,null,null,null,null,null,0,0,null,null,null,"Espèce","Chèque","CB","Virement","Tickets","vérif"]
[null,null,0,52,"",null,null,null,null,null,null,null,null,null,0,0,null,null,null,{"$f":"SUMPRODUCT((CaSem=S109)*(CaMode=\"Espèce\")*CaCrédit)","v":{"$error":"#VALUE!"}},{"$f":"SUMPRODUCT((CaSem=S109)*(CaMode=U112)*CaCrédit)","v":{"$error":"#VALUE!"}},{"$f":"SUMPRODUCT((CaSem=S109)*(CaMode=V112)*CaCrédit)","v":{"$error":"#VALUE!"}},{"$f":"SUMPRODUCT((CaSem=S109)*(CaMode=W112)*CaCrédit)","v":{"$error":"#VALUE!"}},{"$f":"SUMPRODUCT((CaSem=S109)*(CaMode=X112)*CaCrédit)","v":{"$error":"#VALUE!"}},{"$f":"SUM(T113:X114)","v":{"$error":"#VALUE!"}}]
[null,null,0,52,"",null,null,null,null,null,null,null,null,null,0,0,null,null,null,null,null,null,null,null,{"$f":"SUMPRODUCT((CaSem=S109)*CaRecJour)","v":0}]
[null,null,0,52,"",null,null,null,null,null,null,null,null,null,0,0,null,"FdC",null,"Remise esp","Remise chq","Remise CB","Rem Virmt","Tickets","TOTAL","Report"]
[null,null,0,52,"",null,null,null,null,null,null,null,null,null,0,0,null,{"$f":"Z106","v":{"$error":"#VALUE!"}},null,{"$f":"SUMPRODUCT((CaSem=S109)*(CACatégorie=\"Banque\")*(CaMode=T112)*CaDébit)","v":{"$error":"#VALUE!"}},{"$f":"SUMPRODUCT((CaSem=S109)*(CACatégorie=\"Banque\")*(CaMode=U112)*CaDébit)","v":{"$error":"#VALUE!"}},{"$f":"SUMPRODUCT((CaSem=S109)*(CaMode=V112)*CaDébit)","v":{"$error":"#VALUE!"}},{"$f":"SUMPRODUCT((CaSem=S109)*(CaMode=W112)*CaDébit)","v":{"$error":"#VALUE!"}},{"$f":"SUMPRODUCT((CaSem=S109)*(CaMode=X112)*CaDébit)","v":{"$error":"#VALUE!"}},{"$f":"SUM(T116:X116)","v":{"$error":"#VALUE!"}},{"$f":"(T110+R116)-Y116","v":{"$error":"#VALUE!"}}]
[null,null,0,52,"",null,null,null,null,null,null,null,null,null,0,0]
[null,null,0,52,"",null,null,null,null,null,null,null,null,null,0,0]
[null,null,0,52,"",null,null,null,null,null,null,null,null,null,0,0,null,"Semaine N°",null,"TOTAL","Taxi","Location","Publicité"]
[null,null,0,52,"",null,null,null,null,null,null,null,null,null,0,0,null,null,null,{"$f":"SUMPRODUCT((CaSem=S119)*(CaSem>0)*CaCrédit)","v":{"$error":"#VALUE!"}},{"$f":"SUMPRODUCT((CaSem=S119)*(CACatégorie=U119)*CaCrédit)","v":{"$error":"#VALUE!"}},{"$f":"SUMPRODUCT((CaSem=S119)*(CACatégorie=V119)*CaCrédit)","v":{"$error":"#VALUE!"}},{"$f":"SUMPRODUCT((CaSem=S119)*(CACatégorie=W119)*CaCrédit)","v":{"$error":"#VALUE!"}}]
[null,null,0,52,"",null,null,null,null,null,null,null,null,null,0,0]
[null,null,0,52,"",null,null,null,null,null,null,null,null,null,0,0,null,null,null,"Espèce","Chèque","CB","Virement","Tickets","vérif"]
[null,null,0,52,"",null,null,null,null,null,null,null,null,null,0,0,null,null,null,{"$f":"SUMPRODUCT((CaSem=S119)*(CaMode=\"Espèce\")*CaCrédit)","v":{"$error":"#VALUE!"}},{"$f":"SUMPRODUCT((CaSem=S119)*(CaMode=U122)*CaCrédit)","v":{"$error":"#VALUE!"}},{"$f":"SUMPRODUCT((CaSem=S119)*(CaMode=V122)*CaCrédit)","v":{"$error":"#VALUE!"}},{"$f":"SUMPRODUCT((CaSem=S119)*(CaMode=W122)*CaCrédit)","v":{"$error":"#VALUE!"}},{"$f":"SUMPRODUCT((CaSem=S119)*(CaMode=X122)*CaCrédit)","v":{"$error":"#VALUE!"}},{"$f":"SUM(T123:X124)","v":{"$error":"#VALUE!"}}]
[null,null,0,52,"",null,null,null,null,null,null,null,null,null,0,0,null,null,null,null,null,null,null,null,{"$f":"SUMPRODUCT((CaSem=S119)*CaRecJour)","v":0}]
[null,null,0,52,"",null,null,null,null,null,null,null,null,null,0,0,null,"FdC",null,"Remise esp","Remise chq","Remise CB","Rem Virmt","Tickets","TOTAL","Report"]
[null,null,0,52,"",null,null,null,null,null,null,null,null,null,0,0,null,{"$f":"Z116","v":{"$error":"#VALUE!"}},null,{"$f":"SUMPRODUCT((CaSem=S119)*(CACatégorie=\"Banque\")*(CaMode=T122)*CaDébit)","v":{"$error":"#VALUE!"}},{"$f":"SUMPRODUCT((CaSem=S119)*(CACatégorie=\"Banque\")*(CaMode=U122)*CaDébit)","v":{"$error":"#VALUE!"}},{"$f":"SUMPRODUCT((CaSem=S119)*(CaMode=V122)*CaDébit)","v":{"$error":"#VALUE!"}},{"$f":"SUMPRODUCT((CaSem=S119)*(CaMode=W122)*CaDébit)","v":{"$error":"#VALUE!"}},{"$f":"SUMPRODUCT((CaSem=S119)*(CaMode=X122)*CaDébit)","v":{"$error":"#VALUE!"}},{"$f":"SUM(T126:X126)","v":{"$error":"#VALUE!"}},{"$f":"(T120+R126)-Y126","v":{"$error":"#VALUE!"}}]
[null,null,0,52,"",null,null,null,null,null,null,null,null,null,0,0]
[null,null,0,52,"",null,null,null,null,null,null,null,null,null,0,0]
[null,null,0,52,"",null,null,null,null,null,null,null,null,null,0,0,null,"Semaine N°",null,"TOTAL","Taxi","Location","Publicité"]
[null,null,0,52,"",null,null,null,null,null,null,null,null,null,0,0,null,null,null,{"$f":"SUMPRODUCT((CaSem=S129)*(CaSem>0)*CaCrédit)","v":{"$error":"#VALUE!"}},{"$f":"SUMPRODUCT((CaSem=S129)*(CACatégorie=U129)*CaCrédit)","v":{"$error":"#VALUE!"}},{"$f":"SUMPRODUCT((CaSem=S129)*(CACatégorie=V129)*CaCrédit)","v":{"$error":"#VALUE!"}},{"$f":"SUMPRODUCT((CaSem=S129)*(CACatégorie=W129)*CaCrédit)","v":{"$error":"#VALUE!"}}]
[null,null,0,52,"",null,null,null,null,null,null,null,null,null,0,0]
[null,null,0,52,"",null,null,null,null,null,null,null,null,null,0,0,null,null,null,"Espèce","Chèque","CB","Virement","Tickets","vérif"]
[null,null,0,52,"",null,null,null,null,null,null,null,null,null,0,0,null,null,null,{"$f":"SUMPRODUCT((CaSem=S129)*(CaMode=\"Espèce\")*CaCrédit)","v":{"$error":"#VALUE!"}},{"$f":"SUMPRODUCT((CaSem=S129)*(CaMode=U132)*CaCrédit)","v":{"$error":"#VALUE!"}},{"$f":"SUMPRODUCT((CaSem=S129)*(CaMode=V132)*CaCrédit)","v":{"$error":"#VALUE!"}},{"$f":"SUMPRODUCT((CaSem=S129)*(CaMode=W132)*CaCrédit)","v":{"$error":"#VALUE!"}},{"$f":"SUMPRODUCT((CaSem=S129)*(CaMode=X132)*CaCrédit)","v":{"$error":"#VALUE!"}},{"$f":"SUM(T133:X134)","v":{"$error":"#VALUE!"}}]
[null,null,0,52,"",null,null,null,null,null,null,null,null,null,0,0,null,null,null,null,null,null,null,null,{"$f":"SUMPRODUCT((CaSem=S129)*CaRecJour)","v":0}]
[null,null,0,52,"",null,null,null,null,null,null,null,null,null,0,0,null,"FdC",null,"Remise esp","Remise chq","Remise CB","Rem Virmt","Tickets","TOTAL","Report"]
[null,null,0,52,"",null,null,null,null,null,null,null,null,null,0,0,null,{"$f":"Z126","v":{"$error":"#VALUE!"}},null,{"$f":"SUMPRODUCT((CaSem=S129)*(CACatégorie=\"Banque\")*(CaMode=T132)*CaDébit)","v":{"$error":"#VALUE!"}},{"$f":"SUMPRODUCT((CaSem=S129)*(CACatégorie=\"Banque\")*(CaMode=U132)*CaDébit)","v":{"$error":"#VALUE!"}},{"$f":"SUMPRODUCT((CaSem=S129)*(CaMode=V132)*CaDébit)","v":{"$error":"#VALUE!"}},{"$f":"SUMPRODUCT((CaSem=S129)*(CaMode=W132)*CaDébit)","v":{"$error":"#VALUE!"}},{"$f":"SUMPRODUCT((CaSem=S129)*(CaMode=X132)*CaDébit)","v":{"$error":"#VALUE!"}},{"$f":"SUM(T136:X136)","v":{"$error":"#VALUE!"}},{"$f":"(T130+R136)-Y136","v":{"$error":"#VALUE!"}}]
[null,null,0,52,{"$f":"IF(CaJour=0,\"\",UPPER(TEXT(C137,\"mmmm\")))","v":""},null,null,null,null,null,null,null,null,null,0,0]
[null,null,{"$f":"DATE(YEAR(B138),MONTH(B138),DAY(B138))","v":0},{"$f":"INT(MOD(INT((B138-2)/7)+0.6,52+5/28))+1","v":52},"",null,null,null,null,null,null,null,null,null,0,0]
[null,null,0,52,"",null,null,null,null,null,null,null,null,null,0,0,null,"Semaine N°",null,"TOTAL","Taxi","Location","Publicité"]
[null,null,0,52,"",null,null,null,null,null,null,null,null,null,0,0,null,null,null,{"$f":"SUMPRODUCT((CaSem=S139)*(CaSem>0)*CaCrédit)","v":{"$error":"#VALUE!"}},{"$f":"SUMPRODUCT((CaSem=S139)*(CACatégorie=U139)*CaCrédit)","v":{"$error":"#VALUE!"}},{"$f":"SUMPRODUCT((CaSem=S139)*(CACatégorie=V139)*CaCrédit)","v":{"$error":"#VALUE!"}},{"$f":"SUMPRODUCT((CaSem=S139)*(CACatégorie=W139)*CaCrédit)","v":{"$error":"#VALUE!"}}]
[null,null,0,52,"",null,null,null,null,null,null,null,null,null,0,0]
[null,null,0,52,"",null,null,null,null,null,null,null,null,null,0,0,null,null,null,"Espèce","Chèque","CB","Virement","Tickets","vérif"]
[null,null,0,52,"",null,null,null,null,null,null,null,null,null,0,0,null,null,null,{"$f":"SUMPRODUCT((CaSem=S139)*(CaMode=\"Espèce\")*CaCrédit)","v":{"$error":"#VALUE!"}},{"$f":"SUMPRODUCT((CaSem=S139)*(CaMode=U142)*CaCrédit)","v":{"$error":"#VALUE!"}},{"$f":"SUMPRODUCT((CaSem=S139)*(CaMode=V142)*CaCrédit)","v":{"$error":"#VALUE!"}},{"$f":"SUMPRODUCT((CaSem=S139)*(CaMode=W142)*CaCrédit)","v":{"$error":"#VALUE!"}},{"$f":"SUMPRODUCT((CaSem=S139)*(CaMode=X142)*CaCrédit)","v":{"$error":"#VALUE!"}},{"$f":"SUM(T143:X144)","v":{"$error":"#VALUE!"}}]
[null,null,0,52,"",null,null,null,null,null,null,null,null,null,0,0,null,null,null,null,null,null,null,null,{"$f":"SUMPRODUCT((CaSem=S139)*CaRecJour)","v":0}]
[null,null,0,52,"",null,null,null,null,null,null,null,null,null,0,0,null,"FdC",null,"Remise esp","Remise chq","Remise CB","Rem Virmt","Tickets","TOTAL","Report"]
[null,null,0,52,"",null,null,null,null,null,null,null,null,null,0,0,null,{"$f":"Z136","v":{"$error":"#VALUE!"}},null,{"$f":"SUMPRODUCT((CaSem=S139)*(CACatégorie=\"Banque\")*(CaMode=T142)*CaDébit)","v":{"$error":"#VALUE!"}},{"$f":"SUMPRODUCT((CaSem=S139)*(CACatégorie=\"Banque\")*(CaMode=U142)*CaDébit)","v":{"$error":"#VALUE!"}},{"$f":"SUMPRODUCT((CaSem=S139)*(CaMode=V142)*CaDébit)","v":{"$error":"#VALUE!"}},{"$f":"SUMPRODUCT((CaSem=S139)*(CaMode=W142)*CaDébit)","v":{"$error":"#VALUE!"}},{"$f":"SUMPRODUCT((CaSem=S139)*(CaMode=X142)*CaDébit)","v":{"$error":"#VALUE!"}},{"$f":"SUM(T146:X146)","v":{"$error":"#VALUE!"}},{"$f":"(T140+R146)-Y146","v":{"$error":"#VALUE!"}}]
[null,null,0,52,"",null,null,null,null,null,null,null,null,null,0,0]
[null,null,0,52,"",null,null,null,null,null,null,null,null,null,0,0]
[null,null,0,52,"",null,null,null,null,null,null,null,null,null,0,0,null,"Semaine N°",null,"TOTAL","Taxi","Location","Publicité"]
[null,null,0,52,"",null,null,null,null,null,null,null,null,null,0,0,null,null,null,{"$f":"SUMPRODUCT((CaSem=S149)*(CaSem>0)*CaCrédit)","v":{"$error":"#VALUE!"}},{"$f":"SUMPRODUCT((CaSem=S149)*(CACatégorie=U149)*CaCrédit)","v":{"$error":"#VALUE!"}},{"$f":"SUMPRODUCT((CaSem=S149)*(CACatégorie=V149)*CaCrédit)","v":{"$error":"#VALUE!"}},{"$f":"SUMPRODUCT((CaSem=S149)*(CACatégorie=W149)*CaCrédit)","v":{"$error":"#VALUE!"}}]
[null,null,0,52,"",null,null,null,null,null,null,null,null,null,0,0]
[null,null,0,52,"",null,null,null,null,null,null,null,null,null,0,0,null,null,null,"Espèce","Chèque","CB","Virement","Tickets","vérif"]
[null,null,0,52,"",null,null,null,null,null,null,null,null,null,0,0,null,null,null,{"$f":"SUMPRODUCT((CaSem=S149)*(CaMode=\"Espèce\")*CaCrédit)","v":{"$error":"#VALUE!"}},{"$f":"SUMPRODUCT((CaSem=S149)*(CaMode=U152)*CaCrédit)","v":{"$error":"#VALUE!"}},{"$f":"SUMPRODUCT((CaSem=S149)*(CaMode=V152)*CaCrédit)","v":{"$error":"#VALUE!"}},{"$f":"SUMPRODUCT((CaSem=S149)*(CaMode=W152)*CaCrédit)","v":{"$error":"#VALUE!"}},{"$f":"SUMPRODUCT((CaSem=S149)*(CaMode=X152)*CaCrédit)","v":{"$error":"#VALUE!"}},{"$f":"SUM(T153:X154)","v":{"$error":"#VALUE!"}}]
[null,null,0,52,"",null,null,null,null,null,null,null,null,null,0,0,null,null,null,null,null,null,null,null,{"$f":"SUMPRODUCT((CaSem=S149)*CaRecJour)","v":0}]
[null,null,0,52,"",null,null,null,null,null,null,null,null,null,0,0,null,"FdC",null,"Remise esp","Remise chq","Remise CB","Rem Virmt","Tickets","TOTAL","Report"]
[null,null,0,52,"",null,null,null,null,null,null,null,null,null,0,0,null,{"$f":"Z146","v":{"$error":"#VALUE!"}},null,{"$f":"SUMPRODUCT((CaSem=S149)*(CACatégorie=\"Banque\")*(CaMode=T152)*CaDébit)","v":{"$error":"#VALUE!"}},{"$f":"SUMPRODUCT((CaSem=S149)*(CACatégorie=\"Banque\")*(CaMode=U152)*CaDébit)","v":{"$error":"#VALUE!"}},{"$f":"SUMPRODUCT((CaSem=S149)*(CaMode=V152)*CaDébit)","v":{"$error":"#VALUE!"}},{"$f":"SUMPRODUCT((CaSem=S149)*(CaMode=W152)*CaDébit)","v":{"$error":"#VALUE!"}},{"$f":"SUMPRODUCT((CaSem=S149)*(CaMode=X152)*CaDébit)","v":{"$error":"#VALUE!"}},{"$f":"SUM(T156:X156)","v":{"$error":"#VALUE!"}},{"$f":"(T150+R156)-Y156","v":{"$error":"#VALUE!"}}]
[null,null,0,52,"",null,null,null,null,null,null,null,null,null,{"$f":"IF(AND((CaJour=B157),(CACatégorie=\"Résultat\")),IF(B156=B157,M156,0)+IF(B155=B157,M155,0)+IF(B154=B157,M154,0)+IF(B153=B157,M153,0)+IF(B152=B157,M152,0)+IF(B151=B157,M151,0)+IF(B150=B157,M150,0)+IF(B149=B157,M149,0)+IF(B148=B157,M148,0)+IF(B147=B157,M147,0)+IF(B146=B157,M146,0)+IF(B145=B157,M145,0)+IF(B144=B157,M144,0)+IF(B143=B157,M143,0)+IF(B142=B157,M142,0)+IF(B141=B157,M141,0)+IF(B140=B157,M140,0)+IF(B139=B157,M139,0)+IF(B138=B157,M138,0)+IF(B137=B157,M137,0),0)","v":0},{"$f":"IF(AND((CaJour=B157),(CACatégorie=\"Résultat\")),IF(B156=B157,N156,0)+IF(B155=B157,N155,0)+IF(B154=B157,N154,0)+IF(B153=B157,N153,0)+IF(B152=B157,N152,0)+IF(B151=B157,N151,0)+IF(B150=B157,N150,0)+IF(B149=B157,N149,0)+IF(B148=B157,N148,0)+IF(B147=B157,N147,0)+IF(B146=B157,N146,0)+IF(B145=B157,N145,0)+IF(B144=B157,N144,0)+IF(B143=B157,N143,0)+IF(B142=B157,N142,0)+IF(B141=B157,N141,0)+IF(B140=B157,N140,0)+IF(B139=B157,N139,0)+IF(B138=B157,N138,0)+IF(B137=B157,N137,0),0)","v":0}]
[null,null,0,52,"",null,null,null,null,null,null,null,null,null,0,0]
[null,null,0,52,"",null,null,null,null,null,null,null,null,null,0,0,null,"Semaine N°",null,"TOTAL","Taxi","Location","Publicité"]
[null,null,0,52,"",null,null,null,null,null,null,null,null,null,0,0,null,null,null,{"$f":"SUMPRODUCT((CaSem=S159)*(CaSem>0)*CaCrédit)","v":{"$error":"#VALUE!"}},{"$f":"SUMPRODUCT((CaSem=S159)*(CACatégorie=U159)*CaCrédit)","v":{"$error":"#VALUE!"}},{"$f":"SUMPRODUCT((CaSem=S159)*(CACatégorie=V159)*CaCrédit)","v":{"$error":"#VALUE!"}},{"$f":"SUMPRODUCT((CaSem=S159)*(CACatégorie=W159)*CaCrédit)","v":{"$error":"#VALUE!"}}]
[null,null,0,52,"",null,null,null,null,null,null,null,null,null,0,0]
[null,null,0,52,"",null,null,null,null,null,null,null,null,null,0,0,null,null,null,"Espèce","Chèque","CB","Virement","Tickets","vérif"]
[null,null,0,52,"",null,null,null,null,null,null,null,null,null,0,0,null,null,null,{"$f":"SUMPRODUCT((CaSem=S159)*(CaMode=\"Espèce\")*CaCrédit)","v":{"$error":"#VALUE!"}},{"$f":"SUMPRODUCT((CaSem=S159)*(CaMode=U162)*CaCrédit)","v":{"$error":"#VALUE!"}},{"$f":"SUMPRODUCT((CaSem=S159)*(CaMode=V162)*CaCrédit)","v":{"$error":"#VALUE!"}},{"$f":"SUMPRODUCT((CaSem=S159)*(CaMode=W162)*CaCrédit)","v":{"$error":"#VALUE!"}},{"$f":"SUMPRODUCT((CaSem=S159)*(CaMode=X162)*CaCrédit)","v":{"$error":"#VALUE!"}},{"$f":"SUM(T163:X164)","v":{"$error":"#VALUE!"}}]
[null,null,0,52,"",null,null,null,null,null,null,null,null,null,0,0,null,null,null,null,null,null,null,null,{"$f":"SUMPRODUCT((CaSem=S159)*CaRecJour)","v":0}]
[null,null,0,52,"",null,null,null,null,null,null,null,null,null,0,0,null,"FdC",null,"Remise esp","Remise chq","Remise CB","Rem Virmt","Tickets","TOTAL","Report"]
[null,null,0,52,"",null,null,null,null,null,null,null,null,null,0,0,null,{"$f":"Z156","v":{"$error":"#VALUE!"}},null,{"$f":"SUMPRODUCT((CaSem=S159)*(CACatégorie=\"Banque\")*(CaMode=T162)*CaDébit)","v":{"$error":"#VALUE!"}},{"$f":"SUMPRODUCT((CaSem=S159)*(CACatégorie=\"Banque\")*(CaMode=U162)*CaDébit)","v":{"$error":"#VALUE!"}},{"$f":"SUMPRODUCT((CaSem=S159)*(CaMode=V162)*CaDébit)","v":{"$error":"#VALUE!"}},{"$f":"SUMPRODUCT((CaSem=S159)*(CaMode=W162)*CaDébit)","v":{"$error":"#VALUE!"}},{"$f":"SUMPRODUCT((CaSem=S159)*(CaMode=X162)*CaDébit)","v":{"$error":"#VALUE!"}},{"$f":"SUM(T166:X166)","v":{"$error":"#VALUE!"}},{"$f":"(T160+R166)-Y166","v":{"$error":"#VALUE!"}}]
[null,null,0,52,"",null,null,null,null,null,null,null,null,null,0,0]
[null,null,0,52,"",null,null,null,null,null,null,null,null,null,0,0]
[null,null,0,52,"",null,null,null,null,null,null,null,null,null,0,0,null,"Semaine N°",null,"TOTAL","Taxi","Location","Publicité"]
[null,null,0,52,"",null,null,null,null,null,null,null,null,null,0,0,null,null,null,{"$f":"SUMPRODUCT((CaSem=S169)*(CaSem>0)*CaCrédit)","v":{"$error":"#VALUE!"}},{"$f":"SUMPRODUCT((CaSem=S169)*(CACatégorie=U169)*CaCrédit)","v":{"$error":"#VALUE!"}},{"$f":"SUMPRODUCT((CaSem=S169)*(CACatégorie=V169)*CaCrédit)","v":{"$error":"#VALUE!"}},{"$f":"SUMPRODUCT((CaSem=S169)*(CACatégorie=W169)*CaCrédit)","v":{"$error":"#VALUE!"}}]
[null,null,0,52,"",null,null,null,null,null,null,null,null,null,0,0]
[null,null,0,52,"",null,null,null,null,null,null,null,null,null,0,0,null,null,null,"Espèce","Chèque","CB","Virement","Tickets","vérif"]
[null,null,0,52,"",null,null,null,null,null,null,null,null,null,0,0,null,null,null,{"$f":"SUMPRODUCT((CaSem=S169)*(CaMode=\"Espèce\")*CaCrédit)","v":{"$error":"#VALUE!"}},{"$f":"SUMPRODUCT((CaSem=S169)*(CaMode=U172)*CaCrédit)","v":{"$error":"#VALUE!"}},{"$f":"SUMPRODUCT((CaSem=S169)*(CaMode=V172)*CaCrédit)","v":{"$error":"#VALUE!"}},{"$f":"SUMPRODUCT((CaSem=S169)*(CaMode=W172)*CaCrédit)","v":{"$error":"#VALUE!"}},{"$f":"SUMPRODUCT((CaSem=S169)*(CaMode=X172)*CaCrédit)","v":{"$error":"#VALUE!"}},{"$f":"SUM(T173:X174)","v":{"$error":"#VALUE!"}}]
[null,null,0,52,"",null,null,null,null,null,null,null,null,null,0,0,null,null,null,null,null,null,null,null,{"$f":"SUMPRODUCT((CaSem=S169)*CaRecJour)","v":0}]
[null,null,0,52,"",null,null,null,null,null,null,null,null,null,0,0,null,"FdC",null,"Remise esp","Remise chq","Remise CB","Rem Virmt","Tickets","TOTAL","Report"]
[null,null,0,52,"",null,null,null,null,null,null,null,null,null,0,0,null,{"$f":"Z166","v":{"$error":"#VALUE!"}},null,{"$f":"SUMPRODUCT((CaSem=S169)*(CACatégorie=\"Banque\")*(CaMode=T172)*CaDébit)","v":{"$error":"#VALUE!"}},{"$f":"SUMPRODUCT((CaSem=S169)*(CACatégorie=\"Banque\")*(CaMode=U172)*CaDébit)","v":{"$error":"#VALUE!"}},{"$f":"SUMPRODUCT((CaSem=S169)*(CaMode=V172)*CaDébit)","v":{"$error":"#VALUE!"}},{"$f":"SUMPRODUCT((CaSem=S169)*(CaMode=W172)*CaDébit)","v":{"$error":"#VALUE!"}},{"$f":"SUMPRODUCT((CaSem=S169)*(CaMode=X172)*CaDébit)","v":{"$error":"#VALUE!"}},{"$f":"SUM(T176:X176)","v":{"$error":"#VALUE!"}},{"$f":"(T170+R176)-Y176","v":{"$error":"#VALUE!"}}]
[null,null,0,52,"",null,null,null,null,null,null,null,null,null,0,0]
[null,null,0,52,"",null,null,null,null,null,null,null,null,null,0,0]
[null,null,0,52,"",null,null,null,null,null,null,null,null,null,0,0,null,"Semaine N°",null,"TOTAL","Taxi","Location","Publicité"]
[null,null,0,52,"",null,null,null,null,null,null,null,null,null,0,0,null,null,null,{"$f":"SUMPRODUCT((CaSem=S179)*(CaSem>0)*CaCrédit)","v":{"$error":"#VALUE!"}},{"$f":"SUMPRODUCT((CaSem=S179)*(CACatégorie=U179)*CaCrédit)","v":{"$error":"#VALUE!"}},{"$f":"SUMPRODUCT((CaSem=S179)*(CACatégorie=V179)*CaCrédit)","v":{"$error":"#VALUE!"}},{"$f":"SUMPRODUCT((CaSem=S179)*(CACatégorie=W179)*CaCrédit)","v":{"$error":"#VALUE!"}}]
[null,null,0,52,"",null,null,null,null,null,null,null,null,null,0,0]
[null,null,0,52,"",null,null,null,null,null,null,null,null,null,0,0,null,null,null,"Espèce","Chèque","CB","Virement","Tickets","vérif"]
[null,null,0,52,"",null,null,null,null,null,null,null,null,null,0,0,null,null,null,{"$f":"SUMPRODUCT((CaSem=S179)*(CaMode=\"Espèce\")*CaCrédit)","v":{"$error":"#VALUE!"}},{"$f":"SUMPRODUCT((CaSem=S179)*(CaMode=U182)*CaCrédit)","v":{"$error":"#VALUE!"}},{"$f":"SUMPRODUCT((CaSem=S179)*(CaMode=V182)*CaCrédit)","v":{"$error":"#VALUE!"}},{"$f":"SUMPRODUCT((CaSem=S179)*(CaMode=W182)*CaCrédit)","v":{"$error":"#VALUE!"}},{"$f":"SUMPRODUCT((CaSem=S179)*(CaMode=X182)*CaCrédit)","v":{"$error":"#VALUE!"}},{"$f":"SUM(T183:X184)","v":{"$error":"#VALUE!"}}]
[null,null,0,52,"",null,null,null,null,null,null,null,null,null,0,0,null,null,null,null,null,null,null,null,{"$f":"SUMPRODUCT((CaSem=S179)*CaRecJour)","v":0}]
[null,null,0,52,"",null,null,null,null,null,null,null,null,null,0,0,null,"FdC",null,"Remise esp","Remise chq","Remise CB","Rem Virmt","Tickets","TOTAL","Report"]
[null,null,0,52,"",null,null,null,null,null,null,null,null,null,0,0,null,{"$f":"Z176","v":{"$error":"#VALUE!"}},null,{"$f":"SUMPRODUCT((CaSem=S179)*(CACatégorie=\"Banque\")*(CaMode=T182)*CaDébit)","v":{"$error":"#VALUE!"}},{"$f":"SUMPRODUCT((CaSem=S179)*(CACatégorie=\"Banque\")*(CaMode=U182)*CaDébit)","v":{"$error":"#VALUE!"}},{"$f":"SUMPRODUCT((CaSem=S179)*(CaMode=V182)*CaDébit)","v":{"$error":"#VALUE!"}},{"$f":"SUMPRODUCT((CaSem=S179)*(CaMode=W182)*CaDébit)","v":{"$error":"#VALUE!"}},{"$f":"SUMPRODUCT((CaSem=S179)*(CaMode=X182)*CaDébit)","v":{"$error":"#VALUE!"}},{"$f":"SUM(T186:X186)","v":{"$error":"#VALUE!"}},{"$f":"(T180+R186)-Y186","v":{"$error":"#VALUE!"}}]
[null,null,0,52,"",null,null,null,null,null,null,null,null,null,0,0]
[null,null,0,52,"",null,null,null,null,null,null,null,null,null,0,0]
[null,null,0,52,"",null,null,null,null,null,null,null,null,null,0,0,null,"Semaine N°",null,"TOTAL","Taxi","Location","Publicité"]
[null,null,0,52,"",null,null,null,null,null,null,null,null,null,0,0,null,null,null,{"$f":"SUMPRODUCT((CaSem=S189)*(CaSem>0)*CaCrédit)","v":{"$error":"#VALUE!"}},{"$f":"SUMPRODUCT((CaSem=S189)*(CACatégorie=U189)*CaCrédit)","v":{"$error":"#VALUE!"}},{"$f":"SUMPRODUCT((CaSem=S189)*(CACatégorie=V189)*CaCrédit)","v":{"$error":"#VALUE!"}},{"$f":"SUMPRODUCT((CaSem=S189)*(CACatégorie=W189)*CaCrédit)","v":{"$error":"#VALUE!"}}]
[null,null,0,52,"",null,null,null,null,null,null,null,null,null,0,0]
[null,null,0,52,"",null,null,null,null,null,null,null,null,null,0,0,null,null,null,"Espèce","Chèque","CB","Virement","Tickets","vérif"]
[null,null,0,52,"",null,null,null,null,null,null,null,null,null,0,0,null,null,null,{"$f":"SUMPRODUCT((CaSem=S189)*(CaMode=\"Espèce\")*CaCrédit)","v":{"$error":"#VALUE!"}},{"$f":"SUMPRODUCT((CaSem=S189)*(CaMode=U192)*CaCrédit)","v":{"$error":"#VALUE!"}},{"$f":"SUMPRODUCT((CaSem=S189)*(CaMode=V192)*CaCrédit)","v":{"$error":"#VALUE!"}},{"$f":"SUMPRODUCT((CaSem=S189)*(CaMode=W192)*CaCrédit)","v":{"$error":"#VALUE!"}},{"$f":"SUMPRODUCT((CaSem=S189)*(CaMode=X192)*CaCrédit)","v":{"$error":"#VALUE!"}},{"$f":"SUM(T193:X194)","v":{"$error":"#VALUE!"}}]
[null,null,0,52,"",null,null,null,null,null,null,null,null,null,0,0,null,null,null,null,null,null,null,null,{"$f":"SUMPRODUCT((CaSem=S189)*CaRecJour)","v":0}]
[null,null,0,52,"",null,null,null,null,null,null,null,null,null,0,0,null,"FdC",null,"Remise esp","Remise chq","Remise CB","Rem Virmt","Tickets","TOTAL","Report"]
[null,null,0,52,"",null,null,null,null,null,null,null,null,null,0,0,null,{"$f":"Z186","v":{"$error":"#VALUE!"}},null,{"$f":"SUMPRODUCT((CaSem=S189)*(CACatégorie=\"Banque\")*(CaMode=T192)*CaDébit)","v":{"$error":"#VALUE!"}},{"$f":"SUMPRODUCT((CaSem=S189)*(CACatégorie=\"Banque\")*(CaMode=U192)*CaDébit)","v":{"$error":"#VALUE!"}},{"$f":"SUMPRODUCT((CaSem=S189)*(CaMode=V192)*CaDébit)","v":{"$error":"#VALUE!"}},{"$f":"SUMPRODUCT((CaSem=S189)*(CaMode=W192)*CaDébit)","v":{"$error":"#VALUE!"}},{"$f":"SUMPRODUCT((CaSem=S189)*(CaMode=X192)*CaDébit)","v":{"$error":"#VALUE!"}},{"$f":"SUM(T196:X196)","v":{"$error":"#VALUE!"}},{"$f":"(T190+R196)-Y196","v":{"$error":"#VALUE!"}}]
[null,null,0,52,"",null,null,null,null,null,null,null,null,null,0,0]
[null,null,0,52,"",null,null,null,null,null,null,null,null,null,0,0]
[null,null,0,52,"",null,null,null,null,null,null,null,null,null,0,0,null,"Semaine N°",null,"TOTAL","Taxi","Location","Publicité"]
[null,null,0,52,"",null,null,null,null,null,null,null,null,null,0,0,null,null,null,{"$f":"SUMPRODUCT((CaSem=S199)*(CaSem>0)*CaCrédit)","v":{"$error":"#VALUE!"}},{"$f":"SUMPRODUCT((CaSem=S199)*(CACatégorie=U199)*CaCrédit)","v":{"$error":"#VALUE!"}},{"$f":"SUMPRODUCT((CaSem=S199)*(CACatégorie=V199)*CaCrédit)","v":{"$error":"#VALUE!"}},{"$f":"SUMPRODUCT((CaSem=S199)*(CACatégorie=W199)*CaCrédit)","v":{"$error":"#VALUE!"}}]
[null,null,0,52,{"$f":"IF(CaJour=0,\"\",UPPER(TEXT(C201,\"mmmm\")))","v":""},null,null,null,null,null,null,null,null,null,0,0]
[null,null,{"$f":"DATE(YEAR(B202),MONTH(B202),DAY(B202))","v":0},{"$f":"INT(MOD(INT((B202-2)/7)+0.6,52+5/28))+1","v":52},"",null,null,null,null,null,null,null,null,null,0,0,null,null,null,"Espèce","Chèque","CB","Virement","Tickets","vérif"]
[null,null,0,52,"",null,null,null,null,null,null,null,null,null,0,0,null,null,null,{"$f":"SUMPRODUCT((CaSem=S199)*(CaMode=\"Espèce\")*CaCrédit)","v":{"$error":"#VALUE!"}},{"$f":"SUMPRODUCT((CaSem=S199)*(CaMode=U202)*CaCrédit)","v":{"$error":"#VALUE!"}},{"$f":"SUMPRODUCT((CaSem=S199)*(CaMode=V202)*CaCrédit)","v":{"$error":"#VALUE!"}},{"$f":"SUMPRODUCT((CaSem=S199)*(CaMode=W202)*CaCrédit)","v":{"$error":"#VALUE!"}},{"$f":"SUMPRODUCT((CaSem=S199)*(CaMode=X202)*CaCrédit)","v":{"$error":"#VALUE!"}},{"$f":"SUM(T203:X204)","v":{"$error":"#VALUE!"}}]
[null,null,0,52,"",null,null,null,null,null,null,null,null,null,0,0,null,null,null,null,null,null,null,null,{"$f":"SUMPRODUCT((CaSem=S199)*CaRecJour)","v":0}]
[null,null,0,52,"",null,null,null,null,null,null,null,null,null,0,0,null,"FdC",null,"Remise esp","Remise chq","Remise CB","Rem Virmt","Tickets","TOTAL","Report"]
[null,null,0,52,"",null,null,null,null,null,null,null,null,null,0,0,null,{"$f":"Z196","v":{"$error":"#VALUE!"}},null,{"$f":"SUMPRODUCT((CaSem=S199)*(CACatégorie=\"Banque\")*(CaMode=T202)*CaDébit)","v":{"$error":"#VALUE!"}},{"$f":"SUMPRODUCT((CaSem=S199)*(CACatégorie=\"Banque\")*(CaMode=U202)*CaDébit)","v":{"$error":"#VALUE!"}},{"$f":"SUMPRODUCT((CaSem=S199)*(CaMode=V202)*CaDébit)","v":{"$error":"#VALUE!"}},{"$f":"SUMPRODUCT((CaSem=S199)*(CaMode=W202)*CaDébit)","v":{"$error":"#VALUE!"}},{"$f":"SUMPRODUCT((CaSem=S199)*(CaMode=X202)*CaDébit)","v":{"$error":"#VALUE!"}},{"$f":"SUM(T206:X206)","v":{"$error":"#VALUE!"}},{"$f":"(T200+R206)-Y206","v":{"$error":"#VALUE!"}}]
[null,null,0,52,"",null,null,null,null,null,null,null,null,null,0,0]
[null,null,0,52,"",null,null,null,null,null,null,null,null,null,0,0]
[null,null,0,52,"",null,null,null,null,null,null,null,null,null,0,0,null,"Semaine N°",null,"TOTAL","Taxi","Location","Publicité"]
[null,null,0,52,"",null,null,null,null,null,null,null,null,null,0,0,null,null,null,{"$f":"SUMPRODUCT((CaSem=S209)*(CaSem>0)*CaCrédit)","v":{"$error":"#VALUE!"}},{"$f":"SUMPRODUCT((CaSem=S209)*(CACatégorie=U209)*CaCrédit)","v":{"$error":"#VALUE!"}},{"$f":"SUMPRODUCT((CaSem=S209)*(CACatégorie=V209)*CaCrédit)","v":{"$error":"#VALUE!"}},{"$f":"SUMPRODUCT((CaSem=S209)*(CACatégorie=W209)*CaCrédit)","v":{"$error":"#VALUE!"}}]
[null,null,0,52,"",null,null,null,null,null,null,null,null,null,0,0]
[null,null,0,52,"",null,null,null,null,null,null,null,null,null,0,0,null,null,null,"Espèce","Chèque","CB","Virement","Tickets","vérif"]
[null,null,0,52,"",null,null,null,null,null,null,null,null,null,0,0,null,null,null,{"$f":"SUMPRODUCT((CaSem=S209)*(CaMode=\"Espèce\")*CaCrédit)","v":{"$error":"#VALUE!"}},{"$f":"SUMPRODUCT((CaSem=S209)*(CaMode=U212)*CaCrédit)","v":{"$error":"#VALUE!"}},{"$f":"SUMPRODUCT((CaSem=S209)*(CaMode=V212)*CaCrédit)","v":{"$error":"#VALUE!"}},{"$f":"SUMPRODUCT((CaSem=S209)*(CaMode=W212)*CaCrédit)","v":{"$error":"#VALUE!"}},{"$f":"SUMPRODUCT((CaSem=S209)*(CaMode=X212)*CaCrédit)","v":{"$error":"#VALUE!"}},{"$f":"SUM(T213:X214)","v":{"$error":"#VALUE!"}}]
[null,null,0,52,"",null,null,null,null,null,null,null,null,null,0,0,null,null,null,null,null,null,null,null,{"$f":"SUMPRODUCT((CaSem=S209)*CaRecJour)","v":0}]
[null,null,0,52,"",null,null,null,null,null,null,null,null,null,0,0,null,"FdC",null,"Remise esp","Remise chq","Remise CB","Rem Virmt","Tickets","TOTAL","Report"]
[null,null,0,52,"",null,null,null,null,null,null,null,null,null,0,0,null,{"$f":"Z206","v":{"$error":"#VALUE!"}},null,{"$f":"SUMPRODUCT((CaSem=S209)*(CACatégorie=\"Banque\")*(CaMode=T212)*CaDébit)","v":{"$error":"#VALUE!"}},{"$f":"SUMPRODUCT((CaSem=S209)*(CACatégorie=\"Banque\")*(CaMode=U212)*CaDébit)","v":{"$error":"#VALUE!"}},{"$f":"SUMPRODUCT((CaSem=S209)*(CaMode=V212)*CaDébit)","v":{"$error":"#VALUE!"}},{"$f":"SUMPRODUCT((CaSem=S209)*(CaMode=W212)*CaDébit)","v":{"$error":"#VALUE!"}},{"$f":"SUMPRODUCT((CaSem=S209)*(CaMode=X212)*CaDébit)","v":{"$error":"#VALUE!"}},{"$f":"SUM(T216:X216)","v":{"$error":"#VALUE!"}},{"$f":"(T210+R216)-Y216","v":{"$error":"#VALUE!"}}]
[null,null,0,52,"",null,null,null,null,null,null,null,null,null,0,0]
[null,null,0,52,"",null,null,null,null,null,null,null,null,null,0,0]
[null,null,0,52,"",null,null,null,null,null,null,null,null,null,0,0,null,"Semaine N°",null,"TOTAL","Taxi","Location","Publicité"]
[null,null,0,52,"",null,null,null,null,null,null,null,null,null,0,0,null,null,null,{"$f":"SUMPRODUCT((CaSem=S219)*(CaSem>0)*CaCrédit)","v":{"$error":"#VALUE!"}},{"$f":"SUMPRODUCT((CaSem=S219)*(CACatégorie=U219)*CaCrédit)","v":{"$error":"#VALUE!"}},{"$f":"SUMPRODUCT((CaSem=S219)*(CACatégorie=V219)*CaCrédit)","v":{"$error":"#VALUE!"}},{"$f":"SUMPRODUCT((CaSem=S219)*(CACatégorie=W219)*CaCrédit)","v":{"$error":"#VALUE!"}}]
[null,null,0,52,"",null,null,null,null,null,null,null,null,null,{"$f":"IF(AND((CaJour=B221),(CACatégorie=\"Résultat\")),IF(B220=B221,M220,0)+IF(B219=B221,M219,0)+IF(B218=B221,M218,0)+IF(B217=B221,M217,0)+IF(B216=B221,M216,0)+IF(B215=B221,M215,0)+IF(B214=B221,M214,0)+IF(B213=B221,M213,0)+IF(B212=B221,M212,0)+IF(B211=B221,M211,0)+IF(B210=B221,M210,0)+IF(B209=B221,M209,0)+IF(B208=B221,M208,0)+IF(B207=B221,M207,0)+IF(B206=B221,M206,0)+IF(B205=B221,M205,0)+IF(B204=B221,M204,0)+IF(B203=B221,M203,0)+IF(B202=B221,M202,0)+IF(B201=B221,M201,0),0)","v":0},{"$f":"IF(AND((CaJour=B221),(CACatégorie=\"Résultat\")),IF(B220=B221,N220,0)+IF(B219=B221,N219,0)+IF(B218=B221,N218,0)+IF(B217=B221,N217,0)+IF(B216=B221,N216,0)+IF(B215=B221,N215,0)+IF(B214=B221,N214,0)+IF(B213=B221,N213,0)+IF(B212=B221,N212,0)+IF(B211=B221,N211,0)+IF(B210=B221,N210,0)+IF(B209=B221,N209,0)+IF(B208=B221,N208,0)+IF(B207=B221,N207,0)+IF(B206=B221,N206,0)+IF(B205=B221,N205,0)+IF(B204=B221,N204,0)+IF(B203=B221,N203,0)+IF(B202=B221,N202,0)+IF(B201=B221,N201,0),0)","v":0}]
[null,null,0,52,"",null,null,null,null,null,null,null,null,null,0,0,null,null,null,"Espèce","Chèque","CB","Virement","Tickets","vérif"]
[null,null,0,52,"",null,null,null,null,null,null,null,null,null,0,0,null,null,null,{"$f":"SUMPRODUCT((CaSem=S219)*(CaMode=\"Espèce\")*CaCrédit)","v":{"$error":"#VALUE!"}},{"$f":"SUMPRODUCT((CaSem=S219)*(CaMode=U222)*CaCrédit)","v":{"$error":"#VALUE!"}},{"$f":"SUMPRODUCT((CaSem=S219)*(CaMode=V222)*CaCrédit)","v":{"$error":"#VALUE!"}},{"$f":"SUMPRODUCT((CaSem=S219)*(CaMode=W222)*CaCrédit)","v":{"$error":"#VALUE!"}},{"$f":"SUMPRODUCT((CaSem=S219)*(CaMode=X222)*CaCrédit)","v":{"$error":"#VALUE!"}},{"$f":"SUM(T223:X224)","v":{"$error":"#VALUE!"}}]
[null,null,0,52,"",null,null,null,null,null,null,null,null,null,0,0,null,null,null,null,null,null,null,null,{"$f":"SUMPRODUCT((CaSem=S219)*CaRecJour)","v":0}]
[null,null,0,52,"",null,null,null,null,null,null,null,null,null,0,0,null,"FdC",null,"Remise esp","Remise chq","Remise CB","Rem Virmt","Tickets","TOTAL","Report"]
[null,null,0,52,"",null,null,null,null,null,null,null,null,null,0,0,null,{"$f":"Z216","v":{"$error":"#VALUE!"}},null,{"$f":"SUMPRODUCT((CaSem=S219)*(CACatégorie=\"Banque\")*(CaMode=T222)*CaDébit)","v":{"$error":"#VALUE!"}},{"$f":"SUMPRODUCT((CaSem=S219)*(CACatégorie=\"Banque\")*(CaMode=U222)*CaDébit)","v":{"$error":"#VALUE!"}},{"$f":"SUMPRODUCT((CaSem=S219)*(CaMode=V222)*CaDébit)","v":{"$error":"#VALUE!"}},{"$f":"SUMPRODUCT((CaSem=S219)*(CaMode=W222)*CaDébit)","v":{"$error":"#VALUE!"}},{"$f":"SUMPRODUCT((CaSem=S219)*(CaMode=X222)*CaDébit)","v":{"$error":"#VALUE!"}},{"$f":"SUM(T226:X226)","v":{"$error":"#VALUE!"}},{"$f":"(T220+R226)-Y226","v":{"$error":"#VALUE!"}}]
[null,null,0,52,"",null,null,null,null,null,null,null,null,null,0,0]
[null,null,0,52,"",null,null,null,null,null,null,null,null,null,0,0]
[null,null,0,52,"",null,null,null,null,null,null,null,null,null,0,0,null,"Semaine N°",null,"TOTAL","Taxi","Location","Publicité"]
[null,null,0,52,"",null,null,null,null,null,null,null,null,null,0,0,null,null,null,{"$f":"SUMPRODUCT((CaSem=S229)*(CaSem>0)*CaCrédit)","v":{"$error":"#VALUE!"}},{"$f":"SUMPRODUCT((CaSem=S229)*(CACatégorie=U229)*CaCrédit)","v":{"$error":"#VALUE!"}},{"$f":"SUMPRODUCT((CaSem=S229)*(CACatégorie=V229)*CaCrédit)","v":{"$error":"#VALUE!"}},{"$f":"SUMPRODUCT((CaSem=S229)*(CACatégorie=W229)*CaCrédit)","v":{"$error":"#VALUE!"}}]
[null,null,0,52,"",null,null,null,null,null,null,null,null,null,0,0]
[null,null,0,52,"",null,null,null,null,null,null,null,null,null,0,0,null,null,null,"Espèce","Chèque","CB","Virement","Tickets","vérif"]
[null,null,0,52,"",null,null,null,null,null,null,null,null,null,0,0,null,null,null,{"$f":"SUMPRODUCT((CaSem=S229)*(CaMode=\"Espèce\")*CaCrédit)","v":{"$error":"#VALUE!"}},{"$f":"SUMPRODUCT((CaSem=S229)*(CaMode=U232)*CaCrédit)","v":{"$error":"#VALUE!"}},{"$f":"SUMPRODUCT((CaSem=S229)*(CaMode=V232)*CaCrédit)","v":{"$error":"#VALUE!"}},{"$f":"SUMPRODUCT((CaSem=S229)*(CaMode=W232)*CaCrédit)","v":{"$error":"#VALUE!"}},{"$f":"SUMPRODUCT((CaSem=S229)*(CaMode=X232)*CaCrédit)","v":{"$error":"#VALUE!"}},{"$f":"SUM(T233:X234)","v":{"$error":"#VALUE!"}}]
[null,null,0,52,"",null,null,null,null,null,null,null,null,null,0,0,null,null,null,null,null,null,null,null,{"$f":"SUMPRODUCT((CaSem=S229)*CaRecJour)","v":0}]
[null,null,0,52,"",null,null,null,null,null,null,null,null,null,0,0,null,"FdC",null,"Remise esp","Remise chq","Remise CB","Rem Virmt","Tickets","TOTAL","Report"]
[null,null,0,52,"",null,null,null,null,null,null,null,null,null,0,0,null,{"$f":"Z226","v":{"$error":"#VALUE!"}},null,{"$f":"SUMPRODUCT((CaSem=S229)*(CACatégorie=\"Banque\")*(CaMode=T232)*CaDébit)","v":{"$error":"#VALUE!"}},{"$f":"SUMPRODUCT((CaSem=S229)*(CACatégorie=\"Banque\")*(CaMode=U232)*CaDébit)","v":{"$error":"#VALUE!"}},{"$f":"SUMPRODUCT((CaSem=S229)*(CaMode=V232)*CaDébit)","v":{"$error":"#VALUE!"}},{"$f":"SUMPRODUCT((CaSem=S229)*(CaMode=W232)*CaDébit)","v":{"$error":"#VALUE!"}},{"$f":"SUMPRODUCT((CaSem=S229)*(CaMode=X232)*CaDébit)","v":{"$error":"#VALUE!"}},{"$f":"SUM(T236:X236)","v":{"$error":"#VALUE!"}},{"$f":"(T230+R236)-Y236","v":{"$error":"#VALUE!"}}]
[null,null,0,52,"",null,null,null,null,null,null,null,null,null,0,0]
[null,null,0,52,"",null,null,null,null,null,null,null,null,null,0,0]
[null,null,0,52,"",null,null,null,null,null,null,null,null,null,0,0,null,"Semaine N°",null,"TOTAL","Taxi","Location","Publicité"]
[null,null,0,52,"",null,null,null,null,null,null,null,null,null,0,0,null,null,null,{"$f":"SUMPRODUCT((CaSem=S239)*(CaSem>0)*CaCrédit)","v":{"$error":"#VALUE!"}},{"$f":"SUMPRODUCT((CaSem=S239)*(CACatégorie=U239)*CaCrédit)","v":{"$error":"#VALUE!"}},{"$f":"SUMPRODUCT((CaSem=S239)*(CACatégorie=V239)*CaCrédit)","v":{"$error":"#VALUE!"}},{"$f":"SUMPRODUCT((CaSem=S239)*(CACatégorie=W239)*CaCrédit)","v":{"$error":"#VALUE!"}}]
[null,null,0,52,"",null,null,null,null,null,null,null,null,null,0,0]
[null,null,0,52,"",null,null,null,null,null,null,null,null,null,0,0,null,null,null,"Espèce","Chèque","CB","Virement","Tickets","vérif"]
[null,null,0,52,"",null,null,null,null,null,null,null,null,null,0,0,null,null,null,{"$f":"SUMPRODUCT((CaSem=S239)*(CaMode=\"Espèce\")*CaCrédit)","v":{"$error":"#VALUE!"}},{"$f":"SUMPRODUCT((CaSem=S239)*(CaMode=U242)*CaCrédit)","v":{"$error":"#VALUE!"}},{"$f":"SUMPRODUCT((CaSem=S239)*(CaMode=V242)*CaCrédit)","v":{"$error":"#VALUE!"}},{"$f":"SUMPRODUCT((CaSem=S239)*(CaMode=W242)*CaCrédit)","v":{"$error":"#VALUE!"}},{"$f":"SUMPRODUCT((CaSem=S239)*(CaMode=X242)*CaCrédit)","v":{"$error":"#VALUE!"}},{"$f":"SUM(T243:X244)","v":{"$error":"#VALUE!"}}]
[null,null,0,52,"",null,null,null,null,null,null,null,null,null,0,0,null,null,null,null,null,null,null,null,{"$f":"SUMPRODUCT((CaSem=S239)*CaRecJour)","v":0}]
[null,null,0,52,"",null,null,null,null,null,null,null,null,null,0,0,null,"FdC",null,"Remise esp","Remise chq","Remise CB","Rem Virmt","Tickets","TOTAL","Report"]
[null,null,0,52,"",null,null,null,null,null,null,null,null,null,0,0,null,{"$f":"Z236","v":{"$error":"#VALUE!"}},null,{"$f":"SUMPRODUCT((CaSem=S239)*(CACatégorie=\"Banque\")*(CaMode=T242)*CaDébit)","v":{"$error":"#VALUE!"}},{"$f":"SUMPRODUCT((CaSem=S239)*(CACatégorie=\"Banque\")*(CaMode=U242)*CaDébit)","v":{"$error":"#VALUE!"}},{"$f":"SUMPRODUCT((CaSem=S239)*(CaMode=V242)*CaDébit)","v":{"$error":"#VALUE!"}},{"$f":"SUMPRODUCT((CaSem=S239)*(CaMode=W242)*CaDébit)","v":{"$error":"#VALUE!"}},{"$f":"SUMPRODUCT((CaSem=S239)*(CaMode=X242)*CaDébit)","v":{"$error":"#VALUE!"}},{"$f":"SUM(T246:X246)","v":{"$error":"#VALUE!"}},{"$f":"(T240+R246)-Y246","v":{"$error":"#VALUE!"}}]
[null,null,0,52,"",null,null,null,null,null,null,null,null,null,0,0]
[null,null,0,52,"",null,null,null,null,null,null,null,null,null,0,0]
[null,null,0,52,"",null,null,null,null,null,null,null,null,null,0,0,null,"Semaine N°",null,"TOTAL","Taxi","Location","Publicité"]
[null,null,0,52,"",null,null,null,null,null,null,null,null,null,0,0,null,null,null,{"$f":"SUMPRODUCT((CaSem=S249)*(CaSem>0)*CaCrédit)","v":{"$error":"#VALUE!"}},{"$f":"SUMPRODUCT((CaSem=S249)*(CACatégorie=U249)*CaCrédit)","v":{"$error":"#VALUE!"}},{"$f":"SUMPRODUCT((CaSem=S249)*(CACatégorie=V249)*CaCrédit)","v":{"$error":"#VALUE!"}},{"$f":"SUMPRODUCT((CaSem=S249)*(CACatégorie=W249)*CaCrédit)","v":{"$error":"#VALUE!"}}]
[null,null,0,52,"",null,null,null,null,null,null,null,null,null,0,0]
[null,null,0,52,"",null,null,null,null,null,null,null,null,null,0,0,null,null,null,"Espèce","Chèque","CB","Virement","Tickets","vérif"]
[null,null,0,52,"",null,null,null,null,null,null,null,null,null,0,0,null,null,null,{"$f":"SUMPRODUCT((CaSem=S249)*(CaMode=\"Espèce\")*CaCrédit)","v":{"$error":"#VALUE!"}},{"$f":"SUMPRODUCT((CaSem=S249)*(CaMode=U252)*CaCrédit)","v":{"$error":"#VALUE!"}},{"$f":"SUMPRODUCT((CaSem=S249)*(CaMode=V252)*CaCrédit)","v":{"$error":"#VALUE!"}},{"$f":"SUMPRODUCT((CaSem=S249)*(CaMode=W252)*CaCrédit)","v":{"$error":"#VALUE!"}},{"$f":"SUMPRODUCT((CaSem=S249)*(CaMode=X252)*CaCrédit)","v":{"$error":"#VALUE!"}},{"$f":"SUM(T253:X254)","v":{"$error":"#VALUE!"}}]
[null,null,0,52,"",null,null,null,null,null,null,null,null,null,0,0,null,null,null,null,null,null,null,null,{"$f":"SUMPRODUCT((CaSem=S249)*CaRecJour)","v":0}]
[null,null,0,52,"",null,null,null,null,null,null,null,null,null,0,0,null,"FdC",null,"Remise esp","Remise chq","Remise CB","Rem Virmt","Tickets","TOTAL","Report"]
[null,null,0,52,"",null,null,null,null,null,null,null,null,null,0,0,null,{"$f":"Z246","v":{"$error":"#VALUE!"}},null,{"$f":"SUMPRODUCT((CaSem=S249)*(CACatégorie=\"Banque\")*(CaMode=T252)*CaDébit)","v":{"$error":"#VALUE!"}},{"$f":"SUMPRODUCT((CaSem=S249)*(CACatégorie=\"Banque\")*(CaMode=U252)*CaDébit)","v":{"$error":"#VALUE!"}},{"$f":"SUMPRODUCT((CaSem=S249)*(CaMode=V252)*CaDébit)","v":{"$error":"#VALUE!"}},{"$f":"SUMPRODUCT((CaSem=S249)*(CaMode=W252)*CaDébit)","v":{"$error":"#VALUE!"}},{"$f":"SUMPRODUCT((CaSem=S249)*(CaMode=X252)*CaDébit)","v":{"$error":"#VALUE!"}},{"$f":"SUM(T256:X256)","v":{"$error":"#VALUE!"}},{"$f":"(T250+R256)-Y256","v":{"$error":"#VALUE!"}}]
[null,null,0,52,"",null,null,null,null,null,null,null,null,null,0,0]
[null,null,0,52,"",null,null,null,null,null,null,null,null,null,0,0]
[null,null,0,52,"",null,null,null,null,null,null,null,null,null,0,0,null,"Semaine N°",null,"TOTAL","Taxi","Location","Publicité"]
[null,null,0,52,"",null,null,null,null,null,null,null,null,null,0,0,null,null,null,{"$f":"SUMPRODUCT((CaSem=S259)*(CaSem>0)*CaCrédit)","v":{"$error":"#VALUE!"}},{"$f":"SUMPRODUCT((CaSem=S259)*(CACatégorie=U259)*CaCrédit)","v":{"$error":"#VALUE!"}},{"$f":"SUMPRODUCT((CaSem=S259)*(CACatégorie=V259)*CaCrédit)","v":{"$error":"#VALUE!"}},{"$f":"SUMPRODUCT((CaSem=S259)*(CACatégorie=W259)*CaCrédit)","v":{"$error":"#VALUE!"}}]
[null,null,0,52,"",null,null,null,null,null,null,null,null,null,0,0]
[null,null,0,52,"",null,null,null,null,null,null,null,null,null,0,0,null,null,null,"Espèce","Chèque","CB","Virement","Tickets","vérif"]
[null,null,0,52,"",null,null,null,null,null,null,null,null,null,0,0,null,null,null,{"$f":"SUMPRODUCT((CaSem=S259)*(CaMode=\"Espèce\")*CaCrédit)","v":{"$error":"#VALUE!"}},{"$f":"SUMPRODUCT((CaSem=S259)*(CaMode=U262)*CaCrédit)","v":{"$error":"#VALUE!"}},{"$f":"SUMPRODUCT((CaSem=S259)*(CaMode=V262)*CaCrédit)","v":{"$error":"#VALUE!"}},{"$f":"SUMPRODUCT((CaSem=S259)*(CaMode=W262)*CaCrédit)","v":{"$error":"#VALUE!"}},{"$f":"SUMPRODUCT((CaSem=S259)*(CaMode=X262)*CaCrédit)","v":{"$error":"#VALUE!"}},{"$f":"SUM(T263:X264)","v":{"$error":"#VALUE!"}}]
[null,null,0,52,"",null,null,null,null,null,null,null,null,null,0,0,null,null,null,null,null,null,null,null,{"$f":"SUMPRODUCT((CaSem=S259)*CaRecJour)","v":0}]
[null,null,0,52,{"$f":"IF(CaJour=0,\"\",UPPER(TEXT(C265,\"mmmm\")))","v":""},null,null,null,null,null,null,null,null,null,0,0,null,"FdC",null,"Remise esp","Remise chq","Remise CB","Rem Virmt","Tickets","TOTAL","Report"]
[null,null,{"$f":"DATE(YEAR(B266),MONTH(B266),DAY(B266))","v":0},{"$f":"INT(MOD(INT((B266-2)/7)+0.6,52+5/28))+1","v":52},"",null,null,null,null,null,null,null,null,null,0,0,null,{"$f":"Z256","v":{"$error":"#VALUE!"}},null,{"$f":"SUMPRODUCT((CaSem=S259)*(CACatégorie=\"Banque\")*(CaMode=T262)*CaDébit)","v":{"$error":"#VALUE!"}},{"$f":"SUMPRODUCT((CaSem=S259)*(CACatégorie=\"Banque\")*(CaMode=U262)*CaDébit)","v":{"$error":"#VALUE!"}},{"$f":"SUMPRODUCT((CaSem=S259)*(CaMode=V262)*CaDébit)","v":{"$error":"#VALUE!"}},{"$f":"SUMPRODUCT((CaSem=S259)*(CaMode=W262)*CaDébit)","v":{"$error":"#VALUE!"}},{"$f":"SUMPRODUCT((CaSem=S259)*(CaMode=X262)*CaDébit)","v":{"$error":"#VALUE!"}},{"$f":"SUM(T266:X266)","v":{"$error":"#VALUE!"}},{"$f":"(T260+R266)-Y266","v":{"$error":"#VALUE!"}}]
[null,null,0,52,"",null,null,null,null,null,null,null,null,null,0,0]
[null,null,0,52,"",null,null,null,null,null,null,null,null,null,0,0]
[null,null,0,52,"",null,null,null,null,null,null,null,null,null,0,0,null,"Semaine N°",null,"TOTAL","Taxi","Location","Publicité"]
[null,null,0,52,"",null,null,null,null,null,null,null,null,null,0,0,null,null,null,{"$f":"SUMPRODUCT((CaSem=S269)*(CaSem>0)*CaCrédit)","v":{"$error":"#VALUE!"}},{"$f":"SUMPRODUCT((CaSem=S269)*(CACatégorie=U269)*CaCrédit)","v":{"$error":"#VALUE!"}},{"$f":"SUMPRODUCT((CaSem=S269)*(CACatégorie=V269)*CaCrédit)","v":{"$error":"#VALUE!"}},{"$f":"SUMPRODUCT((CaSem=S269)*(CACatégorie=W269)*CaCrédit)","v":{"$error":"#VALUE!"}}]
[null,null,0,52,"",null,null,null,null,null,null,null,null,null,0,0]
[null,null,0,52,"",null,null,null,null,null,null,null,null,null,0,0,null,null,null,"Espèce","Chèque","CB","Virement","Tickets","vérif"]
[null,null,0,52,"",null,null,null,null,null,null,null,null,null,0,0,null,null,null,{"$f":"SUMPRODUCT((CaSem=S269)*(CaMode=\"Espèce\")*CaCrédit)","v":{"$error":"#VALUE!"}},{"$f":"SUMPRODUCT((CaSem=S269)*(CaMode=U272)*CaCrédit)","v":{"$error":"#VALUE!"}},{"$f":"SUMPRODUCT((CaSem=S269)*(CaMode=V272)*CaCrédit)","v":{"$error":"#VALUE!"}},{"$f":"SUMPRODUCT((CaSem=S269)*(CaMode=W272)*CaCrédit)","v":{"$error":"#VALUE!"}},{"$f":"SUMPRODUCT((CaSem=S269)*(CaMode=X272)*CaCrédit)","v":{"$error":"#VALUE!"}},{"$f":"SUM(T273:X274)","v":{"$error":"#VALUE!"}}]
[null,null,0,52,"",null,null,null,null,null,null,null,null,null,0,0,null,null,null,null,null,null,null,null,{"$f":"SUMPRODUCT((CaSem=S269)*CaRecJour)","v":0}]
[null,null,0,52,"",null,null,null,null,null,null,null,null,null,0,0,null,"FdC",null,"Remise esp","Remise chq","Remise CB","Rem Virmt","Tickets","TOTAL","Report"]
[null,null,0,52,"",null,null,null,null,null,null,null,null,null,0,0,null,{"$f":"Z266","v":{"$error":"#VALUE!"}},null,{"$f":"SUMPRODUCT((CaSem=S269)*(CACatégorie=\"Banque\")*(CaMode=T272)*CaDébit)","v":{"$error":"#VALUE!"}},{"$f":"SUMPRODUCT((CaSem=S269)*(CACatégorie=\"Banque\")*(CaMode=U272)*CaDébit)","v":{"$error":"#VALUE!"}},{"$f":"SUMPRODUCT((CaSem=S269)*(CaMode=V272)*CaDébit)","v":{"$error":"#VALUE!"}},{"$f":"SUMPRODUCT((CaSem=S269)*(CaMode=W272)*CaDébit)","v":{"$error":"#VALUE!"}},{"$f":"SUMPRODUCT((CaSem=S269)*(CaMode=X272)*CaDébit)","v":{"$error":"#VALUE!"}},{"$f":"SUM(T276:X276)","v":{"$error":"#VALUE!"}},{"$f":"(T270+R276)-Y276","v":{"$error":"#VALUE!"}}]
[null,null,0,52,"",null,null,null,null,null,null,null,null,null,0,0]
[null,null,0,52,"",null,null,null,null,null,null,null,null,null,0,0]
[null,null,0,52,"",null,null,null,null,null,null,null,null,null,0,0,null,"Semaine N°",null,"TOTAL","Taxi","Location","Publicité"]
[null,null,0,52,"",null,null,null,null,null,null,null,null,null,0,0,null,null,null,{"$f":"SUMPRODUCT((CaSem=S279)*(CaSem>0)*CaCrédit)","v":{"$error":"#VALUE!"}},{"$f":"SUMPRODUCT((CaSem=S279)*(CACatégorie=U279)*CaCrédit)","v":{"$error":"#VALUE!"}},{"$f":"SUMPRODUCT((CaSem=S279)*(CACatégorie=V279)*CaCrédit)","v":{"$error":"#VALUE!"}},{"$f":"SUMPRODUCT((CaSem=S279)*(CACatégorie=W279)*CaCrédit)","v":{"$error":"#VALUE!"}}]
[null,null,0,52,"",null,null,null,null,null,null,null,null,null,0,0]
[null,null,0,52,"",null,null,null,null,null,null,null,null,null,0,0,null,null,null,"Espèce","Chèque","CB","Virement","Tickets","vérif"]
[null,null,0,52,"",null,null,null,null,null,null,null,null,null,0,0,null,null,null,{"$f":"SUMPRODUCT((CaSem=S279)*(CaMode=\"Espèce\")*CaCrédit)","v":{"$error":"#VALUE!"}},{"$f":"SUMPRODUCT((CaSem=S279)*(CaMode=U282)*CaCrédit)","v":{"$error":"#VALUE!"}},{"$f":"SUMPRODUCT((CaSem=S279)*(CaMode=V282)*CaCrédit)","v":{"$error":"#VALUE!"}},{"$f":"SUMPRODUCT((CaSem=S279)*(CaMode=W282)*CaCrédit)","v":{"$error":"#VALUE!"}},{"$f":"SUMPRODUCT((CaSem=S279)*(CaMode=X282)*CaCrédit)","v":{"$error":"#VALUE!"}},{"$f":"SUM(T283:X284)","v":{"$error":"#VALUE!"}}]
[null,null,0,52,"",null,null,null,null,null,null,null,null,null,0,0,null,null,null,null,null,null,null,null,{"$f":"SUMPRODUCT((CaSem=S279)*CaRecJour)","v":0}]
[null,null,0,52,"",null,null,null,null,null,null,null,null,null,{"$f":"IF(AND((CaJour=B285),(CACatégorie=\"Résultat\")),IF(B284=B285,M284,0)+IF(B283=B285,M283,0)+IF(B282=B285,M282,0)+IF(B281=B285,M281,0)+IF(B280=B285,M280,0)+IF(B279=B285,M279,0)+IF(B278=B285,M278,0)+IF(B277=B285,M277,0)+IF(B276=B285,M276,0)+IF(B275=B285,M275,0)+IF(B274=B285,M274,0)+IF(B273=B285,M273,0)+IF(B272=B285,M272,0)+IF(B271=B285,M271,0)+IF(B270=B285,M270,0)+IF(B269=B285,M269,0)+IF(B268=B285,M268,0)+IF(B267=B285,M267,0)+IF(B266=B285,M266,0)+IF(B265=B285,M265,0),0)","v":0},{"$f":"IF(AND((CaJour=B285),(CACatégorie=\"Résultat\")),IF(B284=B285,N284,0)+IF(B283=B285,N283,0)+IF(B282=B285,N282,0)+IF(B281=B285,N281,0)+IF(B280=B285,N280,0)+IF(B279=B285,N279,0)+IF(B278=B285,N278,0)+IF(B277=B285,N277,0)+IF(B276=B285,N276,0)+IF(B275=B285,N275,0)+IF(B274=B285,N274,0)+IF(B273=B285,N273,0)+IF(B272=B285,N272,0)+IF(B271=B285,N271,0)+IF(B270=B285,N270,0)+IF(B269=B285,N269,0)+IF(B268=B285,N268,0)+IF(B267=B285,N267,0)+IF(B266=B285,N266,0)+IF(B265=B285,N265,0),0)","v":0},null,"FdC",null,"Remise esp","Remise chq","Remise CB","Rem Virmt","Tickets","TOTAL","Report"]
[null,null,0,52,"",null,null,null,null,null,null,null,null,null,0,0,null,{"$f":"Z276","v":{"$error":"#VALUE!"}},null,{"$f":"SUMPRODUCT((CaSem=S279)*(CACatégorie=\"Banque\")*(CaMode=T282)*CaDébit)","v":{"$error":"#VALUE!"}},{"$f":"SUMPRODUCT((CaSem=S279)*(CACatégorie=\"Banque\")*(CaMode=U282)*CaDébit)","v":{"$error":"#VALUE!"}},{"$f":"SUMPRODUCT((CaSem=S279)*(CaMode=V282)*CaDébit)","v":{"$error":"#VALUE!"}},{"$f":"SUMPRODUCT((CaSem=S279)*(CaMode=W282)*CaDébit)","v":{"$error":"#VALUE!"}},{"$f":"SUMPRODUCT((CaSem=S279)*(CaMode=X282)*CaDébit)","v":{"$error":"#VALUE!"}},{"$f":"SUM(T286:X286)","v":{"$error":"#VALUE!"}},{"$f":"(T280+R286)-Y286","v":{"$error":"#VALUE!"}}]
[null,null,0,52,"",null,null,null,null,null,null,null,null,null,0,0]
[null,null,0,52,"",null,null,null,null,null,null,null,null,null,0,0]
[null,null,0,52,"",null,null,null,null,null,null,null,null,null,0,0,null,"Semaine N°",null,"TOTAL","Taxi","Location","Publicité"]
[null,null,0,52,"",null,null,null,null,null,null,null,null,null,0,0,null,null,null,{"$f":"SUMPRODUCT((CaSem=S289)*(CaSem>0)*CaCrédit)","v":{"$error":"#VALUE!"}},{"$f":"SUMPRODUCT((CaSem=S289)*(CACatégorie=U289)*CaCrédit)","v":{"$error":"#VALUE!"}},{"$f":"SUMPRODUCT((CaSem=S289)*(CACatégorie=V289)*CaCrédit)","v":{"$error":"#VALUE!"}},{"$f":"SUMPRODUCT((CaSem=S289)*(CACatégorie=W289)*CaCrédit)","v":{"$error":"#VALUE!"}}]
[null,null,0,52,"",null,null,null,null,null,null,null,null,null,0,0]
[null,null,0,52,"",null,null,null,null,null,null,null,null,null,0,0,null,null,null,"Espèce","Chèque","CB","Virement","Tickets","vérif"]
[null,null,0,52,"",null,null,null,null,null,null,null,null,null,0,0,null,null,null,{"$f":"SUMPRODUCT((CaSem=S289)*(CaMode=\"Espèce\")*CaCrédit)","v":{"$error":"#VALUE!"}},{"$f":"SUMPRODUCT((CaSem=S289)*(CaMode=U292)*CaCrédit)","v":{"$error":"#VALUE!"}},{"$f":"SUMPRODUCT((CaSem=S289)*(CaMode=V292)*CaCrédit)","v":{"$error":"#VALUE!"}},{"$f":"SUMPRODUCT((CaSem=S289)*(CaMode=W292)*CaCrédit)","v":{"$error":"#VALUE!"}},{"$f":"SUMPRODUCT((CaSem=S289)*(CaMode=X292)*CaCrédit)","v":{"$error":"#VALUE!"}},{"$f":"SUM(T293:X294)","v":{"$error":"#VALUE!"}}]
[null,null,0,52,"",null,null,null,null,null,null,null,null,null,0,0,null,null,null,null,null,null,null,null,{"$f":"SUMPRODUCT((CaSem=S289)*CaRecJour)","v":0}]
[null,null,0,52,"",null,null,null,null,null,null,null,null,null,0,0,null,"FdC",null,"Remise esp","Remise chq","Remise CB","Rem Virmt","Tickets","TOTAL","Report"]
[null,null,0,52,"",null,null,null,null,null,null,null,null,null,0,0,null,{"$f":"Z286","v":{"$error":"#VALUE!"}},null,{"$f":"SUMPRODUCT((CaSem=S289)*(CACatégorie=\"Banque\")*(CaMode=T292)*CaDébit)","v":{"$error":"#VALUE!"}},{"$f":"SUMPRODUCT((CaSem=S289)*(CACatégorie=\"Banque\")*(CaMode=U292)*CaDébit)","v":{"$error":"#VALUE!"}},{"$f":"SUMPRODUCT((CaSem=S289)*(CaMode=V292)*CaDébit)","v":{"$error":"#VALUE!"}},{"$f":"SUMPRODUCT((CaSem=S289)*(CaMode=W292)*CaDébit)","v":{"$error":"#VALUE!"}},{"$f":"SUMPRODUCT((CaSem=S289)*(CaMode=X292)*CaDébit)","v":{"$error":"#VALUE!"}},{"$f":"SUM(T296:X296)","v":{"$error":"#VALUE!"}},{"$f":"(T290+R296)-Y296","v":{"$error":"#VALUE!"}}]
[null,null,0,52,"",null,null,null,null,null,null,null,null,null,0,0]
[null,null,0,52,"",null,null,null,null,null,null,null,null,null,0,0]
[null,null,0,52,"",null,null,null,null,null,null,null,null,null,0,0,null,"Semaine N°",null,"TOTAL","Taxi","Location","Publicité"]
[null,null,0,52,"",null,null,null,null,null,null,null,null,null,0,0,null,null,null,{"$f":"SUMPRODUCT((CaSem=S299)*(CaSem>0)*CaCrédit)","v":{"$error":"#VALUE!"}},{"$f":"SUMPRODUCT((CaSem=S299)*(CACatégorie=U299)*CaCrédit)","v":{"$error":"#VALUE!"}},{"$f":"SUMPRODUCT((CaSem=S299)*(CACatégorie=V299)*CaCrédit)","v":{"$error":"#VALUE!"}},{"$f":"SUMPRODUCT((CaSem=S299)*(CACatégorie=W299)*CaCrédit)","v":{"$error":"#VALUE!"}}]
[null,null,0,52,"",null,null,null,null,null,null,null,null,null,0,0]
[null,null,0,52,"",null,null,null,null,null,null,null,null,null,0,0,null,null,null,"Espèce","Chèque","CB","Virement","Tickets","vérif"]
[null,null,0,52,"",null,null,null,null,null,null,null,null,null,0,0,null,null,null,{"$f":"SUMPRODUCT((CaSem=S299)*(CaMode=\"Espèce\")*CaCrédit)","v":{"$error":"#VALUE!"}},{"$f":"SUMPRODUCT((CaSem=S299)*(CaMode=U302)*CaCrédit)","v":{"$error":"#VALUE!"}},{"$f":"SUMPRODUCT((CaSem=S299)*(CaMode=V302)*CaCrédit)","v":{"$error":"#VALUE!"}},{"$f":"SUMPRODUCT((CaSem=S299)*(CaMode=W302)*CaCrédit)","v":{"$error":"#VALUE!"}},{"$f":"SUMPRODUCT((CaSem=S299)*(CaMode=X302)*CaCrédit)","v":{"$error":"#VALUE!"}},{"$f":"SUM(T303:X304)","v":{"$error":"#VALUE!"}}]
[null,null,0,52,"",null,null,null,null,null,null,null,null,null,0,0,null,null,null,null,null,null,null,null,{"$f":"SUMPRODUCT((CaSem=S299)*CaRecJour)","v":0}]
[null,null,0,52,"",null,null,null,null,null,null,null,null,null,0,0,null,"FdC",null,"Remise esp","Remise chq","Remise CB","Rem Virmt","Tickets","TOTAL","Report"]
[null,null,0,52,"",null,null,null,null,null,null,null,null,null,0,0,null,{"$f":"Z296","v":{"$error":"#VALUE!"}},null,{"$f":"SUMPRODUCT((CaSem=S299)*(CACatégorie=\"Banque\")*(CaMode=T302)*CaDébit)","v":{"$error":"#VALUE!"}},{"$f":"SUMPRODUCT((CaSem=S299)*(CACatégorie=\"Banque\")*(CaMode=U302)*CaDébit)","v":{"$error":"#VALUE!"}},{"$f":"SUMPRODUCT((CaSem=S299)*(CaMode=V302)*CaDébit)","v":{"$error":"#VALUE!"}},{"$f":"SUMPRODUCT((CaSem=S299)*(CaMode=W302)*CaDébit)","v":{"$error":"#VALUE!"}},{"$f":"SUMPRODUCT((CaSem=S299)*(CaMode=X302)*CaDébit)","v":{"$error":"#VALUE!"}},{"$f":"SUM(T306:X306)","v":{"$error":"#VALUE!"}},{"$f":"(T300+R306)-Y306","v":{"$error":"#VALUE!"}}]
[null,null,0,52,"",null,null,null,null,null,null,null,null,null,0,0]
[null,null,0,52,"",null,null,null,null,null,null,null,null,null,0,0]
[null,null,0,52,"",null,null,null,null,null,null,null,null,null,0,0,null,"Semaine N°",null,"TOTAL","Taxi","Location","Publicité"]
[null,null,0,52,"",null,null,null,null,null,null,null,null,null,0,0,null,null,null,{"$f":"SUMPRODUCT((CaSem=S309)*(CaSem>0)*CaCrédit)","v":{"$error":"#VALUE!"}},{"$f":"SUMPRODUCT((CaSem=S309)*(CACatégorie=U309)*CaCrédit)","v":{"$error":"#VALUE!"}},{"$f":"SUMPRODUCT((CaSem=S309)*(CACatégorie=V309)*CaCrédit)","v":{"$error":"#VALUE!"}},{"$f":"SUMPRODUCT((CaSem=S309)*(CACatégorie=W309)*CaCrédit)","v":{"$error":"#VALUE!"}}]
[null,null,0,52,"",null,null,null,null,null,null,null,null,null,0,0]
[null,null,0,52,"",null,null,null,null,null,null,null,null,null,0,0,null,null,null,"Espèce","Chèque","CB","Virement","Tickets","vérif"]
[null,null,0,52,"",null,null,null,null,null,null,null,null,null,0,0,null,null,null,{"$f":"SUMPRODUCT((CaSem=S309)*(CaMode=\"Espèce\")*CaCrédit)","v":{"$error":"#VALUE!"}},{"$f":"SUMPRODUCT((CaSem=S309)*(CaMode=U312)*CaCrédit)","v":{"$error":"#VALUE!"}},{"$f":"SUMPRODUCT((CaSem=S309)*(CaMode=V312)*CaCrédit)","v":{"$error":"#VALUE!"}},{"$f":"SUMPRODUCT((CaSem=S309)*(CaMode=W312)*CaCrédit)","v":{"$error":"#VALUE!"}},{"$f":"SUMPRODUCT((CaSem=S309)*(CaMode=X312)*CaCrédit)","v":{"$error":"#VALUE!"}},{"$f":"SUM(T313:X314)","v":{"$error":"#VALUE!"}}]
[null,null,0,52,"",null,null,null,null,null,null,null,null,null,0,0,null,null,null,null,null,null,null,null,{"$f":"SUMPRODUCT((CaSem=S309)*CaRecJour)","v":0}]
[null,null,0,52,"",null,null,null,null,null,null,null,null,null,0,0,null,"FdC",null,"Remise esp","Remise chq","Remise CB","Rem Virmt","Tickets","TOTAL","Report"]
[null,null,0,52,"",null,null,null,null,null,null,null,null,null,0,0,null,{"$f":"Z306","v":{"$error":"#VALUE!"}},null,{"$f":"SUMPRODUCT((CaSem=S309)*(CACatégorie=\"Banque\")*(CaMode=T312)*CaDébit)","v":{"$error":"#VALUE!"}},{"$f":"SUMPRODUCT((CaSem=S309)*(CACatégorie=\"Banque\")*(CaMode=U312)*CaDébit)","v":{"$error":"#VALUE!"}},{"$f":"SUMPRODUCT((CaSem=S309)*(CaMode=V312)*CaDébit)","v":{"$error":"#VALUE!"}},{"$f":"SUMPRODUCT((CaSem=S309)*(CaMode=W312)*CaDébit)","v":{"$error":"#VALUE!"}},{"$f":"SUMPRODUCT((CaSem=S309)*(CaMode=X312)*CaDébit)","v":{"$error":"#VALUE!"}},{"$f":"SUM(T316:X316)","v":{"$error":"#VALUE!"}},{"$f":"(T310+R316)-Y316","v":{"$error":"#VALUE!"}}]
[null,null,0,52,"",null,null,null,null,null,null,null,null,null,0,0]
[null,null,0,52,"",null,null,null,null,null,null,null,null,null,0,0]
[null,null,0,52,"",null,null,null,null,null,null,null,null,null,0,0,null,"Semaine N°",null,"TOTAL","Taxi","Location","Publicité"]
[null,null,0,52,"",null,null,null,null,null,null,null,null,null,0,0,null,null,null,{"$f":"SUMPRODUCT((CaSem=S319)*(CaSem>0)*CaCrédit)","v":{"$error":"#VALUE!"}},{"$f":"SUMPRODUCT((CaSem=S319)*(CACatégorie=U319)*CaCrédit)","v":{"$error":"#VALUE!"}},{"$f":"SUMPRODUCT((CaSem=S319)*(CACatégorie=V319)*CaCrédit)","v":{"$error":"#VALUE!"}},{"$f":"SUMPRODUCT((CaSem=S319)*(CACatégorie=W319)*CaCrédit)","v":{"$error":"#VALUE!"}}]
[null,null,0,52,"",null,null,null,null,null,null,null,null,null,0,0]
[null,null,0,52,"",null,null,null,null,null,null,null,null,null,0,0,null,null,null,"Espèce","Chèque","CB","Virement","Tickets","vérif"]
[null,null,0,52,"",null,null,null,null,null,null,null,null,null,0,0,null,null,null,{"$f":"SUMPRODUCT((CaSem=S319)*(CaMode=\"Espèce\")*CaCrédit)","v":{"$error":"#VALUE!"}},{"$f":"SUMPRODUCT((CaSem=S319)*(CaMode=U322)*CaCrédit)","v":{"$error":"#VALUE!"}},{"$f":"SUMPRODUCT((CaSem=S319)*(CaMode=V322)*CaCrédit)","v":{"$error":"#VALUE!"}},{"$f":"SUMPRODUCT((CaSem=S319)*(CaMode=W322)*CaCrédit)","v":{"$error":"#VALUE!"}},{"$f":"SUMPRODUCT((CaSem=S319)*(CaMode=X322)*CaCrédit)","v":{"$error":"#VALUE!"}},{"$f":"SUM(T323:X324)","v":{"$error":"#VALUE!"}}]
[null,null,0,52,"",null,null,null,null,null,null,null,null,null,0,0,null,null,null,null,null,null,null,null,{"$f":"SUMPRODUCT((CaSem=S319)*CaRecJour)","v":0}]
[null,null,0,52,"",null,null,null,null,null,null,null,null,null,0,0,null,"FdC",null,"Remise esp","Remise chq","Remise CB","Rem Virmt","Tickets","TOTAL","Report"]
[null,null,0,52,"",null,null,null,null,null,null,null,null,null,0,0,null,{"$f":"Z316","v":{"$error":"#VALUE!"}},null,{"$f":"SUMPRODUCT((CaSem=S319)*(CACatégorie=\"Banque\")*(CaMode=T322)*CaDébit)","v":{"$error":"#VALUE!"}},{"$f":"SUMPRODUCT((CaSem=S319)*(CACatégorie=\"Banque\")*(CaMode=U322)*CaDébit)","v":{"$error":"#VALUE!"}},{"$f":"SUMPRODUCT((CaSem=S319)*(CaMode=V322)*CaDébit)","v":{"$error":"#VALUE!"}},{"$f":"SUMPRODUCT((CaSem=S319)*(CaMode=W322)*CaDébit)","v":{"$error":"#VALUE!"}},{"$f":"SUMPRODUCT((CaSem=S319)*(CaMode=X322)*CaDébit)","v":{"$error":"#VALUE!"}},{"$f":"SUM(T326:X326)","v":{"$error":"#VALUE!"}},{"$f":"(T320+R326)-Y326","v":{"$error":"#VALUE!"}}]
[null,null,0,52,"",null,null,null,null,null,null,null,null,null,0,0]
[null,null,0,52,"",null,null,null,null,null,null,null,null,null,0,0]
[null,null,0,52,{"$f":"IF(CaJour=0,\"\",UPPER(TEXT(C329,\"mmmm\")))","v":""},null,null,null,null,null,null,null,null,null,0,0,null,"Semaine N°",null,"TOTAL","Taxi","Location","Publicité"]
[null,null,{"$f":"DATE(YEAR(B330),MONTH(B330),DAY(B330))","v":0},{"$f":"INT(MOD(INT((B330-2)/7)+0.6,52+5/28))+1","v":52},"",null,null,null,null,null,null,null,null,null,0,0,null,null,null,{"$f":"SUMPRODUCT((CaSem=S329)*(CaSem>0)*CaCrédit)","v":{"$error":"#VALUE!"}},{"$f":"SUMPRODUCT((CaSem=S329)*(CACatégorie=U329)*CaCrédit)","v":{"$error":"#VALUE!"}},{"$f":"SUMPRODUCT((CaSem=S329)*(CACatégorie=V329)*CaCrédit)","v":{"$error":"#VALUE!"}},{"$f":"SUMPRODUCT((CaSem=S329)*(CACatégorie=W329)*CaCrédit)","v":{"$error":"#VALUE!"}}]
[null,null,0,52,"",null,null,null,null,null,null,null,null,null,0,0]
[null,null,0,52,"",null,null,null,null,null,null,null,null,null,0,0,null,null,null,"Espèce","Chèque","CB","Virement","Tickets","vérif"]
[null,null,0,52,"",null,null,null,null,null,null,null,null,null,0,0,null,null,null,{"$f":"SUMPRODUCT((CaSem=S329)*(CaMode=\"Espèce\")*CaCrédit)","v":{"$error":"#VALUE!"}},{"$f":"SUMPRODUCT((CaSem=S329)*(CaMode=U332)*CaCrédit)","v":{"$error":"#VALUE!"}},{"$f":"SUMPRODUCT((CaSem=S329)*(CaMode=V332)*CaCrédit)","v":{"$error":"#VALUE!"}},{"$f":"SUMPRODUCT((CaSem=S329)*(CaMode=W332)*CaCrédit)","v":{"$error":"#VALUE!"}},{"$f":"SUMPRODUCT((CaSem=S329)*(CaMode=X332)*CaCrédit)","v":{"$error":"#VALUE!"}},{"$f":"SUM(T333:X334)","v":{"$error":"#VALUE!"}}]
[null,null,0,52,"",null,null,null,null,null,null,null,null,null,0,0,null,null,null,null,null,null,null,null,{"$f":"SUMPRODUCT((CaSem=S329)*CaRecJour)","v":0}]
[null,null,0,52,"",null,null,null,null,null,null,null,null,null,0,0,null,"FdC",null,"Remise esp","Remise chq","Remise CB","Rem Virmt","Tickets","TOTAL","Report"]
[null,null,0,52,"",null,null,null,null,null,null,null,null,null,0,0,null,{"$f":"Z326","v":{"$error":"#VALUE!"}},null,{"$f":"SUMPRODUCT((CaSem=S329)*(CACatégorie=\"Banque\")*(CaMode=T332)*CaDébit)","v":{"$error":"#VALUE!"}},{"$f":"SUMPRODUCT((CaSem=S329)*(CACatégorie=\"Banque\")*(CaMode=U332)*CaDébit)","v":{"$error":"#VALUE!"}},{"$f":"SUMPRODUCT((CaSem=S329)*(CaMode=V332)*CaDébit)","v":{"$error":"#VALUE!"}},{"$f":"SUMPRODUCT((CaSem=S329)*(CaMode=W332)*CaDébit)","v":{"$error":"#VALUE!"}},{"$f":"SUMPRODUCT((CaSem=S329)*(CaMode=X332)*CaDébit)","v":{"$error":"#VALUE!"}},{"$f":"SUM(T336:X336)","v":{"$error":"#VALUE!"}},{"$f":"(T330+R336)-Y336","v":{"$error":"#VALUE!"}}]
[null,null,0,52,"",null,null,null,null,null,null,null,null,null,0,0]
[null,null,0,52,"",null,null,null,null,null,null,null,null,null,0,0]
[null,null,0,52,"",null,null,null,null,null,null,null,null,null,0,0,null,"Semaine N°",null,"TOTAL","Taxi","Location","Publicité"]
[null,null,0,52,"",null,null,null,null,null,null,null,null,null,0,0,null,null,null,{"$f":"SUMPRODUCT((CaSem=S339)*(CaSem>0)*CaCrédit)","v":{"$error":"#VALUE!"}},{"$f":"SUMPRODUCT((CaSem=S339)*(CACatégorie=U339)*CaCrédit)","v":{"$error":"#VALUE!"}},{"$f":"SUMPRODUCT((CaSem=S339)*(CACatégorie=V339)*CaCrédit)","v":{"$error":"#VALUE!"}},{"$f":"SUMPRODUCT((CaSem=S339)*(CACatégorie=W339)*CaCrédit)","v":{"$error":"#VALUE!"}}]
[null,null,0,52,"",null,null,null,null,null,null,null,null,null,0,0]
[null,null,0,52,"",null,null,null,null,null,null,null,null,null,0,0,null,null,null,"Espèce","Chèque","CB","Virement","Tickets","vérif"]
[null,null,0,52,"",null,null,null,null,null,null,null,null,null,0,0,null,null,null,{"$f":"SUMPRODUCT((CaSem=S339)*(CaMode=\"Espèce\")*CaCrédit)","v":{"$error":"#VALUE!"}},{"$f":"SUMPRODUCT((CaSem=S339)*(CaMode=U342)*CaCrédit)","v":{"$error":"#VALUE!"}},{"$f":"SUMPRODUCT((CaSem=S339)*(CaMode=V342)*CaCrédit)","v":{"$error":"#VALUE!"}},{"$f":"SUMPRODUCT((CaSem=S339)*(CaMode=W342)*CaCrédit)","v":{"$error":"#VALUE!"}},{"$f":"SUMPRODUCT((CaSem=S339)*(CaMode=X342)*CaCrédit)","v":{"$error":"#VALUE!"}},{"$f":"SUM(T343:X344)","v":{"$error":"#VALUE!"}}]
[null,null,0,52,"",null,null,null,null,null,null,null,null,null,0,0,null,null,null,null,null,null,null,null,{"$f":"SUMPRODUCT((CaSem=S339)*CaRecJour)","v":0}]
[null,null,0,52,"",null,null,null,null,null,null,null,null,null,0,0,null,"FdC",null,"Remise esp","Remise chq","Remise CB","Rem Virmt","Tickets","TOTAL","Report"]
[null,null,0,52,"",null,null,null,null,null,null,null,null,null,0,0,null,{"$f":"Z336","v":{"$error":"#VALUE!"}},null,{"$f":"SUMPRODUCT((CaSem=S339)*(CACatégorie=\"Banque\")*(CaMode=T342)*CaDébit)","v":{"$error":"#VALUE!"}},{"$f":"SUMPRODUCT((CaSem=S339)*(CACatégorie=\"Banque\")*(CaMode=U342)*CaDébit)","v":{"$error":"#VALUE!"}},{"$f":"SUMPRODUCT((CaSem=S339)*(CaMode=V342)*CaDébit)","v":{"$error":"#VALUE!"}},{"$f":"SUMPRODUCT((CaSem=S339)*(CaMode=W342)*CaDébit)","v":{"$error":"#VALUE!"}},{"$f":"SUMPRODUCT((CaSem=S339)*(CaMode=X342)*CaDébit)","v":{"$error":"#VALUE!"}},{"$f":"SUM(T346:X346)","v":{"$error":"#VALUE!"}},{"$f":"(T340+R346)-Y346","v":{"$error":"#VALUE!"}}]
[null,null,0,52,"",null,null,null,null,null,null,null,null,null,0,0]
[null,null,0,52,"",null,null,null,null,null,null,null,null,null,0,0]
[null,null,0,52,"",null,null,null,null,null,null,null,null,null,{"$f":"IF(AND((CaJour=B349),(CACatégorie=\"Résultat\")),IF(B348=B349,M348,0)+IF(B347=B349,M347,0)+IF(B346=B349,M346,0)+IF(B345=B349,M345,0)+IF(B344=B349,M344,0)+IF(B343=B349,M343,0)+IF(B342=B349,M342,0)+IF(B341=B349,M341,0)+IF(B340=B349,M340,0)+IF(B339=B349,M339,0)+IF(B338=B349,M338,0)+IF(B337=B349,M337,0)+IF(B336=B349,M336,0)+IF(B335=B349,M335,0)+IF(B334=B349,M334,0)+IF(B333=B349,M333,0)+IF(B332=B349,M332,0)+IF(B331=B349,M331,0)+IF(B330=B349,M330,0)+IF(B329=B349,M329,0),0)","v":0},{"$f":"IF(AND((CaJour=B349),(CACatégorie=\"Résultat\")),IF(B348=B349,N348,0)+IF(B347=B349,N347,0)+IF(B346=B349,N346,0)+IF(B345=B349,N345,0)+IF(B344=B349,N344,0)+IF(B343=B349,N343,0)+IF(B342=B349,N342,0)+IF(B341=B349,N341,0)+IF(B340=B349,N340,0)+IF(B339=B349,N339,0)+IF(B338=B349,N338,0)+IF(B337=B349,N337,0)+IF(B336=B349,N336,0)+IF(B335=B349,N335,0)+IF(B334=B349,N334,0)+IF(B333=B349,N333,0)+IF(B332=B349,N332,0)+IF(B331=B349,N331,0)+IF(B330=B349,N330,0)+IF(B329=B349,N329,0),0)","v":0},null,"Semaine N°",null,"TOTAL","Taxi","Location","Publicité"]
[null,null,0,52,"",null,null,null,null,null,null,null,null,null,0,0,null,null,null,{"$f":"SUMPRODUCT((CaSem=S349)*(CaSem>0)*CaCrédit)","v":{"$error":"#VALUE!"}},{"$f":"SUMPRODUCT((CaSem=S349)*(CACatégorie=U349)*CaCrédit)","v":{"$error":"#VALUE!"}},{"$f":"SUMPRODUCT((CaSem=S349)*(CACatégorie=V349)*CaCrédit)","v":{"$error":"#VALUE!"}},{"$f":"SUMPRODUCT((CaSem=S349)*(CACatégorie=W349)*CaCrédit)","v":{"$error":"#VALUE!"}}]
[null,null,0,52,"",null,null,null,null,null,null,null,null,null,0,0]
[null,null,0,52,"",null,null,null,null,null,null,null,null,null,0,0,null,null,null,"Espèce","Chèque","CB","Virement","Tickets","vérif"]
[null,null,0,52,"",null,null,null,null,null,null,null,null,null,0,0,null,null,null,{"$f":"SUMPRODUCT((CaSem=S349)*(CaMode=\"Espèce\")*CaCrédit)","v":{"$error":"#VALUE!"}},{"$f":"SUMPRODUCT((CaSem=S349)*(CaMode=U352)*CaCrédit)","v":{"$error":"#VALUE!"}},{"$f":"SUMPRODUCT((CaSem=S349)*(CaMode=V352)*CaCrédit)","v":{"$error":"#VALUE!"}},{"$f":"SUMPRODUCT((CaSem=S349)*(CaMode=W352)*CaCrédit)","v":{"$error":"#VALUE!"}},{"$f":"SUMPRODUCT((CaSem=S349)*(CaMode=X352)*CaCrédit)","v":{"$error":"#VALUE!"}},{"$f":"SUM(T353:X354)","v":{"$error":"#VALUE!"}}]
[null,null,0,52,"",null,null,null,null,null,null,null,null,null,0,0,null,null,null,null,null,null,null,null,{"$f":"SUMPRODUCT((CaSem=S349)*CaRecJour)","v":0}]
[null,null,0,52,"",null,null,null,null,null,null,null,null,null,0,0,null,"FdC",null,"Remise esp","Remise chq","Remise CB","Rem Virmt","Tickets","TOTAL","Report"]
[null,null,0,52,"",null,null,null,null,null,null,null,null,null,0,0,null,{"$f":"Z346","v":{"$error":"#VALUE!"}},null,{"$f":"SUMPRODUCT((CaSem=S349)*(CACatégorie=\"Banque\")*(CaMode=T352)*CaDébit)","v":{"$error":"#VALUE!"}},{"$f":"SUMPRODUCT((CaSem=S349)*(CACatégorie=\"Banque\")*(CaMode=U352)*CaDébit)","v":{"$error":"#VALUE!"}},{"$f":"SUMPRODUCT((CaSem=S349)*(CaMode=V352)*CaDébit)","v":{"$error":"#VALUE!"}},{"$f":"SUMPRODUCT((CaSem=S349)*(CaMode=W352)*CaDébit)","v":{"$error":"#VALUE!"}},{"$f":"SUMPRODUCT((CaSem=S349)*(CaMode=X352)*CaDébit)","v":{"$error":"#VALUE!"}},{"$f":"SUM(T356:X356)","v":{"$error":"#VALUE!"}},{"$f":"(T350+R356)-Y356","v":{"$error":"#VALUE!"}}]
[null,null,0,52,"",null,null,null,null,null,null,null,null,null,0,0]
[null,null,0,52,"",null,null,null,null,null,null,null,null,null,0,0]
[null,null,0,52,"",null,null,null,null,null,null,null,null,null,0,0,null,"Semaine N°",null,"TOTAL","Taxi","Location","Publicité"]
[null,null,0,52,"",null,null,null,null,null,null,null,null,null,0,0,null,null,null,{"$f":"SUMPRODUCT((CaSem=S359)*(CaSem>0)*CaCrédit)","v":{"$error":"#VALUE!"}},{"$f":"SUMPRODUCT((CaSem=S359)*(CACatégorie=U359)*CaCrédit)","v":{"$error":"#VALUE!"}},{"$f":"SUMPRODUCT((CaSem=S359)*(CACatégorie=V359)*CaCrédit)","v":{"$error":"#VALUE!"}},{"$f":"SUMPRODUCT((CaSem=S359)*(CACatégorie=W359)*CaCrédit)","v":{"$error":"#VALUE!"}}]
[null,null,0,52,"",null,null,null,null,null,null,null,null,null,0,0]
[null,null,0,52,"",null,null,null,null,null,null,null,null,null,0,0,null,null,null,"Espèce","Chèque","CB","Virement","Tickets","vérif"]
[null,null,0,52,"",null,null,null,null,null,null,null,null,null,0,0,null,null,null,{"$f":"SUMPRODUCT((CaSem=S359)*(CaMode=\"Espèce\")*CaCrédit)","v":{"$error":"#VALUE!"}},{"$f":"SUMPRODUCT((CaSem=S359)*(CaMode=U362)*CaCrédit)","v":{"$error":"#VALUE!"}},{"$f":"SUMPRODUCT((CaSem=S359)*(CaMode=V362)*CaCrédit)","v":{"$error":"#VALUE!"}},{"$f":"SUMPRODUCT((CaSem=S359)*(CaMode=W362)*CaCrédit)","v":{"$error":"#VALUE!"}},{"$f":"SUMPRODUCT((CaSem=S359)*(CaMode=X362)*CaCrédit)","v":{"$error":"#VALUE!"}},{"$f":"SUM(T363:X364)","v":{"$error":"#VALUE!"}}]
[null,null,0,52,"",null,null,null,null,null,null,null,null,null,0,0,null,null,null,null,null,null,null,null,{"$f":"SUMPRODUCT((CaSem=S359)*CaRecJour)","v":0}]
[null,null,0,52,"",null,null,null,null,null,null,null,null,null,0,0,null,"FdC",null,"Remise esp","Remise chq","Remise CB","Rem Virmt","Tickets","TOTAL","Report"]
[null,null,0,52,"",null,null,null,null,null,null,null,null,null,0,0,null,{"$f":"Z356","v":{"$error":"#VALUE!"}},null,{"$f":"SUMPRODUCT((CaSem=S359)*(CACatégorie=\"Banque\")*(CaMode=T362)*CaDébit)","v":{"$error":"#VALUE!"}},{"$f":"SUMPRODUCT((CaSem=S359)*(CACatégorie=\"Banque\")*(CaMode=U362)*CaDébit)","v":{"$error":"#VALUE!"}},{"$f":"SUMPRODUCT((CaSem=S359)*(CaMode=V362)*CaDébit)","v":{"$error":"#VALUE!"}},{"$f":"SUMPRODUCT((CaSem=S359)*(CaMode=W362)*CaDébit)","v":{"$error":"#VALUE!"}},{"$f":"SUMPRODUCT((CaSem=S359)*(CaMode=X362)*CaDébit)","v":{"$error":"#VALUE!"}},{"$f":"SUM(T366:X366)","v":{"$error":"#VALUE!"}},{"$f":"(T360+R366)-Y366","v":{"$error":"#VALUE!"}}]
[null,null,0,52,"",null,null,null,null,null,null,null,null,null,0,0]
[null,null,0,52,"",null,null,null,null,null,null,null,null,null,0,0]
[null,null,0,52,"",null,null,null,null,null,null,null,null,null,0,0,null,"Semaine N°",null,"TOTAL","Taxi","Location","Publicité"]
[null,null,0,52,"",null,null,null,null,null,null,null,null,null,0,0,null,null,null,{"$f":"SUMPRODUCT((CaSem=S369)*(CaSem>0)*CaCrédit)","v":{"$error":"#VALUE!"}},{"$f":"SUMPRODUCT((CaSem=S369)*(CACatégorie=U369)*CaCrédit)","v":{"$error":"#VALUE!"}},{"$f":"SUMPRODUCT((CaSem=S369)*(CACatégorie=V369)*CaCrédit)","v":{"$error":"#VALUE!"}},{"$f":"SUMPRODUCT((CaSem=S369)*(CACatégorie=W369)*CaCrédit)","v":{"$error":"#VALUE!"}}]
[null,null,0,52,"",null,null,null,null,null,null,null,null,null,0,0]
[null,null,0,52,"",null,null,null,null,null,null,null,null,null,0,0,null,null,null,"Espèce","Chèque","CB","Virement","Tickets","vérif"]
[null,null,0,52,"",null,null,null,null,null,null,null,null,null,0,0,null,null,null,{"$f":"SUMPRODUCT((CaSem=S369)*(CaMode=\"Espèce\")*CaCrédit)","v":{"$error":"#VALUE!"}},{"$f":"SUMPRODUCT((CaSem=S369)*(CaMode=U372)*CaCrédit)","v":{"$error":"#VALUE!"}},{"$f":"SUMPRODUCT((CaSem=S369)*(CaMode=V372)*CaCrédit)","v":{"$error":"#VALUE!"}},{"$f":"SUMPRODUCT((CaSem=S369)*(CaMode=W372)*CaCrédit)","v":{"$error":"#VALUE!"}},{"$f":"SUMPRODUCT((CaSem=S369)*(CaMode=X372)*CaCrédit)","v":{"$error":"#VALUE!"}},{"$f":"SUM(T373:X374)","v":{"$error":"#VALUE!"}}]
[null,null,0,52,"",null,null,null,null,null,null,null,null,null,0,0,null,null,null,null,null,null,null,null,{"$f":"SUMPRODUCT((CaSem=S369)*CaRecJour)","v":0}]
[null,null,0,52,"",null,null,null,null,null,null,null,null,null,0,0,null,"FdC",null,"Remise esp","Remise chq","Remise CB","Rem Virmt","Tickets","TOTAL","Report"]
[null,null,0,52,"",null,null,null,null,null,null,null,null,null,0,0,null,{"$f":"Z366","v":{"$error":"#VALUE!"}},null,{"$f":"SUMPRODUCT((CaSem=S369)*(CACatégorie=\"Banque\")*(CaMode=T372)*CaDébit)","v":{"$error":"#VALUE!"}},{"$f":"SUMPRODUCT((CaSem=S369)*(CACatégorie=\"Banque\")*(CaMode=U372)*CaDébit)","v":{"$error":"#VALUE!"}},{"$f":"SUMPRODUCT((CaSem=S369)*(CaMode=V372)*CaDébit)","v":{"$error":"#VALUE!"}},{"$f":"SUMPRODUCT((CaSem=S369)*(CaMode=W372)*CaDébit)","v":{"$error":"#VALUE!"}},{"$f":"SUMPRODUCT((CaSem=S369)*(CaMode=X372)*CaDébit)","v":{"$error":"#VALUE!"}},{"$f":"SUM(T376:X376)","v":{"$error":"#VALUE!"}},{"$f":"(T370+R376)-Y376","v":{"$error":"#VALUE!"}}]
[null,null,0,52,"",null,null,null,null,null,null,null,null,null,0,0]
[null,null,0,52,"",null,null,null,null,null,null,null,null,null,0,0]
[null,null,0,52,"",null,null,null,null,null,null,null,null,null,0,0,null,"Semaine N°",null,"TOTAL","Taxi","Location","Publicité"]
[null,null,0,52,"",null,null,null,null,null,null,null,null,null,0,0,null,null,null,{"$f":"SUMPRODUCT((CaSem=S379)*(CaSem>0)*CaCrédit)","v":{"$error":"#VALUE!"}},{"$f":"SUMPRODUCT((CaSem=S379)*(CACatégorie=U379)*CaCrédit)","v":{"$error":"#VALUE!"}},{"$f":"SUMPRODUCT((CaSem=S379)*(CACatégorie=V379)*CaCrédit)","v":{"$error":"#VALUE!"}},{"$f":"SUMPRODUCT((CaSem=S379)*(CACatégorie=W379)*CaCrédit)","v":{"$error":"#VALUE!"}}]
[null,null,0,52,"",null,null,null,null,null,null,null,null,null,0,0]
[null,null,0,52,"",null,null,null,null,null,null,null,null,null,0,0,null,null,null,"Espèce","Chèque","CB","Virement","Tickets","vérif"]
[null,null,0,52,"",null,null,null,null,null,null,null,null,null,0,0,null,null,null,{"$f":"SUMPRODUCT((CaSem=S379)*(CaMode=\"Espèce\")*CaCrédit)","v":{"$error":"#VALUE!"}},{"$f":"SUMPRODUCT((CaSem=S379)*(CaMode=U382)*CaCrédit)","v":{"$error":"#VALUE!"}},{"$f":"SUMPRODUCT((CaSem=S379)*(CaMode=V382)*CaCrédit)","v":{"$error":"#VALUE!"}},{"$f":"SUMPRODUCT((CaSem=S379)*(CaMode=W382)*CaCrédit)","v":{"$error":"#VALUE!"}},{"$f":"SUMPRODUCT((CaSem=S379)*(CaMode=X382)*CaCrédit)","v":{"$error":"#VALUE!"}},{"$f":"SUM(T383:X384)","v":{"$error":"#VALUE!"}}]
[null,null,0,52,"",null,null,null,null,null,null,null,null,null,0,0,null,null,null,null,null,null,null,null,{"$f":"SUMPRODUCT((CaSem=S379)*CaRecJour)","v":0}]
[null,null,0,52,"",null,null,null,null,null,null,null,null,null,0,0,null,"FdC",null,"Remise esp","Remise chq","Remise CB","Rem Virmt","Tickets","TOTAL","Report"]
[null,null,0,52,"",null,null,null,null,null,null,null,null,null,0,0,null,{"$f":"Z376","v":{"$error":"#VALUE!"}},null,{"$f":"SUMPRODUCT((CaSem=S379)*(CACatégorie=\"Banque\")*(CaMode=T382)*CaDébit)","v":{"$error":"#VALUE!"}},{"$f":"SUMPRODUCT((CaSem=S379)*(CACatégorie=\"Banque\")*(CaMode=U382)*CaDébit)","v":{"$error":"#VALUE!"}},{"$f":"SUMPRODUCT((CaSem=S379)*(CaMode=V382)*CaDébit)","v":{"$error":"#VALUE!"}},{"$f":"SUMPRODUCT((CaSem=S379)*(CaMode=W382)*CaDébit)","v":{"$error":"#VALUE!"}},{"$f":"SUMPRODUCT((CaSem=S379)*(CaMode=X382)*CaDébit)","v":{"$error":"#VALUE!"}},{"$f":"SUM(T386:X386)","v":{"$error":"#VALUE!"}},{"$f":"(T380+R386)-Y386","v":{"$error":"#VALUE!"}}]
[null,null,0,52,"",null,null,null,null,null,null,null,null,null,0,0]
[null,null,0,52,"",null,null,null,null,null,null,null,null,null,0,0]
[null,null,0,52,"",null,null,null,null,null,null,null,null,null,0,0,null,"Semaine N°",null,"TOTAL","Taxi","Location","Publicité"]
[null,null,0,52,"",null,null,null,null,null,null,null,null,null,0,0,null,null,null,{"$f":"SUMPRODUCT((CaSem=S389)*(CaSem>0)*CaCrédit)","v":{"$error":"#VALUE!"}},{"$f":"SUMPRODUCT((CaSem=S389)*(CACatégorie=U389)*CaCrédit)","v":{"$error":"#VALUE!"}},{"$f":"SUMPRODUCT((CaSem=S389)*(CACatégorie=V389)*CaCrédit)","v":{"$error":"#VALUE!"}},{"$f":"SUMPRODUCT((CaSem=S389)*(CACatégorie=W389)*CaCrédit)","v":{"$error":"#VALUE!"}}]
[null,null,0,52,"",null,null,null,null,null,null,null,null,null,0,0]
[null,null,0,52,"",null,null,null,null,null,null,null,null,null,0,0,null,null,null,"Espèce","Chèque","CB","Virement","Tickets","vérif"]
[null,null,0,52,{"$f":"IF(CaJour=0,\"\",UPPER(TEXT(C393,\"mmmm\")))","v":""},null,null,null,null,null,null,null,null,null,0,0,null,null,null,{"$f":"SUMPRODUCT((CaSem=S389)*(CaMode=\"Espèce\")*CaCrédit)","v":{"$error":"#VALUE!"}},{"$f":"SUMPRODUCT((CaSem=S389)*(CaMode=U392)*CaCrédit)","v":{"$error":"#VALUE!"}},{"$f":"SUMPRODUCT((CaSem=S389)*(CaMode=V392)*CaCrédit)","v":{"$error":"#VALUE!"}},{"$f":"SUMPRODUCT((CaSem=S389)*(CaMode=W392)*CaCrédit)","v":{"$error":"#VALUE!"}},{"$f":"SUMPRODUCT((CaSem=S389)*(CaMode=X392)*CaCrédit)","v":{"$error":"#VALUE!"}},{"$f":"SUM(T393:X394)","v":{"$error":"#VALUE!"}}]
[null,null,{"$f":"DATE(YEAR(B394),MONTH(B394),DAY(B394))","v":0},{"$f":"INT(MOD(INT((B394-2)/7)+0.6,52+5/28))+1","v":52},"",null,null,null,null,null,null,null,null,null,0,0,null,null,null,null,null,null,null,null,{"$f":"SUMPRODUCT((CaSem=S389)*CaRecJour)","v":0}]
[null,null,0,52,"",null,null,null,null,null,null,null,null,null,0,0,null,"FdC",null,"Remise esp","Remise chq","Remise CB","Rem Virmt","Tickets","TOTAL","Report"]
[null,null,0,52,"",null,null,null,null,null,null,null,null,null,0,0,null,{"$f":"Z386","v":{"$error":"#VALUE!"}},null,{"$f":"SUMPRODUCT((CaSem=S389)*(CACatégorie=\"Banque\")*(CaMode=T392)*CaDébit)","v":{"$error":"#VALUE!"}},{"$f":"SUMPRODUCT((CaSem=S389)*(CACatégorie=\"Banque\")*(CaMode=U392)*CaDébit)","v":{"$error":"#VALUE!"}},{"$f":"SUMPRODUCT((CaSem=S389)*(CaMode=V392)*CaDébit)","v":{"$error":"#VALUE!"}},{"$f":"SUMPRODUCT((CaSem=S389)*(CaMode=W392)*CaDébit)","v":{"$error":"#VALUE!"}},{"$f":"SUMPRODUCT((CaSem=S389)*(CaMode=X392)*CaDébit)","v":{"$error":"#VALUE!"}},{"$f":"SUM(T396:X396)","v":{"$error":"#VALUE!"}},{"$f":"(T390+R396)-Y396","v":{"$error":"#VALUE!"}}]
[null,null,0,52,"",null,null,null,null,null,null,null,null,null,0,0]
[null,null,0,52,"",null,null,null,null,null,null,null,null,null,0,0]
[null,null,0,52,"",null,null,null,null,null,null,null,null,null,0,0,null,"Semaine N°",null,"TOTAL","Taxi","Location","Publicité"]
[null,null,0,52,"",null,null,null,null,null,null,null,null,null,0,0,null,null,null,{"$f":"SUMPRODUCT((CaSem=S399)*(CaSem>0)*CaCrédit)","v":{"$error":"#VALUE!"}},{"$f":"SUMPRODUCT((CaSem=S399)*(CACatégorie=U399)*CaCrédit)","v":{"$error":"#VALUE!"}},{"$f":"SUMPRODUCT((CaSem=S399)*(CACatégorie=V399)*CaCrédit)","v":{"$error":"#VALUE!"}},{"$f":"SUMPRODUCT((CaSem=S399)*(CACatégorie=W399)*CaCrédit)","v":{"$error":"#VALUE!"}}]
[null,null,0,52,"",null,null,null,null,null,null,null,null,null,0,0]
[null,null,0,52,"",null,null,null,null,null,null,null,null,null,0,0,null,null,null,"Espèce","Chèque","CB","Virement","Tickets","vérif"]
[null,null,0,52,"",null,null,null,null,null,null,null,null,null,0,0,null,null,null,{"$f":"SUMPRODUCT((CaSem=S399)*(CaMode=\"Espèce\")*CaCrédit)","v":{"$error":"#VALUE!"}},{"$f":"SUMPRODUCT((CaSem=S399)*(CaMode=U402)*CaCrédit)","v":{"$error":"#VALUE!"}},{"$f":"SUMPRODUCT((CaSem=S399)*(CaMode=V402)*CaCrédit)","v":{"$error":"#VALUE!"}},{"$f":"SUMPRODUCT((CaSem=S399)*(CaMode=W402)*CaCrédit)","v":{"$error":"#VALUE!"}},{"$f":"SUMPRODUCT((CaSem=S399)*(CaMode=X402)*CaCrédit)","v":{"$error":"#VALUE!"}},{"$f":"SUM(T403:X404)","v":{"$error":"#VALUE!"}}]
[null,null,0,52,"",null,null,null,null,null,null,null,null,null,0,0,null,null,null,null,null,null,null,null,{"$f":"SUMPRODUCT((CaSem=S399)*CaRecJour)","v":0}]
[null,null,null,null,null,null,null,null,null,null,null,null,null,null,null,null,null,"FdC",null,"Remise esp","Remise chq","Remise CB","Rem Virmt","Tickets","TOTAL","Report"]
[null,null,null,null,null,null,null,null,null,null,null,null,null,null,null,null,null,{"$f":"Z396","v":{"$error":"#VALUE!"}},null,{"$f":"SUMPRODUCT((CaSem=S399)*(CACatégorie=\"Banque\")*(CaMode=T402)*CaDébit)","v":{"$error":"#VALUE!"}},{"$f":"SUMPRODUCT((CaSem=S399)*(CACatégorie=\"Banque\")*(CaMode=U402)*CaDébit)","v":{"$error":"#VALUE!"}},{"$f":"SUMPRODUCT((CaSem=S399)*(CaMode=V402)*CaDébit)","v":{"$error":"#VALUE!"}},{"$f":"SUMPRODUCT((CaSem=S399)*(CaMode=W402)*CaDébit)","v":{"$error":"#VALUE!"}},{"$f":"SUMPRODUCT((CaSem=S399)*(CaMode=X402)*CaDébit)","v":{"$error":"#VALUE!"}},{"$f":"SUM(T406:X406)","v":{"$error":"#VALUE!"}},{"$f":"(T400+R406)-Y406","v":{"$error":"#VALUE!"}}]
[]
[]
[null,null,null,null,null,null,null,null,null,null,null,null,null,null,null,null,null,"Semaine N°",null,"TOTAL","Taxi","Location","Publicité"]
[null,null,null,null,null,null,null,null,null,null,null,null,null,null,null,null,null,null,null,{"$f":"SUMPRODUCT((CaSem=S409)*(CaSem>0)*CaCrédit)","v":{"$error":"#VALUE!"}},{"$f":"SUMPRODUCT((CaSem=S409)*(CACatégorie=U409)*CaCrédit)","v":{"$error":"#VALUE!"}},{"$f":"SUMPRODUCT((CaSem=S409)*(CACatégorie=V409)*CaCrédit)","v":{"$error":"#VALUE!"}},{"$f":"SUMPRODUCT((CaSem=S409)*(CACatégorie=W409)*CaCrédit)","v":{"$error":"#VALUE!"}}]
[]
[null,null,null,null,null,null,null,null,null,null,null,null,null,null,null,null,null,null,null,"Espèce","Chèque","CB","Virement","Tickets","vérif"]
[null,null,null,null,null,null,null,null,null,null,null,null,null,null,null,null,null,null,null,{"$f":"SUMPRODUCT((CaSem=S409)*(CaMode=\"Espèce\")*CaCrédit)","v":{"$error":"#VALUE!"}},{"$f":"SUMPRODUCT((CaSem=S409)*(CaMode=U412)*CaCrédit)","v":{"$error":"#VALUE!"}},{"$f":"SUMPRODUCT((CaSem=S409)*(CaMode=V412)*CaCrédit)","v":{"$error":"#VALUE!"}},{"$f":"SUMPRODUCT((CaSem=S409)*(CaMode=W412)*CaCrédit)","v":{"$error":"#VALUE!"}},{"$f":"SUMPRODUCT((CaSem=S409)*(CaMode=X412)*CaCrédit)","v":{"$error":"#VALUE!"}},{"$f":"SUM(T413:X414)","v":{"$error":"#VALUE!"}}]
[null,null,null,null,null,null,null,null,null,null,null,null,null,null,null,null,null,null,null,null,null,null,null,null,{"$f":"SUMPRODUCT((CaSem=S409)*CaRecJour)","v":0}]
[null,null,null,null,null,null,null,null,null,null,null,null,null,null,null,null,null,"FdC",null,"Remise esp","Remise chq","Remise CB","Rem Virmt","Tickets","TOTAL","Report"]
[null,null,null,null,null,null,null,null,null,null,null,null,null,null,null,null,null,{"$f":"Z406","v":{"$error":"#VALUE!"}},null,{"$f":"SUMPRODUCT((CaSem=S409)*(CACatégorie=\"Banque\")*(CaMode=T412)*CaDébit)","v":{"$error":"#VALUE!"}},{"$f":"SUMPRODUCT((CaSem=S409)*(CACatégorie=\"Banque\")*(CaMode=U412)*CaDébit)","v":{"$error":"#VALUE!"}},{"$f":"SUMPRODUCT((CaSem=S409)*(CaMode=V412)*CaDébit)","v":{"$error":"#VALUE!"}},{"$f":"SUMPRODUCT((CaSem=S409)*(CaMode=W412)*CaDébit)","v":{"$error":"#VALUE!"}},{"$f":"SUMPRODUCT((CaSem=S409)*(CaMode=X412)*CaDébit)","v":{"$error":"#VALUE!"}},{"$f":"SUM(T416:X416)","v":{"$error":"#VALUE!"}},{"$f":"(T410+R416)-Y416","v":{"$error":"#VALUE!"}}]
[]
[]
[null,null,null,null,null,null,null,null,null,null,null,null,null,null,null,null,null,"Semaine N°",null,"TOTAL","Taxi","Location","Publicité"]
[null,null,null,null,null,null,null,null,null,null,null,null,null,null,null,null,null,null,null,{"$f":"SUMPRODUCT((CaSem=S419)*(CaSem>0)*CaCrédit)","v":{"$error":"#VALUE!"}},{"$f":"SUMPRODUCT((CaSem=S419)*(CACatégorie=U419)*CaCrédit)","v":{"$error":"#VALUE!"}},{"$f":"SUMPRODUCT((CaSem=S419)*(CACatégorie=V419)*CaCrédit)","v":{"$error":"#VALUE!"}},{"$f":"SUMPRODUCT((CaSem=S419)*(CACatégorie=W419)*CaCrédit)","v":{"$error":"#VALUE!"}}]
[]
[null,null,null,null,null,null,null,null,null,null,null,null,null,null,null,null,null,null,null,"Espèce","Chèque","CB","Virement","Tickets","vérif"]
[null,null,null,null,null,null,null,null,null,null,null,null,null,null,null,null,null,null,null,{"$f":"SUMPRODUCT((CaSem=S419)*(CaMode=\"Espèce\")*CaCrédit)","v":{"$error":"#VALUE!"}},{"$f":"SUMPRODUCT((CaSem=S419)*(CaMode=U422)*CaCrédit)","v":{"$error":"#VALUE!"}},{"$f":"SUMPRODUCT((CaSem=S419)*(CaMode=V422)*CaCrédit)","v":{"$error":"#VALUE!"}},{"$f":"SUMPRODUCT((CaSem=S419)*(CaMode=W422)*CaCrédit)","v":{"$error":"#VALUE!"}},{"$f":"SUMPRODUCT((CaSem=S419)*(CaMode=X422)*CaCrédit)","v":{"$error":"#VALUE!"}},{"$f":"SUM(T423:X424)","v":{"$error":"#VALUE!"}}]
[null,null,null,null,null,null,null,null,null,null,null,null,null,null,null,null,null,null,null,null,null,null,null,null,{"$f":"SUMPRODUCT((CaSem=S419)*CaRecJour)","v":0}]
[null,null,null,null,null,null,null,null,null,null,null,null,null,null,null,null,null,"FdC",null,"Remise esp","Remise chq","Remise CB","Rem Virmt","Tickets","TOTAL","Report"]
[null,null,null,null,null,null,null,null,null,null,null,null,null,null,null,null,null,{"$f":"Z416","v":{"$error":"#VALUE!"}},null,{"$f":"SUMPRODUCT((CaSem=S419)*(CACatégorie=\"Banque\")*(CaMode=T422)*CaDébit)","v":{"$error":"#VALUE!"}},{"$f":"SUMPRODUCT((CaSem=S419)*(CACatégorie=\"Banque\")*(CaMode=U422)*CaDébit)","v":{"$error":"#VALUE!"}},{"$f":"SUMPRODUCT((CaSem=S419)*(CaMode=V422)*CaDébit)","v":{"$error":"#VALUE!"}},{"$f":"SUMPRODUCT((CaSem=S419)*(CaMode=W422)*CaDébit)","v":{"$error":"#VALUE!"}},{"$f":"SUMPRODUCT((CaSem=S419)*(CaMode=X422)*CaDébit)","v":{"$error":"#VALUE!"}},{"$f":"SUM(T426:X426)","v":{"$error":"#VALUE!"}},{"$f":"(T420+R426)-Y426","v":{"$error":"#VALUE!"}}]
[]
[]
[null,null,null,null,null,null,null,null,null,null,null,null,null,null,null,null,null,"Semaine N°",null,"TOTAL","Taxi","Location","Publicité"]
[null,null,null,null,null,null,null,null,null,null,null,null,null,null,null,null,null,null,null,{"$f":"SUMPRODUCT((CaSem=S429)*(CaSem>0)*CaCrédit)","v":{"$error":"#VALUE!"}},{"$f":"SUMPRODUCT((CaSem=S429)*(CACatégorie=U429)*CaCrédit)","v":{"$error":"#VALUE!"}},{"$f":"SUMPRODUCT((CaSem=S429)*(CACatégorie=V429)*CaCrédit)","v":{"$error":"#VALUE!"}},{"$f":"SUMPRODUCT((CaSem=S429)*(CACatégorie=W429)*CaCrédit)","v":{"$error":"#VALUE!"}}]
[]
[null,null,null,null,null,null,null,null,null,null,null,null,null,null,null,null,null,null,null,"Espèce","Chèque","CB","Virement","Tickets","vérif"]
[null,null,null,null,null,null,null,null,null,null,null,null,null,null,null,null,null,null,null,{"$f":"SUMPRODUCT((CaSem=S429)*(CaMode=\"Espèce\")*CaCrédit)","v":{"$error":"#VALUE!"}},{"$f":"SUMPRODUCT((CaSem=S429)*(CaMode=U432)*CaCrédit)","v":{"$error":"#VALUE!"}},{"$f":"SUMPRODUCT((CaSem=S429)*(CaMode=V432)*CaCrédit)","v":{"$error":"#VALUE!"}},{"$f":"SUMPRODUCT((CaSem=S429)*(CaMode=W432)*CaCrédit)","v":{"$error":"#VALUE!"}},{"$f":"SUMPRODUCT((CaSem=S429)*(CaMode=X432)*CaCrédit)","v":{"$error":"#VALUE!"}},{"$f":"SUM(T433:X434)","v":{"$error":"#VALUE!"}}]
[null,null,null,null,null,null,null,null,null,null,null,null,null,null,null,null,null,null,null,null,null,null,null,null,{"$f":"SUMPRODUCT((CaSem=S429)*CaRecJour)","v":0}]
[null,null,null,null,null,null,null,null,null,null,null,null,null,null,null,null,null,"FdC",null,"Remise esp","Remise chq","Remise CB","Rem Virmt","Tickets","TOTAL","Report"]
[null,null,null,null,null,null,null,null,null,null,null,null,null,null,null,null,null,{"$f":"Z426","v":{"$error":"#VALUE!"}},null,{"$f":"SUMPRODUCT((CaSem=S429)*(CACatégorie=\"Banque\")*(CaMode=T432)*CaDébit)","v":{"$error":"#VALUE!"}},{"$f":"SUMPRODUCT((CaSem=S429)*(CACatégorie=\"Banque\")*(CaMode=U432)*CaDébit)","v":{"$error":"#VALUE!"}},{"$f":"SUMPRODUCT((CaSem=S429)*(CaMode=V432)*CaDébit)","v":{"$error":"#VALUE!"}},{"$f":"SUMPRODUCT((CaSem=S429)*(CaMode=W432)*CaDébit)","v":{"$error":"#VALUE!"}},{"$f":"SUMPRODUCT((CaSem=S429)*(CaMode=X432)*CaDébit)","v":{"$error":"#VALUE!"}},{"$f":"SUM(T436:X436)","v":{"$error":"#VALUE!"}},{"$f":"(T430+R436)-Y436","v":{"$error":"#VALUE!"}}]
[]
[]
[null,null,null,null,null,null,null,null,null,null,null,null,null,null,null,null,null,"Semaine N°",null,"TOTAL","Taxi","Location","Publicité"]
[null,null,null,null,null,null,null,null,null,null,null,null,null,null,null,null,null,null,null,{"$f":"SUMPRODUCT((CaSem=S439)*(CaSem>0)*CaCrédit)","v":{"$error":"#VALUE!"}},{"$f":"SUMPRODUCT((CaSem=S439)*(CACatégorie=U439)*CaCrédit)","v":{"$error":"#VALUE!"}},{"$f":"SUMPRODUCT((CaSem=S439)*(CACatégorie=V439)*CaCrédit)","v":{"$error":"#VALUE!"}},{"$f":"SUMPRODUCT((CaSem=S439)*(CACatégorie=W439)*CaCrédit)","v":{"$error":"#VALUE!"}}]
[]
[null,null,null,null,null,null,null,null,null,null,null,null,null,null,null,null,null,null,null,"Espèce","Chèque","CB","Virement","Tickets","vérif"]
[null,null,null,null,null,null,null,null,null,null,null,null,null,null,null,null,null,null,null,{"$f":"SUMPRODUCT((CaSem=S439)*(CaMode=\"Espèce\")*CaCrédit)","v":{"$error":"#VALUE!"}},{"$f":"SUMPRODUCT((CaSem=S439)*(CaMode=U442)*CaCrédit)","v":{"$error":"#VALUE!"}},{"$f":"SUMPRODUCT((CaSem=S439)*(CaMode=V442)*CaCrédit)","v":{"$error":"#VALUE!"}},{"$f":"SUMPRODUCT((CaSem=S439)*(CaMode=W442)*CaCrédit)","v":{"$error":"#VALUE!"}},{"$f":"SUMPRODUCT((CaSem=S439)*(CaMode=X442)*CaCrédit)","v":{"$error":"#VALUE!"}},{"$f":"SUM(T443:X444)","v":{"$error":"#VALUE!"}}]
[null,null,null,null,null,null,null,null,null,null,null,null,null,null,null,null,null,null,null,null,null,null,null,null,{"$f":"SUMPRODUCT((CaSem=S439)*CaRecJour)","v":0}]
[null,null,null,null,null,null,null,null,null,null,null,null,null,null,null,null,null,"FdC",null,"Remise esp","Remise chq","Remise CB","Rem Virmt","Tickets","TOTAL","Report"]
[null,null,null,null,null,null,null,null,null,null,null,null,null,null,null,null,null,{"$f":"Z436","v":{"$error":"#VALUE!"}},null,{"$f":"SUMPRODUCT((CaSem=S439)*(CACatégorie=\"Banque\")*(CaMode=T442)*CaDébit)","v":{"$error":"#VALUE!"}},{"$f":"SUMPRODUCT((CaSem=S439)*(CACatégorie=\"Banque\")*(CaMode=U442)*CaDébit)","v":{"$error":"#VALUE!"}},{"$f":"SUMPRODUCT((CaSem=S439)*(CaMode=V442)*CaDébit)","v":{"$error":"#VALUE!"}},{"$f":"SUMPRODUCT((CaSem=S439)*(CaMode=W442)*CaDébit)","v":{"$error":"#VALUE!"}},{"$f":"SUMPRODUCT((CaSem=S439)*(CaMode=X442)*CaDébit)","v":{"$error":"#VALUE!"}},{"$f":"SUM(T446:X446)","v":{"$error":"#VALUE!"}},{"$f":"(T440+R446)-Y446","v":{"$error":"#VALUE!"}}]
[]
[]
[null,null,null,null,null,null,null,null,null,null,null,null,null,null,null,null,null,"Semaine N°",null,"TOTAL","Taxi","Location","Publicité"]
[null,null,null,null,null,null,null,null,null,null,null,null,null,null,null,null,null,null,null,{"$f":"SUMPRODUCT((CaSem=S449)*(CaSem>0)*CaCrédit)","v":{"$error":"#VALUE!"}},{"$f":"SUMPRODUCT((CaSem=S449)*(CACatégorie=U449)*CaCrédit)","v":{"$error":"#VALUE!"}},{"$f":"SUMPRODUCT((CaSem=S449)*(CACatégorie=V449)*CaCrédit)","v":{"$error":"#VALUE!"}},{"$f":"SUMPRODUCT((CaSem=S449)*(CACatégorie=W449)*CaCrédit)","v":{"$error":"#VALUE!"}}]
[]
[null,null,null,null,null,null,null,null,null,null,null,null,null,null,null,null,null,null,null,"Espèce","Chèque","CB","Virement","Tickets","vérif"]
[null,null,null,null,null,null,null,null,null,null,null,null,null,null,null,null,null,null,null,{"$f":"SUMPRODUCT((CaSem=S449)*(CaMode=\"Espèce\")*CaCrédit)","v":{"$error":"#VALUE!"}},{"$f":"SUMPRODUCT((CaSem=S449)*(CaMode=U452)*CaCrédit)","v":{"$error":"#VALUE!"}},{"$f":"SUMPRODUCT((CaSem=S449)*(CaMode=V452)*CaCrédit)","v":{"$error":"#VALUE!"}},{"$f":"SUMPRODUCT((CaSem=S449)*(CaMode=W452)*CaCrédit)","v":{"$error":"#VALUE!"}},{"$f":"SUMPRODUCT((CaSem=S449)*(CaMode=X452)*CaCrédit)","v":{"$error":"#VALUE!"}},{"$f":"SUM(T453:X454)","v":{"$error":"#VALUE!"}}]
[null,null,null,null,null,null,null,null,null,null,null,null,null,null,null,null,null,null,null,null,null,null,null,null,{"$f":"SUMPRODUCT((CaSem=S449)*CaRecJour)","v":0}]
[null,null,null,null,null,null,null,null,null,null,null,null,null,null,null,null,null,"FdC",null,"Remise esp","Remise chq","Remise CB","Rem Virmt","Tickets","TOTAL","Report"]
[null,null,null,null,null,null,null,null,null,null,null,null,null,null,null,null,null,{"$f":"Z446","v":{"$error":"#VALUE!"}},null,{"$f":"SUMPRODUCT((CaSem=S449)*(CACatégorie=\"Banque\")*(CaMode=T452)*CaDébit)","v":{"$error":"#VALUE!"}},{"$f":"SUMPRODUCT((CaSem=S449)*(CACatégorie=\"Banque\")*(CaMode=U452)*CaDébit)","v":{"$error":"#VALUE!"}},{"$f":"SUMPRODUCT((CaSem=S449)*(CaMode=V452)*CaDébit)","v":{"$error":"#VALUE!"}},{"$f":"SUMPRODUCT((CaSem=S449)*(CaMode=W452)*CaDébit)","v":{"$error":"#VALUE!"}},{"$f":"SUMPRODUCT((CaSem=S449)*(CaMode=X452)*CaDébit)","v":{"$error":"#VALUE!"}},{"$f":"SUM(T456:X456)","v":{"$error":"#VALUE!"}},{"$f":"(T450+R456)-Y456","v":{"$error":"#VALUE!"}}]
[]
[]
[null,null,null,null,null,null,null,null,null,null,null,null,null,null,null,null,null,"Semaine N°",null,"TOTAL","Taxi","Location","Publicité"]
[null,null,null,null,null,null,null,null,null,null,null,null,null,null,null,null,null,null,null,{"$f":"SUMPRODUCT((CaSem=S459)*(CaSem>0)*CaCrédit)","v":{"$error":"#VALUE!"}},{"$f":"SUMPRODUCT((CaSem=S459)*(CACatégorie=U459)*CaCrédit)","v":{"$error":"#VALUE!"}},{"$f":"SUMPRODUCT((CaSem=S459)*(CACatégorie=V459)*CaCrédit)","v":{"$error":"#VALUE!"}},{"$f":"SUMPRODUCT((CaSem=S459)*(CACatégorie=W459)*CaCrédit)","v":{"$error":"#VALUE!"}}]
[]
[null,null,null,null,null,null,null,null,null,null,null,null,null,null,null,null,null,null,null,"Espèce","Chèque","CB","Virement","Tickets","vérif"]
[null,null,null,null,null,null,null,null,null,null,null,null,null,null,null,null,null,null,null,{"$f":"SUMPRODUCT((CaSem=S459)*(CaMode=\"Espèce\")*CaCrédit)","v":{"$error":"#VALUE!"}},{"$f":"SUMPRODUCT((CaSem=S459)*(CaMode=U462)*CaCrédit)","v":{"$error":"#VALUE!"}},{"$f":"SUMPRODUCT((CaSem=S459)*(CaMode=V462)*CaCrédit)","v":{"$error":"#VALUE!"}},{"$f":"SUMPRODUCT((CaSem=S459)*(CaMode=W462)*CaCrédit)","v":{"$error":"#VALUE!"}},{"$f":"SUMPRODUCT((CaSem=S459)*(CaMode=X462)*CaCrédit)","v":{"$error":"#VALUE!"}},{"$f":"SUM(T463:X464)","v":{"$error":"#VALUE!"}}]
[null,null,null,null,null,null,null,null,null,null,null,null,null,null,null,null,null,null,null,null,null,null,null,null,{"$f":"SUMPRODUCT((CaSem=S459)*CaRecJour)","v":0}]
[null,null,null,null,null,null,null,null,null,null,null,null,null,null,null,null,null,"FdC",null,"Remise esp","Remise chq","Remise CB","Rem Virmt","Tickets","TOTAL","Repport"]
[null,null,null,null,null,null,null,null,null,null,null,null,null,null,null,null,null,{"$f":"Z456","v":{"$error":"#VALUE!"}},null,{"$f":"SUMPRODUCT((CaSem=S459)*(CACatégorie=\"Banque\")*(CaMode=T462)*CaDébit)","v":{"$error":"#VALUE!"}},{"$f":"SUMPRODUCT((CaSem=S459)*(CACatégorie=\"Banque\")*(CaMode=U462)*CaDébit)","v":{"$error":"#VALUE!"}},{"$f":"SUMPRODUCT((CaSem=S459)*(CaMode=V462)*CaDébit)","v":{"$error":"#VALUE!"}},{"$f":"SUMPRODUCT((CaSem=S459)*(CaMode=W462)*CaDébit)","v":{"$error":"#VALUE!"}},{"$f":"SUMPRODUCT((CaSem=S459)*(CaMode=X462)*CaDébit)","v":{"$error":"#VALUE!"}},{"$f":"SUM(T466:X466)","v":{"$error":"#VALUE!"}},{"$f":"(T460+R466)-Y466","v":{"$error":"#VALUE!"}}]
[]
[]
[null,null,null,null,null,null,null,null,null,null,null,null,null,null,null,null,null,"Semaine N°",null,"TOTAL","Taxi","Location","Publicité"]
[null,null,null,null,null,null,null,null,null,null,null,null,null,null,null,null,null,null,null,{"$f":"SUMPRODUCT((CaSem=S469)*(CaSem>0)*CaCrédit)","v":{"$error":"#VALUE!"}},{"$f":"SUMPRODUCT((CaSem=S469)*(CACatégorie=U469)*CaCrédit)","v":{"$error":"#VALUE!"}},{"$f":"SUMPRODUCT((CaSem=S469)*(CACatégorie=V469)*CaCrédit)","v":{"$error":"#VALUE!"}},{"$f":"SUMPRODUCT((CaSem=S469)*(CACatégorie=W469)*CaCrédit)","v":{"$error":"#VALUE!"}}]
[]
[null,null,null,null,null,null,null,null,null,null,null,null,null,null,null,null,null,null,null,"Espèce","Chèque","CB","Virement","Tickets","vérif"]
[null,null,null,null,null,null,null,null,null,null,null,null,null,null,null,null,null,null,null,{"$f":"SUMPRODUCT((CaSem=S469)*(CaMode=\"Espèce\")*CaCrédit)","v":{"$error":"#VALUE!"}},{"$f":"SUMPRODUCT((CaSem=S469)*(CaMode=U472)*CaCrédit)","v":{"$error":"#VALUE!"}},{"$f":"SUMPRODUCT((CaSem=S469)*(CaMode=V472)*CaCrédit)","v":{"$error":"#VALUE!"}},{"$f":"SUMPRODUCT((CaSem=S469)*(CaMode=W472)*CaCrédit)","v":{"$error":"#VALUE!"}},{"$f":"SUMPRODUCT((CaSem=S469)*(CaMode=X472)*CaCrédit)","v":{"$error":"#VALUE!"}},{"$f":"SUM(T473:X474)","v":{"$error":"#VALUE!"}}]
[null,null,null,null,null,null,null,null,null,null,null,null,null,null,null,null,null,null,null,null,null,null,null,null,{"$f":"SUMPRODUCT((CaSem=S469)*CaRecJour)","v":0}]
[null,null,null,null,null,null,null,null,null,null,null,null,null,null,null,null,null,"FdC",null,"Remise esp","Remise chq","Remise CB","Rem Virmt","Tickets","TOTAL","Repport"]
[null,null,null,null,null,null,null,null,null,null,null,null,null,null,null,null,null,{"$f":"Z466","v":{"$error":"#VALUE!"}},null,{"$f":"SUMPRODUCT((CaSem=S469)*(CACatégorie=\"Banque\")*(CaMode=T472)*CaDébit)","v":{"$error":"#VALUE!"}},{"$f":"SUMPRODUCT((CaSem=S469)*(CACatégorie=\"Banque\")*(CaMode=U472)*CaDébit)","v":{"$error":"#VALUE!"}},{"$f":"SUMPRODUCT((CaSem=S469)*(CaMode=V472)*CaDébit)","v":{"$error":"#VALUE!"}},{"$f":"SUMPRODUCT((CaSem=S469)*(CaMode=W472)*CaDébit)","v":{"$error":"#VALUE!"}},{"$f":"SUMPRODUCT((CaSem=S469)*(CaMode=X472)*CaDébit)","v":{"$error":"#VALUE!"}},{"$f":"SUM(T476:X476)","v":{"$error":"#VALUE!"}},{"$f":"(T470+R476)-Y476","v":{"$error":"#VALUE!"}}]
[]
[]
[null,null,null,null,null,null,null,null,null,null,null,null,null,null,null,null,null,"Semaine N°",null,"TOTAL","Taxi","Location","Publicité"]
[null,null,null,null,null,null,null,null,null,null,null,null,null,null,null,null,null,null,null,{"$f":"SUMPRODUCT((CaSem=S479)*(CaSem>0)*CaCrédit)","v":{"$error":"#VALUE!"}},{"$f":"SUMPRODUCT((CaSem=S479)*(CACatégorie=U479)*CaCrédit)","v":{"$error":"#VALUE!"}},{"$f":"SUMPRODUCT((CaSem=S479)*(CACatégorie=V479)*CaCrédit)","v":{"$error":"#VALUE!"}},{"$f":"SUMPRODUCT((CaSem=S479)*(CACatégorie=W479)*CaCrédit)","v":{"$error":"#VALUE!"}}]
[]
[null,null,null,null,null,null,null,null,null,null,null,null,null,null,null,null,null,null,null,"Espèce","Chèque","CB","Virement","Tickets","vérif"]
[null,null,null,null,null,null,null,null,null,null,null,null,null,null,null,null,null,null,null,{"$f":"SUMPRODUCT((CaSem=S479)*(CaMode=\"Espèce\")*CaCrédit)","v":{"$error":"#VALUE!"}},{"$f":"SUMPRODUCT((CaSem=S479)*(CaMode=U482)*CaCrédit)","v":{"$error":"#VALUE!"}},{"$f":"SUMPRODUCT((CaSem=S479)*(CaMode=V482)*CaCrédit)","v":{"$error":"#VALUE!"}},{"$f":"SUMPRODUCT((CaSem=S479)*(CaMode=W482)*CaCrédit)","v":{"$error":"#VALUE!"}},{"$f":"SUMPRODUCT((CaSem=S479)*(CaMode=X482)*CaCrédit)","v":{"$error":"#VALUE!"}},{"$f":"SUM(T483:X484)","v":{"$error":"#VALUE!"}}]
[null,null,null,null,null,null,null,null,null,null,null,null,null,null,null,null,null,null,null,null,null,null,null,null,{"$f":"SUMPRODUCT((CaSem=S479)*CaRecJour)","v":0}]
[null,null,null,null,null,null,null,null,null,null,null,null,null,null,null,null,null,"FdC",null,"Remise esp","Remise chq","Remise CB","Rem Virmt","Tickets","TOTAL","Repport"]
[null,null,null,null,null,null,null,null,null,null,null,null,null,null,null,null,null,{"$f":"Z476","v":{"$error":"#VALUE!"}},null,{"$f":"SUMPRODUCT((CaSem=S479)*(CACatégorie=\"Banque\")*(CaMode=T482)*CaDébit)","v":{"$error":"#VALUE!"}},{"$f":"SUMPRODUCT((CaSem=S479)*(CACatégorie=\"Banque\")*(CaMode=U482)*CaDébit)","v":{"$error":"#VALUE!"}},{"$f":"SUMPRODUCT((CaSem=S479)*(CaMode=V482)*CaDébit)","v":{"$error":"#VALUE!"}},{"$f":"SUMPRODUCT((CaSem=S479)*(CaMode=W482)*CaDébit)","v":{"$error":"#VALUE!"}},{"$f":"SUMPRODUCT((CaSem=S479)*(CaMode=X482)*CaDébit)","v":{"$error":"#VALUE!"}},{"$f":"SUM(T486:X486)","v":{"$error":"#VALUE!"}},{"$f":"(T480+R486)-Y486","v":{"$error":"#VALUE!"}}]
[]
[]
[null,null,null,null,null,null,null,null,null,null,null,null,null,null,null,null,null,"Semaine N°",null,"TOTAL","Taxi","Location","Publicité"]
[null,null,null,null,null,null,null,null,null,null,null,null,null,null,null,null,null,null,null,{"$f":"SUMPRODUCT((CaSem=S489)*(CaSem>0)*CaCrédit)","v":{"$error":"#VALUE!"}},{"$f":"SUMPRODUCT((CaSem=S489)*(CACatégorie=U489)*CaCrédit)","v":{"$error":"#VALUE!"}},{"$f":"SUMPRODUCT((CaSem=S489)*(CACatégorie=V489)*CaCrédit)","v":{"$error":"#VALUE!"}},{"$f":"SUMPRODUCT((CaSem=S489)*(CACatégorie=W489)*CaCrédit)","v":{"$error":"#VALUE!"}}]
[]
[null,null,null,null,null,null,null,null,null,null,null,null,null,null,null,null,null,null,null,"Espèce","Chèque","CB","Virement","Tickets","vérif"]
[null,null,null,null,null,null,null,null,null,null,null,null,null,null,null,null,null,null,null,{"$f":"SUMPRODUCT((CaSem=S489)*(CaMode=\"Espèce\")*CaCrédit)","v":{"$error":"#VALUE!"}},{"$f":"SUMPRODUCT((CaSem=S489)*(CaMode=U492)*CaCrédit)","v":{"$error":"#VALUE!"}},{"$f":"SUMPRODUCT((CaSem=S489)*(CaMode=V492)*CaCrédit)","v":{"$error":"#VALUE!"}},{"$f":"SUMPRODUCT((CaSem=S489)*(CaMode=W492)*CaCrédit)","v":{"$error":"#VALUE!"}},{"$f":"SUMPRODUCT((CaSem=S489)*(CaMode=X492)*CaCrédit)","v":{"$error":"#VALUE!"}},{"$f":"SUM(T493:X494)","v":{"$error":"#VALUE!"}}]
[null,null,null,null,null,null,null,null,null,null,null,null,null,null,null,null,null,null,null,null,null,null,null,null,{"$f":"SUMPRODUCT((CaSem=S489)*CaRecJour)","v":0}]
[null,null,null,null,null,null,null,null,null,null,null,null,null,null,null,null,null,"FdC",null,"Remise esp","Remise chq","Remise CB","Rem Virmt","Tickets","TOTAL","Repport"]
[null,null,null,null,null,null,null,null,null,null,null,null,null,null,null,null,null,{"$f":"Z486","v":{"$error":"#VALUE!"}},null,{"$f":"SUMPRODUCT((CaSem=S489)*(CACatégorie=\"Banque\")*(CaMode=T492)*CaDébit)","v":{"$error":"#VALUE!"}},{"$f":"SUMPRODUCT((CaSem=S489)*(CACatégorie=\"Banque\")*(CaMode=U492)*CaDébit)","v":{"$error":"#VALUE!"}},{"$f":"SUMPRODUCT((CaSem=S489)*(CaMode=V492)*CaDébit)","v":{"$error":"#VALUE!"}},{"$f":"SUMPRODUCT((CaSem=S489)*(CaMode=W492)*CaDébit)","v":{"$error":"#VALUE!"}},{"$f":"SUMPRODUCT((CaSem=S489)*(CaMode=X492)*CaDébit)","v":{"$error":"#VALUE!"}},{"$f":"SUM(T496:X496)","v":{"$error":"#VALUE!"}},{"$f":"(T490+R496)-Y496","v":{"$error":"#VALUE!"}}]
[]
[]
[null,null,null,null,null,null,null,null,null,null,null,null,null,null,null,null,null,"Semaine N°",null,"TOTAL","Taxi","Location","Publicité"]
[null,null,null,null,null,null,null,null,null,null,null,null,null,null,null,null,null,null,null,{"$f":"SUMPRODUCT((CaSem=S499)*(CaSem>0)*CaCrédit)","v":{"$error":"#VALUE!"}},{"$f":"SUMPRODUCT((CaSem=S499)*(CACatégorie=U499)*CaCrédit)","v":{"$error":"#VALUE!"}},{"$f":"SUMPRODUCT((CaSem=S499)*(CACatégorie=V499)*CaCrédit)","v":{"$error":"#VALUE!"}},{"$f":"SUMPRODUCT((CaSem=S499)*(CACatégorie=W499)*CaCrédit)","v":{"$error":"#VALUE!"}}]
[]
[null,null,null,null,null,null,null,null,null,null,null,null,null,null,null,null,null,null,null,"Espèce","Chèque","CB","Virement","Tickets","vérif"]
[null,null,null,null,null,null,null,null,null,null,null,null,null,null,null,null,null,null,null,{"$f":"SUMPRODUCT((CaSem=S499)*(CaMode=\"Espèce\")*CaCrédit)","v":{"$error":"#VALUE!"}},{"$f":"SUMPRODUCT((CaSem=S499)*(CaMode=U502)*CaCrédit)","v":{"$error":"#VALUE!"}},{"$f":"SUMPRODUCT((CaSem=S499)*(CaMode=V502)*CaCrédit)","v":{"$error":"#VALUE!"}},{"$f":"SUMPRODUCT((CaSem=S499)*(CaMode=W502)*CaCrédit)","v":{"$error":"#VALUE!"}},{"$f":"SUMPRODUCT((CaSem=S499)*(CaMode=X502)*CaCrédit)","v":{"$error":"#VALUE!"}},{"$f":"SUM(T503:X504)","v":{"$error":"#VALUE!"}}]
[null,null,null,null,null,null,null,null,null,null,null,null,null,null,null,null,null,null,null,null,null,null,null,null,{"$f":"SUMPRODUCT((CaSem=S499)*CaRecJour)","v":0}]
[null,null,null,null,null,null,null,null,null,null,null,null,null,null,null,null,null,"FdC",null,"Remise esp","Remise chq","Remise CB","Rem Virmt","Tickets","TOTAL","Repport"]
[null,null,null,null,null,null,null,null,null,null,null,null,null,null,null,null,null,{"$f":"Z496","v":{"$error":"#VALUE!"}},null,{"$f":"SUMPRODUCT((CaSem=S499)*(CACatégorie=\"Banque\")*(CaMode=T502)*CaDébit)","v":{"$error":"#VALUE!"}},{"$f":"SUMPRODUCT((CaSem=S499)*(CACatégorie=\"Banque\")*(CaMode=U502)*CaDébit)","v":{"$error":"#VALUE!"}},{"$f":"SUMPRODUCT((CaSem=S499)*(CaMode=V502)*CaDébit)","v":{"$error":"#VALUE!"}},{"$f":"SUMPRODUCT((CaSem=S499)*(CaMode=W502)*CaDébit)","v":{"$error":"#VALUE!"}},{"$f":"SUMPRODUCT((CaSem=S499)*(CaMode=X502)*CaDébit)","v":{"$error":"#VALUE!"}},{"$f":"SUM(T506:X506)","v":{"$error":"#VALUE!"}},{"$f":"(T500+R506)-Y506","v":{"$error":"#VALUE!"}}]
[]
[]
[null,null,null,null,null,null,null,null,null,null,null,null,null,null,null,null,null,"Semaine N°",null,"TOTAL","Taxi","Location","Publicité"]
[null,null,null,null,null,null,null,null,null,null,null,null,null,null,null,null,null,null,null,{"$f":"SUMPRODUCT((CaSem=S509)*(CaSem>0)*CaCrédit)","v":{"$error":"#VALUE!"}},{"$f":"SUMPRODUCT((CaSem=S509)*(CACatégorie=U509)*CaCrédit)","v":{"$error":"#VALUE!"}},{"$f":"SUMPRODUCT((CaSem=S509)*(CACatégorie=V509)*CaCrédit)","v":{"$error":"#VALUE!"}},{"$f":"SUMPRODUCT((CaSem=S509)*(CACatégorie=W509)*CaCrédit)","v":{"$error":"#VALUE!"}}]
[]
[null,null,null,null,null,null,null,null,null,null,null,null,null,null,null,null,null,null,null,"Espèce","Chèque","CB","Virement","Tickets","vérif"]
[null,null,null,null,null,null,null,null,null,null,null,null,null,null,null,null,null,null,null,{"$f":"SUMPRODUCT((CaSem=S509)*(CaMode=\"Espèce\")*CaCrédit)","v":{"$error":"#VALUE!"}},{"$f":"SUMPRODUCT((CaSem=S509)*(CaMode=U512)*CaCrédit)","v":{"$error":"#VALUE!"}},{"$f":"SUMPRODUCT((CaSem=S509)*(CaMode=V512)*CaCrédit)","v":{"$error":"#VALUE!"}},{"$f":"SUMPRODUCT((CaSem=S509)*(CaMode=W512)*CaCrédit)","v":{"$error":"#VALUE!"}},{"$f":"SUMPRODUCT((CaSem=S509)*(CaMode=X512)*CaCrédit)","v":{"$error":"#VALUE!"}},{"$f":"SUM(T513:X514)","v":{"$error":"#VALUE!"}}]
[null,null,null,null,null,null,null,null,null,null,null,null,null,null,null,null,null,null,null,null,null,null,null,null,{"$f":"SUMPRODUCT((CaSem=S509)*CaRecJour)","v":0}]
[null,null,null,null,null,null,null,null,null,null,null,null,null,null,null,null,null,"FdC",null,"Remise esp","Remise chq","Remise CB","Rem Virmt","Tickets","TOTAL","Repport"]
[null,null,null,null,null,null,null,null,null,null,null,null,null,null,null,null,null,{"$f":"Z506","v":{"$error":"#VALUE!"}},null,{"$f":"SUMPRODUCT((CaSem=S509)*(CACatégorie=\"Banque\")*(CaMode=T512)*CaDébit)","v":{"$error":"#VALUE!"}},{"$f":"SUMPRODUCT((CaSem=S509)*(CACatégorie=\"Banque\")*(CaMode=U512)*CaDébit)","v":{"$error":"#VALUE!"}},{"$f":"SUMPRODUCT((CaSem=S509)*(CaMode=V512)*CaDébit)","v":{"$error":"#VALUE!"}},{"$f":"SUMPRODUCT((CaSem=S509)*(CaMode=W512)*CaDébit)","v":{"$error":"#VALUE!"}},{"$f":"SUMPRODUCT((CaSem=S509)*(CaMode=X512)*CaDébit)","v":{"$error":"#VALUE!"}},{"$f":"SUM(T516:X516)","v":{"$error":"#VALUE!"}},{"$f":"(T510+R516)-Y516","v":{"$error":"#VALUE!"}}]
[]
[]
[null,null,null,null,null,null,null,null,null,null,null,null,null,null,null,null,null,"Semaine N°",null,"TOTAL","Taxi","Location","Publicité"]
[null,null,null,null,null,null,null,null,null,null,null,null,null,null,null,null,null,null,null,{"$f":"SUMPRODUCT((CaSem=S519)*(CaSem>0)*CaCrédit)","v":{"$error":"#VALUE!"}},{"$f":"SUMPRODUCT((CaSem=S519)*(CACatégorie=U519)*CaCrédit)","v":{"$error":"#VALUE!"}},{"$f":"SUMPRODUCT((CaSem=S519)*(CACatégorie=V519)*CaCrédit)","v":{"$error":"#VALUE!"}},{"$f":"SUMPRODUCT((CaSem=S519)*(CACatégorie=W519)*CaCrédit)","v":{"$error":"#VALUE!"}}]
[]
[null,null,null,null,null,null,null,null,null,null,null,null,null,null,null,null,null,null,null,"Espèce","Chèque","CB","Virement","Tickets","vérif"]
[null,null,null,null,null,null,null,null,null,null,null,null,null,null,null,null,null,null,null,{"$f":"SUMPRODUCT((CaSem=S519)*(CaMode=\"Espèce\")*CaCrédit)","v":{"$error":"#VALUE!"}},{"$f":"SUMPRODUCT((CaSem=S519)*(CaMode=U522)*CaCrédit)","v":{"$error":"#VALUE!"}},{"$f":"SUMPRODUCT((CaSem=S519)*(CaMode=V522)*CaCrédit)","v":{"$error":"#VALUE!"}},{"$f":"SUMPRODUCT((CaSem=S519)*(CaMode=W522)*CaCrédit)","v":{"$error":"#VALUE!"}},{"$f":"SUMPRODUCT((CaSem=S519)*(CaMode=X522)*CaCrédit)","v":{"$error":"#VALUE!"}},{"$f":"SUM(T523:X524)","v":{"$error":"#VALUE!"}}]
[null,null,null,null,null,null,null,null,null,null,null,null,null,null,null,null,null,null,null,null,null,null,null,null,{"$f":"SUMPRODUCT((CaSem=S519)*CaRecJour)","v":0}]
[null,null,null,null,null,null,null,null,null,null,null,null,null,null,null,null,null,"FdC",null,"Remise esp","Remise chq","Remise CB","Rem Virmt","Tickets","TOTAL","Repport"]
[null,null,null,null,null,null,null,null,null,null,null,null,null,null,null,null,null,{"$f":"Z516","v":{"$error":"#VALUE!"}},null,{"$f":"SUMPRODUCT((CaSem=S519)*(CACatégorie=\"Banque\")*(CaMode=T522)*CaDébit)","v":{"$error":"#VALUE!"}},{"$f":"SUMPRODUCT((CaSem=S519)*(CACatégorie=\"Banque\")*(CaMode=U522)*CaDébit)","v":{"$error":"#VALUE!"}},{"$f":"SUMPRODUCT((CaSem=S519)*(CaMode=V522)*CaDébit)","v":{"$error":"#VALUE!"}},{"$f":"SUMPRODUCT((CaSem=S519)*(CaMode=W522)*CaDébit)","v":{"$error":"#VALUE!"}},{"$f":"SUMPRODUCT((CaSem=S519)*(CaMode=X522)*CaDébit)","v":{"$error":"#VALUE!"}},{"$f":"SUM(T526:X526)","v":{"$error":"#VALUE!"}},{"$f":"(T520+R526)-Y526","v":{"$error":"#VALUE!"}}]
[]
[]
[null,null,null,null,null,null,null,null,null,null,null,null,null,null,null,null,null,"Semaine N°",null,"TOTAL","Taxi","Location","Publicité"]
[null,null,null,null,null,null,null,null,null,null,null,null,null,null,null,null,null,null,null,{"$f":"SUMPRODUCT((CaSem=S529)*(CaSem>0)*CaCrédit)","v":{"$error":"#VALUE!"}},{"$f":"SUMPRODUCT((CaSem=S529)*(CACatégorie=U529)*CaCrédit)","v":{"$error":"#VALUE!"}},{"$f":"SUMPRODUCT((CaSem=S529)*(CACatégorie=V529)*CaCrédit)","v":{"$error":"#VALUE!"}},{"$f":"SUMPRODUCT((CaSem=S529)*(CACatégorie=W529)*CaCrédit)","v":{"$error":"#VALUE!"}}]
[]
[null,null,null,null,null,null,null,null,null,null,null,null,null,null,null,null,null,null,null,"Espèce","Chèque","CB","Virement","Tickets","vérif"]
[null,null,null,null,null,null,null,null,null,null,null,null,null,null,null,null,null,null,null,{"$f":"SUMPRODUCT((CaSem=S529)*(CaMode=\"Espèce\")*CaCrédit)","v":{"$error":"#VALUE!"}},{"$f":"SUMPRODUCT((CaSem=S529)*(CaMode=U532)*CaCrédit)","v":{"$error":"#VALUE!"}},{"$f":"SUMPRODUCT((CaSem=S529)*(CaMode=V532)*CaCrédit)","v":{"$error":"#VALUE!"}},{"$f":"SUMPRODUCT((CaSem=S529)*(CaMode=W532)*CaCrédit)","v":{"$error":"#VALUE!"}},{"$f":"SUMPRODUCT((CaSem=S529)*(CaMode=X532)*CaCrédit)","v":{"$error":"#VALUE!"}},{"$f":"SUM(T533:X534)","v":{"$error":"#VALUE!"}}]
[null,null,null,null,null,null,null,null,null,null,null,null,null,null,null,null,null,null,null,null,null,null,null,null,{"$f":"SUMPRODUCT((CaSem=S529)*CaRecJour)","v":0}]
[null,null,null,null,null,null,null,null,null,null,null,null,null,null,null,null,null,"FdC",null,"Remise esp","Remise chq","Remise CB","Rem Virmt","Tickets","TOTAL","Repport"]
[null,null,null,null,null,null,null,null,null,null,null,null,null,null,null,null,null,{"$f":"Z526","v":{"$error":"#VALUE!"}},null,{"$f":"SUMPRODUCT((CaSem=S529)*(CACatégorie=\"Banque\")*(CaMode=T532)*CaDébit)","v":{"$error":"#VALUE!"}},{"$f":"SUMPRODUCT((CaSem=S529)*(CACatégorie=\"Banque\")*(CaMode=U532)*CaDébit)","v":{"$error":"#VALUE!"}},{"$f":"SUMPRODUCT((CaSem=S529)*(CaMode=V532)*CaDébit)","v":{"$error":"#VALUE!"}},{"$f":"SUMPRODUCT((CaSem=S529)*(CaMode=W532)*CaDébit)","v":{"$error":"#VALUE!"}},{"$f":"SUMPRODUCT((CaSem=S529)*(CaMode=X532)*CaDébit)","v":{"$error":"#VALUE!"}},{"$f":"SUM(T536:X536)","v":{"$error":"#VALUE!"}},{"$f":"(T530+R536)-Y536","v":{"$error":"#VALUE!"}}]
[]
[]
[null,null,null,null,null,null,null,null,null,null,null,null,null,null,null,null,null,"Semaine N°",null,"TOTAL","Taxi","Location","Publicité"]
[null,null,null,null,null,null,null,null,null,null,null,null,null,null,null,null,null,null,null,{"$f":"SUMPRODUCT((CaSem=S539)*(CaSem>0)*CaCrédit)","v":{"$error":"#VALUE!"}},{"$f":"SUMPRODUCT((CaSem=S539)*(CACatégorie=U539)*CaCrédit)","v":{"$error":"#VALUE!"}},{"$f":"SUMPRODUCT((CaSem=S539)*(CACatégorie=V539)*CaCrédit)","v":{"$error":"#VALUE!"}},{"$f":"SUMPRODUCT((CaSem=S539)*(CACatégorie=W539)*CaCrédit)","v":{"$error":"#VALUE!"}}]
[]
[null,null,null,null,null,null,null,null,null,null,null,null,null,null,null,null,null,null,null,"Espèce","Chèque","CB","Virement","Tickets","vérif"]
[null,null,null,null,null,null,null,null,null,null,null,null,null,null,null,null,null,null,null,{"$f":"SUMPRODUCT((CaSem=S539)*(CaMode=\"Espèce\")*CaCrédit)","v":{"$error":"#VALUE!"}},{"$f":"SUMPRODUCT((CaSem=S539)*(CaMode=U542)*CaCrédit)","v":{"$error":"#VALUE!"}},{"$f":"SUMPRODUCT((CaSem=S539)*(CaMode=V542)*CaCrédit)","v":{"$error":"#VALUE!"}},{"$f":"SUMPRODUCT((CaSem=S539)*(CaMode=W542)*CaCrédit)","v":{"$error":"#VALUE!"}},{"$f":"SUMPRODUCT((CaSem=S539)*(CaMode=X542)*CaCrédit)","v":{"$error":"#VALUE!"}},{"$f":"SUM(T543:X544)","v":{"$error":"#VALUE!"}}]
[null,null,null,null,null,null,null,null,null,null,null,null,null,null,null,null,null,null,null,null,null,null,null,null,{"$f":"SUMPRODUCT((CaSem=S539)*CaRecJour)","v":0}]
[null,null,null,null,null,null,null,null,null,null,null,null,null,null,null,null,null,"FdC",null,"Remise esp","Remise chq","Remise CB","Rem Virmt","Tickets","TOTAL","Repport"]
[null,null,null,null,null,null,null,null,null,null,null,null,null,null,null,null,null,{"$f":"Z536","v":{"$error":"#VALUE!"}},null,{"$f":"SUMPRODUCT((CaSem=S539)*(CACatégorie=\"Banque\")*(CaMode=T542)*CaDébit)","v":{"$error":"#VALUE!"}},{"$f":"SUMPRODUCT((CaSem=S539)*(CACatégorie=\"Banque\")*(CaMode=U542)*CaDébit)","v":{"$error":"#VALUE!"}},{"$f":"SUMPRODUCT((CaSem=S539)*(CaMode=V542)*CaDébit)","v":{"$error":"#VALUE!"}},{"$f":"SUMPRODUCT((CaSem=S539)*(CaMode=W542)*CaDébit)","v":{"$error":"#VALUE!"}},{"$f":"SUMPRODUCT((CaSem=S539)*(CaMode=X542)*CaDébit)","v":{"$error":"#VALUE!"}},{"$f":"SUM(T546:X546)","v":{"$error":"#VALUE!"}},{"$f":"(T540+R546)-Y546","v":{"$error":"#VALUE!"}}]
[]
[]
[null,null,null,null,null,null,null,null,null,null,null,null,null,null,null,null,null,"Semaine N°",null,"TOTAL","Taxi","Location","Publicité"]
[null,null,null,null,null,null,null,null,null,null,null,null,null,null,null,null,null,null,null,{"$f":"SUMPRODUCT((CaSem=S549)*(CaSem>0)*CaCrédit)","v":{"$error":"#VALUE!"}},{"$f":"SUMPRODUCT((CaSem=S549)*(CACatégorie=U549)*CaCrédit)","v":{"$error":"#VALUE!"}},{"$f":"SUMPRODUCT((CaSem=S549)*(CACatégorie=V549)*CaCrédit)","v":{"$error":"#VALUE!"}},{"$f":"SUMPRODUCT((CaSem=S549)*(CACatégorie=W549)*CaCrédit)","v":{"$error":"#VALUE!"}}]
[]
[null,null,null,null,null,null,null,null,null,null,null,null,null,null,null,null,null,null,null,"Espèce","Chèque","CB","Virement","Tickets","vérif"]
[null,null,null,null,null,null,null,null,null,null,null,null,null,null,null,null,null,null,null,{"$f":"SUMPRODUCT((CaSem=S549)*(CaMode=\"Espèce\")*CaCrédit)","v":{"$error":"#VALUE!"}},{"$f":"SUMPRODUCT((CaSem=S549)*(CaMode=U552)*CaCrédit)","v":{"$error":"#VALUE!"}},{"$f":"SUMPRODUCT((CaSem=S549)*(CaMode=V552)*CaCrédit)","v":{"$error":"#VALUE!"}},{"$f":"SUMPRODUCT((CaSem=S549)*(CaMode=W552)*CaCrédit)","v":{"$error":"#VALUE!"}},{"$f":"SUMPRODUCT((CaSem=S549)*(CaMode=X552)*CaCrédit)","v":{"$error":"#VALUE!"}},{"$f":"SUM(T553:X554)","v":{"$error":"#VALUE!"}}]
[null,null,null,null,null,null,null,null,null,null,null,null,null,null,null,null,null,null,null,null,null,null,null,null,{"$f":"SUMPRODUCT((CaSem=S549)*CaRecJour)","v":0}]
[null,null,null,null,null,null,null,null,null,null,null,null,null,null,null,null,null,"FdC",null,"Remise esp","Remise chq","Remise CB","Rem Virmt","Tickets","TOTAL","Repport"]
[null,null,null,null,null,null,null,null,null,null,null,null,null,null,null,null,null,{"$f":"Z546","v":{"$error":"#VALUE!"}},null,{"$f":"SUMPRODUCT((CaSem=S549)*(CACatégorie=\"Banque\")*(CaMode=T552)*CaDébit)","v":{"$error":"#VALUE!"}},{"$f":"SUMPRODUCT((CaSem=S549)*(CACatégorie=\"Banque\")*(CaMode=U552)*CaDébit)","v":{"$error":"#VALUE!"}},{"$f":"SUMPRODUCT((CaSem=S549)*(CaMode=V552)*CaDébit)","v":{"$error":"#VALUE!"}},{"$f":"SUMPRODUCT((CaSem=S549)*(CaMode=W552)*CaDébit)","v":{"$error":"#VALUE!"}},{"$f":"SUMPRODUCT((CaSem=S549)*(CaMode=X552)*CaDébit)","v":{"$error":"#VALUE!"}},{"$f":"SUM(T556:X556)","v":{"$error":"#VALUE!"}},{"$f":"(T550+R556)-Y556","v":{"$error":"#VALUE!"}}]
[]
[]
[null,null,null,null,null,null,null,null,null,null,null,null,null,null,null,null,null,"Semaine N°",null,"TOTAL","Taxi","Location","Publicité"]
[null,null,null,null,null,null,null,null,null,null,null,null,null,null,null,null,null,null,null,{"$f":"SUMPRODUCT((CaSem=S559)*(CaSem>0)*CaCrédit)","v":{"$error":"#VALUE!"}},{"$f":"SUMPRODUCT((CaSem=S559)*(CACatégorie=U559)*CaCrédit)","v":{"$error":"#VALUE!"}},{"$f":"SUMPRODUCT((CaSem=S559)*(CACatégorie=V559)*CaCrédit)","v":{"$error":"#VALUE!"}},{"$f":"SUMPRODUCT((CaSem=S559)*(CACatégorie=W559)*CaCrédit)","v":{"$error":"#VALUE!"}}]
[]
[null,null,null,null,null,null,null,null,null,null,null,null,null,null,null,null,null,null,null,"Espèce","Chèque","CB","Virement","Tickets","vérif"]
[null,null,null,null,null,null,null,null,null,null,null,null,null,null,null,null,null,null,null,{"$f":"SUMPRODUCT((CaSem=S559)*(CaMode=\"Espèce\")*CaCrédit)","v":{"$error":"#VALUE!"}},{"$f":"SUMPRODUCT((CaSem=S559)*(CaMode=U562)*CaCrédit)","v":{"$error":"#VALUE!"}},{"$f":"SUMPRODUCT((CaSem=S559)*(CaMode=V562)*CaCrédit)","v":{"$error":"#VALUE!"}},{"$f":"SUMPRODUCT((CaSem=S559)*(CaMode=W562)*CaCrédit)","v":{"$error":"#VALUE!"}},{"$f":"SUMPRODUCT((CaSem=S559)*(CaMode=X562)*CaCrédit)","v":{"$error":"#VALUE!"}},{"$f":"SUM(T563:X564)","v":{"$error":"#VALUE!"}}]
[null,null,null,null,null,null,null,null,null,null,null,null,null,null,null,null,null,null,null,null,null,null,null,null,{"$f":"SUMPRODUCT((CaSem=S559)*CaRecJour)","v":0}]
[null,null,null,null,null,null,null,null,null,null,null,null,null,null,null,null,null,"FdC",null,"Remise esp","Remise chq","Remise CB","Rem Virmt","Tickets","TOTAL","Repport"]
[null,null,null,null,null,null,null,null,null,null,null,null,null,null,null,null,null,{"$f":"Z556","v":{"$error":"#VALUE!"}},null,{"$f":"SUMPRODUCT((CaSem=S559)*(CACatégorie=\"Banque\")*(CaMode=T562)*CaDébit)","v":{"$error":"#VALUE!"}},{"$f":"SUMPRODUCT((CaSem=S559)*(CACatégorie=\"Banque\")*(CaMode=U562)*CaDébit)","v":{"$error":"#VALUE!"}},{"$f":"SUMPRODUCT((CaSem=S559)*(CaMode=V562)*CaDébit)","v":{"$error":"#VALUE!"}},{"$f":"SUMPRODUCT((CaSem=S559)*(CaMode=W562)*CaDébit)","v":{"$error":"#VALUE!"}},{"$f":"SUMPRODUCT((CaSem=S559)*(CaMode=X562)*CaDébit)","v":{"$error":"#VALUE!"}},{"$f":"SUM(T566:X566)","v":{"$error":"#VALUE!"}},{"$f":"(T560+R566)-Y566","v":{"$error":"#VALUE!"}}]
[]
[]
[null,null,null,null,null,null,null,null,null,null,null,null,null,null,null,null,null,"Semaine N°",null,"TOTAL","Taxi","Location","Publicité"]
[null,null,null,null,null,null,null,null,null,null,null,null,null,null,null,null,null,null,null,{"$f":"SUMPRODUCT((CaSem=S569)*(CaSem>0)*CaCrédit)","v":{"$error":"#VALUE!"}},{"$f":"SUMPRODUCT((CaSem=S569)*(CACatégorie=U569)*CaCrédit)","v":{"$error":"#VALUE!"}},{"$f":"SUMPRODUCT((CaSem=S569)*(CACatégorie=V569)*CaCrédit)","v":{"$error":"#VALUE!"}},{"$f":"SUMPRODUCT((CaSem=S569)*(CACatégorie=W569)*CaCrédit)","v":{"$error":"#VALUE!"}}]
[]
[null,null,null,null,null,null,null,null,null,null,null,null,null,null,null,null,null,null,null,"Espèce","Chèque","CB","Virement","Tickets","vérif"]
[null,null,null,null,null,null,null,null,null,null,null,null,null,null,null,null,null,null,null,{"$f":"SUMPRODUCT((CaSem=S569)*(CaMode=\"Espèce\")*CaCrédit)","v":{"$error":"#VALUE!"}},{"$f":"SUMPRODUCT((CaSem=S569)*(CaMode=U572)*CaCrédit)","v":{"$error":"#VALUE!"}},{"$f":"SUMPRODUCT((CaSem=S569)*(CaMode=V572)*CaCrédit)","v":{"$error":"#VALUE!"}},{"$f":"SUMPRODUCT((CaSem=S569)*(CaMode=W572)*CaCrédit)","v":{"$error":"#VALUE!"}},{"$f":"SUMPRODUCT((CaSem=S569)*(CaMode=X572)*CaCrédit)","v":{"$error":"#VALUE!"}},{"$f":"SUM(T573:X574)","v":{"$error":"#VALUE!"}}]
[null,null,null,null,null,null,null,null,null,null,null,null,null,null,null,null,null,null,null,null,null,null,null,null,{"$f":"SUMPRODUCT((CaSem=S569)*CaRecJour)","v":0}]
[null,null,null,null,null,null,null,null,null,null,null,null,null,null,null,null,null,"FdC",null,"Remise esp","Remise chq","Remise CB","Rem Virmt","Tickets","TOTAL","Repport"]
[null,null,null,null,null,null,null,null,null,null,null,null,null,null,null,null,null,{"$f":"Z566","v":{"$error":"#VALUE!"}},null,{"$f":"SUMPRODUCT((CaSem=S569)*(CACatégorie=\"Banque\")*(CaMode=T572)*CaDébit)","v":{"$error":"#VALUE!"}},{"$f":"SUMPRODUCT((CaSem=S569)*(CACatégorie=\"Banque\")*(CaMode=U572)*CaDébit)","v":{"$error":"#VALUE!"}},{"$f":"SUMPRODUCT((CaSem=S569)*(CaMode=V572)*CaDébit)","v":{"$error":"#VALUE!"}},{"$f":"SUMPRODUCT((CaSem=S569)*(CaMode=W572)*CaDébit)","v":{"$error":"#VALUE!"}},{"$f":"SUMPRODUCT((CaSem=S569)*(CaMode=X572)*CaDébit)","v":{"$error":"#VALUE!"}},{"$f":"SUM(T576:X576)","v":{"$error":"#VALUE!"}},{"$f":"(T570+R576)-Y576","v":{"$error":"#VALUE!"}}]
[]
[]
[null,null,null,null,null,null,null,null,null,null,null,null,null,null,null,null,null,"Semaine N°",null,"TOTAL","Taxi","Location","Publicité"]
[null,null,null,null,null,null,null,null,null,null,null,null,null,null,null,null,null,null,null,{"$f":"SUMPRODUCT((CaSem=S579)*(CaSem>0)*CaCrédit)","v":{"$error":"#VALUE!"}},{"$f":"SUMPRODUCT((CaSem=S579)*(CACatégorie=U579)*CaCrédit)","v":{"$error":"#VALUE!"}},{"$f":"SUMPRODUCT((CaSem=S579)*(CACatégorie=V579)*CaCrédit)","v":{"$error":"#VALUE!"}},{"$f":"SUMPRODUCT((CaSem=S579)*(CACatégorie=W579)*CaCrédit)","v":{"$error":"#VALUE!"}}]
[]
[null,null,null,null,null,null,null,null,null,null,null,null,null,null,null,null,null,null,null,"Espèce","Chèque","CB","Virement","Tickets","vérif"]
[null,null,null,null,null,null,null,null,null,null,null,null,null,null,null,null,null,null,null,{"$f":"SUMPRODUCT((CaSem=S579)*(CaMode=\"Espèce\")*CaCrédit)","v":{"$error":"#VALUE!"}},{"$f":"SUMPRODUCT((CaSem=S579)*(CaMode=U582)*CaCrédit)","v":{"$error":"#VALUE!"}},{"$f":"SUMPRODUCT((CaSem=S579)*(CaMode=V582)*CaCrédit)","v":{"$error":"#VALUE!"}},{"$f":"SUMPRODUCT((CaSem=S579)*(CaMode=W582)*CaCrédit)","v":{"$error":"#VALUE!"}},{"$f":"SUMPRODUCT((CaSem=S579)*(CaMode=X582)*CaCrédit)","v":{"$error":"#VALUE!"}},{"$f":"SUM(T583:X584)","v":{"$error":"#VALUE!"}}]
[null,null,null,null,null,null,null,null,null,null,null,null,null,null,null,null,null,null,null,null,null,null,null,null,{"$f":"SUMPRODUCT((CaSem=S579)*CaRecJour)","v":0}]
[null,null,null,null,null,null,null,null,null,null,null,null,null,null,null,null,null,"FdC",null,"Remise esp","Remise chq","Remise CB","Rem Virmt","Tickets","TOTAL","Repport"]
[null,null,null,null,null,null,null,null,null,null,null,null,null,null,null,null,null,{"$f":"Z576","v":{"$error":"#VALUE!"}},null,{"$f":"SUMPRODUCT((CaSem=S579)*(CACatégorie=\"Banque\")*(CaMode=T582)*CaDébit)","v":{"$error":"#VALUE!"}},{"$f":"SUMPRODUCT((CaSem=S579)*(CACatégorie=\"Banque\")*(CaMode=U582)*CaDébit)","v":{"$error":"#VALUE!"}},{"$f":"SUMPRODUCT((CaSem=S579)*(CaMode=V582)*CaDébit)","v":{"$error":"#VALUE!"}},{"$f":"SUMPRODUCT((CaSem=S579)*(CaMode=W582)*CaDébit)","v":{"$error":"#VALUE!"}},{"$f":"SUMPRODUCT((CaSem=S579)*(CaMode=X582)*CaDébit)","v":{"$error":"#VALUE!"}},{"$f":"SUM(T586:X586)","v":{"$error":"#VALUE!"}},{"$f":"(T580+R586)-Y586","v":{"$error":"#VALUE!"}}]
[]
[]
[null,null,null,null,null,null,null,null,null,null,null,null,null,null,null,null,null,"Semaine N°",null,"TOTAL","Taxi","Location","Publicité"]
[null,null,null,null,null,null,null,null,null,null,null,null,null,null,null,null,null,null,null,{"$f":"SUMPRODUCT((CaSem=S589)*(CaSem>0)*CaCrédit)","v":{"$error":"#VALUE!"}},{"$f":"SUMPRODUCT((CaSem=S589)*(CACatégorie=U589)*CaCrédit)","v":{"$error":"#VALUE!"}},{"$f":"SUMPRODUCT((CaSem=S589)*(CACatégorie=V589)*CaCrédit)","v":{"$error":"#VALUE!"}},{"$f":"SUMPRODUCT((CaSem=S589)*(CACatégorie=W589)*CaCrédit)","v":{"$error":"#VALUE!"}}]
[]
[null,null,null,null,null,null,null,null,null,null,null,null,null,null,null,null,null,null,null,"Espèce","Chèque","CB","Virement","Tickets","vérif"]
[null,null,null,null,null,null,null,null,null,null,null,null,null,null,null,null,null,null,null,{"$f":"SUMPRODUCT((CaSem=S589)*(CaMode=\"Espèce\")*CaCrédit)","v":{"$error":"#VALUE!"}},{"$f":"SUMPRODUCT((CaSem=S589)*(CaMode=U592)*CaCrédit)","v":{"$error":"#VALUE!"}},{"$f":"SUMPRODUCT((CaSem=S589)*(CaMode=V592)*CaCrédit)","v":{"$error":"#VALUE!"}},{"$f":"SUMPRODUCT((CaSem=S589)*(CaMode=W592)*CaCrédit)","v":{"$error":"#VALUE!"}},{"$f":"SUMPRODUCT((CaSem=S589)*(CaMode=X592)*CaCrédit)","v":{"$error":"#VALUE!"}},{"$f":"SUM(T593:X594)","v":{"$error":"#VALUE!"}}]
[null,null,null,null,null,null,null,null,null,null,null,null,null,null,null,null,null,null,null,null,null,null,null,null,{"$f":"SUMPRODUCT((CaSem=S589)*CaRecJour)","v":0}]
[null,null,null,null,null,null,null,null,null,null,null,null,null,null,null,null,null,"FdC",null,"Remise esp","Remise chq","Remise CB","Rem Virmt","Tickets","TOTAL","Repport"]
[null,null,null,null,null,null,null,null,null,null,null,null,null,null,null,null,null,{"$f":"Z586","v":{"$error":"#VALUE!"}},null,{"$f":"SUMPRODUCT((CaSem=S589)*(CACatégorie=\"Banque\")*(CaMode=T592)*CaDébit)","v":{"$error":"#VALUE!"}},{"$f":"SUMPRODUCT((CaSem=S589)*(CACatégorie=\"Banque\")*(CaMode=U592)*CaDébit)","v":{"$error":"#VALUE!"}},{"$f":"SUMPRODUCT((CaSem=S589)*(CaMode=V592)*CaDébit)","v":{"$error":"#VALUE!"}},{"$f":"SUMPRODUCT((CaSem=S589)*(CaMode=W592)*CaDébit)","v":{"$error":"#VALUE!"}},{"$f":"SUMPRODUCT((CaSem=S589)*(CaMode=X592)*CaDébit)","v":{"$error":"#VALUE!"}},{"$f":"SUM(T596:X596)","v":{"$error":"#VALUE!"}},{"$f":"(T590+R596)-Y596","v":{"$error":"#VALUE!"}}]
[]
[]
[null,null,null,null,null,null,null,null,null,null,null,null,null,null,null,null,null,"Semaine N°",null,"TOTAL","Taxi","Location","Publicité"]
[null,null,null,null,null,null,null,null,null,null,null,null,null,null,null,null,null,null,null,{"$f":"SUMPRODUCT((CaSem=S599)*(CaSem>0)*CaCrédit)","v":{"$error":"#VALUE!"}},{"$f":"SUMPRODUCT((CaSem=S599)*(CACatégorie=U599)*CaCrédit)","v":{"$error":"#VALUE!"}},{"$f":"SUMPRODUCT((CaSem=S599)*(CACatégorie=V599)*CaCrédit)","v":{"$error":"#VALUE!"}},{"$f":"SUMPRODUCT((CaSem=S599)*(CACatégorie=W599)*CaCrédit)","v":{"$error":"#VALUE!"}}]
[]
[null,null,null,null,null,null,null,null,null,null,null,null,null,null,null,null,null,null,null,"Espèce","Chèque","CB","Virement","Tickets","vérif"]
[null,null,null,null,null,null,null,null,null,null,null,null,null,null,null,null,null,null,null,{"$f":"SUMPRODUCT((CaSem=S599)*(CaMode=\"Espèce\")*CaCrédit)","v":{"$error":"#VALUE!"}},{"$f":"SUMPRODUCT((CaSem=S599)*(CaMode=U602)*CaCrédit)","v":{"$error":"#VALUE!"}},{"$f":"SUMPRODUCT((CaSem=S599)*(CaMode=V602)*CaCrédit)","v":{"$error":"#VALUE!"}},{"$f":"SUMPRODUCT((CaSem=S599)*(CaMode=W602)*CaCrédit)","v":{"$error":"#VALUE!"}},{"$f":"SUMPRODUCT((CaSem=S599)*(CaMode=X602)*CaCrédit)","v":{"$error":"#VALUE!"}},{"$f":"SUM(T603:X604)","v":{"$error":"#VALUE!"}}]
[null,null,null,null,null,null,null,null,null,null,null,null,null,null,null,null,null,null,null,null,null,null,null,null,{"$f":"SUMPRODUCT((CaSem=S599)*CaRecJour)","v":0}]
[null,null,null,null,null,null,null,null,null,null,null,null,null,null,null,null,null,"FdC",null,"Remise esp","Remise chq","Remise CB","Rem Virmt","Tickets","TOTAL","Repport"]
[null,null,null,null,null,null,null,null,null,null,null,null,null,null,null,null,null,{"$f":"Z596","v":{"$error":"#VALUE!"}},null,{"$f":"SUMPRODUCT((CaSem=S599)*(CACatégorie=\"Banque\")*(CaMode=T602)*CaDébit)","v":{"$error":"#VALUE!"}},{"$f":"SUMPRODUCT((CaSem=S599)*(CACatégorie=\"Banque\")*(CaMode=U602)*CaDébit)","v":{"$error":"#VALUE!"}},{"$f":"SUMPRODUCT((CaSem=S599)*(CaMode=V602)*CaDébit)","v":{"$error":"#VALUE!"}},{"$f":"SUMPRODUCT((CaSem=S599)*(CaMode=W602)*CaDébit)","v":{"$error":"#VALUE!"}},{"$f":"SUMPRODUCT((CaSem=S599)*(CaMode=X602)*CaDébit)","v":{"$error":"#VALUE!"}},{"$f":"SUM(T606:X606)","v":{"$error":"#VALUE!"}},{"$f":"(T600+R606)-Y606","v":{"$error":"#VALUE!"}}]
[]
[]
[null,null,null,null,null,null,null,null,null,null,null,null,null,null,null,null,null,"Semaine N°",null,"TOTAL","Taxi","Location","Publicité"]
[null,null,null,null,null,null,null,null,null,null,null,null,null,null,null,null,null,null,null,{"$f":"SUMPRODUCT((CaSem=S609)*(CaSem>0)*CaCrédit)","v":{"$error":"#VALUE!"}},{"$f":"SUMPRODUCT((CaSem=S609)*(CACatégorie=U609)*CaCrédit)","v":{"$error":"#VALUE!"}},{"$f":"SUMPRODUCT((CaSem=S609)*(CACatégorie=V609)*CaCrédit)","v":{"$error":"#VALUE!"}},{"$f":"SUMPRODUCT((CaSem=S609)*(CACatégorie=W609)*CaCrédit)","v":{"$error":"#VALUE!"}}]
[]
[null,null,null,null,null,null,null,null,null,null,null,null,null,null,null,null,null,null,null,"Espèce","Chèque","CB","Virement","Tickets","vérif"]
[null,null,null,null,null,null,null,null,null,null,null,null,null,null,null,null,null,null,null,{"$f":"SUMPRODUCT((CaSem=S609)*(CaMode=\"Espèce\")*CaCrédit)","v":{"$error":"#VALUE!"}},{"$f":"SUMPRODUCT((CaSem=S609)*(CaMode=U612)*CaCrédit)","v":{"$error":"#VALUE!"}},{"$f":"SUMPRODUCT((CaSem=S609)*(CaMode=V612)*CaCrédit)","v":{"$error":"#VALUE!"}},{"$f":"SUMPRODUCT((CaSem=S609)*(CaMode=W612)*CaCrédit)","v":{"$error":"#VALUE!"}},{"$f":"SUMPRODUCT((CaSem=S609)*(CaMode=X612)*CaCrédit)","v":{"$error":"#VALUE!"}},{"$f":"SUM(T613:X614)","v":{"$error":"#VALUE!"}}]
[null,null,null,null,null,null,null,null,null,null,null,null,null,null,null,null,null,null,null,null,null,null,null,null,{"$f":"SUMPRODUCT((CaSem=S609)*CaRecJour)","v":0}]
[null,null,null,null,null,null,null,null,null,null,null,null,null,null,null,null,null,"FdC",null,"Remise esp","Remise chq","Remise CB","Rem Virmt","Tickets","TOTAL","Repport"]
[null,null,null,null,null,null,null,null,null,null,null,null,null,null,null,null,null,{"$f":"Z606","v":{"$error":"#VALUE!"}},null,{"$f":"SUMPRODUCT((CaSem=S609)*(CACatégorie=\"Banque\")*(CaMode=T612)*CaDébit)","v":{"$error":"#VALUE!"}},{"$f":"SUMPRODUCT((CaSem=S609)*(CACatégorie=\"Banque\")*(CaMode=U612)*CaDébit)","v":{"$error":"#VALUE!"}},{"$f":"SUMPRODUCT((CaSem=S609)*(CaMode=V612)*CaDébit)","v":{"$error":"#VALUE!"}},{"$f":"SUMPRODUCT((CaSem=S609)*(CaMode=W612)*CaDébit)","v":{"$error":"#VALUE!"}},{"$f":"SUMPRODUCT((CaSem=S609)*(CaMode=X612)*CaDébit)","v":{"$error":"#VALUE!"}},{"$f":"SUM(T616:X616)","v":{"$error":"#VALUE!"}},{"$f":"(T610+R616)-Y616","v":{"$error":"#VALUE!"}}]

{"sheet":"BANQUE","index":1,"n_rows":1004,"n_cols":36,"rows_kept":1004,"cut":false,"hidden":false,"merged":[[0,25,1,33],[5,13,5,18],[10,23,11,23],[8,23,9,23],[8,24,9,24],[8,25,9,25],[10,24,11,24],[10,25,11,25],[10,34,11,34],[10,35,11,35],[10,26,11,26],[10,27,11,27],[10,28,11,28],[10,29,11,29],[10,30,11,30],[10,31,11,31],[10,32,11,32],[8,34,9,34],[8,35,9,35],[8,26,9,26],[8,27,9,27],[8,28,9,28],[8,29,9,29],[8,30,9,30],[8,31,9,31],[8,32,9,32],[20,22,23,22],[26,22,26,23],[15,21,26,21],[8,22,12,22],[8,33,9,33],[10,33,11,33],[15,22,18,22]]}
[null,null,null,null,null,null,null,null,null,"B A N Q U E",null,null,null,null,null,null,null,null,null,null,null,null,null,null,null,"BANQUE RECAPITULATIF ANNUEL"]
[]
[]
[]
[]
[null,null,null,null,null,null,null,null,null,null,null,null,null,{"$f":"TODAY()","v":"2013-12-08"},null,null,null,null,null,{"$f":"SUM(M9:M17)-SUM(N9:N17)","v":400}]
[null,"DATE","JOUR","SEMAINE","MOIS","CATEGORIE","OBJET","CODES CLIENT","N° Document","DESIGNATION","Type de PAIEMENT","Valid","CREDIT","DEBIT",null,null,null,null,"Prévisionnel","Validé",null,null,null,null,"JANVIER","FÉVRIER","MARS","AVRIL","MAI","JUIN","JUILLET","AOÛT","SEPTEMBRE","OCTOBRE","NOVEMBRE","DÉCEMBRE"]
[]
[null,null,{"$f":"IF(B9=0,0,(DATE(YEAR(B9),MONTH(B9),DAY(B9))))","v":0},{"$f":"INT(MOD(INT((B9-2)/7)+0.6,52+5/28))+1","v":52},{"$f":"IF(C9=0,\"\",UPPER(TEXT(B9,\"mmmm\")))","v":""},null,null,null,null,null,"CB","v",null,100,{"$f":"IF(L9=\"v\",0,M9-N9)","v":0},{"$f":"IF(L9=\"v\",M9-N9,0)","v":-100},{"$f":"O9","v":0},{"$f":"P9","v":-100},{"$f":"IF(L9=\"v\",0,Q9)","v":0},{"$f":"IF(M9=\"v\",0,R9)","v":-100},null,null,"BANQUE","CREDIT",{"$f":"SUMPRODUCT((BQMois=Y7)*(BQValide=\"v\")*BQCrédit)","v":0},0,0,0,0,0,0,0,0,600,0,0]
[null,"2013-10-10",{"$f":"IF(B10=0,0,(DATE(YEAR(B10),MONTH(B10),DAY(B10))))","v":41557},41,{"$f":"IF(C10=0,\"\",UPPER(TEXT(B10,\"mmmm\")))","v":"OCTOBRE"},null,"Remise",null,null,null,"Chèque","v",50,null,0,50,{"$f":"O9+O10","v":0},{"$f":"R9+P10","v":-50},{"$f":"IF(Q10=Q9,0,Q10)","v":0},{"$f":"IF(R10=R9,0,R10)","v":-50}]
[null,"2013-10-10",41557,41,"OCTOBRE",null,"Remise",null,null,null,"CB","v",150,null,0,150,{"$f":"Q10+O11","v":0},{"$f":"R10+P11","v":100},{"$f":"IF(Q11=Q10,0,Q11)","v":0},{"$f":"IF(R11=R10,0,R11)","v":100},null,null,null,"DEBIT",{"$f":"SUMPRODUCT((BQMois=Y7)*(BQValide=\"v\")*BQDébit)","v":0},0,0,0,0,0,0,0,0,150,0,0]
[null,"2013-10-15",41562,42,"OCTOBRE",null,"Factures",null,null,null,"Chèque","v",null,150,0,-150,0,-50,0,-50]
[null,"2013-10-18",41565,42,"OCTOBRE",null,"Remise",null,null,null,"Espèce","v",400,null,0,400,0,350,0,350,null,null,null,"TOTAL",{"$f":"Y9-Y11","v":0},{"$f":"Z9-Z11","v":0},0,0,0,0,0,0,0,450,0,0]
[null,"2013-10-18",41565,42,"OCTOBRE",null,"Remise",null,null,null,"Chèque",null,100,null,100,0,100,350,100,0]
[null,"2013-10-21",41568,43,"OCTOBRE",null,"Remise",null,null,null,"Virement",null,150,null,150,0,250,350,250,0]
[null,null,0,52,"",null,null,null,null,null,null,null,null,200,-200,0,50,350,50,0,null,"PREVISIONNEL","CREDIT","Espèce",{"$f":"SUMPRODUCT((BQMois=Y7)*(BQMode=\"Espèce\")*BQCrédit)","v":0},0,0,0,0,0,0,0,0,400,0,0]
[null,null,0,52,"",null,null,null,null,null,null,null,null,null,0,0,50,350,{"$f":"IF(Q17=Q16,0,Q17)","v":0},0,null,null,null,"Chèque",{"$f":"SUMPRODUCT((BQMois=Y7)*(BQMode=\"Chèque\")*BQCrédit)","v":0},0,0,0,0,0,0,0,0,150,0,0]
[null,"2013-10-07",41554,41,"OCTOBRE",null,null,null,null,null,null,null,null,null,0,0,{"$f":"Q17+O18","v":50},{"$f":"R17+P18","v":350},{"$f":"IF(Q18=Q17,0,Q18)","v":0},{"$f":"IF(R18=R17,0,R18)","v":0},null,null,null,"CB",{"$f":"SUMPRODUCT((BQMois=Y7)*(BQMode=\"CB\")*BQCrédit)","v":0},0,0,0,0,0,0,0,0,150,0,0]
[null,"2013-10-07",41554,41,"OCTOBRE",null,null,null,null,null,null,null,null,null,0,0,{"$f":"Q18+O19","v":50},{"$f":"R18+P19","v":350},0,0,null,null,null,"Virement",{"$f":"SUMPRODUCT((BQMois=Y7)*(BQMode=\"Virement\")*BQCrédit)","v":0},0,0,0,0,0,0,0,0,150,0,0]
[null,null,0,52,"",null,null,null,null,null,null,null,null,null,0,0,{"$f":"Q19+O20","v":50},{"$f":"R19+P20","v":350},0,0,null,null,null,"TOTAL",{"$f":"Y16+Y17+Y18+Y19","v":0},{"$f":"Z16+Z17+Z18+Z19","v":0},0,0,0,0,0,0,0,850,0,0]
[null,null,0,52,"",null,null,null,null,null,null,null,null,null,0,0,50,350,0,0,null,null,"DEBIT","Espèce",{"$f":"SUMPRODUCT((BQMois=Y7)*(BQMode=\"Espèce\")*BQDébit)","v":0},0,0,0,0,0,0,0,0,0,0,0]
[null,null,0,52,"",null,null,null,null,null,null,null,null,null,0,0,50,350,0,0,null,null,null,"Chèque",{"$f":"SUMPRODUCT((BQMois=Y7)*(BQMode=\"Chèque\")*BQDébit)","v":0},0,0,0,0,0,0,0,0,150,0,0]
[null,null,0,52,"",null,null,null,null,null,null,null,null,null,0,0,50,350,0,0,null,null,null,"CB",{"$f":"SUMPRODUCT((BQMois=Y7)*(BQMode=\"CB\")*BQDébit)","v":0},0,0,0,0,0,0,0,0,0,0,0]
[null,"2013-10-15",41562,42,"OCTOBRE",null,"Remise",null,null,null,null,null,null,null,0,0,50,350,0,0,null,null,null,"Virement",{"$f":"SUMPRODUCT((BQMois=Y7)*(BQMode=\"Virement\")*BQDébit)","v":0},0,0,0,0,0,0,0,0,0,0,0]
[null,null,0,52,"",null,null,null,null,null,null,null,null,null,0,0,50,350,0,0,null,null,null,"TOTAL",{"$f":"Y21+Y22+Y23+Y24","v":0},{"$f":"Z21+Z22+Z23+Z24","v":0},0,0,0,0,0,0,0,150,0,0]
[null,null,0,52,"",null,null,null,null,null,null,null,null,null,0,0,50,350,0,0]
[null,null,0,52,"",null,null,null,null,null,null,null,null,null,0,0,50,350,0,0,null,null,"Vérif crédit - Débit",null,{"$f":"Y20-Y25","v":0},{"$f":"Z20-Z25","v":0},0,0,0,0,0,0,0,700,0,0]
[null,null,0,52,"",null,null,null,null,null,null,null,null,null,0,0,50,350,0,0]
[null,"2013-10-06",41553,40,"OCTOBRE",null,null,null,null,null,null,null,null,null,0,0,50,350,0,0]
[null,"2013-10-17",41564,42,"OCTOBRE",null,"Factures",null,null,null,null,null,null,null,0,0,50,350,0,0]
[null,{"$f":"CAISSE!B39","v":"2013-10-12"},41559,41,"OCTOBRE",null,"Remise",null,null,null,null,null,null,null,0,0,50,350,0,0]
[null,{"$f":"CAISSE!B40","v":"2013-10-12"},41559,41,"OCTOBRE",null,"Remise",null,null,null,null,null,null,null,0,0,50,350,0,0]
[null,null,0,52,"",null,null,null,null,null,null,null,null,null,0,0,50,350,0,0]
[null,null,0,52,"",null,null,null,null,null,null,null,null,null,0,0,50,350,0,0]
[null,null,0,52,"",null,null,null,null,null,null,null,null,null,0,0,50,350,0,0]
[null,null,0,52,"",null,null,null,null,null,null,null,null,null,0,0,50,350,0,0]
[null,null,0,52,"",null,null,null,null,null,null,null,null,null,0,0,50,350,0,0]
[null,null,0,52,"",null,null,null,null,null,null,null,null,null,0,0,50,350,0,0]
[null,null,0,52,"",null,null,null,null,null,null,null,null,null,0,0,50,350,0,0]
[null,null,0,52,"",null,null,null,null,null,null,null,null,null,0,0,50,350,0,0]
[null,null,0,52,"",null,null,null,null,null,null,null,null,null,0,0,50,350,0,0]
[null,null,0,52,"",null,null,null,null,null,null,null,null,null,0,0,50,350,0,0]
[null,null,0,52,"",null,null,null,null,null,null,null,null,null,0,0,50,350,0,0]
[null,null,0,52,"",null,null,null,null,null,null,null,null,null,0,0,50,350,0,0]
[null,null,0,52,"",null,null,null,null,null,null,null,null,null,0,0,50,350,0,0]
[null,null,0,52,"",null,null,null,null,null,null,null,null,null,0,0,50,350,0,0]
[null,null,0,52,"",null,null,null,null,null,null,null,null,null,0,0,50,350,0,0]
[null,null,0,52,"",null,null,null,null,null,null,null,null,null,0,0,50,350,0,0]
[null,null,0,52,"",null,null,null,null,null,null,null,null,null,0,0,50,350,0,0]
[null,null,0,52,"",null,null,null,null,null,null,null,null,null,0,0,50,350,0,0]
[null,null,0,52,"",null,null,null,null,null,null,null,null,null,0,0,50,350,0,0]
[null,null,0,52,"",null,null,null,null,null,null,null,null,null,0,0,50,350,0,0]
[null,null,0,52,"",null,null,null,null,null,null,null,null,null,0,0,50,350,0,0]
[null,null,0,52,"",null,null,null,null,null,null,null,null,null,0,0,50,350,0,0]
[null,null,0,52,"",null,null,null,null,null,null,null,null,null,0,0,50,350,0,0]
[null,null,0,52,"",null,null,null,null,null,null,null,null,null,0,0,50,350,0,0]
[null,null,0,52,"",null,null,null,null,null,null,null,null,null,0,0,50,350,0,0]
[null,null,0,52,"",null,null,null,null,null,null,null,null,null,0,0,50,350,0,0]
[null,null,0,52,"",null,null,null,null,null,null,null,null,null,0,0,50,350,0,0]
[null,null,0,52,"",null,null,null,null,null,null,null,null,null,0,0,50,350,0,0]
[null,null,0,52,"",null,null,null,null,null,null,null,null,null,0,0,50,350,0,0]
[null,null,0,52,"",null,null,null,null,null,null,null,null,null,0,0,50,350,0,0]
[null,null,0,52,"",null,null,null,null,null,null,null,null,null,0,0,50,350,0,0]
[null,null,0,52,"",null,null,null,null,null,null,null,null,null,0,0,50,350,0,0]
[null,null,0,52,"",null,null,null,null,null,null,null,null,null,0,0,50,350,0,0]
[null,null,0,52,"",null,null,null,null,null,null,null,null,null,0,0,50,350,0,0]
[null,null,0,52,"",null,null,null,null,null,null,null,null,null,0,0,50,350,0,0]
[null,null,0,52,"",null,null,null,null,null,null,null,null,null,0,0,50,350,0,0]
[null,null,0,52,"",null,null,null,null,null,null,null,null,null,0,0,50,350,0,0]
[null,null,0,52,"",null,null,null,null,null,null,null,null,null,0,0,50,350,0,0]
[null,null,0,52,"",null,null,null,null,null,null,null,null,null,0,0,50,350,0,0]
[null,null,0,52,"",null,null,null,null,null,null,null,null,null,0,0,50,350,0,0]
[null,null,0,{"$f":"INT(MOD(INT((B73-2)/7)+0.6,52+5/28))+1","v":52},"",null,null,null,null,null,null,null,null,null,{"$f":"IF(L73=\"v\",0,M73-N73)","v":0},{"$f":"IF(L73=\"v\",M73-N73,0)","v":0},50,350,0,0]
[null,null,{"$f":"IF(B74=0,0,(DATE(YEAR(B74),MONTH(B74),DAY(B74))))","v":0},52,{"$f":"IF(C74=0,\"\",UPPER(TEXT(B74,\"mmmm\")))","v":""},null,null,null,null,null,null,null,null,null,0,0,50,350,0,0]
[null,null,0,52,"",null,null,null,null,null,null,null,null,null,0,0,50,350,0,0]
[null,null,0,52,"",null,null,null,null,null,null,null,null,null,0,0,50,350,0,0]
[null,null,0,52,"",null,null,null,null,null,null,null,null,null,0,0,50,350,0,0]
[null,null,0,52,"",null,null,null,null,null,null,null,null,null,0,0,50,350,0,0]
[null,null,0,52,"",null,null,null,null,null,null,null,null,null,0,0,50,350,0,0]
[null,null,0,52,"",null,null,null,null,null,null,null,null,null,0,0,50,350,0,0]
[null,null,0,52,"",null,null,null,null,null,null,null,null,null,0,0,50,350,0,0]
[null,null,0,52,"",null,null,null,null,null,null,null,null,null,0,0,50,350,{"$f":"IF(Q82=Q81,0,Q82)","v":0},{"$f":"IF(R82=R81,0,R82)","v":0}]
[null,null,0,52,"",null,null,null,null,null,null,null,null,null,0,0,50,350,0,0]
[null,null,0,52,"",null,null,null,null,null,null,null,null,null,0,0,{"$f":"Q83+O84","v":50},{"$f":"R83+P84","v":350},0,0]
[null,null,0,52,"",null,null,null,null,null,null,null,null,null,0,0,50,350,0,0]
[null,null,0,52,"",null,null,null,null,null,null,null,null,null,0,0,50,350,0,0]
[null,null,0,52,"",null,null,null,null,null,null,null,null,null,0,0,50,350,0,0]
[null,null,0,52,"",null,null,null,null,null,null,null,null,null,0,0,50,350,0,0]
[null,null,0,52,"",null,null,null,null,null,null,null,null,null,0,0,50,350,0,0]
[null,null,0,52,"",null,null,null,null,null,null,null,null,null,0,0,50,350,0,0]
[null,null,0,52,"",null,null,null,null,null,null,null,null,null,0,0,50,350,0,0]
[null,null,0,52,"",null,null,null,null,null,null,null,null,null,0,0,50,350,0,0]
[null,null,0,52,"",null,null,null,null,null,null,null,null,null,0,0,50,350,0,0]
[null,null,0,52,"",null,null,null,null,null,null,null,null,null,0,0,50,350,0,0]
[null,null,0,52,"",null,null,null,null,null,null,null,null,null,0,0,50,350,0,0]
[null,null,0,52,"",null,null,null,null,null,null,null,null,null,0,0,50,350,0,0]
[null,null,0,52,"",null,null,null,null,null,null,null,null,null,0,0,50,350,0,0]
[null,null,0,52,"",null,null,null,null,null,null,null,null,null,0,0,50,350,0,0]
[null,null,0,52,"",null,null,null,null,null,null,null,null,null,0,0,50,350,0,0]
[null,null,0,52,"",null,null,null,null,null,null,null,null,null,0,0,50,350,0,0]
[null,null,0,52,"",null,null,null,null,null,null,null,null,null,0,0,50,350,0,0]
[null,null,0,52,"",null,null,null,null,null,null,null,null,null,0,0,50,350,0,0]
[null,null,0,52,"",null,null,null,null,null,null,null,null,null,0,0,50,350,0,0]
[null,null,0,52,"",null,null,null,null,null,null,null,null,null,0,0,50,350,0,0]
[null,null,0,52,"",null,null,null,null,null,null,null,null,null,0,0,50,350,0,0]
[null,null,0,52,"",null,null,null,null,null,null,null,null,null,0,0,50,350,0,0]
[null,null,0,52,"",null,null,null,null,null,null,null,null,null,0,0,50,350,0,0]
[null,null,0,52,"",null,null,null,null,null,null,null,null,null,0,0,50,350,0,0]
[null,null,0,52,"",null,null,null,null,null,null,null,null,null,0,0,50,350,0,0]
[null,null,0,52,"",null,null,null,null,null,null,null,null,null,0,0,50,350,0,0]
[null,null,0,52,"",null,null,null,null,null,null,null,null,null,0,0,50,350,0,0]
[null,null,0,52,"",null,null,null,null,null,null,null,null,null,0,0,50,350,0,0]
[null,null,0,52,"",null,null,null,null,null,null,null,null,null,0,0,50,350,0,0]
[null,null,0,52,"",null,null,null,null,null,null,null,null,null,0,0,50,350,0,0]
[null,null,0,52,"",null,null,null,null,null,null,null,null,null,0,0,50,350,0,0]
[null,null,0,52,"",null,null,null,null,null,null,null,null,null,0,0,50,350,0,0]
[null,null,0,52,"",null,null,null,null,null,null,null,null,null,0,0,50,350,0,0]
[null,null,0,52,"",null,null,null,null,null,null,null,null,null,0,0,50,350,0,0]
[null,null,0,52,"",null,null,null,null,null,null,null,null,null,0,0,50,350,0,0]
[null,null,0,52,"",null,null,null,null,null,null,null,null,null,0,0,50,350,0,0]
[null,null,0,52,"",null,null,null,null,null,null,null,null,null,0,0,50,350,0,0]
[null,null,0,52,"",null,null,null,null,null,null,null,null,null,0,0,50,350,0,0]
[null,null,0,52,"",null,null,null,null,null,null,null,null,null,0,0,50,350,0,0]
[null,null,0,52,"",null,null,null,null,null,null,null,null,null,0,0,50,350,0,0]
[null,null,0,52,"",null,null,null,null,null,null,null,null,null,0,0,50,350,0,0]
[null,null,0,52,"",null,null,null,null,null,null,null,null,null,0,0,50,350,0,0]
[null,null,0,52,"",null,null,null,null,null,null,null,null,null,0,0,50,350,0,0]
[null,null,0,52,"",null,null,null,null,null,null,null,null,null,0,0,50,350,0,0]
[null,null,0,52,"",null,null,null,null,null,null,null,null,null,0,0,50,350,0,0]
[null,null,0,52,"",null,null,null,null,null,null,null,null,null,0,0,50,350,0,0]
[null,null,0,52,"",null,null,null,null,null,null,null,null,null,0,0,50,350,0,0]
[null,null,0,52,"",null,null,null,null,null,null,null,null,null,0,0,50,350,0,0]
[null,null,0,52,"",null,null,null,null,null,null,null,null,null,0,0,50,350,0,0]
[null,null,0,52,"",null,null,null,null,null,null,null,null,null,0,0,50,350,0,0]
[null,null,0,52,"",null,null,null,null,null,null,null,null,null,0,0,50,350,0,0]
[null,null,0,52,"",null,null,null,null,null,null,null,null,null,0,0,50,350,0,0]
[null,null,0,{"$f":"INT(MOD(INT((B137-2)/7)+0.6,52+5/28))+1","v":52},"",null,null,null,null,null,null,null,null,null,{"$f":"IF(L137=\"v\",0,M137-N137)","v":0},{"$f":"IF(L137=\"v\",M137-N137,0)","v":0},50,350,0,0]
[null,null,{"$f":"IF(B138=0,0,(DATE(YEAR(B138),MONTH(B138),DAY(B138))))","v":0},52,{"$f":"IF(C138=0,\"\",UPPER(TEXT(B138,\"mmmm\")))","v":""},null,null,null,null,null,null,null,null,null,0,0,50,350,0,0]
[null,null,0,52,"",null,null,null,null,null,null,null,null,null,0,0,50,350,0,0]
[null,null,0,52,"",null,null,null,null,null,null,null,null,null,0,0,50,350,0,0]
[null,null,0,52,"",null,null,null,null,null,null,null,null,null,0,0,50,350,0,0]
[null,null,0,52,"",null,null,null,null,null,null,null,null,null,0,0,50,350,0,0]
[null,null,0,52,"",null,null,null,null,null,null,null,null,null,0,0,50,350,0,0]
[null,null,0,52,"",null,null,null,null,null,null,null,null,null,0,0,50,350,0,0]
[null,null,0,52,"",null,null,null,null,null,null,null,null,null,0,0,50,350,0,0]
[null,null,0,52,"",null,null,null,null,null,null,null,null,null,0,0,50,350,{"$f":"IF(Q146=Q145,0,Q146)","v":0},{"$f":"IF(R146=R145,0,R146)","v":0}]
[null,null,0,52,"",null,null,null,null,null,null,null,null,null,0,0,50,350,0,0]
[null,null,0,52,"",null,null,null,null,null,null,null,null,null,0,0,{"$f":"Q147+O148","v":50},{"$f":"R147+P148","v":350},0,0]
[null,null,0,52,"",null,null,null,null,null,null,null,null,null,0,0,50,350,0,0]
[null,null,0,52,"",null,null,null,null,null,null,null,null,null,0,0,50,350,0,0]
[null,null,0,52,"",null,null,null,null,null,null,null,null,null,0,0,50,350,0,0]
[null,null,0,52,"",null,null,null,null,null,null,null,null,null,0,0,50,350,0,0]
[null,null,0,52,"",null,null,null,null,null,null,null,null,null,0,0,50,350,0,0]
[null,null,0,52,"",null,null,null,null,null,null,null,null,null,0,0,50,350,0,0]
[null,null,0,52,"",null,null,null,null,null,null,null,null,null,0,0,50,350,0,0]
[null,null,0,52,"",null,null,null,null,null,null,null,null,null,0,0,50,350,0,0]
[null,null,0,52,"",null,null,null,null,null,null,null,null,null,0,0,50,350,0,0]
[null,null,0,52,"",null,null,null,null,null,null,null,null,null,0,0,50,350,0,0]
[null,null,0,52,"",null,null,null,null,null,null,null,null,null,0,0,50,350,0,0]
[null,null,0,52,"",null,null,null,null,null,null,null,null,null,0,0,50,350,0,0]
[null,null,0,52,"",null,null,null,null,null,null,null,null,null,0,0,50,350,0,0]
[null,null,0,52,"",null,null,null,null,null,null,null,null,null,0,0,50,350,0,0]
[null,null,0,52,"",null,null,null,null,null,null,null,null,null,0,0,50,350,0,0]
[null,null,0,52,"",null,null,null,null,null,null,null,null,null,0,0,50,350,0,0]
[null,null,0,52,"",null,null,null,null,null,null,null,null,null,0,0,50,350,0,0]
[null,null,0,52,"",null,null,null,null,null,null,null,null,null,0,0,50,350,0,0]
[null,null,0,52,"",null,null,null,null,null,null,null,null,null,0,0,50,350,0,0]
[null,null,0,52,"",null,null,null,null,null,null,null,null,null,0,0,50,350,0,0]
[null,null,0,52,"",null,null,null,null,null,null,null,null,null,0,0,50,350,0,0]
[null,null,0,52,"",null,null,null,null,null,null,null,null,null,0,0,50,350,0,0]
[null,null,0,52,"",null,null,null,null,null,null,null,null,null,0,0,50,350,0,0]
[null,null,0,52,"",null,null,null,null,null,null,null,null,null,0,0,50,350,0,0]
[null,null,0,52,"",null,null,null,null,null,null,null,null,null,0,0,50,350,0,0]
[null,null,0,52,"",null,null,null,null,null,null,null,null,null,0,0,50,350,0,0]
[null,null,0,52,"",null,null,null,null,null,null,null,null,null,0,0,50,350,0,0]
[null,null,0,52,"",null,null,null,null,null,null,null,null,null,0,0,50,350,0,0]
[null,null,0,52,"",null,null,null,null,null,null,null,null,null,0,0,50,350,0,0]
[null,null,0,52,"",null,null,null,null,null,null,null,null,null,0,0,50,350,0,0]
[null,null,0,52,"",null,null,null,null,null,null,null,null,null,0,0,50,350,0,0]
[null,null,0,52,"",null,null,null,null,null,null,null,null,null,0,0,50,350,0,0]
[null,null,0,52,"",null,null,null,null,null,null,null,null,null,0,0,50,350,0,0]
[null,null,0,52,"",null,null,null,null,null,null,null,null,null,0,0,50,350,0,0]
[null,null,0,52,"",null,null,null,null,null,null,null,null,null,0,0,50,350,0,0]
[null,null,0,52,"",null,null,null,null,null,null,null,null,null,0,0,50,350,0,0]
[null,null,0,52,"",null,null,null,null,null,null,null,null,null,0,0,50,350,0,0]
[null,null,0,52,"",null,null,null,null,null,null,null,null,null,0,0,50,350,0,0]
[null,null,0,52,"",null,null,null,null,null,null,null,null,null,0,0,50,350,0,0]
[null,null,0,52,"",null,null,null,null,null,null,null,null,null,0,0,50,350,0,0]
[null,null,0,52,"",null,null,null,null,null,null,null,null,null,0,0,50,350,0,0]
[null,null,0,52,"",null,null,null,null,null,null,null,null,null,0,0,50,350,0,0]
[null,null,0,52,"",null,null,null,null,null,null,null,null,null,0,0,50,350,0,0]
[null,null,0,52,"",null,null,null,null,null,null,null,null,null,0,0,50,350,0,0]
[null,null,0,52,"",null,null,null,null,null,null,null,null,null,0,0,50,350,0,0]
[null,null,0,52,"",null,null,null,null,null,null,null,null,null,0,0,50,350,0,0]
[null,null,0,52,"",null,null,null,null,null,null,null,null,null,0,0,50,350,0,0]
[null,null,0,52,"",null,null,null,null,null,null,null,null,null,0,0,50,350,0,0]
[null,null,0,52,"",null,null,null,null,null,null,null,null,null,0,0,50,350,0,0]
[null,null,0,52,"",null,null,null,null,null,null,null,null,null,0,0,50,350,0,0]
[null,null,0,52,"",null,null,null,null,null,null,null,null,null,0,0,50,350,0,0]
[null,null,0,52,"",null,null,null,null,null,null,null,null,null,0,0,50,350,0,0]
[null,null,0,{"$f":"INT(MOD(INT((B201-2)/7)+0.6,52+5/28))+1","v":52},"",null,null,null,null,null,null,null,null,null,{"$f":"IF(L201=\"v\",0,M201-N201)","v":0},{"$f":"IF(L201=\"v\",M201-N201,0)","v":0},50,350,0,0]
[null,null,{"$f":"IF(B202=0,0,(DATE(YEAR(B202),MONTH(B202),DAY(B202))))","v":0},52,{"$f":"IF(C202=0,\"\",UPPER(TEXT(B202,\"mmmm\")))","v":""},null,null,null,null,null,null,null,null,null,0,0,50,350,0,0]
[null,null,0,52,"",null,null,null,null,null,null,null,null,null,0,0,50,350,0,0]
[null,null,0,52,"",null,null,null,null,null,null,null,null,null,0,0,50,350,0,0]
[null,null,0,52,"",null,null,null,null,null,null,null,null,null,0,0,50,350,0,0]
[null,null,0,52,"",null,null,null,null,null,null,null,null,null,0,0,50,350,0,0]
[null,null,0,52,"",null,null,null,null,null,null,null,null,null,0,0,50,350,0,0]
[null,null,0,52,"",null,null,null,null,null,null,null,null,null,0,0,50,350,0,0]
[null,null,0,52,"",null,null,null,null,null,null,null,null,null,0,0,50,350,0,0]
[null,null,0,52,"",null,null,null,null,null,null,null,null,null,0,0,50,350,{"$f":"IF(Q210=Q209,0,Q210)","v":0},{"$f":"IF(R210=R209,0,R210)","v":0}]
[null,null,0,52,"",null,null,null,null,null,null,null,null,null,0,0,50,350,0,0]
[null,null,0,52,"",null,null,null,null,null,null,null,null,null,0,0,{"$f":"Q211+O212","v":50},{"$f":"R211+P212","v":350},0,0]
[null,null,0,52,"",null,null,null,null,null,null,null,null,null,0,0,50,350,0,0]
[null,null,0,52,"",null,null,null,null,null,null,null,null,null,0,0,50,350,0,0]
[null,null,0,52,"",null,null,null,null,null,null,null,null,null,0,0,50,350,0,0]
[null,null,0,52,"",null,null,null,null,null,null,null,null,null,0,0,50,350,0,0]
[null,null,0,52,"",null,null,null,null,null,null,null,null,null,0,0,50,350,0,0]
[null,null,0,52,"",null,null,null,null,null,null,null,null,null,0,0,50,350,0,0]
[null,null,0,52,"",null,null,null,null,null,null,null,null,null,0,0,50,350,0,0]
[null,null,0,52,"",null,null,null,null,null,null,null,null,null,0,0,50,350,0,0]
[null,null,0,52,"",null,null,null,null,null,null,null,null,null,0,0,50,350,0,0]
[null,null,0,52,"",null,null,null,null,null,null,null,null,null,0,0,50,350,0,0]
[null,null,0,52,"",null,null,null,null,null,null,null,null,null,0,0,50,350,0,0]
[null,null,0,52,"",null,null,null,null,null,null,null,null,null,0,0,50,350,0,0]
[null,null,0,52,"",null,null,null,null,null,null,null,null,null,0,0,50,350,0,0]
[null,null,0,52,"",null,null,null,null,null,null,null,null,null,0,0,50,350,0,0]
[null,null,0,52,"",null,null,null,null,null,null,null,null,null,0,0,50,350,0,0]
[null,null,0,52,"",null,null,null,null,null,null,null,null,null,0,0,50,350,0,0]
[null,null,0,52,"",null,null,null,null,null,null,null,null,null,0,0,50,350,0,0]
[null,null,0,52,"",null,null,null,null,null,null,null,null,null,0,0,50,350,0,0]
[null,null,0,52,"",null,null,null,null,null,null,null,null,null,0,0,50,350,0,0]
[null,null,0,52,"",null,null,null,null,null,null,null,null,null,0,0,50,350,0,0]
[null,null,0,52,"",null,null,null,null,null,null,null,null,null,0,0,50,350,0,0]
[null,null,0,52,"",null,null,null,null,null,null,null,null,null,0,0,50,350,0,0]
[null,null,0,52,"",null,null,null,null,null,null,null,null,null,0,0,50,350,0,0]
[null,null,0,52,"",null,null,null,null,null,null,null,null,null,0,0,50,350,0,0]
[null,null,0,52,"",null,null,null,null,null,null,null,null,null,0,0,50,350,0,0]
[null,null,0,52,"",null,null,null,null,null,null,null,null,null,0,0,50,350,0,0]
[null,null,0,52,"",null,null,null,null,null,null,null,null,null,0,0,50,350,0,0]
[null,null,0,52,"",null,null,null,null,null,null,null,null,null,0,0,50,350,0,0]
[null,null,0,52,"",null,null,null,null,null,null,null,null,null,0,0,50,350,0,0]
[null,null,0,52,"",null,null,null,null,null,null,null,null,null,0,0,50,350,0,0]
[null,null,0,52,"",null,null,null,null,null,null,null,null,null,0,0,50,350,0,0]
[null,null,0,52,"",null,null,null,null,null,null,null,null,null,0,0,50,350,0,0]
[null,null,0,52,"",null,null,null,null,null,null,null,null,null,0,0,50,350,0,0]
[null,null,0,52,"",null,null,null,null,null,null,null,null,null,0,0,50,350,0,0]
[null,null,0,52,"",null,null,null,null,null,null,null,null,null,0,0,50,350,0,0]
[null,null,0,52,"",null,null,null,null,null,null,null,null,null,0,0,50,350,0,0]
[null,null,0,52,"",null,null,null,null,null,null,null,null,null,0,0,50,350,0,0]
[null,null,0,52,"",null,null,null,null,null,null,null,null,null,0,0,50,350,0,0]
[null,null,0,52,"",null,null,null,null,null,null,null,null,null,0,0,50,350,0,0]
[null,null,0,52,"",null,null,null,null,null,null,null,null,null,0,0,50,350,0,0]
[null,null,0,52,"",null,null,null,null,null,null,null,null,null,0,0,50,350,0,0]
[null,null,0,52,"",null,null,null,null,null,null,null,null,null,0,0,50,350,0,0]
[null,null,0,52,"",null,null,null,null,null,null,null,null,null,0,0,50,350,0,0]
[null,null,0,52,"",null,null,null,null,null,null,null,null,null,0,0,50,350,0,0]
[null,null,0,52,"",null,null,null,null,null,null,null,null,null,0,0,50,350,0,0]
[null,null,0,52,"",null,null,null,null,null,null,null,null,null,0,0,50,350,0,0]
[null,null,0,52,"",null,null,null,null,null,null,null,null,null,0,0,50,350,0,0]
[null,null,0,52,"",null,null,null,null,null,null,null,null,null,0,0,50,350,0,0]
[null,null,0,52,"",null,null,null,null,null,null,null,null,null,0,0,50,350,0,0]
[null,null,0,52,"",null,null,null,null,null,null,null,null,null,0,0,50,350,0,0]
[null,null,0,52,"",null,null,null,null,null,null,null,null,null,0,0,50,350,0,0]
[null,null,0,52,"",null,null,null,null,null,null,null,null,null,0,0,50,350,0,0]
[null,null,0,{"$f":"INT(MOD(INT((B265-2)/7)+0.6,52+5/28))+1","v":52},"",null,null,null,null,null,null,null,null,null,{"$f":"IF(L265=\"v\",0,M265-N265)","v":0},{"$f":"IF(L265=\"v\",M265-N265,0)","v":0},50,350,0,0]
[null,null,{"$f":"IF(B266=0,0,(DATE(YEAR(B266),MONTH(B266),DAY(B266))))","v":0},52,{"$f":"IF(C266=0,\"\",UPPER(TEXT(B266,\"mmmm\")))","v":""},null,null,null,null,null,null,null,null,null,0,0,50,350,0,0]
[null,null,0,52,"",null,null,null,null,null,null,null,null,null,0,0,50,350,0,0]
[null,null,0,52,"",null,null,null,null,null,null,null,null,null,0,0,50,350,0,0]
[null,null,0,52,"",null,null,null,null,null,null,null,null,null,0,0,50,350,0,0]
[null,null,0,52,"",null,null,null,null,null,null,null,null,null,0,0,50,350,0,0]
[null,null,0,52,"",null,null,null,null,null,null,null,null,null,0,0,50,350,0,0]
[null,null,0,52,"",null,null,null,null,null,null,null,null,null,0,0,50,350,0,0]
[null,null,0,52,"",null,null,null,null,null,null,null,null,null,0,0,50,350,0,0]
[null,null,0,52,"",null,null,null,null,null,null,null,null,null,0,0,50,350,{"$f":"IF(Q274=Q273,0,Q274)","v":0},{"$f":"IF(R274=R273,0,R274)","v":0}]
[null,null,0,52,"",null,null,null,null,null,null,null,null,null,0,0,50,350,0,0]
[null,null,0,52,"",null,null,null,null,null,null,null,null,null,0,0,{"$f":"Q275+O276","v":50},{"$f":"R275+P276","v":350},0,0]
[null,null,0,52,"",null,null,null,null,null,null,null,null,null,0,0,50,350,0,0]
[null,null,0,52,"",null,null,null,null,null,null,null,null,null,0,0,50,350,0,0]
[null,null,0,52,"",null,null,null,null,null,null,null,null,null,0,0,50,350,0,0]
[null,null,0,52,"",null,null,null,null,null,null,null,null,null,0,0,50,350,0,0]
[null,null,0,52,"",null,null,null,null,null,null,null,null,null,0,0,50,350,0,0]
[null,null,0,52,"",null,null,null,null,null,null,null,null,null,0,0,50,350,0,0]
[null,null,0,52,"",null,null,null,null,null,null,null,null,null,0,0,50,350,0,0]
[null,null,0,52,"",null,null,null,null,null,null,null,null,null,0,0,50,350,0,0]
[null,null,0,52,"",null,null,null,null,null,null,null,null,null,0,0,50,350,0,0]
[null,null,0,52,"",null,null,null,null,null,null,null,null,null,0,0,50,350,0,0]
[null,null,0,52,"",null,null,null,null,null,null,null,null,null,0,0,50,350,0,0]
[null,null,0,52,"",null,null,null,null,null,null,null,null,null,0,0,50,350,0,0]
[null,null,0,52,"",null,null,null,null,null,null,null,null,null,0,0,50,350,0,0]
[null,null,0,52,"",null,null,null,null,null,null,null,null,null,0,0,50,350,0,0]
[null,null,0,52,"",null,null,null,null,null,null,null,null,null,0,0,50,350,0,0]
[null,null,0,52,"",null,null,null,null,null,null,null,null,null,0,0,50,350,0,0]
[null,null,0,52,"",null,null,null,null,null,null,null,null,null,0,0,50,350,0,0]
[null,null,0,52,"",null,null,null,null,null,null,null,null,null,0,0,50,350,0,0]
[null,null,0,52,"",null,null,null,null,null,null,null,null,null,0,0,50,350,0,0]
[null,null,0,52,"",null,null,null,null,null,null,null,null,null,0,0,50,350,0,0]
[null,null,0,52,"",null,null,null,null,null,null,null,null,null,0,0,50,350,0,0]
[null,null,0,52,"",null,null,null,null,null,null,null,null,null,0,0,50,350,0,0]
[null,null,0,52,"",null,null,null,null,null,null,null,null,null,0,0,50,350,0,0]
[null,null,0,52,"",null,null,null,null,null,null,null,null,null,0,0,50,350,0,0]
[null,null,0,52,"",null,null,null,null,null,null,null,null,null,0,0,50,350,0,0]
[null,null,0,52,"",null,null,null,null,null,null,null,null,null,0,0,50,350,0,0]
[null,null,0,52,"",null,null,null,null,null,null,null,null,null,0,0,50,350,0,0]
[null,null,0,52,"",null,null,null,null,null,null,null,null,null,0,0,50,350,0,0]
[null,null,0,52,"",null,null,null,null,null,null,null,null,null,0,0,50,350,0,0]
[null,null,0,52,"",null,null,null,null,null,null,null,null,null,0,0,50,350,0,0]
[null,null,0,52,"",null,null,null,null,null,null,null,null,null,0,0,50,350,0,0]
[null,null,0,52,"",null,null,null,null,null,null,null,null,null,0,0,50,350,0,0]
[null,null,0,52,"",null,null,null,null,null,null,null,null,null,0,0,50,350,0,0]
[null,null,0,52,"",null,null,null,null,null,null,null,null,null,0,0,50,350,0,0]
[null,null,0,52,"",null,null,null,null,null,null,null,null,null,0,0,50,350,0,0]
[null,null,0,52,"",null,null,null,null,null,null,null,null,null,0,0,50,350,0,0]
[null,null,0,52,"",null,null,null,null,null,null,null,null,null,0,0,50,350,0,0]
[null,null,0,52,"",null,null,null,null,null,null,null,null,null,0,0,50,350,0,0]
[null,null,0,52,"",null,null,null,null,null,null,null,null,null,0,0,50,350,0,0]
[null,null,0,52,"",null,null,null,null,null,null,null,null,null,0,0,50,350,0,0]
[null,null,0,52,"",null,null,null,null,null,null,null,null,null,0,0,50,350,0,0]
[null,null,0,52,"",null,null,null,null,null,null,null,null,null,0,0,50,350,0,0]
[null,null,0,52,"",null,null,null,null,null,null,null,null,null,0,0,50,350,0,0]
[null,null,0,52,"",null,null,null,null,null,null,null,null,null,0,0,50,350,0,0]
[null,null,0,52,"",null,null,null,null,null,null,null,null,null,0,0,50,350,0,0]
[null,null,0,52,"",null,null,null,null,null,null,null,null,null,0,0,50,350,0,0]
[null,null,0,52,"",null,null,null,null,null,null,null,null,null,0,0,50,350,0,0]
[null,null,0,52,"",null,null,null,null,null,null,null,null,null,0,0,50,350,0,0]
[null,null,0,52,"",null,null,null,null,null,null,null,null,null,0,0,50,350,0,0]
[null,null,0,52,"",null,null,null,null,null,null,null,null,null,0,0,50,350,0,0]
[null,null,0,52,"",null,null,null,null,null,null,null,null,null,0,0,50,350,0,0]
[null,null,0,52,"",null,null,null,null,null,null,null,null,null,0,0,50,350,0,0]
[null,null,0,{"$f":"INT(MOD(INT((B329-2)/7)+0.6,52+5/28))+1","v":52},"",null,null,null,null,null,null,null,null,null,{"$f":"IF(L329=\"v\",0,M329-N329)","v":0},{"$f":"IF(L329=\"v\",M329-N329,0)","v":0},50,350,0,0]
[null,null,{"$f":"IF(B330=0,0,(DATE(YEAR(B330),MONTH(B330),DAY(B330))))","v":0},52,{"$f":"IF(C330=0,\"\",UPPER(TEXT(B330,\"mmmm\")))","v":""},null,null,null,null,null,null,null,null,null,0,0,50,350,0,0]
[null,null,0,52,"",null,null,null,null,null,null,null,null,null,0,0,50,350,0,0]
[null,null,0,52,"",null,null,null,null,null,null,null,null,null,0,0,50,350,0,0]
[null,null,0,52,"",null,null,null,null,null,null,null,null,null,0,0,50,350,0,0]
[null,null,0,52,"",null,null,null,null,null,null,null,null,null,0,0,50,350,0,0]
[null,null,0,52,"",null,null,null,null,null,null,null,null,null,0,0,50,350,0,0]
[null,null,0,52,"",null,null,null,null,null,null,null,null,null,0,0,50,350,0,0]
[null,null,0,52,"",null,null,null,null,null,null,null,null,null,0,0,50,350,0,0]
[null,null,0,52,"",null,null,null,null,null,null,null,null,null,0,0,50,350,{"$f":"IF(Q338=Q337,0,Q338)","v":0},{"$f":"IF(R338=R337,0,R338)","v":0}]
[null,null,0,52,"",null,null,null,null,null,null,null,null,null,0,0,50,350,0,0]
[null,null,0,52,"",null,null,null,null,null,null,null,null,null,0,0,{"$f":"Q339+O340","v":50},{"$f":"R339+P340","v":350},0,0]
[null,null,0,52,"",null,null,null,null,null,null,null,null,null,0,0,50,350,0,0]
[null,null,0,52,"",null,null,null,null,null,null,null,null,null,0,0,50,350,0,0]
[null,null,0,52,"",null,null,null,null,null,null,null,null,null,0,0,50,350,0,0]
[null,null,0,52,"",null,null,null,null,null,null,null,null,null,0,0,50,350,0,0]
[null,null,0,52,"",null,null,null,null,null,null,null,null,null,0,0,50,350,0,0]
[null,null,0,52,"",null,null,null,null,null,null,null,null,null,0,0,50,350,0,0]
[null,null,0,52,"",null,null,null,null,null,null,null,null,null,0,0,50,350,0,0]
[null,null,0,52,"",null,null,null,null,null,null,null,null,null,0,0,50,350,0,0]
[null,null,0,52,"",null,null,null,null,null,null,null,null,null,0,0,50,350,0,0]
[null,null,0,52,"",null,null,null,null,null,null,null,null,null,0,0,50,350,0,0]
[null,null,0,52,"",null,null,null,null,null,null,null,null,null,0,0,50,350,0,0]
[null,null,0,52,"",null,null,null,null,null,null,null,null,null,0,0,50,350,0,0]
[null,null,0,52,"",null,null,null,null,null,null,null,null,null,0,0,50,350,0,0]
[null,null,0,52,"",null,null,null,null,null,null,null,null,null,0,0,50,350,0,0]
[null,null,0,52,"",null,null,null,null,null,null,null,null,null,0,0,50,350,0,0]
[null,null,0,52,"",null,null,null,null,null,null,null,null,null,0,0,50,350,0,0]
[null,null,0,52,"",null,null,null,null,null,null,null,null,null,0,0,50,350,0,0]
[null,null,0,52,"",null,null,null,null,null,null,null,null,null,0,0,50,350,0,0]
[null,null,0,52,"",null,null,null,null,null,null,null,null,null,0,0,50,350,0,0]
[null,null,0,52,"",null,null,null,null,null,null,null,null,null,0,0,50,350,0,0]
[null,null,0,52,"",null,null,null,null,null,null,null,null,null,0,0,50,350,0,0]
[null,null,0,52,"",null,null,null,null,null,null,null,null,null,0,0,50,350,0,0]
[null,null,0,52,"",null,null,null,null,null,null,null,null,null,0,0,50,350,0,0]
[null,null,0,52,"",null,null,null,null,null,null,null,null,null,0,0,50,350,0,0]
[null,null,0,52,"",null,null,null,null,null,null,null,null,null,0,0,50,350,0,0]
[null,null,0,52,"",null,null,null,null,null,null,null,null,null,0,0,50,350,0,0]
[null,null,0,52,"",null,null,null,null,null,null,null,null,null,0,0,50,350,0,0]
[null,null,0,52,"",null,null,null,null,null,null,null,null,null,0,0,50,350,0,0]
[null,null,0,52,"",null,null,null,null,null,null,null,null,null,0,0,50,350,0,0]
[null,null,0,52,"",null,null,null,null,null,null,null,null,null,0,0,50,350,0,0]
[null,null,0,52,"",null,null,null,null,null,null,null,null,null,0,0,50,350,0,0]
[null,null,0,52,"",null,null,null,null,null,null,null,null,null,0,0,50,350,0,0]
[null,null,0,52,"",null,null,null,null,null,null,null,null,null,0,0,50,350,0,0]
[null,null,0,52,"",null,null,null,null,null,null,null,null,null,0,0,50,350,0,0]
[null,null,0,52,"",null,null,null,null,null,null,null,null,null,0,0,50,350,0,0]
[null,null,0,52,"",null,null,null,null,null,null,null,null,null,0,0,50,350,0,0]
[null,null,0,52,"",null,null,null,null,null,null,null,null,null,0,0,50,350,0,0]
[null,null,0,52,"",null,null,null,null,null,null,null,null,null,0,0,50,350,0,0]
[null,null,0,52,"",null,null,null,null,null,null,null,null,null,0,0,50,350,0,0]
[null,null,0,52,"",null,null,null,null,null,null,null,null,null,0,0,50,350,0,0]
[null,null,0,52,"",null,null,null,null,null,null,null,null,null,0,0,50,350,0,0]
[null,null,0,52,"",null,null,null,null,null,null,null,null,null,0,0,50,350,0,0]
[null,null,0,52,"",null,null,null,null,null,null,null,null,null,0,0,50,350,0,0]
[null,null,0,52,"",null,null,null,null,null,null,null,null,null,0,0,50,350,0,0]
[null,null,0,52,"",null,null,null,null,null,null,null,null,null,0,0,50,350,0,0]
[null,null,0,52,"",null,null,null,null,null,null,null,null,null,0,0,50,350,0,0]
[null,null,0,52,"",null,null,null,null,null,null,null,null,null,0,0,50,350,0,0]
[null,null,0,52,"",null,null,null,null,null,null,null,null,null,0,0,50,350,0,0]
[null,null,0,52,"",null,null,null,null,null,null,null,null,null,0,0,50,350,0,0]
[null,null,0,52,"",null,null,null,null,null,null,null,null,null,0,0,50,350,0,0]
[null,null,0,52,"",null,null,null,null,null,null,null,null,null,0,0,50,350,0,0]
[null,null,0,52,"",null,null,null,null,null,null,null,null,null,0,0,50,350,0,0]
[null,null,0,{"$f":"INT(MOD(INT((B393-2)/7)+0.6,52+5/28))+1","v":52},"",null,null,null,null,null,null,null,null,null,{"$f":"IF(L393=\"v\",0,M393-N393)","v":0},{"$f":"IF(L393=\"v\",M393-N393,0)","v":0},50,350,0,0]
[null,null,{"$f":"IF(B394=0,0,(DATE(YEAR(B394),MONTH(B394),DAY(B394))))","v":0},52,{"$f":"IF(C394=0,\"\",UPPER(TEXT(B394,\"mmmm\")))","v":""},null,null,null,null,null,null,null,null,null,0,0,50,350,0,0]
[null,null,0,52,"",null,null,null,null,null,null,null,null,null,0,0,50,350,0,0]
[null,null,0,52,"",null,null,null,null,null,null,null,null,null,0,0,50,350,0,0]
[null,null,0,52,"",null,null,null,null,null,null,null,null,null,0,0,50,350,0,0]
[null,null,0,52,"",null,null,null,null,null,null,null,null,null,0,0,50,350,0,0]
[null,null,0,52,"",null,null,null,null,null,null,null,null,null,0,0,50,350,0,0]
[null,null,0,52,"",null,null,null,null,null,null,null,null,null,0,0,50,350,0,0]
[null,null,0,52,"",null,null,null,null,null,null,null,null,null,0,0,50,350,0,0]
[null,null,0,52,"",null,null,null,null,null,null,null,null,null,0,0,50,350,{"$f":"IF(Q402=Q401,0,Q402)","v":0},{"$f":"IF(R402=R401,0,R402)","v":0}]
[null,null,0,52,"",null,null,null,null,null,null,null,null,null,0,0,50,350,0,0]
[null,null,0,52,"",null,null,null,null,null,null,null,null,null,0,0,{"$f":"Q403+O404","v":50},{"$f":"R403+P404","v":350},0,0]
[null,null,0,52,"",null,null,null,null,null,null,null,null,null,0,0,50,350,0,0]
[null,null,0,52,"",null,null,null,null,null,null,null,null,null,0,0,50,350,0,0]
[null,null,0,52,"",null,null,null,null,null,null,null,null,null,0,0,50,350,0,0]
[null,null,0,52,"",null,null,null,null,null,null,null,null,null,0,0,50,350,0,0]
[null,null,0,52,"",null,null,null,null,null,null,null,null,null,0,0,50,350,0,0]
[null,null,0,52,"",null,null,null,null,null,null,null,null,null,0,0,50,350,0,0]
[null,null,0,52,"",null,null,null,null,null,null,null,null,null,0,0,50,350,0,0]
[null,null,0,52,"",null,null,null,null,null,null,null,null,null,0,0,50,350,0,0]
[null,null,0,52,"",null,null,null,null,null,null,null,null,null,0,0,50,350,0,0]
[null,null,0,52,"",null,null,null,null,null,null,null,null,null,0,0,50,350,0,0]
[null,null,0,52,"",null,null,null,null,null,null,null,null,null,0,0,50,350,0,0]
[null,null,0,52,"",null,null,null,null,null,null,null,null,null,0,0,50,350,0,0]
[null,null,0,52,"",null,null,null,null,null,null,null,null,null,0,0,50,350,0,0]
[null,null,0,52,"",null,null,null,null,null,null,null,null,null,0,0,50,350,0,0]
[null,null,0,52,"",null,null,null,null,null,null,null,null,null,0,0,50,350,0,0]
[null,null,0,52,"",null,null,null,null,null,null,null,null,null,0,0,50,350,0,0]
[null,null,0,52,"",null,null,null,null,null,null,null,null,null,0,0,50,350,0,0]
[null,null,0,52,"",null,null,null,null,null,null,null,null,null,0,0,50,350,0,0]
[null,null,0,52,"",null,null,null,null,null,null,null,null,null,0,0,50,350,0,0]
[null,null,0,52,"",null,null,null,null,null,null,null,null,null,0,0,50,350,0,0]
[null,null,0,52,"",null,null,null,null,null,null,null,null,null,0,0,50,350,0,0]
[null,null,0,52,"",null,null,null,null,null,null,null,null,null,0,0,50,350,0,0]
[null,null,0,52,"",null,null,null,null,null,null,null,null,null,0,0,50,350,0,0]
[null,null,0,52,"",null,null,null,null,null,null,null,null,null,0,0,50,350,0,0]
[null,null,0,52,"",null,null,null,null,null,null,null,null,null,0,0,50,350,0,0]
[null,null,0,52,"",null,null,null,null,null,null,null,null,null,0,0,50,350,0,0]
[null,null,0,52,"",null,null,null,null,null,null,null,null,null,0,0,50,350,0,0]
[null,null,0,52,"",null,null,null,null,null,null,null,null,null,0,0,50,350,0,0]
[null,null,0,52,"",null,null,null,null,null,null,null,null,null,0,0,50,350,0,0]
[null,null,0,52,"",null,null,null,null,null,null,null,null,null,0,0,50,350,0,0]
[null,null,0,52,"",null,null,null,null,null,null,null,null,null,0,0,50,350,0,0]
[null,null,0,52,"",null,null,null,null,null,null,null,null,null,0,0,50,350,0,0]
[null,null,0,52,"",null,null,null,null,null,null,null,null,null,0,0,50,350,0,0]
[null,null,0,52,"",null,null,null,null,null,null,null,null,null,0,0,50,350,0,0]
[null,null,0,52,"",null,null,null,null,null,null,null,null,null,0,0,50,350,0,0]
[null,null,0,52,"",null,null,null,null,null,null,null,null,null,0,0,50,350,0,0]
[null,null,0,52,"",null,null,null,null,null,null,null,null,null,0,0,50,350,0,0]
[null,null,0,52,"",null,null,null,null,null,null,null,null,null,0,0,50,350,0,0]
[null,null,0,52,"",null,null,null,null,null,null,null,null,null,0,0,50,350,0,0]
[null,null,0,52,"",null,null,null,null,null,null,null,null,null,0,0,50,350,0,0]
[null,null,0,52,"",null,null,null,null,null,null,null,null,null,0,0,50,350,0,0]
[null,null,0,52,"",null,null,null,null,null,null,null,null,null,0,0,50,350,0,0]
[null,null,0,52,"",null,null,null,null,null,null,null,null,null,0,0,50,350,0,0]
[null,null,0,52,"",null,null,null,null,null,null,null,null,null,0,0,50,350,0,0]
[null,null,0,52,"",null,null,null,null,null,null,null,null,null,0,0,50,350,0,0]
[null,null,0,52,"",null,null,null,null,null,null,null,null,null,0,0,50,350,0,0]
[null,null,0,52,"",null,null,null,null,null,null,null,null,null,0,0,50,350,0,0]
[null,null,0,52,"",null,null,null,null,null,null,null,null,null,0,0,50,350,0,0]
[null,null,0,52,"",null,null,null,null,null,null,null,null,null,0,0,50,350,0,0]
[null,null,0,52,"",null,null,null,null,null,null,null,null,null,0,0,50,350,0,0]
[null,null,0,52,"",null,null,null,null,null,null,null,null,null,0,0,50,350,0,0]
[null,null,0,52,"",null,null,null,null,null,null,null,null,null,0,0,50,350,0,0]
[null,null,0,{"$f":"INT(MOD(INT((B457-2)/7)+0.6,52+5/28))+1","v":52},"",null,null,null,null,null,null,null,null,null,{"$f":"IF(L457=\"v\",0,M457-N457)","v":0},{"$f":"IF(L457=\"v\",M457-N457,0)","v":0},50,350,0,0]
[null,null,{"$f":"IF(B458=0,0,(DATE(YEAR(B458),MONTH(B458),DAY(B458))))","v":0},52,{"$f":"IF(C458=0,\"\",UPPER(TEXT(B458,\"mmmm\")))","v":""},null,null,null,null,null,null,null,null,null,0,0,50,350,0,0]
[null,null,0,52,"",null,null,null,null,null,null,null,null,null,0,0,50,350,0,0]
[null,null,0,52,"",null,null,null,null,null,null,null,null,null,0,0,50,350,0,0]
[null,null,0,52,"",null,null,null,null,null,null,null,null,null,0,0,50,350,0,0]
[null,null,0,52,"",null,null,null,null,null,null,null,null,null,0,0,50,350,0,0]
[null,null,0,52,"",null,null,null,null,null,null,null,null,null,0,0,50,350,0,0]
[null,null,0,52,"",null,null,null,null,null,null,null,null,null,0,0,50,350,0,0]
[null,null,0,52,"",null,null,null,null,null,null,null,null,null,0,0,50,350,0,0]
[null,null,0,52,"",null,null,null,null,null,null,null,null,null,0,0,50,350,{"$f":"IF(Q466=Q465,0,Q466)","v":0},{"$f":"IF(R466=R465,0,R466)","v":0}]
[null,null,0,52,"",null,null,null,null,null,null,null,null,null,0,0,50,350,0,0]
[null,null,0,52,"",null,null,null,null,null,null,null,null,null,0,0,{"$f":"Q467+O468","v":50},{"$f":"R467+P468","v":350},0,0]
[null,null,0,52,"",null,null,null,null,null,null,null,null,null,0,0,50,350,0,0]
[null,null,0,52,"",null,null,null,null,null,null,null,null,null,0,0,50,350,0,0]
[null,null,0,52,"",null,null,null,null,null,null,null,null,null,0,0,50,350,0,0]
[null,null,0,52,"",null,null,null,null,null,null,null,null,null,0,0,50,350,0,0]
[null,null,0,52,"",null,null,null,null,null,null,null,null,null,0,0,50,350,0,0]
[null,null,0,52,"",null,null,null,null,null,null,null,null,null,0,0,50,350,0,0]
[null,null,0,52,"",null,null,null,null,null,null,null,null,null,0,0,50,350,0,0]
[null,null,0,52,"",null,null,null,null,null,null,null,null,null,0,0,50,350,0,0]
[null,null,0,52,"",null,null,null,null,null,null,null,null,null,0,0,50,350,0,0]
[null,null,0,52,"",null,null,null,null,null,null,null,null,null,0,0,50,350,0,0]
[null,null,0,52,"",null,null,null,null,null,null,null,null,null,0,0,50,350,0,0]
[null,null,0,52,"",null,null,null,null,null,null,null,null,null,0,0,50,350,0,0]
[null,null,0,52,"",null,null,null,null,null,null,null,null,null,0,0,50,350,0,0]
[null,null,0,52,"",null,null,null,null,null,null,null,null,null,0,0,50,350,0,0]
[null,null,0,52,"",null,null,null,null,null,null,null,null,null,0,0,50,350,0,0]
[null,null,0,52,"",null,null,null,null,null,null,null,null,null,0,0,50,350,0,0]
[null,null,0,52,"",null,null,null,null,null,null,null,null,null,0,0,50,350,0,0]
[null,null,0,52,"",null,null,null,null,null,null,null,null,null,0,0,50,350,0,0]
[null,null,0,52,"",null,null,null,null,null,null,null,null,null,0,0,50,350,0,0]
[null,null,0,52,"",null,null,null,null,null,null,null,null,null,0,0,50,350,0,0]
[null,null,0,52,"",null,null,null,null,null,null,null,null,null,0,0,50,350,0,0]
[null,null,0,52,"",null,null,null,null,null,null,null,null,null,0,0,50,350,0,0]
[null,null,0,52,"",null,null,null,null,null,null,null,null,null,0,0,50,350,0,0]
[null,null,0,52,"",null,null,null,null,null,null,null,null,null,0,0,50,350,0,0]
[null,null,0,52,"",null,null,null,null,null,null,null,null,null,0,0,50,350,0,0]
[null,null,0,52,"",null,null,null,null,null,null,null,null,null,0,0,50,350,0,0]
[null,null,0,52,"",null,null,null,null,null,null,null,null,null,0,0,50,350,0,0]
[null,null,0,52,"",null,null,null,null,null,null,null,null,null,0,0,50,350,0,0]
[null,null,0,52,"",null,null,null,null,null,null,null,null,null,0,0,50,350,0,0]
[null,null,0,52,"",null,null,null,null,null,null,null,null,null,0,0,50,350,0,0]
[null,null,0,52,"",null,null,null,null,null,null,null,null,null,0,0,50,350,0,0]
[null,null,0,52,"",null,null,null,null,null,null,null,null,null,0,0,50,350,0,0]
[null,null,0,52,"",null,null,null,null,null,null,null,null,null,0,0,50,350,0,0]
[null,null,0,52,"",null,null,null,null,null,null,null,null,null,0,0,50,350,0,0]
[null,null,0,52,"",null,null,null,null,null,null,null,null,null,0,0,50,350,0,0]
[null,null,0,52,"",null,null,null,null,null,null,null,null,null,0,0,50,350,0,0]
[null,null,0,52,"",null,null,null,null,null,null,null,null,null,0,0,50,350,0,0]
[null,null,0,52,"",null,null,null,null,null,null,null,null,null,0,0,50,350,0,0]
[null,null,0,52,"",null,null,null,null,null,null,null,null,null,0,0,50,350,0,0]
[null,null,0,52,"",null,null,null,null,null,null,null,null,null,0,0,50,350,0,0]
[null,null,0,52,"",null,null,null,null,null,null,null,null,null,0,0,50,350,0,0]
[null,null,0,52,"",null,null,null,null,null,null,null,null,null,0,0,50,350,0,0]
[null,null,0,52,"",null,null,null,null,null,null,null,null,null,0,0,50,350,0,0]
[null,null,0,52,"",null,null,null,null,null,null,null,null,null,0,0,50,350,0,0]
[null,null,0,52,"",null,null,null,null,null,null,null,null,null,0,0,50,350,0,0]
[null,null,0,52,"",null,null,null,null,null,null,null,null,null,0,0,50,350,0,0]
[null,null,0,52,"",null,null,null,null,null,null,null,null,null,0,0,50,350,0,0]
[null,null,0,52,"",null,null,null,null,null,null,null,null,null,0,0,50,350,0,0]
[null,null,0,52,"",null,null,null,null,null,null,null,null,null,0,0,50,350,0,0]
[null,null,0,52,"",null,null,null,null,null,null,null,null,null,0,0,50,350,0,0]
[null,null,0,52,"",null,null,null,null,null,null,null,null,null,0,0,50,350,0,0]
[null,null,0,52,"",null,null,null,null,null,null,null,null,null,0,0,50,350,0,0]
[null,null,0,{"$f":"INT(MOD(INT((B521-2)/7)+0.6,52+5/28))+1","v":52},"",null,null,null,null,null,null,null,null,null,{"$f":"IF(L521=\"v\",0,M521-N521)","v":0},{"$f":"IF(L521=\"v\",M521-N521,0)","v":0},50,350,0,0]
[null,null,{"$f":"IF(B522=0,0,(DATE(YEAR(B522),MONTH(B522),DAY(B522))))","v":0},52,{"$f":"IF(C522=0,\"\",UPPER(TEXT(B522,\"mmmm\")))","v":""},null,null,null,null,null,null,null,null,null,0,0,50,350,0,0]
[null,null,0,52,"",null,null,null,null,null,null,null,null,null,0,0,50,350,0,0]
[null,null,0,52,"",null,null,null,null,null,null,null,null,null,0,0,50,350,0,0]
[null,null,0,52,"",null,null,null,null,null,null,null,null,null,0,0,50,350,0,0]
[null,null,0,52,"",null,null,null,null,null,null,null,null,null,0,0,50,350,0,0]
[null,null,0,52,"",null,null,null,null,null,null,null,null,null,0,0,50,350,0,0]
[null,null,0,52,"",null,null,null,null,null,null,null,null,null,0,0,50,350,0,0]
[null,null,0,52,"",null,null,null,null,null,null,null,null,null,0,0,50,350,0,0]
[null,null,0,52,"",null,null,null,null,null,null,null,null,null,0,0,50,350,{"$f":"IF(Q530=Q529,0,Q530)","v":0},{"$f":"IF(R530=R529,0,R530)","v":0}]
[null,null,0,52,"",null,null,null,null,null,null,null,null,null,0,0,50,350,0,0]
[null,null,0,52,"",null,null,null,null,null,null,null,null,null,0,0,{"$f":"Q531+O532","v":50},{"$f":"R531+P532","v":350},0,0]
[null,null,0,52,"",null,null,null,null,null,null,null,null,null,0,0,50,350,0,0]
[null,null,0,52,"",null,null,null,null,null,null,null,null,null,0,0,50,350,0,0]
[null,null,0,52,"",null,null,null,null,null,null,null,null,null,0,0,50,350,0,0]
[null,null,0,52,"",null,null,null,null,null,null,null,null,null,0,0,50,350,0,0]
[null,null,0,52,"",null,null,null,null,null,null,null,null,null,0,0,50,350,0,0]
[null,null,0,52,"",null,null,null,null,null,null,null,null,null,0,0,50,350,0,0]
[null,null,0,52,"",null,null,null,null,null,null,null,null,null,0,0,50,350,0,0]
[null,null,0,52,"",null,null,null,null,null,null,null,null,null,0,0,50,350,0,0]
[null,null,0,52,"",null,null,null,null,null,null,null,null,null,0,0,50,350,0,0]
[null,null,0,52,"",null,null,null,null,null,null,null,null,null,0,0,50,350,0,0]
[null,null,0,52,"",null,null,null,null,null,null,null,null,null,0,0,50,350,0,0]
[null,null,0,52,"",null,null,null,null,null,null,null,null,null,0,0,50,350,0,0]
[null,null,0,52,"",null,null,null,null,null,null,null,null,null,0,0,50,350,0,0]
[null,null,0,52,"",null,null,null,null,null,null,null,null,null,0,0,50,350,0,0]
[null,null,0,52,"",null,null,null,null,null,null,null,null,null,0,0,50,350,0,0]
[null,null,0,52,"",null,null,null,null,null,null,null,null,null,0,0,50,350,0,0]
[null,null,0,52,"",null,null,null,null,null,null,null,null,null,0,0,50,350,0,0]
[null,null,0,52,"",null,null,null,null,null,null,null,null,null,0,0,50,350,0,0]
[null,null,0,52,"",null,null,null,null,null,null,null,null,null,0,0,50,350,0,0]
[null,null,0,52,"",null,null,null,null,null,null,null,null,null,0,0,50,350,0,0]
[null,null,0,52,"",null,null,null,null,null,null,null,null,null,0,0,50,350,0,0]
[null,null,0,52,"",null,null,null,null,null,null,null,null,null,0,0,50,350,0,0]
[null,null,0,52,"",null,null,null,null,null,null,null,null,null,0,0,50,350,0,0]
[null,null,0,52,"",null,null,null,null,null,null,null,null,null,0,0,50,350,0,0]
[null,null,0,52,"",null,null,null,null,null,null,null,null,null,0,0,50,350,0,0]
[null,null,0,52,"",null,null,null,null,null,null,null,null,null,0,0,50,350,0,0]
[null,null,0,52,"",null,null,null,null,null,null,null,null,null,0,0,50,350,0,0]
[null,null,0,52,"",null,null,null,null,null,null,null,null,null,0,0,50,350,0,0]
[null,null,0,52,"",null,null,null,null,null,null,null,null,null,0,0,50,350,0,0]
[null,null,0,52,"",null,null,null,null,null,null,null,null,null,0,0,50,350,0,0]
[null,null,0,52,"",null,null,null,null,null,null,null,null,null,0,0,50,350,0,0]
[null,null,0,52,"",null,null,null,null,null,null,null,null,null,0,0,50,350,0,0]
[null,null,0,52,"",null,null,null,null,null,null,null,null,null,0,0,50,350,0,0]
[null,null,0,52,"",null,null,null,null,null,null,null,null,null,0,0,50,350,0,0]
[null,null,0,52,"",null,null,null,null,null,null,null,null,null,0,0,50,350,0,0]
[null,null,0,52,"",null,null,null,null,null,null,null,null,null,0,0,50,350,0,0]
[null,null,0,52,"",null,null,null,null,null,null,null,null,null,0,0,50,350,0,0]
[null,null,0,52,"",null,null,null,null,null,null,null,null,null,0,0,50,350,0,0]
[null,null,0,52,"",null,null,null,null,null,null,null,null,null,0,0,50,350,0,0]
[null,null,0,52,"",null,null,null,null,null,null,null,null,null,0,0,50,350,0,0]
[null,null,0,52,"",null,null,null,null,null,null,null,null,null,0,0,50,350,0,0]
[null,null,0,52,"",null,null,null,null,null,null,null,null,null,0,0,50,350,0,0]
[null,null,0,52,"",null,null,null,null,null,null,null,null,null,0,0,50,350,0,0]
[null,null,0,52,"",null,null,null,null,null,null,null,null,null,0,0,50,350,0,0]
[null,null,0,52,"",null,null,null,null,null,null,null,null,null,0,0,50,350,0,0]
[null,null,0,52,"",null,null,null,null,null,null,null,null,null,0,0,50,350,0,0]
[null,null,0,52,"",null,null,null,null,null,null,null,null,null,0,0,50,350,0,0]
[null,null,0,52,"",null,null,null,null,null,null,null,null,null,0,0,50,350,0,0]
[null,null,0,52,"",null,null,null,null,null,null,null,null,null,0,0,50,350,0,0]
[null,null,0,52,"",null,null,null,null,null,null,null,null,null,0,0,50,350,0,0]
[null,null,0,52,"",null,null,null,null,null,null,null,null,null,0,0,50,350,0,0]
[null,null,0,52,"",null,null,null,null,null,null,null,null,null,0,0,50,350,0,0]
[null,null,0,{"$f":"INT(MOD(INT((B585-2)/7)+0.6,52+5/28))+1","v":52},"",null,null,null,null,null,null,null,null,null,{"$f":"IF(L585=\"v\",0,M585-N585)","v":0},{"$f":"IF(L585=\"v\",M585-N585,0)","v":0},50,350,0,0]
[null,null,{"$f":"IF(B586=0,0,(DATE(YEAR(B586),MONTH(B586),DAY(B586))))","v":0},52,{"$f":"IF(C586=0,\"\",UPPER(TEXT(B586,\"mmmm\")))","v":""},null,null,null,null,null,null,null,null,null,0,0,50,350,0,0]
[null,null,0,52,"",null,null,null,null,null,null,null,null,null,0,0,50,350,0,0]
[null,null,0,52,"",null,null,null,null,null,null,null,null,null,0,0,50,350,0,0]
[null,null,0,52,"",null,null,null,null,null,null,null,null,null,0,0,50,350,0,0]
[null,null,0,52,"",null,null,null,null,null,null,null,null,null,0,0,50,350,0,0]
[null,null,0,52,"",null,null,null,null,null,null,null,null,null,0,0,50,350,0,0]
[null,null,0,52,"",null,null,null,null,null,null,null,null,null,0,0,50,350,0,0]
[null,null,0,52,"",null,null,null,null,null,null,null,null,null,0,0,50,350,0,0]
[null,null,0,52,"",null,null,null,null,null,null,null,null,null,0,0,50,350,{"$f":"IF(Q594=Q593,0,Q594)","v":0},{"$f":"IF(R594=R593,0,R594)","v":0}]
[null,null,0,52,"",null,null,null,null,null,null,null,null,null,0,0,50,350,0,0]
[null,null,0,52,"",null,null,null,null,null,null,null,null,null,0,0,{"$f":"Q595+O596","v":50},{"$f":"R595+P596","v":350},0,0]
[null,null,0,52,"",null,null,null,null,null,null,null,null,null,0,0,50,350,0,0]
[null,null,0,52,"",null,null,null,null,null,null,null,null,null,0,0,50,350,0,0]
[null,null,0,52,"",null,null,null,null,null,null,null,null,null,0,0,50,350,0,0]
[null,null,0,52,"",null,null,null,null,null,null,null,null,null,0,0,50,350,0,0]
[null,null,0,52,"",null,null,null,null,null,null,null,null,null,0,0,50,350,0,0]
[null,null,0,52,"",null,null,null,null,null,null,null,null,null,0,0,50,350,0,0]
[null,null,0,52,"",null,null,null,null,null,null,null,null,null,0,0,50,350,0,0]
[null,null,0,52,"",null,null,null,null,null,null,null,null,null,0,0,50,350,0,0]
[null,null,0,52,"",null,null,null,null,null,null,null,null,null,0,0,50,350,0,0]
[null,null,0,52,"",null,null,null,null,null,null,null,null,null,0,0,50,350,0,0]
[null,null,0,52,"",null,null,null,null,null,null,null,null,null,0,0,50,350,0,0]
[null,null,0,52,"",null,null,null,null,null,null,null,null,null,0,0,50,350,0,0]
[null,null,0,52,"",null,null,null,null,null,null,null,null,null,0,0,50,350,0,0]
[null,null,0,52,"",null,null,null,null,null,null,null,null,null,0,0,50,350,0,0]
[null,null,0,52,"",null,null,null,null,null,null,null,null,null,0,0,50,350,0,0]
[null,null,0,52,"",null,null,null,null,null,null,null,null,null,0,0,50,350,0,0]
[null,null,0,52,"",null,null,null,null,null,null,null,null,null,0,0,50,350,0,0]
[null,null,0,52,"",null,null,null,null,null,null,null,null,null,0,0,50,350,0,0]
[null,null,0,52,"",null,null,null,null,null,null,null,null,null,0,0,50,350,0,0]
[null,null,0,52,"",null,null,null,null,null,null,null,null,null,0,0,50,350,0,0]
[null,null,0,52,"",null,null,null,null,null,null,null,null,null,0,0,50,350,0,0]
[null,null,0,52,"",null,null,null,null,null,null,null,null,null,0,0,50,350,0,0]
[null,null,0,52,"",null,null,null,null,null,null,null,null,null,0,0,50,350,0,0]
[null,null,0,52,"",null,null,null,null,null,null,null,null,null,0,0,50,350,0,0]
[null,null,0,52,"",null,null,null,null,null,null,null,null,null,0,0,50,350,0,0]
[null,null,0,52,"",null,null,null,null,null,null,null,null,null,0,0,50,350,0,0]
[null,null,0,52,"",null,null,null,null,null,null,null,null,null,0,0,50,350,0,0]
[null,null,0,52,"",null,null,null,null,null,null,null,null,null,0,0,50,350,0,0]
[null,null,0,52,"",null,null,null,null,null,null,null,null,null,0,0,50,350,0,0]
[null,null,0,52,"",null,null,null,null,null,null,null,null,null,0,0,50,350,0,0]
[null,null,0,52,"",null,null,null,null,null,null,null,null,null,0,0,50,350,0,0]
[null,null,0,52,"",null,null,null,null,null,null,null,null,null,0,0,50,350,0,0]
[null,null,0,52,"",null,null,null,null,null,null,null,null,null,0,0,50,350,0,0]
[null,null,0,52,"",null,null,null,null,null,null,null,null,null,0,0,50,350,0,0]
[null,null,0,52,"",null,null,null,null,null,null,null,null,null,0,0,50,350,0,0]
[null,null,0,52,"",null,null,null,null,null,null,null,null,null,0,0,50,350,0,0]
[null,null,0,52,"",null,null,null,null,null,null,null,null,null,0,0,50,350,0,0]
[null,null,0,52,"",null,null,null,null,null,null,null,null,null,0,0,50,350,0,0]
[null,null,0,52,"",null,null,null,null,null,null,null,null,null,0,0,50,350,0,0]
[null,null,0,52,"",null,null,null,null,null,null,null,null,null,0,0,50,350,0,0]
[null,null,0,52,"",null,null,null,null,null,null,null,null,null,0,0,50,350,0,0]
[null,null,0,52,"",null,null,null,null,null,null,null,null,null,0,0,50,350,0,0]
[null,null,0,52,"",null,null,null,null,null,null,null,null,null,0,0,50,350,0,0]
[null,null,0,52,"",null,null,null,null,null,null,null,null,null,0,0,50,350,0,0]
[null,null,0,52,"",null,null,null,null,null,null,null,null,null,0,0,50,350,0,0]
[null,null,0,52,"",null,null,null,null,null,null,null,null,null,0,0,50,350,0,0]
[null,null,0,52,"",null,null,null,null,null,null,null,null,null,0,0,50,350,0,0]
[null,null,0,52,"",null,null,null,null,null,null,null,null,null,0,0,50,350,0,0]
[null,null,0,52,"",null,null,null,null,null,null,null,null,null,0,0,50,350,0,0]
[null,null,0,52,"",null,null,null,null,null,null,null,null,null,0,0,50,350,0,0]
[null,null,0,52,"",null,null,null,null,null,null,null,null,null,0,0,50,350,0,0]
[null,null,0,52,"",null,null,null,null,null,null,null,null,null,0,0,50,350,0,0]
[null,null,0,{"$f":"INT(MOD(INT((B649-2)/7)+0.6,52+5/28))+1","v":52},"",null,null,null,null,null,null,null,null,null,{"$f":"IF(L649=\"v\",0,M649-N649)","v":0},{"$f":"IF(L649=\"v\",M649-N649,0)","v":0},50,350,0,0]
[null,null,{"$f":"IF(B650=0,0,(DATE(YEAR(B650),MONTH(B650),DAY(B650))))","v":0},52,{"$f":"IF(C650=0,\"\",UPPER(TEXT(B650,\"mmmm\")))","v":""},null,null,null,null,null,null,null,null,null,0,0,50,350,0,0]
[null,null,0,52,"",null,null,null,null,null,null,null,null,null,0,0,50,350,0,0]
[null,null,0,52,"",null,null,null,null,null,null,null,null,null,0,0,50,350,0,0]
[null,null,0,52,"",null,null,null,null,null,null,null,null,null,0,0,50,350,0,0]
[null,null,0,52,"",null,null,null,null,null,null,null,null,null,0,0,50,350,0,0]
[null,null,0,52,"",null,null,null,null,null,null,null,null,null,0,0,50,350,0,0]
[null,null,0,52,"",null,null,null,null,null,null,null,null,null,0,0,50,350,0,0]
[null,null,0,52,"",null,null,null,null,null,null,null,null,null,0,0,50,350,0,0]
[null,null,0,52,"",null,null,null,null,null,null,null,null,null,0,0,50,350,{"$f":"IF(Q658=Q657,0,Q658)","v":0},{"$f":"IF(R658=R657,0,R658)","v":0}]
[null,null,0,52,"",null,null,null,null,null,null,null,null,null,0,0,50,350,0,0]
[null,null,0,52,"",null,null,null,null,null,null,null,null,null,0,0,{"$f":"Q659+O660","v":50},{"$f":"R659+P660","v":350},0,0]
[null,null,0,52,"",null,null,null,null,null,null,null,null,null,0,0,50,350,0,0]
[null,null,0,52,"",null,null,null,null,null,null,null,null,null,0,0,50,350,0,0]
[null,null,0,52,"",null,null,null,null,null,null,null,null,null,0,0,50,350,0,0]
[null,null,0,52,"",null,null,null,null,null,null,null,null,null,0,0,50,350,0,0]
[null,null,0,52,"",null,null,null,null,null,null,null,null,null,0,0,50,350,0,0]
[null,null,0,52,"",null,null,null,null,null,null,null,null,null,0,0,50,350,0,0]
[null,null,0,52,"",null,null,null,null,null,null,null,null,null,0,0,50,350,0,0]
[null,null,0,52,"",null,null,null,null,null,null,null,null,null,0,0,50,350,0,0]
[null,null,0,52,"",null,null,null,null,null,null,null,null,null,0,0,50,350,0,0]
[null,null,0,52,"",null,null,null,null,null,null,null,null,null,0,0,50,350,0,0]
[null,null,0,52,"",null,null,null,null,null,null,null,null,null,0,0,50,350,0,0]
[null,null,0,52,"",null,null,null,null,null,null,null,null,null,0,0,50,350,0,0]
[null,null,0,52,"",null,null,null,null,null,null,null,null,null,0,0,50,350,0,0]
[null,null,0,52,"",null,null,null,null,null,null,null,null,null,0,0,50,350,0,0]
[null,null,0,52,"",null,null,null,null,null,null,null,null,null,0,0,50,350,0,0]
[null,null,0,52,"",null,null,null,null,null,null,null,null,null,0,0,50,350,0,0]
[null,null,0,52,"",null,null,null,null,null,null,null,null,null,0,0,50,350,0,0]
[null,null,0,52,"",null,null,null,null,null,null,null,null,null,0,0,50,350,0,0]
[null,null,0,52,"",null,null,null,null,null,null,null,null,null,0,0,50,350,0,0]
[null,null,0,52,"",null,null,null,null,null,null,null,null,null,0,0,50,350,0,0]
[null,null,0,52,"",null,null,null,null,null,null,null,null,null,0,0,50,350,0,0]
[null,null,0,52,"",null,null,null,null,null,null,null,null,null,0,0,50,350,0,0]
[null,null,0,52,"",null,null,null,null,null,null,null,null,null,0,0,50,350,0,0]
[null,null,0,52,"",null,null,null,null,null,null,null,null,null,0,0,50,350,0,0]
[null,null,0,52,"",null,null,null,null,null,null,null,null,null,0,0,50,350,0,0]
[null,null,0,52,"",null,null,null,null,null,null,null,null,null,0,0,50,350,0,0]
[null,null,0,52,"",null,null,null,null,null,null,null,null,null,0,0,50,350,0,0]
[null,null,0,52,"",null,null,null,null,null,null,null,null,null,0,0,50,350,0,0]
[null,null,0,52,"",null,null,null,null,null,null,null,null,null,0,0,50,350,0,0]
[null,null,0,52,"",null,null,null,null,null,null,null,null,null,0,0,50,350,0,0]
[null,null,0,52,"",null,null,null,null,null,null,null,null,null,0,0,50,350,0,0]
[null,null,0,52,"",null,null,null,null,null,null,null,null,null,0,0,50,350,0,0]
[null,null,0,52,"",null,null,null,null,null,null,null,null,null,0,0,50,350,0,0]
[null,null,0,52,"",null,null,null,null,null,null,null,null,null,0,0,50,350,0,0]
[null,null,0,52,"",null,null,null,null,null,null,null,null,null,0,0,50,350,0,0]
[null,null,0,52,"",null,null,null,null,null,null,null,null,null,0,0,50,350,0,0]
[null,null,0,52,"",null,null,null,null,null,null,null,null,null,0,0,50,350,0,0]
[null,null,0,52,"",null,null,null,null,null,null,null,null,null,0,0,50,350,0,0]
[null,null,0,52,"",null,null,null,null,null,null,null,null,null,0,0,50,350,0,0]
[null,null,0,52,"",null,null,null,null,null,null,null,null,null,0,0,50,350,0,0]
[null,null,0,52,"",null,null,null,null,null,null,null,null,null,0,0,50,350,0,0]
[null,null,0,52,"",null,null,null,null,null,null,null,null,null,0,0,50,350,0,0]
[null,null,0,52,"",null,null,null,null,null,null,null,null,null,0,0,50,350,0,0]
[null,null,0,52,"",null,null,null,null,null,null,null,null,null,0,0,50,350,0,0]
[null,null,0,52,"",null,null,null,null,null,null,null,null,null,0,0,50,350,0,0]
[null,null,0,52,"",null,null,null,null,null,null,null,null,null,0,0,50,350,0,0]
[null,null,0,52,"",null,null,null,null,null,null,null,null,null,0,0,50,350,0,0]
[null,null,0,52,"",null,null,null,null,null,null,null,null,null,0,0,50,350,0,0]
[null,null,0,52,"",null,null,null,null,null,null,null,null,null,0,0,50,350,0,0]
[null,null,0,52,"",null,null,null,null,null,null,null,null,null,0,0,50,350,0,0]
[null,null,0,52,"",null,null,null,null,null,null,null,null,null,0,0,50,350,0,0]
[null,null,0,52,"",null,null,null,null,null,null,null,null,null,0,0,50,350,0,0]
[null,null,0,{"$f":"INT(MOD(INT((B713-2)/7)+0.6,52+5/28))+1","v":52},"",null,null,null,null,null,null,null,null,null,{"$f":"IF(L713=\"v\",0,M713-N713)","v":0},{"$f":"IF(L713=\"v\",M713-N713,0)","v":0},50,350,0,0]
[null,null,{"$f":"IF(B714=0,0,(DATE(YEAR(B714),MONTH(B714),DAY(B714))))","v":0},52,{"$f":"IF(C714=0,\"\",UPPER(TEXT(B714,\"mmmm\")))","v":""},null,null,null,null,null,null,null,null,null,0,0,50,350,0,0]
[null,null,0,52,"",null,null,null,null,null,null,null,null,null,0,0,50,350,0,0]
[null,null,0,52,"",null,null,null,null,null,null,null,null,null,0,0,50,350,0,0]
[null,null,0,52,"",null,null,null,null,null,null,null,null,null,0,0,50,350,0,0]
[null,null,0,52,"",null,null,null,null,null,null,null,null,null,0,0,50,350,0,0]
[null,null,0,52,"",null,null,null,null,null,null,null,null,null,0,0,50,350,0,0]
[null,null,0,52,"",null,null,null,null,null,null,null,null,null,0,0,50,350,0,0]
[null,null,0,52,"",null,null,null,null,null,null,null,null,null,0,0,50,350,0,0]
[null,null,0,52,"",null,null,null,null,null,null,null,null,null,0,0,50,350,{"$f":"IF(Q722=Q721,0,Q722)","v":0},{"$f":"IF(R722=R721,0,R722)","v":0}]
[null,null,0,52,"",null,null,null,null,null,null,null,null,null,0,0,50,350,0,0]
[null,null,0,52,"",null,null,null,null,null,null,null,null,null,0,0,{"$f":"Q723+O724","v":50},{"$f":"R723+P724","v":350},0,0]
[null,null,0,52,"",null,null,null,null,null,null,null,null,null,0,0,50,350,0,0]
[null,null,0,52,"",null,null,null,null,null,null,null,null,null,0,0,50,350,0,0]
[null,null,0,52,"",null,null,null,null,null,null,null,null,null,0,0,50,350,0,0]
[null,null,0,52,"",null,null,null,null,null,null,null,null,null,0,0,50,350,0,0]
[null,null,0,52,"",null,null,null,null,null,null,null,null,null,0,0,50,350,0,0]
[null,null,0,52,"",null,null,null,null,null,null,null,null,null,0,0,50,350,0,0]
[null,null,0,52,"",null,null,null,null,null,null,null,null,null,0,0,50,350,0,0]
[null,null,0,52,"",null,null,null,null,null,null,null,null,null,0,0,50,350,0,0]
[null,null,0,52,"",null,null,null,null,null,null,null,null,null,0,0,50,350,0,0]
[null,null,0,52,"",null,null,null,null,null,null,null,null,null,0,0,50,350,0,0]
[null,null,0,52,"",null,null,null,null,null,null,null,null,null,0,0,50,350,0,0]
[null,null,0,52,"",null,null,null,null,null,null,null,null,null,0,0,50,350,0,0]
[null,null,0,52,"",null,null,null,null,null,null,null,null,null,0,0,50,350,0,0]
[null,null,0,52,"",null,null,null,null,null,null,null,null,null,0,0,50,350,0,0]
[null,null,0,52,"",null,null,null,null,null,null,null,null,null,0,0,50,350,0,0]
[null,null,0,52,"",null,null,null,null,null,null,null,null,null,0,0,50,350,0,0]
[null,null,0,52,"",null,null,null,null,null,null,null,null,null,0,0,50,350,0,0]
[null,null,0,52,"",null,null,null,null,null,null,null,null,null,0,0,50,350,0,0]
[null,null,0,52,"",null,null,null,null,null,null,null,null,null,0,0,50,350,0,0]
[null,null,0,52,"",null,null,null,null,null,null,null,null,null,0,0,50,350,0,0]
[null,null,0,52,"",null,null,null,null,null,null,null,null,null,0,0,50,350,0,0]
[null,null,0,52,"",null,null,null,null,null,null,null,null,null,0,0,50,350,0,0]
[null,null,0,52,"",null,null,null,null,null,null,null,null,null,0,0,50,350,0,0]
[null,null,0,52,"",null,null,null,null,null,null,null,null,null,0,0,50,350,0,0]
[null,null,0,52,"",null,null,null,null,null,null,null,null,null,0,0,50,350,0,0]
[null,null,0,52,"",null,null,null,null,null,null,null,null,null,0,0,50,350,0,0]
[null,null,0,52,"",null,null,null,null,null,null,null,null,null,0,0,50,350,0,0]
[null,null,0,52,"",null,null,null,null,null,null,null,null,null,0,0,50,350,0,0]
[null,null,0,52,"",null,null,null,null,null,null,null,null,null,0,0,50,350,0,0]
[null,null,0,52,"",null,null,null,null,null,null,null,null,null,0,0,50,350,0,0]
[null,null,0,52,"",null,null,null,null,null,null,null,null,null,0,0,50,350,0,0]
[null,null,0,52,"",null,null,null,null,null,null,null,null,null,0,0,50,350,0,0]
[null,null,0,52,"",null,null,null,null,null,null,null,null,null,0,0,50,350,0,0]
[null,null,0,52,"",null,null,null,null,null,null,null,null,null,0,0,50,350,0,0]
[null,null,0,52,"",null,null,null,null,null,null,null,null,null,0,0,50,350,0,0]
[null,null,0,52,"",null,null,null,null,null,null,null,null,null,0,0,50,350,0,0]
[null,null,0,52,"",null,null,null,null,null,null,null,null,null,0,0,50,350,0,0]
[null,null,0,52,"",null,null,null,null,null,null,null,null,null,0,0,50,350,0,0]
[null,null,0,52,"",null,null,null,null,null,null,null,null,null,0,0,50,350,0,0]
[null,null,0,52,"",null,null,null,null,null,null,null,null,null,0,0,50,350,0,0]
[null,null,0,52,"",null,null,null,null,null,null,null,null,null,0,0,50,350,0,0]
[null,null,0,52,"",null,null,null,null,null,null,null,null,null,0,0,50,350,0,0]
[null,null,0,52,"",null,null,null,null,null,null,null,null,null,0,0,50,350,0,0]
[null,null,0,52,"",null,null,null,null,null,null,null,null,null,0,0,50,350,0,0]
[null,null,0,52,"",null,null,null,null,null,null,null,null,null,0,0,50,350,0,0]
[null,null,0,52,"",null,null,null,null,null,null,null,null,null,0,0,50,350,0,0]
[null,null,0,52,"",null,null,null,null,null,null,null,null,null,0,0,50,350,0,0]
[null,null,0,52,"",null,null,null,null,null,null,null,null,null,0,0,50,350,0,0]
[null,null,0,52,"",null,null,null,null,null,null,null,null,null,0,0,50,350,0,0]
[null,null,0,52,"",null,null,null,null,null,null,null,null,null,0,0,50,350,0,0]
[null,null,0,52,"",null,null,null,null,null,null,null,null,null,0,0,50,350,0,0]
[null,null,0,52,"",null,null,null,null,null,null,null,null,null,0,0,50,350,0,0]
[null,null,0,{"$f":"INT(MOD(INT((B777-2)/7)+0.6,52+5/28))+1","v":52},"",null,null,null,null,null,null,null,null,null,{"$f":"IF(L777=\"v\",0,M777-N777)","v":0},{"$f":"IF(L777=\"v\",M777-N777,0)","v":0},50,350,0,0]
[null,null,{"$f":"IF(B778=0,0,(DATE(YEAR(B778),MONTH(B778),DAY(B778))))","v":0},52,{"$f":"IF(C778=0,\"\",UPPER(TEXT(B778,\"mmmm\")))","v":""},null,null,null,null,null,null,null,null,null,0,0,50,350,0,0]
[null,null,0,52,"",null,null,null,null,null,null,null,null,null,0,0,50,350,0,0]
[null,null,0,52,"",null,null,null,null,null,null,null,null,null,0,0,50,350,0,0]
[null,null,0,52,"",null,null,null,null,null,null,null,null,null,0,0,50,350,0,0]
[null,null,0,52,"",null,null,null,null,null,null,null,null,null,0,0,50,350,0,0]
[null,null,0,52,"",null,null,null,null,null,null,null,null,null,0,0,50,350,0,0]
[null,null,0,52,"",null,null,null,null,null,null,null,null,null,0,0,50,350,0,0]
[null,null,0,52,"",null,null,null,null,null,null,null,null,null,0,0,50,350,0,0]
[null,null,0,52,"",null,null,null,null,null,null,null,null,null,0,0,50,350,{"$f":"IF(Q786=Q785,0,Q786)","v":0},{"$f":"IF(R786=R785,0,R786)","v":0}]
[null,null,0,52,"",null,null,null,null,null,null,null,null,null,0,0,50,350,0,0]
[null,null,0,52,"",null,null,null,null,null,null,null,null,null,0,0,{"$f":"Q787+O788","v":50},{"$f":"R787+P788","v":350},0,0]
[null,null,0,52,"",null,null,null,null,null,null,null,null,null,0,0,50,350,0,0]
[null,null,0,52,"",null,null,null,null,null,null,null,null,null,0,0,50,350,0,0]
[null,null,0,52,"",null,null,null,null,null,null,null,null,null,0,0,50,350,0,0]
[null,null,0,52,"",null,null,null,null,null,null,null,null,null,0,0,50,350,0,0]
[null,null,0,52,"",null,null,null,null,null,null,null,null,null,0,0,50,350,0,0]
[null,null,0,52,"",null,null,null,null,null,null,null,null,null,0,0,50,350,0,0]
[null,null,0,52,"",null,null,null,null,null,null,null,null,null,0,0,50,350,0,0]
[null,null,0,52,"",null,null,null,null,null,null,null,null,null,0,0,50,350,0,0]
[null,null,0,52,"",null,null,null,null,null,null,null,null,null,0,0,50,350,0,0]
[null,null,0,52,"",null,null,null,null,null,null,null,null,null,0,0,50,350,0,0]
[null,null,0,52,"",null,null,null,null,null,null,null,null,null,0,0,50,350,0,0]
[null,null,0,52,"",null,null,null,null,null,null,null,null,null,0,0,50,350,0,0]
[null,null,0,52,"",null,null,null,null,null,null,null,null,null,0,0,50,350,0,0]
[null,null,0,52,"",null,null,null,null,null,null,null,null,null,0,0,50,350,0,0]
[null,null,0,52,"",null,null,null,null,null,null,null,null,null,0,0,50,350,0,0]
[null,null,0,52,"",null,null,null,null,null,null,null,null,null,0,0,50,350,0,0]
[null,null,0,52,"",null,null,null,null,null,null,null,null,null,0,0,50,350,0,0]
[null,null,0,52,"",null,null,null,null,null,null,null,null,null,0,0,50,350,0,0]
[null,null,0,52,"",null,null,null,null,null,null,null,null,null,0,0,50,350,0,0]
[null,null,0,52,"",null,null,null,null,null,null,null,null,null,0,0,50,350,0,0]
[null,null,0,52,"",null,null,null,null,null,null,null,null,null,0,0,50,350,0,0]
[null,null,0,52,"",null,null,null,null,null,null,null,null,null,0,0,50,350,0,0]
[null,null,0,52,"",null,null,null,null,null,null,null,null,null,0,0,50,350,0,0]
[null,null,0,52,"",null,null,null,null,null,null,null,null,null,0,0,50,350,0,0]
[null,null,0,52,"",null,null,null,null,null,null,null,null,null,0,0,50,350,0,0]
[null,null,0,52,"",null,null,null,null,null,null,null,null,null,0,0,50,350,0,0]
[null,null,0,52,"",null,null,null,null,null,null,null,null,null,0,0,50,350,0,0]
[null,null,0,52,"",null,null,null,null,null,null,null,null,null,0,0,50,350,0,0]
[null,null,0,52,"",null,null,null,null,null,null,null,null,null,0,0,50,350,0,0]
[null,null,0,52,"",null,null,null,null,null,null,null,null,null,0,0,50,350,0,0]
[null,null,0,52,"",null,null,null,null,null,null,null,null,null,0,0,50,350,0,0]
[null,null,0,52,"",null,null,null,null,null,null,null,null,null,0,0,50,350,0,0]
[null,null,0,52,"",null,null,null,null,null,null,null,null,null,0,0,50,350,0,0]
[null,null,0,52,"",null,null,null,null,null,null,null,null,null,0,0,50,350,0,0]
[null,null,0,52,"",null,null,null,null,null,null,null,null,null,0,0,50,350,0,0]
[null,null,0,52,"",null,null,null,null,null,null,null,null,null,0,0,50,350,0,0]
[null,null,0,52,"",null,null,null,null,null,null,null,null,null,0,0,50,350,0,0]
[null,null,0,52,"",null,null,null,null,null,null,null,null,null,0,0,50,350,0,0]
[null,null,0,52,"",null,null,null,null,null,null,null,null,null,0,0,50,350,0,0]
[null,null,0,52,"",null,null,null,null,null,null,null,null,null,0,0,50,350,0,0]
[null,null,0,52,"",null,null,null,null,null,null,null,null,null,0,0,50,350,0,0]
[null,null,0,52,"",null,null,null,null,null,null,null,null,null,0,0,50,350,0,0]
[null,null,0,52,"",null,null,null,null,null,null,null,null,null,0,0,50,350,0,0]
[null,null,0,52,"",null,null,null,null,null,null,null,null,null,0,0,50,350,0,0]
[null,null,0,52,"",null,null,null,null,null,null,null,null,null,0,0,50,350,0,0]
[null,null,0,52,"",null,null,null,null,null,null,null,null,null,0,0,50,350,0,0]
[null,null,0,52,"",null,null,null,null,null,null,null,null,null,0,0,50,350,0,0]
[null,null,0,52,"",null,null,null,null,null,null,null,null,null,0,0,50,350,0,0]
[null,null,0,52,"",null,null,null,null,null,null,null,null,null,0,0,50,350,0,0]
[null,null,0,52,"",null,null,null,null,null,null,null,null,null,0,0,50,350,0,0]
[null,null,0,52,"",null,null,null,null,null,null,null,null,null,0,0,50,350,0,0]
[null,null,0,52,"",null,null,null,null,null,null,null,null,null,0,0,50,350,0,0]
[null,null,0,{"$f":"INT(MOD(INT((B841-2)/7)+0.6,52+5/28))+1","v":52},"",null,null,null,null,null,null,null,null,null,{"$f":"IF(L841=\"v\",0,M841-N841)","v":0},{"$f":"IF(L841=\"v\",M841-N841,0)","v":0},50,350,0,0]
[null,null,{"$f":"IF(B842=0,0,(DATE(YEAR(B842),MONTH(B842),DAY(B842))))","v":0},52,{"$f":"IF(C842=0,\"\",UPPER(TEXT(B842,\"mmmm\")))","v":""},null,null,null,null,null,null,null,null,null,0,0,50,350,0,0]
[null,null,0,52,"",null,null,null,null,null,null,null,null,null,0,0,50,350,0,0]
[null,null,0,52,"",null,null,null,null,null,null,null,null,null,0,0,50,350,0,0]
[null,null,0,52,"",null,null,null,null,null,null,null,null,null,0,0,50,350,0,0]
[null,null,0,52,"",null,null,null,null,null,null,null,null,null,0,0,50,350,0,0]
[null,null,0,52,"",null,null,null,null,null,null,null,null,null,0,0,50,350,0,0]
[null,null,0,52,"",null,null,null,null,null,null,null,null,null,0,0,50,350,0,0]
[null,null,0,52,"",null,null,null,null,null,null,null,null,null,0,0,50,350,0,0]
[null,null,0,52,"",null,null,null,null,null,null,null,null,null,0,0,50,350,{"$f":"IF(Q850=Q849,0,Q850)","v":0},{"$f":"IF(R850=R849,0,R850)","v":0}]
[null,null,0,52,"",null,null,null,null,null,null,null,null,null,0,0,50,350,0,0]
[null,null,0,52,"",null,null,null,null,null,null,null,null,null,0,0,{"$f":"Q851+O852","v":50},{"$f":"R851+P852","v":350},0,0]
[null,null,0,52,"",null,null,null,null,null,null,null,null,null,0,0,50,350,0,0]
[null,null,0,52,"",null,null,null,null,null,null,null,null,null,0,0,50,350,0,0]
[null,null,0,52,"",null,null,null,null,null,null,null,null,null,0,0,50,350,0,0]
[null,null,0,52,"",null,null,null,null,null,null,null,null,null,0,0,50,350,0,0]
[null,null,0,52,"",null,null,null,null,null,null,null,null,null,0,0,50,350,0,0]
[null,null,0,52,"",null,null,null,null,null,null,null,null,null,0,0,50,350,0,0]
[null,null,0,52,"",null,null,null,null,null,null,null,null,null,0,0,50,350,0,0]
[null,null,0,52,"",null,null,null,null,null,null,null,null,null,0,0,50,350,0,0]
[null,null,0,52,"",null,null,null,null,null,null,null,null,null,0,0,50,350,0,0]
[null,null,0,52,"",null,null,null,null,null,null,null,null,null,0,0,50,350,0,0]
[null,null,0,52,"",null,null,null,null,null,null,null,null,null,0,0,50,350,0,0]
[null,null,0,52,"",null,null,null,null,null,null,null,null,null,0,0,50,350,0,0]
[null,null,0,52,"",null,null,null,null,null,null,null,null,null,0,0,50,350,0,0]
[null,null,0,52,"",null,null,null,null,null,null,null,null,null,0,0,50,350,0,0]
[null,null,0,52,"",null,null,null,null,null,null,null,null,null,0,0,50,350,0,0]
[null,null,0,52,"",null,null,null,null,null,null,null,null,null,0,0,50,350,0,0]
[null,null,0,52,"",null,null,null,null,null,null,null,null,null,0,0,50,350,0,0]
[null,null,0,52,"",null,null,null,null,null,null,null,null,null,0,0,50,350,0,0]
[null,null,0,52,"",null,null,null,null,null,null,null,null,null,0,0,50,350,0,0]
[null,null,0,52,"",null,null,null,null,null,null,null,null,null,0,0,50,350,0,0]
[null,null,0,52,"",null,null,null,null,null,null,null,null,null,0,0,50,350,0,0]
[null,null,0,52,"",null,null,null,null,null,null,null,null,null,0,0,50,350,0,0]
[null,null,0,52,"",null,null,null,null,null,null,null,null,null,0,0,50,350,0,0]
[null,null,0,52,"",null,null,null,null,null,null,null,null,null,0,0,50,350,0,0]
[null,null,0,52,"",null,null,null,null,null,null,null,null,null,0,0,50,350,0,0]
[null,null,0,52,"",null,null,null,null,null,null,null,null,null,0,0,50,350,0,0]
[null,null,0,52,"",null,null,null,null,null,null,null,null,null,0,0,50,350,0,0]
[null,null,0,52,"",null,null,null,null,null,null,null,null,null,0,0,50,350,0,0]
[null,null,0,52,"",null,null,null,null,null,null,null,null,null,0,0,50,350,0,0]
[null,null,0,52,"",null,null,null,null,null,null,null,null,null,0,0,50,350,0,0]
[null,null,0,52,"",null,null,null,null,null,null,null,null,null,0,0,50,350,0,0]
[null,null,0,52,"",null,null,null,null,null,null,null,null,null,0,0,50,350,0,0]
[null,null,0,52,"",null,null,null,null,null,null,null,null,null,0,0,50,350,0,0]
[null,null,0,52,"",null,null,null,null,null,null,null,null,null,0,0,50,350,0,0]
[null,null,0,52,"",null,null,null,null,null,null,null,null,null,0,0,50,350,0,0]
[null,null,0,52,"",null,null,null,null,null,null,null,null,null,0,0,50,350,0,0]
[null,null,0,52,"",null,null,null,null,null,null,null,null,null,0,0,50,350,0,0]
[null,null,0,52,"",null,null,null,null,null,null,null,null,null,0,0,50,350,0,0]
[null,null,0,52,"",null,null,null,null,null,null,null,null,null,0,0,50,350,0,0]
[null,null,0,52,"",null,null,null,null,null,null,null,null,null,0,0,50,350,0,0]
[null,null,0,52,"",null,null,null,null,null,null,null,null,null,0,0,50,350,0,0]
[null,null,0,52,"",null,null,null,null,null,null,null,null,null,0,0,50,350,0,0]
[null,null,0,52,"",null,null,null,null,null,null,null,null,null,0,0,50,350,0,0]
[null,null,0,52,"",null,null,null,null,null,null,null,null,null,0,0,50,350,0,0]
[null,null,0,52,"",null,null,null,null,null,null,null,null,null,0,0,50,350,0,0]
[null,null,0,52,"",null,null,null,null,null,null,null,null,null,0,0,50,350,0,0]
[null,null,0,52,"",null,null,null,null,null,null,null,null,null,0,0,50,350,0,0]
[null,null,0,52,"",null,null,null,null,null,null,null,null,null,0,0,50,350,0,0]
[null,null,0,52,"",null,null,null,null,null,null,null,null,null,0,0,50,350,0,0]
[null,null,0,52,"",null,null,null,null,null,null,null,null,null,0,0,50,350,0,0]
[null,null,0,52,"",null,null,null,null,null,null,null,null,null,0,0,50,350,0,0]
[null,null,0,52,"",null,null,null,null,null,null,null,null,null,0,0,50,350,0,0]
[null,null,0,{"$f":"INT(MOD(INT((B905-2)/7)+0.6,52+5/28))+1","v":52},"",null,null,null,null,null,null,null,null,null,{"$f":"IF(L905=\"v\",0,M905-N905)","v":0},{"$f":"IF(L905=\"v\",M905-N905,0)","v":0},50,350,0,0]
[null,null,{"$f":"IF(B906=0,0,(DATE(YEAR(B906),MONTH(B906),DAY(B906))))","v":0},52,{"$f":"IF(C906=0,\"\",UPPER(TEXT(B906,\"mmmm\")))","v":""},null,null,null,null,null,null,null,null,null,0,0,50,350,0,0]
[null,null,0,52,"",null,null,null,null,null,null,null,null,null,0,0,50,350,0,0]
[null,null,0,52,"",null,null,null,null,null,null,null,null,null,0,0,50,350,0,0]
[null,null,0,52,"",null,null,null,null,null,null,null,null,null,0,0,50,350,0,0]
[null,null,0,52,"",null,null,null,null,null,null,null,null,null,0,0,50,350,0,0]
[null,null,0,52,"",null,null,null,null,null,null,null,null,null,0,0,50,350,0,0]
[null,null,0,52,"",null,null,null,null,null,null,null,null,null,0,0,50,350,0,0]
[null,null,0,52,"",null,null,null,null,null,null,null,null,null,0,0,50,350,0,0]
[null,null,0,52,"",null,null,null,null,null,null,null,null,null,0,0,50,350,{"$f":"IF(Q914=Q913,0,Q914)","v":0},{"$f":"IF(R914=R913,0,R914)","v":0}]
[null,null,0,52,"",null,null,null,null,null,null,null,null,null,0,0,50,350,0,0]
[null,null,0,52,"",null,null,null,null,null,null,null,null,null,0,0,{"$f":"Q915+O916","v":50},{"$f":"R915+P916","v":350},0,0]
[null,null,0,52,"",null,null,null,null,null,null,null,null,null,0,0,50,350,0,0]
[null,null,0,52,"",null,null,null,null,null,null,null,null,null,0,0,50,350,0,0]
[null,null,0,52,"",null,null,null,null,null,null,null,null,null,0,0,50,350,0,0]
[null,null,0,52,"",null,null,null,null,null,null,null,null,null,0,0,50,350,0,0]
[null,null,0,52,"",null,null,null,null,null,null,null,null,null,0,0,50,350,0,0]
[null,null,0,52,"",null,null,null,null,null,null,null,null,null,0,0,50,350,0,0]
[null,null,0,52,"",null,null,null,null,null,null,null,null,null,0,0,50,350,0,0]
[null,null,0,52,"",null,null,null,null,null,null,null,null,null,0,0,50,350,0,0]
[null,null,0,52,"",null,null,null,null,null,null,null,null,null,0,0,50,350,0,0]
[null,null,0,52,"",null,null,null,null,null,null,null,null,null,0,0,50,350,0,0]
[null,null,0,52,"",null,null,null,null,null,null,null,null,null,0,0,50,350,0,0]
[null,null,0,52,"",null,null,null,null,null,null,null,null,null,0,0,50,350,0,0]
[null,null,0,52,"",null,null,null,null,null,null,null,null,null,0,0,50,350,0,0]
[null,null,0,52,"",null,null,null,null,null,null,null,null,null,0,0,50,350,0,0]
[null,null,0,52,"",null,null,null,null,null,null,null,null,null,0,0,50,350,0,0]
[null,null,0,52,"",null,null,null,null,null,null,null,null,null,0,0,50,350,0,0]
[null,null,0,52,"",null,null,null,null,null,null,null,null,null,0,0,50,350,0,0]
[null,null,0,52,"",null,null,null,null,null,null,null,null,null,0,0,50,350,0,0]
[null,null,0,52,"",null,null,null,null,null,null,null,null,null,0,0,50,350,0,0]
[null,null,0,52,"",null,null,null,null,null,null,null,null,null,0,0,50,350,0,0]
[null,null,0,52,"",null,null,null,null,null,null,null,null,null,0,0,50,350,0,0]
[null,null,0,52,"",null,null,null,null,null,null,null,null,null,0,0,50,350,0,0]
[null,null,0,52,"",null,null,null,null,null,null,null,null,null,0,0,50,350,0,0]
[null,null,0,52,"",null,null,null,null,null,null,null,null,null,0,0,50,350,0,0]
[null,null,0,52,"",null,null,null,null,null,null,null,null,null,0,0,50,350,0,0]
[null,null,0,52,"",null,null,null,null,null,null,null,null,null,0,0,50,350,0,0]
[null,null,0,52,"",null,null,null,null,null,null,null,null,null,0,0,50,350,0,0]
[null,null,0,52,"",null,null,null,null,null,null,null,null,null,0,0,50,350,0,0]
[null,null,0,52,"",null,null,null,null,null,null,null,null,null,0,0,50,350,0,0]
[null,null,0,52,"",null,null,null,null,null,null,null,null,null,0,0,50,350,0,0]
[null,null,0,52,"",null,null,null,null,null,null,null,null,null,0,0,50,350,0,0]
[null,null,0,52,"",null,null,null,null,null,null,null,null,null,0,0,50,350,0,0]
[null,null,0,52,"",null,null,null,null,null,null,null,null,null,0,0,50,350,0,0]
[null,null,0,52,"",null,null,null,null,null,null,null,null,null,0,0,50,350,0,0]
[null,null,0,52,"",null,null,null,null,null,null,null,null,null,0,0,50,350,0,0]
[null,null,0,52,"",null,null,null,null,null,null,null,null,null,0,0,50,350,0,0]
[null,null,0,52,"",null,null,null,null,null,null,null,null,null,0,0,50,350,0,0]
[null,null,0,52,"",null,null,null,null,null,null,null,null,null,0,0,50,350,0,0]
[null,null,0,52,"",null,null,null,null,null,null,null,null,null,0,0,50,350,0,0]
[null,null,0,52,"",null,null,null,null,null,null,null,null,null,0,0,50,350,0,0]
[null,null,0,52,"",null,null,null,null,null,null,null,null,null,0,0,50,350,0,0]
[null,null,0,52,"",null,null,null,null,null,null,null,null,null,0,0,50,350,0,0]
[null,null,0,52,"",null,null,null,null,null,null,null,null,null,0,0,50,350,0,0]
[null,null,0,52,"",null,null,null,null,null,null,null,null,null,0,0,50,350,0,0]
[null,null,0,52,"",null,null,null,null,null,null,null,null,null,0,0,50,350,0,0]
[null,null,0,52,"",null,null,null,null,null,null,null,null,null,0,0,50,350,0,0]
[null,null,0,52,"",null,null,null,null,null,null,null,null,null,0,0,50,350,0,0]
[null,null,0,52,"",null,null,null,null,null,null,null,null,null,0,0,50,350,0,0]
[null,null,0,52,"",null,null,null,null,null,null,null,null,null,0,0,50,350,0,0]
[null,null,0,52,"",null,null,null,null,null,null,null,null,null,0,0,50,350,0,0]
[null,null,0,52,"",null,null,null,null,null,null,null,null,null,0,0,50,350,0,0]
[null,null,0,52,"",null,null,null,null,null,null,null,null,null,0,0,50,350,0,0]
[null,null,0,{"$f":"INT(MOD(INT((B969-2)/7)+0.6,52+5/28))+1","v":52},"",null,null,null,null,null,null,null,null,null,{"$f":"IF(L969=\"v\",0,M969-N969)","v":0},{"$f":"IF(L969=\"v\",M969-N969,0)","v":0},50,350,0,0]
[null,null,{"$f":"IF(B970=0,0,(DATE(YEAR(B970),MONTH(B970),DAY(B970))))","v":0},52,{"$f":"IF(C970=0,\"\",UPPER(TEXT(B970,\"mmmm\")))","v":""},null,null,null,null,null,null,null,null,null,0,0,50,350,0,0]
[null,null,0,52,"",null,null,null,null,null,null,null,null,null,0,0,50,350,0,0]
[null,null,0,52,"",null,null,null,null,null,null,null,null,null,0,0,50,350,0,0]
[null,null,0,52,"",null,null,null,null,null,null,null,null,null,0,0,50,350,0,0]
[null,null,0,52,"",null,null,null,null,null,null,null,null,null,0,0,50,350,0,0]
[null,null,0,52,"",null,null,null,null,null,null,null,null,null,0,0,50,350,0,0]
[null,null,0,52,"",null,null,null,null,null,null,null,null,null,0,0,50,350,0,0]
[null,null,0,52,"",null,null,null,null,null,null,null,null,null,0,0,50,350,0,0]
[null,null,0,52,"",null,null,null,null,null,null,null,null,null,0,0,50,350,{"$f":"IF(Q978=Q977,0,Q978)","v":0},{"$f":"IF(R978=R977,0,R978)","v":0}]
[null,null,0,52,"",null,null,null,null,null,null,null,null,null,0,0,50,350,0,0]
[null,null,0,52,"",null,null,null,null,null,null,null,null,null,0,0,{"$f":"Q979+O980","v":50},{"$f":"R979+P980","v":350},0,0]
[null,null,0,52,"",null,null,null,null,null,null,null,null,null,0,0,50,350,0,0]
[null,null,0,52,"",null,null,null,null,null,null,null,null,null,0,0,50,350,0,0]
[null,null,0,52,"",null,null,null,null,null,null,null,null,null,0,0,50,350,0,0]
[null,null,0,52,"",null,null,null,null,null,null,null,null,null,0,0,50,350,0,0]
[null,null,0,52,"",null,null,null,null,null,null,null,null,null,0,0,50,350,0,0]
[null,null,0,52,"",null,null,null,null,null,null,null,null,null,0,0,50,350,0,0]
[null,null,0,52,"",null,null,null,null,null,null,null,null,null,0,0,50,350,0,0]
[null,null,0,52,"",null,null,null,null,null,null,null,null,null,0,0,50,350,0,0]
[null,null,0,52,"",null,null,null,null,null,null,null,null,null,0,0,50,350,0,0]
[null,null,0,52,"",null,null,null,null,null,null,null,null,null,0,0,50,350,0,0]
[null,null,0,52,"",null,null,null,null,null,null,null,null,null,0,0,50,350,0,0]
[null,null,0,52,"",null,null,null,null,null,null,null,null,null,0,0,50,350,0,0]
[null,null,0,52,"",null,null,null,null,null,null,null,null,null,0,0,50,350,0,0]
[null,null,0,52,"",null,null,null,null,null,null,null,null,null,0,0,50,350,0,0]
[null,null,0,52,"",null,null,null,null,null,null,null,null,null,0,0,50,350,0,0]
[null,null,0,52,"",null,null,null,null,null,null,null,null,null,0,0,50,350,0,0]
[null,null,0,52,"",null,null,null,null,null,null,null,null,null,0,0,50,350,0,0]
[null,null,0,52,"",null,null,null,null,null,null,null,null,null,0,0,50,350,0,0]
[null,null,0,52,"",null,null,null,null,null,null,null,null,null,0,0,50,350,0,0]
[null,null,0,52,"",null,null,null,null,null,null,null,null,null,0,0,50,350,0,0]
[null,null,0,52,"",null,null,null,null,null,null,null,null,null,0,0,50,350,0,0]
[null,null,0,52,"",null,null,null,null,null,null,null,null,null,0,0,50,350,0,0]
[null,null,0,52,"",null,null,null,null,null,null,null,null,null,0,0,50,350,0,0]
[null,null,0,52,"",null,null,null,null,null,null,null,null,null,0,0,50,350,0,0]

{"sheet":"Données","index":2,"n_rows":10,"n_cols":9,"rows_kept":10,"cut":false,"hidden":false,"merged":[]}
[]
["Création de listes déroulantes",null,null,null,null,"trouver le n° semaine (b5=cellule date)",null,null,"\"=ENT(MOD(ENT((B5-2)/7)+0,6;52+5/28))+1\""]
[null,"Catégorie","Paiements","Objets","Libellé","Nb de Règlement","Type doc","TVA","Journal"]
[null,"Taxi","Espèce","Commandes","Vélo1","R1",null,0.1,"Caisse"]
[null,"Location","Chèque","Factures","Vélo2","R2","DE",0.2,"Banque"]
[null,"Publicité","CB","Remise","Vélo3","R3","CO","TVA"]
[null,"Banque","Virement","Frais généraux","Vélo4","R4","FA"]
[null,"Divers","Tickets","Frais de personnel",null,"R5","FALoc"]
[null,"Dépense","Résultat","Cotisations"]
[null,"Résultat",null,"Impots"]

{"sheet":"Fichier clients","index":3,"n_rows":12,"n_cols":19,"rows_kept":12,"cut":false,"hidden":false,"merged":[[0,13,1,17],[4,4,4,6],[0,4,1,9]]}
[null,null,null,null,"F I C H I E R       C L I E N T S",null,null,null,null,null,null,null,null,"F I C H I E R       C L I E N T S"]
[]
[]
[null,null,null,{"$f":"1","v":1},2,3,4,5,6,7,8,9,10,11,12,13,14,15,16]
[null,null,null,null,"RESPONSABLE"]
[null,null,null,"Code","Nom","Prénom","Téléphone","Enseigne","Adresse","C P","Ville","Téléphone","Société","Adresse","C P","Ville","N° de siren","Téléphone","Mail"]
[]
[]
[null,null,null,"5618",null,null,null,"fast"]
[null,null,null,"82563","biloute","paul"]
[null,null,null,"NVX"]
[null,null,null,"PUCYC0001","LEVY","Gérald",614172536,"CYCLOPOLITAIN",{"$f":"\"\"","v":""},30000,"NIMES",null,"Cyclopolitain média","2A rue sainte Marie des terreaux",69001,"LYON",null,478303591,"g.levy@cyclopolitain-media.com"]

{"sheet":"Fournisseurs","index":4,"n_rows":11,"n_cols":19,"rows_kept":11,"cut":false,"hidden":false,"merged":[[4,4,4,6],[0,4,1,8],[0,12,1,16]]}
[null,null,null,null,"FICHIER FOURNISSEURS",null,null,null,null,null,null,null,"FICHIER FOURNISSEURS"]
[]
[]
[null,null,null,{"$f":"1","v":1},2,3,4,5,6,7,8,9,10,11,12,13,14,15,16]
[null,null,null,null,"RESPONSABLE"]
[null,null,null,"Code","Nom","Prénom","Téléphone","Enseigne","Adresse","C P","Ville","Téléphone","Société","Adresse","C P","Ville","N° de siren","Téléphone","Mail"]
[]
[]
[null,null,null,"NVX"]
[null,null,null,"PUCYC0001","LEVY","Gérald",614172536,"CYCLOPOLITAIN",{"$f":"\"\"","v":""},30000,"NIMES"]
[null,null,null,"rose","ali","berk",null,"pli",null,null,null,null,"Cyclopolitain média","2A rue sainte Marie des terreaux",69001,"LYON",null,478303591,"g.levy@cyclopolitain-media.com"]

{"sheet":"Prestations","index":5,"n_rows":230,"n_cols":4,"rows_kept":230,"cut":false,"hidden":false,"merged":[[229,2,235,2],[220,2,227,2],[0,1,1,3],[202,2,208,2],[210,2,218,2]]}
[null,"PRESTATIONS"]
[]
[]
[]
[]
[]
[]
[null,"Référence","Descriptif","Prix H.T."]
[]
[null,"J1","1 jour avec 3 cyclonautes",450]
[null,"AFF1V1sb","1 semaine d'affichage avec 1 vélo",1000]
[null,"AFF1V1sh","1 semaine d'affichage avec 1 vélo",1100]
[null,"AFF1V2sb","1 semaine d'affichage avec 2 vélos",1630]
[null,"AFF1V2sh","1 semaine d'affichage avec 2 vélos",1730]
[null,"AFF2V1sb","2 semaines d'affichage avec 1 vélo",1490]
[null,"AFF2V1sh","2 semaines d'affichage avec 1 vélo",1610]
[null,"AFF2V2sb","2 semaines d'affichage avec 2 vélos",2370]
[null,"AFF2V2sh","2 semaines d'affichage avec 2 vélos",2630]
[null,"AFF3V1sb","3 semaines d'affichage avec 1 vélo",1860]
[null,"AFF3V1sh","3 semaines d'affichage avec 1 vélo",2010]
[null,"AFF3V2sb","3 semaines d'affichage avec 2 vélos",2990]
[null,"AFF3V2sh","3 semaines d'affichage avec 2 vélos",3290]
[null,"AFF4V1sb","4 semaines d'affichage avec 1 vélo",2130]
[null,"AFF4V1sh","4 semaines d'affichage avec 1 vélo",2410]
[null,"AFF4V2sb","4 semaines d'affichage avec 2 vélos",3530]
[null,"AFF4V2sh","4 semaines d'affichage avec 2 vélos",3810]
[null,"CONDLOC","Aucune semaine réservée n'est remboursable",{"$f":"\"\"","v":""}]
[null,"CONDRG","Règlement : 30% commande ; Soldes fin de prestation",{"$f":"\"\"","v":""}]
[null,"Distrivoy","Distribution de flyers aux voyageurs","OFFERT"]
[null,"FL1",{"$f":"\"     - Flyers fournis par l'annonceur -\"","v":"     - Flyers fournis par l'annonceur -"},{"$f":"\"\"","v":""}]
[null,"FL2","Flyers à fournir après acceptation devis",{"$f":"\"\"","v":""}]
[null,"LOCA","Location cyclo pour la semaine",50]
[null,"LOCB","Location cyclo pour la semaine",75]
[null,"LOCC","Location cyclo pour la semaine",100]
[null,"NTPERS","Nbre d'intervenant fournit par l'annonceur",{"$f":"\"\"","v":""}]
[null,"NTSEM",{"$f":"\"   1 semaine d'affichage est comprise\"","v":"   1 semaine d'affichage est comprise"},{"$f":"\"\"","v":""}]
[null,"NTSEM1",{"$f":"\"            du mardi au samedi inclus\"","v":"            du mardi au samedi inclus"},{"$f":"\"\"","v":""}]
[null,"NTST","          STREET MARKETING",{"$f":"\"\"","v":""}]
[null,"POSE","Conception et pose comprises",{"$f":"\"\"","v":""}]
[null,"SEM","                    La prestation se déroulera la semaine",{"$f":"\"\"","v":""}]
[null,"SEMJ1","Samedi",{"$f":"\"\"","v":""}]
[null,"SEMJ2","Mercredi - Samedi",{"$f":"\"\"","v":""}]
[null,"SEMJ3","Mercredi - Vendredi - Samedi",{"$f":"\"\"","v":""}]
[null,"SEMJDIST","Jours de distribution :\n",{"$f":"\"\"","v":""}]
[null,"SEMJX",null,{"$f":"\"\"","v":""}]
[null,"TIC10","Carnet de 10 tickets à 2,00 €          + 2 ",20]
[null,"TIC50","Carnet de 50 tickets à 2,00 €          + 10",100]
[null,"TICCLI","Carnet de 05 tickets à 2,00 €          + 1",10]
[null,"TICPILO","Carnet de 05 tickets à 2,00 €          + 2",10]
[null,"TRAJ","Supplément par jour pour trajet sur-mesure",200]
[null,"CONDRG2","En votre aimable règlement. "]
[]
[]
[]
[]
[]
[]
[]
[]
[]
[]
[]
[]
[]
[]
[]
[]
[]
[]
[]
[]
[]
[]
[]
[]
[]
[]
[]
[]
[]
[]
[]
[]
[]
[]
[]
[]
[]
[]
[]
[]
[]
[]
[]
[]
[]
[]
[]
[]
[]
[]
[]
[]
[]
[]
[]
[]
[]
[]
[]
[]
[]
[]
[]
[]
[]
[]
[]
[]
[]
[]
[]
[]
[]
[]
[]
[]
[]
[]
[]
[]
[]
[]
[]
[]
[]
[]
[]
[]
[]
[]
[]
[]
[]
[]
[]
[]
[]
[]
[]
[]
[]
[]
[]
[]
[]
[]
[]
[]
[]
[]
[]
[]
[]
[]
[]
[]
[]
[]
[]
[]
[]
[]
[]
[]
[]
[]
[]
[]
[]
[]
[]
[]
[]
[]
[]
[]
[]
[]
[]
[]
[]
[]
[]
[]
[]
[]
[]
[]
[]
[]
[]
[null,"CondDevis","DEVIS GRATUIT. Ce devis est valable 2 mois, mais la date de la prestation ne peut être retenue que par une commande définitive conclue au minimum 20 jours avant la prestation. Pour toute commande, il sera perçu un acompte de 30% du montant total TTC."]
[]
[]
[]
[]
[]
[]
[]
[null,"CondComm","Cette commande vous engage par le versement d'un acompte non remboursable de 30% du montant total TTC. D'éventuelles modifications devront s'effectuer au minimum 20 jours avant la date de début de la prestation.  Fournis : un exemplaire de la commande,  des conditions de vente et des travaux d'impression.  Bon pour accord, date et signature."]
[]
[]
[]
[]
[]
[]
[]
[]
[]
[null,"CondFact"]
[]
[]
[]
[]
[]
[]
[]
[]
[null,"CondFactLoc"]

{"sheet":"EDITIONS","index":6,"n_rows":81,"n_cols":15,"rows_kept":81,"cut":false,"hidden":false,"merged":[[30,2,30,5],[31,2,31,5],[32,2,32,5],[33,2,33,5],[35,2,35,5],[42,2,42,5],[43,2,43,5],[45,1,50,3],[38,2,38,5],[44,2,44,5],[39,2,39,5],[40,2,40,5],[41,2,41,5],[53,5,53,7],[53,3,53,4],[45,5,45,7],[47,5,47,7],[51,5,51,7],[50,5,50,7],[49,5,49,7],[48,5,48,6],[46,4,46,6],[52,4,52,9],[36,2,36,5],[37,2,37,5],[12,6,12,8],[23,2,23,4],[7,1,7,2],[7,5,7,8],[9,6,9,8],[13,1,13,2],[8,5,8,8],[13,6,13,8],[9,2,9,4],[24,2,24,4],[21,2,21,4],[16,3,16,4],[16,5,16,6],[34,2,34,5],[11,5,11,8],[11,1,11,2],[20,14,20,15],[22,14,22,17],[9,14,9,17],[10,14,10,17],[12,14,12,17],[15,14,15,17],[16,14,16,17],[18,14,18,17],[19,14,19,16],[1,14,1,15],[13,14,13,15],[4,2,4,5],[5,1,5,8],[25,2,25,4],[10,5,10,8],[2,11,2,12],[5,14,5,17],[6,14,6,17],[7,14,7,15],[7,16,7,17],[2,14,2,15],[18,2,18,5],[4,11,4,12],[6,1,6,2],[14,5,14,7],[26,2,26,4],[27,2,27,4],[28,2,28,4],[29,2,29,4],[19,2,19,4],[20,2,20,4],[22,2,22,4]]}
[]
[]
[]
[]
[null,null,"LA COMMUNICATION MOBILE ECOLOGIQUE",null,null,null,null,null,null,null,null,"Impression et save"]
[null,"2, rue Saint Antoine 30000 NIMES ; Siren n° 123654988 ; Rc n° 321654987 ; TVA n°654789321",null,null,null,null,null,null,null,null,null,null,null,"NOM","gone"]
[null,"Votre contact :",null,null,null,null,null,null,null,null,null,"N° de doc",null,"PRENOM","bill"]
[null,"Richard Raveau",null,"3212",null,{"$f":"IF(D12=\"nvx\",O10,IFERROR(VLOOKUP(D12,ClientsFichier,5,FALSE),\"Enseigne\"))","v":"Enseigne"},null,null,null,null,null,130000,null,"TELEPHONE",605020304]
[null,null,null,null,null,{"$f":"IF($D$12=\"nvx\",O11,IFERROR(VLOOKUP($D$12,ClientsFichier,6,FALSE),\"Adresse\"))","v":"Adresse"}]
[null,"Date : ",{"$f":"IF(L11=0,TODAY(),L11)","v":"2013-12-08"},null,null,{"$f":"IF($D$12=\"nvx\",O12,IFERROR(VLOOKUP($D$12,ClientsFichier,7,FALSE),\"CP\"))","v":"CP"},{"$f":"IF($D$12=\"nvx\",O13,IFERROR(VLOOKUP($D$12,ClientsFichier,8,FALSE),\"Ville\"))","v":"Ville"},null,null,null,null,"Date facture",null,"ENSEIGNE","OPTIC 2000"]
[null,null,null,null,null,{"$f":"IF(D12=\"nvx\",O16,IFERROR(VLOOKUP(D12,ClientsFichier,10,FALSE),\"Société\"))","v":"Société"},null,null,null,null,null,null,null,"ADRESSE","place du marché"]
[null,"Code client : ",null,null,null,{"$f":"IF(D12=\"nvx\",O17,IFERROR(VLOOKUP(D12,ClientsFichier,11,FALSE),\"Adresse\"))","v":"Adresse"},null,null,null,null,null,null,null,"CP",30000]
[null,null,null,null,null,{"$f":"IF($D$12=\"nvx\",O18,IFERROR(VLOOKUP($D$12,ClientsFichier,12,FALSE),\"CP\"))","v":"CP"},{"$f":"IF($D$12=\"nvx\",O19,IFERROR(VLOOKUP($D$12,ClientsFichier,13,FALSE),\"Ville\"))","v":"Ville"},null,null,null,null,null,null,"VILLE","NIMES"]
[null,{"$f":"IF(C15=\"fa\",\"Commande n° : \",\"\")","v":""},null,null,null,"Siret n°",{"$f":"IF($D$12=\"nvx\",O20,IFERROR(VLOOKUP($D$12,ClientsFichier,14,FALSE),\"\"))","v":""},null,null,null,null,null,null,"TELEPHONE"]
[null,"Type doc :",null,null,"Contact :",{"$f":"IF($D$12=\"nvx\",O6&\"  \"&O7,IFERROR(VLOOKUP($D$12,ClientsFichier,3,FALSE)&\"  \"&(VLOOKUP($D$12,ClientsFichier,2,FALSE)),\"\"))","v":""},null,null,{"$f":"IF($D$12=\"nvx\",O8,IFERROR(VLOOKUP($D$12,ClientsFichier,4,FALSE),\"\"))","v":""}]
[null,null,null,null,null,null,null,null,null,null,null,null,null,"SOCIETE","bidule"]
[null,null,null,{"$f":"IF(C15=\"DE\",\"DEVIS N°\",IF(C15=\"CO\",\"COMMANDE N°\",IF(C15=\"FA\",\"FACTURE N°\",IF(C15=\"faloc\",\"FACTURE N°\",\"\"))))","v":""},null,{"$f":"IF(C15=0,\"\",L8+1)","v":""},null,null,null,null,null,null,null,"ADRESSE","trou duc"]
[null,null,null,null,null,null,null,null,null,null,null,null,null,"CP",75010]
[null,"Réf.","Descriptif de la prestation",null,null,null,null,"Nbr","Prix H.T",null,null,null,null,"VILLE","PARIS"]
[null,null,{"$f":"IFERROR(VLOOKUP(B20,Prestations,2,FALSE),\"\")","v":""},null,null,{"$f":"IF(OR(B20=\"TIC10\",B20=\"TIC50\",B20=\"TICCLI\"),\"OFFERTS\",\"\")","v":""},null,null,{"$f":"IFERROR(IF(H20=0,(VLOOKUP(B20,Prestations,3,)),(VLOOKUP(B20,Prestations,3,)*H20)),\"\")","v":""},null,null,null,null,"N° de SIREN"]
[null,null,"",null,null,{"$f":"IF(OR(B21=\"TIC10\",B21=\"TIC50\",B21=\"TICCLI\"),\"OFFERTS\",\"\")","v":""},null,null,"",null,null,null,null,"TELEPHONE"]
[null,null,"",null,null,{"$f":"IF(OR(B22=\"TIC10\",B22=\"TIC50\",B22=\"TICCLI\"),\"OFFERTS\",\"\")","v":""},null,null,""]
[null,null,"",null,null,"",null,null,"",null,null,null,null,"MAIL","raveau.r@gmail.com"]
[null,null,"",null,null,"",null,null,""]
[null,null,"",null,null,"",null,null,""]
[null,null,"",null,null,"",null,null,"",null,null,null,"J1",{"$f":"Prestations!C10","v":"1 jour avec 3 cyclonautes"}]
[null,null,"",null,null,{"$f":"IF(OR(B27=\"TIC10\",B27=\"TIC50\",B27=\"TICCLI\"),\"OFFERTS\",\"\")","v":""},null,null,"",null,null,null,{"$f":"Prestations!B11","v":"AFF1V1sb"},{"$f":"Prestations!C11","v":"1 semaine d'affichage avec 1 vélo"}]
[null,null,"",null,null,"",null,null,"",null,null,null,{"$f":"Prestations!B12","v":"AFF1V1sh"},{"$f":"Prestations!C12","v":"1 semaine d'affichage avec 1 vélo"}]
[null,null,"",null,null,"",null,null,"",null,null,null,{"$f":"Prestations!B13","v":"AFF1V2sb"},{"$f":"Prestations!C13","v":"1 semaine d'affichage avec 2 vélos"}]
[null,null,"",null,null,"",null,null,"",null,null,null,{"$f":"Prestations!B14","v":"AFF1V2sh"},{"$f":"Prestations!C14","v":"1 semaine d'affichage avec 2 vélos"}]
[null,null,"",null,null,null,null,null,"",null,null,null,{"$f":"Prestations!B15","v":"AFF2V1sb"},{"$f":"Prestations!C15","v":"2 semaines d'affichage avec 1 vélo"}]
[null,null,"",null,null,null,null,null,"",null,null,null,{"$f":"Prestations!B16","v":"AFF2V1sh"},{"$f":"Prestations!C16","v":"2 semaines d'affichage avec 1 vélo"}]
[null,null,"",null,null,null,null,null,"",null,null,null,{"$f":"Prestations!B17","v":"AFF2V2sb"},{"$f":"Prestations!C17","v":"2 semaines d'affichage avec 2 vélos"}]
[null,null,"",null,null,null,null,null,"",null,null,null,{"$f":"Prestations!B18","v":"AFF2V2sh"},{"$f":"Prestations!C18","v":"2 semaines d'affichage avec 2 vélos"}]
[null,null,"",null,null,null,null,null,"",null,null,null,{"$f":"Prestations!B19","v":"AFF3V1sb"},{"$f":"Prestations!C19","v":"3 semaines d'affichage avec 1 vélo"}]
[null,null,"",null,null,null,null,null,"",null,null,null,{"$f":"Prestations!B20","v":"AFF3V1sh"},{"$f":"Prestations!C20","v":"3 semaines d'affichage avec 1 vélo"}]
[null,null,"",null,null,null,null,null,"",null,null,null,{"$f":"Prestations!B21","v":"AFF3V2sb"},{"$f":"Prestations!C21","v":"3 semaines d'affichage avec 2 vélos"}]
[null,null,"",null,null,null,null,null,"",null,null,null,{"$f":"Prestations!B22","v":"AFF3V2sh"},{"$f":"Prestations!C22","v":"3 semaines d'affichage avec 2 vélos"}]
[null,null,"",null,null,null,null,null,"",null,null,null,{"$f":"Prestations!B23","v":"AFF4V1sb"},{"$f":"Prestations!C23","v":"4 semaines d'affichage avec 1 vélo"}]
[null,null,"",null,null,null,null,null,"",null,null,null,{"$f":"Prestations!B24","v":"AFF4V1sh"},{"$f":"Prestations!C24","v":"4 semaines d'affichage avec 1 vélo"}]
[null,null,"",null,null,null,null,null,"",null,null,null,{"$f":"Prestations!B25","v":"AFF4V2sb"},{"$f":"Prestations!C25","v":"4 semaines d'affichage avec 2 vélos"}]
[null,null,"",null,null,null,null,null,"",null,null,null,{"$f":"Prestations!B26","v":"AFF4V2sh"},{"$f":"Prestations!C26","v":"4 semaines d'affichage avec 2 vélos"}]
[null,null,"",null,null,null,null,null,"",null,null,null,{"$f":"Prestations!B27","v":"CONDLOC"},{"$f":"Prestations!C27","v":"Aucune semaine réservée n'est remboursable"}]
[null,null,"",null,null,null,null,null,"",null,null,null,{"$f":"Prestations!B28","v":"CONDRG"},{"$f":"Prestations!C28","v":"Règlement : 30% commande ; Soldes fin de prestation"}]
[null,null,null,null,null,null,null,null,null,null,null,null,{"$f":"Prestations!B29","v":"Distrivoy"},{"$f":"Prestations!C29","v":"Distribution de flyers aux voyageurs"}]
[null,{"$f":"IF($C$15=\"de\",CondDevis,IF($C$15=\"co\",CondComm,IF($C$15=\"fa\",condfact,IF($C$15=\"faloc\",condfactloc,\"\"))))","v":""},null,null,null,"TOTAL H.T",null,null,{"$f":"SUM(I20:I45)","v":0},null,null,null,{"$f":"Prestations!B30","v":"FL1"},{"$f":"Prestations!C30","v":"     - Flyers fournis par l'annonceur -"}]
[null,null,null,null,{"$f":"IF(H47=0,\"\",\"Remise exceptionnelle de \")","v":""},null,null,null,{"$f":"IF(H47=0,\"\",I46*H47)","v":""},null,null,null,{"$f":"Prestations!B31","v":"FL2"},{"$f":"Prestations!C31","v":"Flyers à fournir après acceptation devis"}]
[null,null,null,null,null,{"$f":"IF(H47=0,\"\",\"Total H.T. après remise\")","v":""},null,null,{"$f":"IF(H47=0,\"\",I46-I47)","v":""},null,null,null,{"$f":"Prestations!B32","v":"LOCA"},{"$f":"Prestations!C32","v":"Location cyclo pour la semaine"}]
[null,null,null,null,null,{"$f":"IF(OR(H49=\"TVA\",H49=0),\"\",\"Montant TVA\")","v":""},null,"TVA",{"$f":"IFERROR(IF(I48=\"\",I46*H49,I48*H49),\"\")","v":""},null,null,null,{"$f":"Prestations!B33","v":"LOCB"},{"$f":"Prestations!C33","v":"Location cyclo pour la semaine"}]
[null,null,null,null,null,"TOTAL T.T.C.",null,null,{"$f":"IFERROR(IF(I48=\"\",(I46+I49),(I48+I49)),0)","v":0},null,null,null,{"$f":"Prestations!B34","v":"LOCC"},{"$f":"Prestations!C34","v":"Location cyclo pour la semaine"}]
[null,null,null,null,null,"Acompte",null,null,null,null,null,null,{"$f":"Prestations!B35","v":"NTPERS"},{"$f":"Prestations!C35","v":"Nbre d'intervenant fournit par l'annonceur"}]
[null,null,null,null,null,"RESTE A PAYER",null,null,{"$f":"IFERROR(IF(I50<>0,(I50-I51)-I54,\"\"),0)","v":""},null,null,null,{"$f":"Prestations!B36","v":"NTSEM"},{"$f":"Prestations!C36","v":"   1 semaine d'affichage est comprise"}]
[null,null,null,null,{"$f":"IFERROR(VLOOKUP(B45,Prestations,2,FALSE),\"\")","v":""},null,null,null,null,null,null,null,{"$f":"Prestations!B37","v":"NTSEM1"},{"$f":"Prestations!C37","v":"            du mardi au samedi inclus"}]
[null,null,null,{"$f":"IF(F54=0,\"\",\"Réglé par chèque le\")","v":""},null,null,null,null,null,null,null,null,{"$f":"Prestations!B38","v":"NTST"},{"$f":"Prestations!C38","v":"          STREET MARKETING"}]
[null,null,null,null,null,null,null,null,null,null,null,null,{"$f":"Prestations!B39","v":"POSE"},{"$f":"Prestations!C39","v":"Conception et pose comprises"}]
[null,null,null,null,null,null,null,null,null,null,null,null,{"$f":"Prestations!B40","v":"SEM"},{"$f":"Prestations!C40","v":"                    La prestation se déroulera la semaine"}]
[null,null,null,null,null,null,null,null,null,null,null,null,{"$f":"Prestations!B41","v":"SEMJ1"},{"$f":"Prestations!C41","v":"Samedi"}]
[null,null,null,null,null,null,null,null,null,null,null,null,{"$f":"Prestations!B42","v":"SEMJ2"},{"$f":"Prestations!C42","v":"Mercredi - Samedi"}]
[null,null,null,null,null,null,null,null,{"$f":"I50/3","v":0},null,null,null,{"$f":"Prestations!B43","v":"SEMJ3"},{"$f":"Prestations!C43","v":"Mercredi - Vendredi - Samedi"}]
[null,null,null,null,null,null,null,null,null,null,null,null,{"$f":"Prestations!B44","v":"SEMJDIST"},{"$f":"Prestations!C44","v":"Jours de distribution :\n"}]
[null,null,null,null,null,null,null,null,null,null,null,null,{"$f":"Prestations!B45","v":"SEMJX"},{"$f":"Prestations!C45","v":0}]
[null,false,null,null,null,null,null,null,null,null,null,null,{"$f":"Prestations!B46","v":"TIC10"},{"$f":"Prestations!C46","v":"Carnet de 10 tickets à 2,00 €          + 2 "}]
[null,null,null,null,null,null,null,null,null,null,null,null,{"$f":"Prestations!B47","v":"TIC50"},{"$f":"Prestations!C47","v":"Carnet de 50 tickets à 2,00 €          + 10"}]
[null,null,null,null,null,null,null,null,null,null,null,null,{"$f":"Prestations!B48","v":"TICCLI"},{"$f":"Prestations!C48","v":"Carnet de 05 tickets à 2,00 €          + 1"}]
[null,null,null,null,null,null,null,null,null,null,null,null,{"$f":"Prestations!B49","v":"TICPILO"},{"$f":"Prestations!C49","v":"Carnet de 05 tickets à 2,00 €          + 2"}]
[null,null,null,null,null,null,null,null,null,null,null,null,{"$f":"Prestations!B50","v":"TRAJ"},{"$f":"Prestations!C50","v":"Supplément par jour pour trajet sur-mesure"}]
[null,null,null,null,null,null,null,null,null,null,null,null,{"$f":"Prestations!B51","v":"CONDRG2"},{"$f":"Prestations!C51","v":"En votre aimable règlement. "}]
[null,null,null,null,null,null,null,null,null,null,null,null,{"$f":"Prestations!B52","v":0},{"$f":"Prestations!C52","v":0}]
[null,null,null,null,null,null,null,null,null,null,null,null,{"$f":"Prestations!B53","v":0},{"$f":"Prestations!C53","v":0}]
[null,null,null,null,null,null,null,null,null,null,null,null,{"$f":"Prestations!B54","v":0},{"$f":"Prestations!C54","v":0}]
[null,null,null,null,null,null,null,null,null,null,null,null,{"$f":"Prestations!B55","v":0},{"$f":"Prestations!C55","v":0}]
[null,null,null,null,null,null,null,null,null,null,null,null,{"$f":"Prestations!B56","v":0},{"$f":"Prestations!C56","v":0}]
[null,null,null,null,null,null,null,null,null,null,null,null,{"$f":"Prestations!B57","v":0},{"$f":"Prestations!C57","v":0}]
[null,null,null,null,null,null,null,null,null,null,null,null,{"$f":"Prestations!B58","v":0},{"$f":"Prestations!C58","v":0}]
[null,null,null,null,null,null,null,null,null,null,null,null,{"$f":"Prestations!B59","v":0},{"$f":"Prestations!C59","v":0}]
[null,null,null,null,null,null,null,null,null,null,null,null,{"$f":"Prestations!B60","v":0},{"$f":"Prestations!C60","v":0}]
[null,null,null,null,null,null,null,null,null,null,null,null,{"$f":"Prestations!B61","v":0},{"$f":"Prestations!C61","v":0}]
[null,null,null,null,null,null,null,null,null,null,null,null,{"$f":"Prestations!B62","v":0},{"$f":"Prestations!C62","v":0}]
[null,null,null,null,null,null,null,null,null,null,null,null,{"$f":"Prestations!B63","v":0},{"$f":"Prestations!C63","v":0}]
[null,null,null,null,null,null,null,null,null,null,null,null,{"$f":"Prestations!B64","v":0},{"$f":"Prestations!C64","v":0}]
[null,null,null,null,null,null,null,null,null,null,null,null,{"$f":"Prestations!B65","v":0},{"$f":"Prestations!C65","v":0}]